Workbook

Sheet Template names
A1: Common sheet headings
A2: Head1 | B2: 2020/21 | C2: Prior year -1
A3: Head1A | B3: 2019/20 | C3: Prior year -2
A4: Head1B | B4: 2018/19 | C4: Prior year -3
A5: Head2 | B5: Budget Year 2021/22 | C5: Year of approved budget
A6: Head2A | B6: 2021/22 | C6: Approved budget year
A7: Head3 | B7: 2021/22 Medium Term Revenue & Expenditure Framework | C7: MTREF header name
A8: Head3A | B8: Medium Term Revenue and Expenditure Framework
A9: Head4 | B9: Current year
A10: Head5 | B10: Audited Outcome
A11: Head5A | B11: Outcome
A12: Head5B | B12: Pre-audit outcome
A13: Head6 | B13: Original Budget
A14: Head7 | B14: Adjusted Budget
A15: Head8 | B15: Full Year Forecast
A16: Head9 | B16: Budget Year 2021/22 | C16: 1st year of MTREF | D16: Year1
A17: Head10 | B17: Budget Year +1 2022/23 | C17: 2nd year of MTREF | D17: Year2
A18: Head11 | B18: Budget Year +2 2023/24 | C18: 3rd year of MTREF | D18: Year3
A19: Head24 | B19: Description | D19: Desc
A20: Head26 | B20: Vote Description | D20: VDesc
A21: Head27 | B21: Ref
A22: Head27a | B22: References
A23: Head28 | B23: Surplus/ (Deficit) for the year | D23: Result
A24: Head29 | B24: Annual target 2007/08
A25: Head30 | B25: Revised target 2007/08
A26: Head31 | B26: Quarter ended 30 September
A27: Head32 | B27: Quarter ended 31 December
A28: Head33 | B28: Quarter ended 31 March
A29: Head34 | B29: Quarter ended 30 June
A30: Head35 | B30: Variance explanation
A31: Head36 | B31: YTD Actual 31 Dec
A32: Head37 | B32: YTD Budget 31 Dec
A33: Head38 | B33: Monthly actual
A34: Head39 | B34: YearTD actual
A35: Head40 | B35: YearTD budget
A36: Head41 | B36: YTD variance
A37: Head42 | B37: Surplus/ (Deficit) for the yr/period
A38: Head43 | B38: =Head3&" Summary" -> 2021/22 Medium Term Revenue & Expenditure Framework Summary
A39: Head44 | B39: 2001 Census
A40: Head45 | B40: 2011 Census
A41: Head46 | B41: - Adjustments Budget - January 2007
A42: Head47 | B42: Previous target year to complete
A43: Head48 | B43: Present value
A44: Head49
A45: Head50 | B45: Other Adjusts.
A46: Head51 | B46: Accum. Funds
A47: Head52 | B47: Multi-year capital
A48: Head53 | B48: Unfore. Unavoid.
A49: Head54 | B49: Prior Adjusted
A50: Head55 | B50: Nat. or Prov. Govt
A51: Head56 | B51: Total Adjusts.
A52: Head57 | B52: Month DD, YYYY -
A53: Head58 | B53: Parent muni.
A54: Head59 | B54: Downward adjusts
A55: SFPerf1 | B55: Budgeted Financial Performance
A56: SFPerf2 | B56: Forecast Financial Performance
A57: SFPos1 | B57: Budgeted Financial Position
A58: SFPos2 | B58: Forecast Financial Position
A59: Cash1 | B59: Budget Cash Flow
A60: Cash2 | B60: Forecast Cash Flow
A61: RandM | B61: Expenditure includes repairs & maintenance of R'000
A62: Standard nomenclature
A63: Muni | B63: KZN225 Msunduzi
A64: Municipal Entities | B64: 1 | C64: Type of report: | D64: 3
A65: =IF((MuniEntities=1)*(MuniType=2),"YES","NO") -> NO | B65: Does this municipality have entities (consolidated budget and entity budgets required)? YES/NO
A66: Mid Year Review/Adjustment Budget schedules & tables | E66: Consolidated header | F66: Parent municipality header
A67: ADJSum | B67: =D67&IF(Consolques="YES",E67,F67) -> Table B1 Adjustments Budget Summary | D67: Table B1 | E67: ="Consolidated "&F67 -> Consolidated Adjustments Budget Summary | F67: ="Adjustments Budget Summary" -> Adjustments Budget Summary
A68: ADJ2 | B68: Table B3 Adjustments Budget Financial Performance (revenue and expenditure by municipal vote) | D68: Table B3 | E68: ="Consolidated "&F68 -> Consolidated Adjustments Budget Financial Performance (revenue and expenditure by municipal vote) | F68: ="Adjustments Budget Financial Performance (revenue and expenditure by municipal vote)" -> Adjustments Budget Financial Performance (revenue and expenditure by municipal vote)
A69: ADJ3 | B69: Table B2 Adjustments Budget Financial Performance (functional classification) | D69: Table B2 | E69: Consolidated Adjustments Budget Financial Performance (functional classification) | F69: ="Adjustments Budget Financial Performance (functional classification)" -> Adjustments Budget Financial Performance (functional classification)
A70: ADJ4 | B70: Table B4 Adjustments Budget Financial Performance (revenue and expenditure) | D70: Table B4 | E70: Consolidated Adjustments Budget Financial Performance (revenue and expenditure) | F70: ="Adjustments Budget Financial Performance (revenue and expenditure)" -> Adjustments Budget Financial Performance (revenue and expenditure)
A71: ADJ5 | B71: Table B5 Adjustments Capital Expenditure Budget by vote and funding | D71: Table B5 | E71: Consolidated Adjustments Capital Expenditure Budget by vote and funding | F71: ="Adjustments Capital Expenditure Budget by vote and funding" -> Adjustments Capital Expenditure Budget by vote and funding
A72: ADJ6 | B72: Table B6 Adjustments Budget Financial Position | D72: Table B6 | E72: Consolidated Adjustments Budget Financial Position | F72: ="Adjustments Budget Financial Position" -> Adjustments Budget Financial Position
A73: ADJ7 | B73: Table B7 Adjustments Budget Cash Flows | D73: Table B7 | E73: Consolidated Adjustments Budget Cash Flows | F73: ="Adjustments Budget Cash Flows" -> Adjustments Budget Cash Flows
A74: ADJ8 | B74: Table B8 Cash backed reserves/accumulated surplus reconciliation | D74: Table B8 | E74: Consolidated Cash backed reserves/accumulated surplus reconciliation | F74: ="Cash backed reserves/accumulated surplus reconciliation" -> Cash backed reserves/accumulated surplus reconciliation
A75: ADJ9 | B75: Table B9 Asset Management | D75: Table B9 | E75: Consolidated Asset Management | F75: ="Asset Management" -> Asset Management
A76: ADJ10 | B76: Table B10 Basic service delivery measurement | D76: Table B10 | E76: Consolidated Basic service delivery measurement | F76: ="Basic service delivery measurement" -> Basic service delivery measurement
A77: ADJB1 | B77: Supporting Table SB1 Supporting detail to 'Budgeted Financial Performance' | D77: =D101&"Table SB1 " -> Supporting Table SB1 | E77: Consolidated Supporting detail to 'Budgeted Financial Performance' | F77: ="Supporting detail to 'Budgeted Financial Performance'" -> Supporting detail to 'Budgeted Financial Performance'
A78: ADJB2 | B78: Supporting Table SB2 Supporting detail to 'Financial Position Budget' | D78: =D101&"Table SB2 " -> Supporting Table SB2 | E78: Consolidated Supporting detail to 'Financial Position Budget' | F78: ="Supporting detail to 'Financial Position Budget'" -> Supporting detail to 'Financial Position Budget'
A79: ADJB3 | B79: Supporting Table SB3 Adjustments to the SDBIP - performance objectives | D79: =D101&"Table SB3 " -> Supporting Table SB3 | E79: Consolidated Adjustments to the SDBIP - performance objectives | F79: ="Adjustments to the SDBIP - performance objectives" -> Adjustments to the SDBIP - performance objectives
A80: ADJB4 | B80: Supporting Table SB4 Adjustments to budgeted performance indicators and benchmarks | D80: =D101&"Table SB4 " -> Supporting Table SB4 | E80: Consolidated Adjustments to budgeted performance indicators and benchmarks | F80: ="Adjustments to budgeted performance indicators and benchmarks" -> Adjustments to budgeted performance indicators and benchmarks
A81: ADJB5 | B81: Supporting Table SB5 Adjustments Budget - social, economic and demographic statistics and assumptions | D81: =D101&"Table SB5 " -> Supporting Table SB5 | E81: Consolidated Adjustments Budget - social, economic and demographic statistics and assumptions | F81: ="Adjustments Budget - social, economic and demographic statistics and assumptions" -> Adjustments Budget - social, economic and demographic statistics and assumptions
A82: ADJB6 | B82: Supporting Table SB6 Adjustments Budget - funding measurement | D82: =D101&"Table SB6 " -> Supporting Table SB6 | E82: Consolidated Adjustments Budget - funding measurement | F82: ="Adjustments Budget - funding measurement" -> Adjustments Budget - funding measurement
A83: ADJB7 | B83: Supporting Table SB7 Adjustments Budget - transfers and grant receipts | D83: =D101&"Table SB7 " -> Supporting Table SB7 | E83: Consolidated Adjustments Budget - transfers and grant receipts | F83: ="Adjustments Budget - transfers and grant receipts" -> Adjustments Budget - transfers and grant receipts
A84: ADJB8 | B84: Supporting Table SB8 Adjustments Budget - expenditure on transfers and grant programme | D84: =D101&"Table SB8 " -> Supporting Table SB8 | E84: Consolidated Adjustments Budget - expenditure on transfers and grant programme | F84: ="Adjustments Budget - expenditure on transfers and grant programme" -> Adjustments Budget - expenditure on transfers and grant programme
A85: ADJB9 | B85: Supporting Table SB9 Adjustments Budget - reconciliation of transfers, grant receipts, and unspent funds | D85: =D101&"Table SB9 " -> Supporting Table SB9 | E85: Consolidated Adjustments Budget - reconciliation of transfers, grant receipts, and unspent funds | F85: ="Adjustments Budget - reconciliation of transfers, grant receipts, and unspent funds" -> Adjustments Budget - reconciliation of transfers, grant receipts, and unspent funds
A86: ADJB10 | B86: Supporting Table SB10 Adjustments Budget - transfers and grants made by the municipality | D86: =D101&"Table SB10 " -> Supporting Table SB10 | E86: Consolidated Adjustments Budget - transfers and grants made by the municipality | F86: ="Adjustments Budget - transfers and grants made by the municipality" -> Adjustments Budget - transfers and grants made by the municipality
A87: ADJB11 | B87: Supporting Table SB11 Adjustments Budget - councillor and staff benefits | D87: =D101&"Table SB11 " -> Supporting Table SB11 | E87: Consolidated Adjustments Budget - councillor and staff benefits | F87: ="Adjustments Budget - councillor and staff benefits" -> Adjustments Budget - councillor and staff benefits
A88: ADJB12 | B88: Supporting Table SB12 Adjustments Budget - monthly revenue and expenditure (municipal vote) | D88: =D101&"Table SB12 " -> Supporting Table SB12 | E88: Consolidated Adjustments Budget - monthly revenue and expenditure (municipal vote) | F88: ="Adjustments Budget - monthly revenue and expenditure (municipal vote)" -> Adjustments Budget - monthly revenue and expenditure (municipal vote)
A89: ADJB13 | B89: Supporting Table SB13 Adjustments Budget - monthly revenue and expenditure (functional classification) | D89: =D101&"Table SB13 " -> Supporting Table SB13 | E89: Consolidated Adjustments Budget - monthly revenue and expenditure (functional classification) | F89: ="Adjustments Budget - monthly revenue and expenditure (functional classification)" -> Adjustments Budget - monthly revenue and expenditure (functional classification)
A90: ADJB14 | B90: Supporting Table SB14 Adjustments Budget - monthly revenue and expenditure | D90: =D101&"Table SB14 " -> Supporting Table SB14 | E90: Consolidated Adjustments Budget - monthly revenue and expenditure | F90: ="Adjustments Budget - monthly revenue and expenditure" -> Adjustments Budget - monthly revenue and expenditure
A91: ADJB15 | B91: Supporting Table SB15 Adjustments Budget - monthly cash flow | D91: =D101&"Table SB15 " -> Supporting Table SB15 | E91: Consolidated Adjustments Budget - monthly cash flow | F91: ="Adjustments Budget - monthly cash flow" -> Adjustments Budget - monthly cash flow
A92: ADJB16 | B92: Supporting Table SB16 Adjustments Budget - monthly capital expenditure (municipal vote) | D92: =D101&"Table SB16 " -> Supporting Table SB16 | E92: Consolidated Adjustments Budget - monthly capital expenditure (municipal vote) | F92: ="Adjustments Budget - monthly capital expenditure (municipal vote)" -> Adjustments Budget - monthly capital expenditure (municipal vote)
A93: ADJB17 | B93: Supporting Table SB17 Adjustments Budget - monthly capital expenditure (functional classification) | D93: =D101&"Table SB17 " -> Supporting Table SB17 | E93: Consolidated Adjustments Budget - monthly capital expenditure (functional classification) | F93: ="Adjustments Budget - monthly capital expenditure (functional classification)" -> Adjustments Budget - monthly capital expenditure (functional classification)
A94: ADJB18a | B94: Supporting Table SB18a Adjustments Budget - capital expenditure on new assets by asset class | D94: =D101&"Table SB18a " -> Supporting Table SB18a | E94: Consolidated Adjustments Budget - capital expenditure on new assets by asset class | F94: ="Adjustments Budget - capital expenditure on new assets by asset class" -> Adjustments Budget - capital expenditure on new assets by asset class
A95: ADJB18b | B95: Supporting Table SB18b Adjustments Budget - capital expenditure on renewal of existing assets by asset class | D95: =D101&"Table SB18b " -> Supporting Table SB18b | E95: ="Consolidated "&F95 -> Consolidated Adjustments Budget - capital expenditure on renewal of existing assets by asset class | F95: ="Adjustments Budget - capital expenditure on renewal of existing assets by asset class" -> Adjustments Budget - capital expenditure on renewal of existing assets by asset class
A96: ADJB18c | B96: Supporting Table SB18c Adjustments Budget - expenditure on repairs and maintenance by asset class | D96: =D101&"Table SB18c " -> Supporting Table SB18c | E96: ="Consolidated "&F96 -> Consolidated Adjustments Budget - expenditure on repairs and maintenance by asset class | F96: ="Adjustments Budget - expenditure on repairs and maintenance by asset class" -> Adjustments Budget - expenditure on repairs and maintenance by asset class
A97: ADJB18d | B97: Supporting Table SB18d Adjustments Budget - depreciation by asset class | D97: =D101&"Table SB18d " -> Supporting Table SB18d | E97: ="Consolidated "&F97 -> Consolidated Adjustments Budget - depreciation by asset class | F97: ="Adjustments Budget - depreciation by asset class" -> Adjustments Budget - depreciation by asset class
A98: ADJB18e | B98: Supporting Table SB18e Adjustments Budget - capital expenditure on upgrading of existing assets by asset class | D98: =D101&"Table SB18e " -> Supporting Table SB18e | E98: ="Consolidated "&F98 -> Consolidated Adjustments Budget - capital expenditure on upgrading of existing assets by asset class | F98: ="Adjustments Budget - capital expenditure on upgrading of existing assets by asset class" -> Adjustments Budget - capital expenditure on upgrading of existing assets by asset class
A99: ADJB19 | B99: Supporting Table SB19 List of capital programmes and projects affected by Adjustments Budget | D99: =D101&"Table SB19 " -> Supporting Table SB19 | E99: Consolidated List of capital programmes and projects affected by Adjustments Budget | F99: ="List of capital programmes and projects affected by Adjustments Budget" -> List of capital programmes and projects affected by Adjustments Budget
A100: ADJB20 | B100: Supporting Table SB20 Not required | D100: =D101&"Table SB20 " -> Supporting Table SB20 | E100: ="Adjusted Budget Municipal Entity Performance Summary" -> Adjusted Budget Municipal Entity Performance Summary | F100: Not required
D101: Supporting

Sheet Lookup and lists
A1: Description | B1: 2013 | C1: 2014 | D1: 2015 | E1: 2016 | F1: 2017 | G1: 2018 | H1: 2019 | I1: 2020 | J1: 2021 | K1: 2022 | L1: 2023 | M1: 2024 | N1: 2025 | O1: 2026 | Q1: Grants: | R1: National - opex | S1: Provincial - opex | T1: National - capex | U1: Provincial - capex | V1: YESNO
A2: ='Template names'!C2 -> Prior year -1 | B2: =B1-1&"/"&RIGHT(B1,2)-0 -> 2012/13 | C2: =C1-1&"/"&RIGHT(C1,2)-0 -> 2013/14 | D2: =D1-1&"/"&RIGHT(D1,2)-0 -> 2014/15 | E2: =E1-1&"/"&RIGHT(E1,2)-0 -> 2015/16 | F2: 2016/17 | G2: 2017/18 | H2: 2018/19 | I2: 2019/20 | J2: 2020/21 | K2: 2021/22 | L2: 2022/23 | M2: 2023/24 | N2: 2024/25 | O2: 2025/26 | R2: Local Government Equitable Share | S2: Health subsidy | T2: Municipal Infrastructure Grant (MIG) | U2: Agriculture | V2: Yes
A3: ='Template names'!C3 -> Prior year -2 | B3: =B1-2&"/"&RIGHT(B1,2)-1 -> 2011/12 | C3: =C1-2&"/"&RIGHT(C1,2)-1 -> 2012/13 | D3: =D1-2&"/"&RIGHT(D1,2)-1 -> 2013/14 | E3: =E1-2&"/"&RIGHT(E1,2)-1 -> 2014/15 | F3: 2015/16 | G3: 2016/17 | H3: 2017/18 | I3: 2018/19 | J3: 2019/20 | K3: 2020/21 | L3: 2021/22 | M3: 2022/23 | N3: 2023/24 | O3: 2024/25 | R3: RSC Levy Replacement | S3: Ambulance subsidy | T3: Public Transport and Systems | U3: Education | V3: No
A4: ='Template names'!C4 -> Prior year -3 | B4: =B1-3&"/"&RIGHT(B1,2)-2 -> 2010/11 | C4: =C1-3&"/"&RIGHT(C1,2)-2 -> 2011/12 | D4: =D1-3&"/"&RIGHT(D1,2)-2 -> 2012/13 | E4: =E1-3&"/"&RIGHT(E1,2)-2 -> 2013/14 | F4: 2014/15 | G4: 2015/16 | H4: 2016/17 | I4: 2017/18 | J4: 2018/19 | K4: 2019/20 | L4: 2020/21 | M4: 2021/22 | N4: 2022/23 | O4: 2023/24 | R4: Finance Management | S4: Housing | T4: Rural Transport Services and Infrastructure | U4: Health
A5: ='Template names'!C7 -> MTREF header name | B5: =B1&"/"&RIGHT(B1,2)+1&" Medium Term Revenue & Expenditure Framework" -> 2013/14 Medium Term Revenue & Expenditure Framework | C5: =C1&"/"&RIGHT(C1,2)+1&" Medium Term Revenue & Expenditure Framework" -> 2014/15 Medium Term Revenue & Expenditure Framework | D5: =D1&"/"&RIGHT(D1,2)+1&" Medium Term Revenue & Expenditure Framework" -> 2015/16 Medium Term Revenue & Expenditure Framework | E5: =E1&"/"&RIGHT(E1,2)+1&" Medium Term Revenue & Expenditure Framework" -> 2016/17 Medium Term Revenue & Expenditure Framework | F5: 2017/18 Medium Term Revenue & Expenditure Framework | G5: 2018/19 Medium Term Revenue & Expenditure Framework | H5: 2019/20 Medium Term Revenue & Expenditure Framework | I5: 2020/21 Medium Term Revenue & Expenditure Framework | J5: 2021/22 Medium Term Revenue & Expenditure Framework | K5: 2022/23 Medium Term Revenue & Expenditure Framework | L5: 2023/24 Medium Term Revenue & Expenditure Framework | M5: 2024/25 Medium Term Revenue & Expenditure Framework | N5: 2025/26 Medium Term Revenue & Expenditure Framework | O5: 2026/27 Medium Term Revenue & Expenditure Framework | R5: Municipal Systems Improvement | S5: Sport and Recreation | T5: Regional Bulk Infrastructure | U5: Housing and Local Government
A6: ='Template names'!C6 -> Approved budget year | B6: =B1&"/"&RIGHT(B1,2)+1 -> 2013/14 | C6: =C1&"/"&RIGHT(C1,2)+1 -> 2014/15 | D6: =D1&"/"&RIGHT(D1,2)+1 -> 2015/16 | E6: =E1&"/"&RIGHT(E1,2)+1 -> 2016/17 | F6: 2017/18 | G6: 2018/19 | H6: 2019/20 | I6: 2020/21 | J6: 2021/22 | K6: 2022/23 | L6: 2023/24 | M6: 2024/25 | N6: 2025/26 | O6: 2026/27 | R6: Water Services Operating Subsidy | T6: Rural Households Infrastructure | U6: Other Departments
A7: ='Template names'!C16 -> 1st year of MTREF | B7: ="Budget Year "&B1&"/"&RIGHT(B1,2)+1 -> Budget Year 2013/14 | C7: ="Budget Year "&C1&"/"&RIGHT(C1,2)+1 -> Budget Year 2014/15 | D7: ="Budget Year "&D1&"/"&RIGHT(D1,2)+1 -> Budget Year 2015/16 | E7: ="Budget Year "&E1&"/"&RIGHT(E1,2)+1 -> Budget Year 2016/17 | F7: Budget Year 2017/18 | G7: Budget Year 2018/19 | H7: Budget Year 2019/20 | I7: Budget Year 2020/21 | J7: Budget Year 2021/22 | K7: Budget Year 2022/23 | L7: Budget Year 2023/24 | M7: Budget Year 2024/25 | N7: Budget Year 2025/26 | O7: Budget Year 2026/27 | R7: Energy Efficiency and Demand Management | T7: Neighbourhood Development Partnership | U7: Public Works, Roads, Transport
A8: ='Template names'!C17 -> 2nd year of MTREF | B8: ="Budget Year +1 "&B1+1&"/"&RIGHT(B1,2)+2 -> Budget Year +1 2014/15 | C8: ="Budget Year +1 "&C1+1&"/"&RIGHT(C1,2)+2 -> Budget Year +1 2015/16 | D8: ="Budget Year +1 "&D1+1&"/"&RIGHT(D1,2)+2 -> Budget Year +1 2016/17 | E8: ="Budget Year +1 "&E1+1&"/"&RIGHT(E1,2)+2 -> Budget Year +1 2017/18 | F8: Budget Year +1 2018/19 | G8: Budget Year +1 2019/20 | H8: Budget Year +1 2020/21 | I8: Budget Year +1 2021/22 | J8: Budget Year +1 2022/23 | K8: Budget Year +1 2023/24 | L8: Budget Year +1 2024/25 | M8: Budget Year +1 2025/26 | N8: Budget Year +1 2026/27 | O8: Budget Year +1 2027/28 | R8: Integrated National Electrification Programme | T8: 2010 FIFA World Cup Stadiums Development | U8: Sport and Recreation
A9: ='Template names'!C18 -> 3rd year of MTREF | B9: ="Budget Year +2 "&B1+2&"/"&RIGHT(B1,2)+3 -> Budget Year +2 2015/16 | C9: ="Budget Year +2 "&C1+2&"/"&RIGHT(C1,2)+3 -> Budget Year +2 2016/17 | D9: ="Budget Year +2 "&D1+2&"/"&RIGHT(D1,2)+3 -> Budget Year +2 2017/18 | E9: ="Budget Year +2 "&E1+2&"/"&RIGHT(E1,2)+3 -> Budget Year +2 2018/19 | F9: Budget Year +2 2019/20 | G9: Budget Year +2 2020/21 | H9: Budget Year +2 2021/22 | I9: Budget Year +2 2022/23 | J9: Budget Year +2 2023/24 | K9: Budget Year +2 2024/25 | L9: Budget Year +2 2025/26 | M9: Budget Year +2 2026/27 | N9: Budget Year +2 2027/28 | O9: Budget Year +2 2028/29 | R9: Municipal Drought Relief
A10: Adjustments Budget | B10: ="Annual target " & B1&"/"&RIGHT(B1,2)+1 -> Annual target 2013/14 | C10: ="Annual target " & C1&"/"&RIGHT(C1,2)+1 -> Annual target 2014/15 | D10: ="Annual target " & D1&"/"&RIGHT(D1,2)+1 -> Annual target 2015/16 | E10: ="Annual target " & E1&"/"&RIGHT(E1,2)+1 -> Annual target 2016/17 | F10: Annual target 2017/18 | G10: Annual target 2018/19 | H10: Annual target 2019/20 | I10: Annual target 2020/21 | J10: Annual target 2021/22 | K10: Annual target 2022/23 | L10: Annual target 2023/24 | M10: Annual target 2024/25 | N10: Annual target 2025/26 | O10: Annual target 2026/27 | R10: 2010 FIFA World Cup Operating
A11: NOTE: This sheet should not be directly amended - select headings from sheet 'S' | R11: Electricity Demand Side Management
R12: EPWP Incentive
R15: Asset Class | S15: Asset sub-class Old | T15: Asset sub-class | U15: IUDF | V15: MTSF
R17: Roads Infrastructure | S17: Roads, Pavements & Bridges | T17: Roads | U17: Spatial integration | V17: Quality basic education
R18: Storm water Infrastructure | S18: Storm water | T18: Road Structures | U18: Inclusion and access | V18: A long and healthy life for all South Africans
R19: Electrical Infrastructure | S19: Generation | T19: Road Furniture | U19: Growth | V19: All people in South Africa are and feel safe
R20: Water Supply Infrastructure | S20: Transmission & Reticulation | T20: Capital Spares | U20: Governance | V20: Decent employment through inclusive growth
R21: Sanitation Infrastructure | S21: Street Lighting | T21: Drainage Collection | V21: A skilled and capable workforce to support an inclusive growth path
R22: Solid Waste Infrastructure | S22: Dams & Reservoirs | T22: Storm water Conveyance | V22: An efficient, competitive and responsive economic infrastructure network
R23: Rail Infrastructure | S23: Water purification | T23: Attenuation | V23: Vibrant, equitable, sustainable rural communities contributing towards food security for all
R24: Coastal Infrastructure | S24: Reticulation | T24: Power Plants | V24: Sustainable human settlements and improved quality of household life
R25: Information and Communication Infrastructure | S25: Sewerage purification | T25: HV Substations | V25: Responsive, accountable, effective and efficient local government
R26: Community Facilities | S26: Waste Management | T26: HV Switching Station | V26: Protect and enhance our environmental assets and natural resources
A27: Name link | B27: 85 | R27: Sport and Recreation Facilities | S27: Transportation | T27: HV Transmission Conductors | V27: Create a better South Africa and contribute to a better Africa and a better world
A28: Name of Muni | B28: =INDEX(B29:B312,B27,1) -> KZN225 Msunduzi | R28: Heritage assets | S28: Gas | T28: MV Substations | V28: An efficient, effective and development-oriented public service
B29: Choose name from list | C29: Set name on 'Instructions' sheet | R29: Revenue Generating | S29: Parks & gardens | T29: MV Switching Stations | V29: A comprehensive, responsive and sustainable social protection system
B30: BUF Buffalo City | C30: EC EASTERN CAPE | R30: Non-revenue Generating | S30: Sportsfields & stadia | T30: MV Networks | V30: A diverse, socially cohesive society with a common national identity
B31: NMA Nelson Mandela Bay | C31: EC EASTERN CAPE | R31: Operational Buildings | S31: Swimming pools | T31: LV Networks
B32: EC101 Dr Beyers Naude | C32: EC EASTERN CAPE | R32: Housing | S32: Community halls | T32: Capital Spares
B33: EC102 Blue Crane Route | C33: EC EASTERN CAPE | R33: Biological or Cultivated Assets | S33: Libraries | T33: Dams and Weirs
B34: EC104 Makana | C34: EC EASTERN CAPE | R34: Servitudes | S34: Recreational facilities | T34: Boreholes
B35: EC105 Ndlambe | C35: EC EASTERN CAPE | R35: Licences and Rights | S35: Fire, safety & emergency | T35: Reservoirs
B36: EC106 Sundays River Valley | C36: EC EASTERN CAPE | R36: Computer Equipment | S36: Security and policing | T36: Pump Stations
B37: EC108 Kouga | C37: EC EASTERN CAPE | R37: Furniture and Office Equipment | S37: Buses | T37: Water Treatment Works
B38: EC109 Kou-Kamma | C38: EC EASTERN CAPE | R38: Machinery and Equipment | S38: Clinics | T38: Bulk Mains
B39: DC10 Sarah Baartman | C39: EC EASTERN CAPE | R39: Transport Assets | S39: Museums & Art Galleries | T39: Distribution
B40: EC121 Mbhashe | C40: EC EASTERN CAPE | R40: Land | S40: Cemeteries | T40: Distribution Points
B41: EC122 Mnquma | C41: EC EASTERN CAPE | R41: Zoo's, Marine and Non-biological Animals | S41: Social rental housing | T41: PRV Stations
B42: EC123 Great Kei | C42: EC EASTERN CAPE | S42: Buildings | T42: Capital Spares
B43: EC124 Amahlathi | C43: EC EASTERN CAPE | S43: Housing development | T43: Pump Station
B44: EC126 Ngqushwa | C44: EC EASTERN CAPE | S44: General vehicles | T44: Reticulation
B45: EC129 Raymond Mhlaba | C45: EC EASTERN CAPE | S45: Specialised vehicles - Refuse | T45: Waste Water Treatment Works
B46: DC12 Amathole | C46: EC EASTERN CAPE | S46: Specialised vehicles - Fire | T46: Outfall Sewers
B47: EC131 Inxuba Yethemba | C47: EC EASTERN CAPE | S47: Specialised vehicles - Conservancy | T47: Toilet Facilities
B48: EC135 Intsika Yethu | C48: EC EASTERN CAPE | S48: Specialised vehicles - Ambulances | T48: Capital Spares
B49: EC136 Emalahleni (Ec) | C49: EC EASTERN CAPE | S49: Plant & equipment | T49: Landfill Sites
B50: EC137 Engcobo | C50: EC EASTERN CAPE | S50: Computers - hardware/equipment | T50: Waste Transfer Stations
B51: EC138 Sakhisizwe | C51: EC EASTERN CAPE | S51: Furniture and other office equipment | T51: Waste Processing Facilities
B52: EC139 Enoch Mgijima | C52: EC EASTERN CAPE | S52: Abattoirs | T52: Waste Drop-off Points
B53: DC13 Chris Hani | C53: EC EASTERN CAPE | S53: Markets | T53: Waste Separation Facilities
B54: EC141 Elundini | C54: EC EASTERN CAPE | S54: Civic Land and Buildings | T54: Electricity Generation Facilities
B55: EC142 Senqu | C55: EC EASTERN CAPE | S55: Other Buildings | T55: Capital Spares
B56: EC145 Walter Sisulu | C56: EC EASTERN CAPE | S56: Other Land | T56: Rail Lines
B57: DC14 Joe Gqabi | C57: EC EASTERN CAPE | S57: Surplus Assets - (Investment or Inventory) | T57: Rail Structures
B58: EC153 Ngquza Hills | C58: EC EASTERN CAPE | S58: Computers - software & programming | T58: Rail Furniture
B59: EC154 Port St Johns | C59: EC EASTERN CAPE | S59: Other | T59: Drainage Collection
B60: EC155 Nyandeni | C60: EC EASTERN CAPE | T60: Storm water Conveyance
B61: EC156 Mhlontlo | C61: EC EASTERN CAPE | R61: SB 19 | T61: Attenuation
B62: EC157 King Sabata Dalindyebo | C62: EC EASTERN CAPE | R62: Yes | T62: MV Substations
B63: DC15 O .R. Tambo | C63: EC EASTERN CAPE | R63: No | T63: LV Networks
B64: EC441 Matatiele | C64: EC EASTERN CAPE | T64: Capital Spares
B65: EC442 Umzimvubu | C65: EC EASTERN CAPE | T65: Sand Pumps
B66: EC443 Winnie Madikizela Mandela | C66: EC EASTERN CAPE | T66: Piers
B67: EC444 Ntabankulu | C67: EC EASTERN CAPE | T67: Revetments
B68: DC44 Alfred Nzo | C68: EC EASTERN CAPE | T68: Promenades
B69: MAN Mangaung | C69: FS FREE STATE | T69: Capital Spares
B70: FS161 Letsemeng | C70: FS FREE STATE | T70: Data Centres
B71: FS162 Kopanong | C71: FS FREE STATE | T71: Core Layers
B72: FS163 Mohokare | C72: FS FREE STATE | T72: Distribution Layers
B73: DC16 Xhariep | C73: FS FREE STATE | T73: Capital Spares
B74: FS181 Masilonyana | C74: FS FREE STATE | T74: Halls
B75: FS182 Tokologo | C75: FS FREE STATE | T75: Centres
B76: FS183 Tswelopele | C76: FS FREE STATE | T76: Crèches
B77: FS184 Matjhabeng | C77: FS FREE STATE | T77: Clinics/Care Centres
B78: FS185 Nala | C78: FS FREE STATE | T78: Fire/Ambulance Stations
B79: DC18 Lejweleputswa | C79: FS FREE STATE | T79: Testing Stations
B80: FS191 Setsoto | C80: FS FREE STATE | T80: Museums
B81: FS192 Dihlabeng | C81: FS FREE STATE | T81: Galleries
B82: FS193 Nketoana | C82: FS FREE STATE | T82: Theatres
B83: FS194 Maluti-a-Phofung | C83: FS FREE STATE | T83: Libraries
B84: FS195 Phumelela | C84: FS FREE STATE | T84: Cemeteries/Crematoria
B85: FS196 Mantsopa | C85: FS FREE STATE | T85: Police
B86: DC19 Thabo Mofutsanyana | C86: FS FREE STATE | T86: Purls
B87: FS201 Moqhaka | C87: FS FREE STATE | T87: Public Open Space
B88: FS203 Ngwathe | C88: FS FREE STATE | T88: Nature Reserves
B89: FS204 Metsimaholo | C89: FS FREE STATE | T89: Public Ablution Facilities
B90: FS205 Mafube | C90: FS FREE STATE | T90: Markets
B91: DC20 Fezile Dabi | C91: FS FREE STATE | T91: Stalls
B92: EKU City of Ekurhuleni | C92: GT GAUTENG | T92: Abattoirs
B93: JHB City Of Johannesburg | C93: GT GAUTENG | T93: Airports
B94: TSH City Of Tshwane | C94: GT GAUTENG | T94: Taxi Ranks/Bus Terminals
B95: GT421 Emfuleni | C95: GT GAUTENG | T95: Capital Spares
B96: GT422 Midvaal | C96: GT GAUTENG | T96: Indoor Facilities
B97: GT423 Lesedi | C97: GT GAUTENG | T97: Outdoor Facilities
B98: DC42 Sedibeng | C98: GT GAUTENG | T98: Capital Spares
B99: GT481 Mogale City | C99: GT GAUTENG | T99: Monuments
B100: GT484 Merafong City | C100: GT GAUTENG | T100: Historic Buildings
B101: GT485 Rand West City | C101: GT GAUTENG | T101: Works of Art
B102: DC48 West Rand | C102: GT GAUTENG | T102: Conservation Areas
B103: ETH eThekwini | C103: KZN KWAZULU-NATAL | T103: Other Heritage
B104: KZN212 Umdoni | C104: KZN KWAZULU-NATAL | T104: Improved Property
B105: KZN213 Umzumbe | C105: KZN KWAZULU-NATAL | T105: Unimproved Property
B106: KZN214 uMuziwabantu | C106: KZN KWAZULU-NATAL | T106: Municipal Offices
B107: KZN216 Ray Nkonyeni | C107: KZN KWAZULU-NATAL | T107: Pay/Enquiry Points
B108: DC21 Ugu | C108: KZN KWAZULU-NATAL | T108: Building Plan Offices
B109: KZN221 uMshwathi | C109: KZN KWAZULU-NATAL | T109: Workshops
B110: KZN222 uMngeni | C110: KZN KWAZULU-NATAL | T110: Yards
B111: KZN223 Mpofana | C111: KZN KWAZULU-NATAL | T111: Stores
B112: KZN224 Impendle | C112: KZN KWAZULU-NATAL | T112: Laboratories
B113: KZN225 Msunduzi | C113: KZN KWAZULU-NATAL | T113: Training Centres
B114: KZN226 Mkhambathini | C114: KZN KWAZULU-NATAL | T114: Manufacturing Plant
B115: KZN227 Richmond | C115: KZN KWAZULU-NATAL | T115: Depots
B116: DC22 uMgungundlovu | C116: KZN KWAZULU-NATAL | T116: Capital Spares
B117: KZN235 Okhahlamba | C117: KZN KWAZULU-NATAL | T117: Staff Housing
B118: KZN237 Inkosi Langalibalele | C118: KZN KWAZULU-NATAL | T118: Social Housing
B119: KZN238 Alfred Duma | C119: KZN KWAZULU-NATAL | T119: Capital Spares
B120: DC23 Uthukela | C120: KZN KWAZULU-NATAL | T120: Water Rights
B121: KZN241 Endumeni | C121: KZN KWAZULU-NATAL | T121: Effluent Licenses
B122: KZN242 Nquthu | C122: KZN KWAZULU-NATAL | T122: Solid Waste Licenses
B123: KZN244 Msinga | C123: KZN KWAZULU-NATAL | T123: Computer Software and Applications
B124: KZN245 Umvoti | C124: KZN KWAZULU-NATAL | T124: Load Settlement Software Applications
B125: DC24 Umzinyathi | C125: KZN KWAZULU-NATAL | T125: Unspecified
B126: KZN252 Newcastle | C126: KZN KWAZULU-NATAL
B127: KZN253 Emadlangeni | C127: KZN KWAZULU-NATAL
B128: KZN254 Dannhauser | C128: KZN KWAZULU-NATAL
B129: DC25 Amajuba | C129: KZN KWAZULU-NATAL
B130: KZN261 eDumbe | C130: KZN KWAZULU-NATAL
B131: KZN262 uPhongolo | C131: KZN KWAZULU-NATAL
B132: KZN263 Abaqulusi | C132: KZN KWAZULU-NATAL
B133: KZN265 Nongoma | C133: KZN KWAZULU-NATAL
B134: KZN266 Ulundi | C134: KZN KWAZULU-NATAL
B135: DC26 Zululand | C135: KZN KWAZULU-NATAL
B136: KZN271 Umhlabuyalingana | C136: KZN KWAZULU-NATAL
B137: KZN272 Jozini | C137: KZN KWAZULU-NATAL
B138: KZN275 Mtubatuba | C138: KZN KWAZULU-NATAL
B139: KZN276 Hlabisa Big Five | C139: KZN KWAZULU-NATAL
B140: DC27 Umkhanyakude | C140: KZN KWAZULU-NATAL
B141: KZN281 Mfolozi | C141: KZN KWAZULU-NATAL
B142: KZN282 uMhlathuze | C142: KZN KWAZULU-NATAL
B143: KZN284 uMlalazi | C143: KZN KWAZULU-NATAL
B144: KZN285 Mthonjaneni | C144: KZN KWAZULU-NATAL
B145: KZN286 Nkandla | C145: KZN KWAZULU-NATAL
B146: DC28 King Cetshwayo | C146: KZN KWAZULU-NATAL
B147: KZN291 Mandeni | C147: KZN KWAZULU-NATAL
B148: KZN292 KwaDukuza | C148: KZN KWAZULU-NATAL
B149: KZN293 Ndwedwe | C149: KZN KWAZULU-NATAL
B150: KZN294 Maphumulo | C150: KZN KWAZULU-NATAL
B151: DC29 iLembe | C151: KZN KWAZULU-NATAL
B152: KZN433 Greater Kokstad | C152: KZN KWAZULU-NATAL
B153: KZN434 Ubuhlebezwe | C153: KZN KWAZULU-NATAL
B154: KZN435 Umzimkhulu | C154: KZN KWAZULU-NATAL
B155: KZN436 Dr Nkosazana Dlamini Zuma | C155: KZN KWAZULU-NATAL
B156: DC43 Harry Gwala | C156: KZN KWAZULU-NATAL
B157: LIM331 Greater Giyani | C157: LIM LIMPOPO
B158: LIM332 Greater Letaba | C158: LIM LIMPOPO
B159: LIM333 Greater Tzaneen | C159: LIM LIMPOPO
B160: LIM334 Ba-Phalaborwa | C160: LIM LIMPOPO
B161: LIM335 Maruleng | C161: LIM LIMPOPO
B162: DC33 Mopani | C162: LIM LIMPOPO
B163: LIM341 Musina | C163: LIM LIMPOPO
B164: LIM343 Thulamela | C164: LIM LIMPOPO
B165: LIM344 Makhado | C165: LIM LIMPOPO
B166: LIM345 Collins Chabane | C166: LIM LIMPOPO
B167: DC34 Vhembe | C167: LIM LIMPOPO
B168: LIM351 Blouberg | C168: LIM LIMPOPO
B169: LIM353 Molemole | C169: LIM LIMPOPO
B170: LIM354 Polokwane | C170: LIM LIMPOPO
B171: LIM355 Lepelle-Nkumpi | C171: LIM LIMPOPO
B172: DC35 Capricorn | C172: LIM LIMPOPO
B173: LIM361 Thabazimbi | C173: LIM LIMPOPO
B174: LIM362 Lephalale | C174: LIM LIMPOPO
B175: LIM366 Bela Bela | C175: LIM LIMPOPO
B176: LIM367 Mogalakwena | C176: LIM LIMPOPO
B177: LIM368 Modimolle-Mookgopong | C177: LIM LIMPOPO
B178: DC36 Waterberg | C178: LIM LIMPOPO
B179: LIM471 Ephraim Mogale | C179: LIM LIMPOPO
B180: LIM472 Elias Motsoaledi | C180: LIM LIMPOPO
B181: LIM473 Makhuduthamaga | C181: LIM LIMPOPO
B182: LIM476 Tubatse Fetakgomo | C182: LIM LIMPOPO
B183: DC47 Sekhukhune | C183: LIM LIMPOPO
B184: MP301 Albert Luthuli | C184: MP MPUMALANGA
B185: MP302 Msukaligwa | C185: MP MPUMALANGA
B186: MP303 Mkhondo | C186: MP MPUMALANGA
B187: MP304 Pixley Ka Seme (MP) | C187: MP MPUMALANGA
B188: MP305 Lekwa | C188: MP MPUMALANGA
B189: MP306 Dipaleseng | C189: MP MPUMALANGA
B190: MP307 Govan Mbeki | C190: MP MPUMALANGA
B191: DC30 Gert Sibande | C191: MP MPUMALANGA
B192: MP311 Victor Khanye | C192: MP MPUMALANGA
B193: MP312 Emalahleni (Mp) | C193: MP MPUMALANGA
B194: MP313 Steve Tshwete | C194: MP MPUMALANGA
B195: MP314 Emakhazeni | C195: MP MPUMALANGA
B196: MP315 Thembisile Hani | C196: MP MPUMALANGA
B197: MP316 Dr J.S. Moroka | C197: MP MPUMALANGA
B198: DC31 Nkangala | C198: MP MPUMALANGA
B199: MP321 Thaba Chweu | C199: MP MPUMALANGA
B200: MP324 Nkomazi | C200: MP MPUMALANGA
B201: MP325 Bushbuckridge | C201: MP MPUMALANGA
B202: MP326 City of Mbombela | C202: MP MPUMALANGA
B203: DC32 Ehlanzeni | C203: MP MPUMALANGA
... 84 more rows

Sheet START
A1: MunBI

Sheet Instructions
D2: 2020
X4: Yes
X5: No
W7: Type of Entities Range: | X7: Consolidated Information
X8: Consolidated Information
X9: Consolidated Information
W10: Date of Adjustment
W19: MTREF Range: | X19: 2013
X20: 2014
X21: 2015
X22: 2016
X23: 2017
X24: 2018
X25: 2019
X26: 2020
X27: 2021
X28: 2022
X29: 2023
X30: 2024
X31: 2025
X32: 2026
W33: MTREF Linked:
W34: MTREF:
X35: 9
W36: Fin Year: | X36: 2021
X38: =MTREF&"/"&RIGHT(MTREF,2)+1 -> 2021/22

Sheet Org structure
A1: Organisational Structure Votes | C1: Organisational Structure Sub-Votes | E1: Display Sub-Votes
A2: Vote 1 - City Manager | B2: Vote 1 | C2: =A2 -> Vote 1 - City Manager | G2: =RIGHT(A2,(LEN(A2)-9)) -> City Manager
A3: Vote 2 - City Finance | B3: 1.1 | C3: 1,1 - Internal Audit and Compliance | D3: 1.1 - Mayor and Council | E3: 1,1 - Internal Audit and Compliance | G3: =RIGHT(A3,(LEN(A3)-9)) -> City Finance
A4: Vote 3 - Community Services and Social Equity | B4: 1.2 | C4: 1,2 - Office of the City Manager | D4: 1.2 - Municipal Manager, Town Secretary and Chief Executive | E4: 1,2 - Office of the City Manager | G4: Community Services and Social Equity
A5: Vote 4 - Corporate Services | B5: 1.3 | C5: 1,3 - Political Support | D5: 1.3 - [Name of sub-vote] | E5: 1,3 - Political Support | G5: Corporate Services
A6: Vote 5 - Infrastructure Services | B6: 1.4 | C6: 1,4 - Strategic Planning | D6: 1.4 - [Name of sub-vote] | E6: 1,4 - Strategic Planning | G6: Infrastructure Services
A7: Vote 6 - Sustainable Development and City Enterprises | B7: 1.5 | C7: [Name of sub-vote] | D7: 1.5 - [Name of sub-vote] | E7: 1,5 - [Name of sub-vote] | G7: Sustainable Development and City Enterprises
A8: Vote 7 - [NAME OF VOTE 7] | B8: 1.6 | C8: [Name of sub-vote] | D8: 1.6 - [Name of sub-vote] | E8: 1,6 - [Name of sub-vote] | G8: [NAME OF VOTE 7]
A9: Vote 8 - [NAME OF VOTE 8] | B9: 1.7 | C9: [Name of sub-vote] | D9: 1.7 - [Name of sub-vote] | E9: 1,7 - [Name of sub-vote] | G9: [NAME OF VOTE 8]
A10: Vote 9 - [NAME OF VOTE 9] | B10: 1.8 | C10: [Name of sub-vote] | D10: 1.8 - [Name of sub-vote] | E10: 1,8 - [Name of sub-vote] | G10: [NAME OF VOTE 9]
A11: Vote 10 - [NAME OF VOTE 10] | B11: 1.9 | C11: [Name of sub-vote] | D11: 1.9 - [Name of sub-vote] | E11: 1,9 - [Name of sub-vote] | G11: =RIGHT(A11,(LEN(A11)-10)) -> [NAME OF VOTE 10]
A12: Vote 11 - [NAME OF VOTE 11] | B12: 1.10 | C12: [Name of sub-vote] | D12: 1.10 - [Name of sub-vote] | E12: 1.10 - [Name of sub-vote] | G12: [NAME OF VOTE 11]
A13: Vote 12 - [NAME OF VOTE 12] | B13: Vote 2 | C13: Finance and Administration | G13: [NAME OF VOTE 12]
A14: Vote 13 - [NAME OF VOTE 13] | B14: 2.1 | C14: Asset Management | D14: 2.1 - Administrative and Corporate Support | E14: 2,1 - Asset Management | G14: [NAME OF VOTE 13]
A15: Vote 14 - [NAME OF VOTE 14] | B15: 2.2 | C15: Budget and Treasury Management | D15: 2.2 - Asset Management | E15: 2,2 - Budget and Treasury Management | G15: [NAME OF VOTE 14]
A16: Vote 15 - [NAME OF VOTE 15] | B16: 2.3 | C16: Expenditure Management | D16: 2.3 - Finance | E16: 2,3 - Expenditure Management | G16: [NAME OF VOTE 15]
A17: Vote 16 - Other | B17: 2.4 | C17: Revenue Management | D17: 2.4 - Fleet Management | E17: 2,4 - Revenue Management | H17: Not Mapped
B18: 2.5 | C18: Supply Chain Management | D18: 2.5 - Human Resources | E18: 2,5 - Supply Chain Management
B19: 2.6 | C19: [Name of sub-vote] | D19: 2.6 - Information Technology | E19: 2,6 - [Name of sub-vote]
B20: 2.7 | C20: [Name of sub-vote] | D20: 2.7 - Legal Services | E20: 2,7 - [Name of sub-vote]
B21: 2.8 | C21: [Name of sub-vote] | D21: 2.8 - Marketing, Customer Relations, Publicity and Media Co-ordination | E21: 2,8 - [Name of sub-vote]
B22: 2.9 | C22: [Name of sub-vote] | D22: 2.9 - Security Services | E22: 2,9 - [Name of sub-vote]
B23: 2.10 | C23: [Name of sub-vote] | D23: 2.10 - Supply Chain Management | E23: 2.10 - [Name of sub-vote]
B24: Vote 3 | C24: =A4 -> Vote 3 - Community Services and Social Equity
B25: 3.1 | C25: Area Based Management | D25: 3.1 - Governance Function | E25: 3,1 - Area Based Management
B26: 3.2 | C26: Public Safety, Emergency Services and Enforcement | D26: 3.2 - Risk Management | E26: 3,2 - Public Safety, Emergency Services and Enforcement
B27: 3.3 | C27: Recreation and Facilities | D27: 3.3 - [Name of sub-vote] | E27: 3,3 - Recreation and Facilities
B28: 3.4 | C28: Waste Management | D28: 3.4 - [Name of sub-vote] | E28: 3,4 - Waste Management
B29: 3.5 | C29: [Name of sub-vote] | D29: 3.5 - [Name of sub-vote] | E29: 3,5 - [Name of sub-vote]
B30: 3.6 | C30: [Name of sub-vote] | D30: 3.6 - [Name of sub-vote] | E30: 3,6 - [Name of sub-vote]
B31: 3.7 | C31: [Name of sub-vote] | D31: 3.7 - [Name of sub-vote] | E31: 3,7 - [Name of sub-vote]
B32: 3.8 | C32: [Name of sub-vote] | D32: 3.8 - [Name of sub-vote] | E32: 3,8 - [Name of sub-vote]
B33: 3.9 | C33: [Name of sub-vote] | D33: 3.9 - [Name of sub-vote] | E33: 3,9 - [Name of sub-vote]
B34: 3.10 | C34: [Name of sub-vote] | D34: 3.10 - [Name of sub-vote] | E34: 3.10 - [Name of sub-vote]
B35: Vote 4 | C35: =A5 -> Vote 4 - Corporate Services
B36: 4.1 | C36: 4,1 - Human Resources Management | D36: 4.1 - Aged Care | E36: 4,1 - Human Resources Management
B37: 4.2 | C37: 4,2 - Information Technology | D37: 4.2 - Indigenous and Customary Law | E37: 4,2 - Information Technology
B38: 4.3 | C38: 4,3 - Legal Services | D38: 4.3 - Animal Care and Diseases | E38: 4,3 - Legal Services
B39: 4.4 | C39: 4,4 - Secretariat and Auxiliary Services | D39: 4.4 - Cemeteries, Funeral Parlours and Crematoriums | E39: 4,4 - Secretariat and Auxiliary Services
B40: 4.5 | C40: 4,5 - General Manager: Corporate Service | D40: 4.5 - Child Care Facilities | E40: 4,5 - General Manager: Corporate Service
B41: 4.6 | C41: Community Halls and Facilities | D41: 4.6 - Community Halls and Facilities | E41: 4,6 - [Name of sub-vote]
B42: 4.7 | C42: Literacy Programmes | D42: 4.7 - Consumer Protection | E42: 4,7 - [Name of sub-vote]
B43: 4.8 | C43: Cultural Matters | D43: 4.8 - Population Development | E43: 4,8 - [Name of sub-vote]
B44: 4.9 | C44: Disaster Management | D44: 4.9 - Disaster Management | E44: 4,9 - [Name of sub-vote]
B45: 4.10 | C45: Education | D45: 4.10 - Education | E45: 4.10 - [Name of sub-vote]
B46: Vote 5 | C46: =A6 -> Vote 5 - Infrastructure Services
B47: 5.1 | C47: 5,1 - Electricity | D47: 5.1 - Beaches and Jetties | E47: 5,1 - Electricity
B48: 5.2 | C48: 5,2 - Project Management Office | D48: 5.2 - Casinos, Racing, Gambling, Wagering | E48: 5,2 - Project Management Office
B49: 5.3 | C49: 5,3 - Roads and Transportation | D49: 5.3 - Community Parks (including Nurseries) | E49: 5,3 - Roads and Transportation
B50: 5.4 | C50: 5,4 - Water and Sanitation | D50: 5.4 - Recreational Facilities | E50: 5,4 - Water and Sanitation
B51: 5.5 | C51: 5,5 - General Manager: Infrastructure | D51: 5.5 - Sports Grounds and Stadiums | E51: 5,5 - General Manager: Infrastructure
B52: 5.6 | C52: [Name of sub-vote] | D52: 5.6 - [Name of sub-vote] | E52: 5,6 - [Name of sub-vote]
B53: 5.7 | C53: [Name of sub-vote] | D53: 5.7 - [Name of sub-vote] | E53: 5,7 - [Name of sub-vote]
B54: 5.8 | C54: [Name of sub-vote] | D54: 5.8 - [Name of sub-vote] | E54: 5,8 - [Name of sub-vote]
B55: 5.9 | C55: [Name of sub-vote] | D55: 5.9 - [Name of sub-vote] | E55: 5,9 - [Name of sub-vote]
B56: 5.10 | C56: [Name of sub-vote] | D56: 5.10 - [Name of sub-vote] | E56: 5.10 - [Name of sub-vote]
B57: Vote 6 | C57: =A7 -> Vote 6 - Sustainable Development and City Enterprises
B58: 6.1 | C58: 6,1 - City Entities | D58: 6.1 - Civil Defence | E58: 6,1 - City Entities
B59: 6.2 | C59: 6,2 - Development Services | D59: 6.2 - Cleansing | E59: 6,2 - Development Services
B60: 6.3 | C60: 6,3 - Human Settlement Development | D60: 6.3 - Control of Public Nuisances | E60: 6,3 - Human Settlement Development
B61: 6.4 | C61: 6,4 - Town Planning | D61: 6.4 - Fencing and Fences | E61: 6,4 - Town Planning
B62: 6.5 | C62: 6,5 - General Manager: Sustainable Development and City Enterprises | D62: 6.5 - Fire Fighting and Protection | E62: 6,5 - General Manager: Sustainable Development and City Enterprises
B63: 6.6 | C63: [Name of sub-vote] | D63: 6.6 - Licensing and Control of Animals | E63: 6,6 - [Name of sub-vote]
B64: 6.7 | C64: [Name of sub-vote] | D64: 6.7 - Police Forces, Traffic and Street Parking Control | E64: 6,7 - [Name of sub-vote]
B65: 6.8 | C65: [Name of sub-vote] | D65: 6.8 - Pounds | E65: 6,8 - [Name of sub-vote]
B66: 6.9 | C66: [Name of sub-vote] | D66: 6.9 - [Name of sub-vote] | E66: 6,9 - [Name of sub-vote]
B67: 6.10 | C67: [Name of sub-vote] | D67: 6.10 - [Name of sub-vote] | E67: 6.10 - [Name of sub-vote]
B68: Vote 7
B69: 7.1 | D69: 7.1 - Housing | E69: =IF(C69="[Name of sub-vote]","",B69&" - "&C69) -> 7.1 -
B70: 7.2 | D70: 7.2 - Informal Settlements | E70: =IF(C70="[Name of sub-vote]","",B70&" - "&C70) -> 7.2 -
B71: 7.3 | D71: 7.3 - [Name of sub-vote] | E71: =IF(C71="[Name of sub-vote]","",B71&" - "&C71) -> 7.3 -
B72: 7.4 | D72: 7.4 - [Name of sub-vote] | E72: 7.4 -
B73: 7.5 | D73: 7.5 - [Name of sub-vote] | E73: 7.5 -
B74: 7.6 | D74: 7.6 - [Name of sub-vote] | E74: 7.6 -
B75: 7.7 | D75: 7.7 - [Name of sub-vote] | E75: 7.7 -
B76: 7.8 | D76: 7.8 - [Name of sub-vote] | E76: 7.8 -
B77: 7.9 | D77: 7.9 - [Name of sub-vote] | E77: 7.9 -
B78: 7.10 | D78: 7.10 - [Name of sub-vote] | E78: 7.10 -
B79: Vote 8
B80: 8.1 | D80: 8.1 - Ambulance | E80: =IF(C80="[Name of sub-vote]","",B80&" - "&C80) -> 8.1 -
B81: 8.2 | D81: 8.2 - Health Services | E81: =IF(C81="[Name of sub-vote]","",B81&" - "&C81) -> 8.2 -
B82: 8.3 | D82: 8.3 - Laboratory Services | E82: =IF(C82="[Name of sub-vote]","",B82&" - "&C82) -> 8.3 -
B83: 8.4 | D83: 8.4 - Food Control | E83: 8.4 -
B84: 8.5 | D84: 8.5 - Health Surveillance and Prevention of Communicable Diseases including immunizations | E84: 8.5 -
B85: 8.6 | D85: 8.6 - Vector Control | E85: 8.6 -
B86: 8.7 | D86: 8.7 - Chemical Safety | E86: 8.7 -
B87: 8.8 | D87: 8.8 - [Name of sub-vote] | E87: 8.8 -
B88: 8.9 | D88: 8.9 - [Name of sub-vote] | E88: 8.9 -
B89: 8.10 | D89: 8.10 - [Name of sub-vote] | E89: 8.10 -
B90: Vote 9
B91: 9.1 | D91: 9.1 - Billboards | E91: =IF(C91="[Name of sub-vote]","",B91&" - "&C91) -> 9.1 -
B92: 9.2 | D92: 9.2 - Corporate Wide Strategic Planning (IDPs, LEDs) | E92: =IF(C92="[Name of sub-vote]","",B92&" - "&C92) -> 9.2 -
B93: 9.3 | D93: 9.3 - Central City Improvement District | E93: =IF(C93="[Name of sub-vote]","",B93&" - "&C93) -> 9.3 -
B94: 9.4 | D94: 9.4 - Development Facilitation | E94: 9.4 -
B95: 9.5 | D95: 9.5 - Economic Development/Planning | E95: 9.5 -
B96: 9.6 | D96: 9.6 - Regional Planning and Development | E96: 9.6 -
B97: 9.7 | D97: 9.7 - Town Planning, Building Regulations and Enforcement, and City Engineer | E97: 9.7 -
B98: 9.8 | D98: 9.8 - Project Management Unit | E98: 9.8 -
B99: 9.9 | D99: 9.9 - Provincial Planning | E99: 9.9 -
B100: 9.10 | D100: 9.10 - Support to Local Municipalities | E100: 9.10 -
B101: Vote 10
B102: 10.1 | D102: 10.1 - Public Transport | E102: =IF(C102="[Name of sub-vote]","",B102&" - "&C102) -> 10.1 -
B103: 10.2 | D103: 10.2 - Road and Traffic Regulation | E103: =IF(C103="[Name of sub-vote]","",B103&" - "&C103) -> 10.2 -
B104: 10.3 | D104: 10.3 - Roads | E104: =IF(C104="[Name of sub-vote]","",B104&" - "&C104) -> 10.3 -
B105: 10.4 | D105: 10.4 - Taxi Ranks | E105: 10.4 -
B106: 10.5 | D106: 10.5 - [Name of sub-vote] | E106: 10.5 -
B107: 10.6 | D107: 10.6 - [Name of sub-vote] | E107: 10.6 -
B108: 10.7 | D108: 10.7 - [Name of sub-vote] | E108: 10.7 -
B109: 10.8 | D109: 10.8 - [Name of sub-vote] | E109: 10.8 -
B110: 10.9 | D110: 10.9 - [Name of sub-vote] | E110: 10.9 -
B111: 10.10 | D111: 10.10 - [Name of sub-vote] | E111: 10.10 -
B112: Vote 11
B113: 11.1 | D113: 11.1 - Biodiversity and Landscape | E113: =IF(C113="[Name of sub-vote]","",B113&" - "&C113) -> 11.1 -
B114: 11.2 | D114: 11.2 - Coastal Protection | E114: =IF(C114="[Name of sub-vote]","",B114&" - "&C114) -> 11.2 -
B115: 11.3 | D115: 11.3 - Indigenous Forests | E115: =IF(C115="[Name of sub-vote]","",B115&" - "&C115) -> 11.3 -
B116: 11.4 | D116: 11.4 - Nature Conservation | E116: 11.4 -
B117: 11.5 | D117: 11.5 - Pollution Control | E117: 11.5 -
B118: 11.6 | D118: 11.6 - Soil Conservation | E118: 11.6 -
B119: 11.7 | D119: 11.7 - Tourism | E119: 11.7 -
B120: 11.8 | D120: 11.8 - Agricultural | E120: 11.8 -
B121: 11.9 | D121: 11.9 - [Name of sub-vote] | E121: 11.9 -
B122: 11.10 | D122: 11.10 - [Name of sub-vote] | E122: 11.10 -
B123: Vote 12
B124: 12.1 | D124: 12.1 - Electricity | E124: =IF(C124="[Name of sub-vote]","",B124&" - "&C124) -> 12.1 -
B125: 12.2 | D125: 12.2 - Street Lighting and Signal Systems | E125: =IF(C125="[Name of sub-vote]","",B125&" - "&C125) -> 12.2 -
B126: 12.3 | D126: 12.3 - Nonelectric Energy | E126: =IF(C126="[Name of sub-vote]","",B126&" - "&C126) -> 12.3 -
B127: 12.4 | D127: 12.4 - [Name of sub-vote] | E127: 12.4 -
B128: 12.5 | D128: 12.5 - [Name of sub-vote] | E128: 12.5 -
B129: 12.6 | D129: 12.6 - [Name of sub-vote] | E129: 12.6 -
B130: 12.7 | D130: 12.7 - [Name of sub-vote] | E130: 12.7 -
B131: 12.8 | D131: 12.8 - [Name of sub-vote] | E131: 12.8 -
B132: 12.9 | D132: 12.9 - [Name of sub-vote] | E132: 12.9 -
B133: 12.10 | D133: 12.10 - [Name of sub-vote] | E133: 12.10 -
B134: Vote 13
B135: 13.1 | D135: 13.1 - Water Treatment | E135: =IF(C135="[Name of sub-vote]","",B135&" - "&C135) -> 13.1 -
B136: 13.2 | D136: 13.2 - Water Distribution | E136: =IF(C136="[Name of sub-vote]","",B136&" - "&C136) -> 13.2 -
B137: 13.3 | D137: 13.3 - Water Storage | E137: =IF(C137="[Name of sub-vote]","",B137&" - "&C137) -> 13.3 -
B138: 13.4 | D138: 13.4 - [Name of sub-vote] | E138: 13.4 -
B139: 13.5 | D139: 13.5 - [Name of sub-vote] | E139: 13.5 -
B140: 13.6 | D140: 13.6 - [Name of sub-vote] | E140: 13.6 -
B141: 13.7 | D141: 13.7 - [Name of sub-vote] | E141: 13.7 -
B142: 13.8 | D142: 13.8 - [Name of sub-vote] | E142: 13.8 -
B143: 13.9 | D143: 13.9 - [Name of sub-vote] | E143: 13.9 -
B144: 13.10 | D144: 13.10 - [Name of sub-vote] | E144: 13.10 -
B145: Vote 14
B146: 14.1 | D146: 14.1 - Public Toilets | E146: =IF(C146="[Name of sub-vote]","",B146&" - "&C146) -> 14.1 -
B147: 14.2 | D147: 14.2 - Sewerage | E147: =IF(C147="[Name of sub-vote]","",B147&" - "&C147) -> 14.2 -
B148: 14.3 | D148: 14.3 - Storm Water Management | E148: =IF(C148="[Name of sub-vote]","",B148&" - "&C148) -> 14.3 -
B149: 14.4 | D149: 14.4 - Waste Water Treatment | E149: 14.4 -
B150: 14.5 | D150: 14.5 - [Name of sub-vote] | E150: 14.5 -
B151: 14.6 | D151: 14.6 - [Name of sub-vote] | E151: 14.6 -
B152: 14.7 | D152: 14.7 - [Name of sub-vote] | E152: 14.7 -
B153: 14.8 | D153: 14.8 - [Name of sub-vote] | E153: 14.8 -
B154: 14.9 | D154: 14.9 - [Name of sub-vote] | E154: 14.9 -
B155: 14.10 | D155: 14.10 - [Name of sub-vote] | E155: 14.10 -
B156: Vote 15
B157: 15.1 | D157: 15.1 - Recycling | E157: =IF(C157="[Name of sub-vote]","",B157&" - "&C157) -> 15.1 -
B158: 15.2 | D158: 15.2 - Solid Waste Disposal (Landfill Sites) | E158: =IF(C158="[Name of sub-vote]","",B158&" - "&C158) -> 15.2 -
B159: 15.3 | D159: 15.3 - Solid Waste Removal | E159: =IF(C159="[Name of sub-vote]","",B159&" - "&C159) -> 15.3 -
B160: 15.4 | D160: 15.4 - Street Cleaning | E160: 15.4 -
B161: 15.5 | D161: 15.5 - [Name of sub-vote] | E161: 15.5 -
B162: 15.6 | D162: 15.6 - [Name of sub-vote] | E162: 15.6 -
B163: 15.7 | D163: 15.7 - [Name of sub-vote] | E163: 15.7 -
B164: 15.8 | D164: 15.8 - [Name of sub-vote] | E164: 15.8 -
B165: 15.9 | D165: 15.9 - [Name of sub-vote] | E165: 15.9 -
B166: 15.10 | D166: 15.10 - [Name of sub-vote] | E166: 15.10 -

Sheet Contacts
A1: ='Template names'!$B$63&" - "&" Contact Information" -> KZN225 Msunduzi - Contact Information
A3: A. GENERAL INFORMATION
A4: Municipality | B4: KZN225 Msunduzi | C4: Set name on 'Instructions' sheet
A6: Grade | C6: 1 Grade in terms of the Remuneration of Public Office Bearers Act.
A8: Province | B8: =IF(B4>" ",VLOOKUP(B4,'Lookup and lists'!B29:C312,2, FALSE)," ") -> KZN KWAZULU-NATAL
A10: Web Address
A12: e-mail Address
A14: B. CONTACT INFORMATION
A15: Postal address:
A16: P.O. Box
A17: City / Town
A18: Postal Code
A20: Street address
A21: Building
A22: Street No. & Name
A23: City / Town
A24: Postal Code
A26: General Contacts
A27: Telephone number
A28: Fax number
A30: C. POLITICAL LEADERSHIP
A31: Speaker: | C31: Secretary/PA to the Speaker:
A32: ID Number | C32: ID Number
A33: Title | C33: Title
A34: Name | C34: Name
A35: Telephone number | C35: Telephone number
A36: Cell number | C36: Cell number
A37: Fax number | C37: Fax number
A38: E-mail address | C38: E-mail address
A40: Mayor/Executive Mayor: | C40: Secretary/PA to the Mayor/Executive Mayor:
A41: ID Number | C41: ID Number
A42: Title | C42: Title
A43: Name | C43: Name
A44: Telephone number | C44: Telephone number
A45: Cell number | C45: Cell number
A46: Fax number | C46: Fax number
A47: E-mail address | C47: E-mail address
A49: Deputy Mayor/Executive Mayor: | C49: Secretary/PA to the Deputy Mayor/Executive Mayor:
A50: ID Number | C50: ID Number
A51: Title | C51: Title
A52: Name | C52: Name
A53: Telephone number | C53: Telephone number
A54: Cell number | C54: Cell number
A55: Fax number | C55: Fax number
A56: E-mail address | C56: E-mail address
A58: D. MANAGEMENT LEADERSHIP
A59: Municipal Manager: | C59: Secretary/PA to the Municipal Manager:
A60: ID Number | C60: ID Number
A61: Title | C61: Title
A62: Name | C62: Name
A63: Telephone number | C63: Telephone number
A64: Cell number | C64: Cell number
A65: Fax number | C65: Fax number
A66: E-mail address | C66: E-mail address
A68: Chief Financial Officer | C68: Secretary/PA to the Chief Financial Officer
A69: ID Number | C69: ID Number
A70: Title | C70: Title
A71: Name | C71: Name
A72: Telephone number | C72: Telephone number
A73: Cell number | C73: Cell number
A74: Fax number | C74: Fax number
A75: E-mail address | C75: E-mail address
A77: Official responsible for submitting financial information | C77: Official responsible for submitting financial information
A78: ID Number | C78: ID Number
A79: Title | C79: Title
A80: Name | C80: Name
A81: Telephone number | C81: Telephone number
A82: Cell number | C82: Cell number
A83: Fax number | C83: Fax number
A84: E-mail address | C84: E-mail address
A85: Official responsible for submitting financial information | C85: Official responsible for submitting financial information
A86: ID Number | C86: ID Number
A87: Title | C87: Title
A88: Name | C88: Name
A89: Telephone number | C89: Telephone number
A90: Cell number | C90: Cell number
A91: Fax number | C91: Fax number
A92: E-mail address | C92: E-mail address
A93: Official responsible for submitting financial information | C93: Official responsible for submitting financial information
A94: ID Number | C94: ID Number
A95: Title | C95: Title
A96: Name | C96: Name
A97: Telephone number | C97: Telephone number
A98: Cell number | C98: Cell number
A99: Fax number | C99: Fax number
A100: E-mail address | C100: E-mail address
A101: Official responsible for submitting financial information | C101: Official responsible for submitting financial information
A102: ID Number | C102: ID Number
A103: Title | C103: Title
A104: Name | C104: Name
A105: Telephone number | C105: Telephone number
A106: Cell number | C106: Cell number
A107: Fax number | C107: Fax number
A108: E-mail address | C108: E-mail address
A109: Official responsible for submitting financial information | C109: Official responsible for submitting financial information
A110: ID Number | C110: ID Number
A111: Title | C111: Title
A112: Name | C112: Name
A113: Telephone number | C113: Telephone number
A114: Cell number | C114: Cell number
A115: Fax number | C115: Fax number
A116: E-mail address | C116: E-mail address
A117: Official responsible for submitting financial information | C117: Official responsible for submitting financial information
A118: ID Number | C118: ID Number
A119: Title | C119: Title
A120: Name | C120: Name
A121: Telephone number | C121: Telephone number
A122: Cell number | C122: Cell number
A123: Fax number | C123: Fax number
A124: E-mail address | C124: E-mail address
A125: Official responsible for submitting financial information | C125: Official responsible for submitting financial information
A126: ID Number | C126: ID Number
A127: Title | C127: Title
A128: Name | C128: Name
A129: Telephone number | C129: Telephone number
A130: Cell number | C130: Cell number
A131: Fax number | C131: Fax number
A132: E-mail address | C132: E-mail address
A133: Official responsible for submitting financial information
A134: ID Number
A135: Title
A136: Name
A137: Telephone number
A138: Cell number
A139: Fax number
A140: E-mail address

Sheet B1-Sum
A1: =muni&" - "&adjsum&" - "&Date -> KZN225 Msunduzi - Table B1 Adjustments Budget Summary -
A2: =desc -> Description | B2: =Head2 -> Budget Year 2021/22 | K2: =Head10 -> Budget Year +1 2022/23 | L2: =Head11 -> Budget Year +2 2023/24
B3: =Head6 -> Original Budget | C3: =Head54 -> Prior Adjusted | D3: =Head51 -> Accum. Funds | E3: =Head52 -> Multi-year capital | F3: =Head53 -> Unfore. Unavoid. | G3: =Head55 -> Nat. or Prov. Govt | H3: =Head50 -> Other Adjusts. | I3: =Head56 -> Total Adjusts. | J3: =Head7 -> Adjusted Budget | K3: =Head7 -> Adjusted Budget | L3: =Head7 -> Adjusted Budget
C4: 1 | D4: 2 | E4: 3 | F4: 4 | G4: 5 | H4: 6 | I4: 7 | J4: 8
A5: R thousands | B5: A | C5: A1 | D5: B | E5: C | F5: D | G5: E | H5: F | I5: G | J5: H
A6: Financial Performance
A7: Property rates | B7: =SUM('B4-FinPerf RE'!C7:C7) -> 1321378575 | C7: =SUM('B4-FinPerf RE'!D7:D7) -> 0 | D7: =SUM('B4-FinPerf RE'!E7:E7) -> 0 | E7: =SUM('B4-FinPerf RE'!F7:F7) -> 0 | F7: =SUM('B4-FinPerf RE'!G7:G7) -> 0 | G7: =SUM('B4-FinPerf RE'!H7:H7) -> 0 | H7: =SUM('B4-FinPerf RE'!I7:I7) -> 1 | I7: =SUM(D7:H7) -> 1 | J7: =IF(C7=0,B7+I7,C7+I7) -> 1321378576 | K7: =SUM('B4-FinPerf RE'!L7:L7) -> 1400661290 | L7: =SUM('B4-FinPerf RE'!M7:M7) -> 1491704274
A8: Service charges | B8: =SUM('B4-FinPerf RE'!C8:C11) -> 4017823677 | C8: =SUM('B4-FinPerf RE'!D8:D11) -> 0 | D8: =SUM('B4-FinPerf RE'!E8:E11) -> 0 | E8: =SUM('B4-FinPerf RE'!F8:F11) -> 0 | F8: =SUM('B4-FinPerf RE'!G8:G11) -> 0 | G8: =SUM('B4-FinPerf RE'!H8:H11) -> 0 | H8: =SUM('B4-FinPerf RE'!I8:I11) -> -1 | I8: =SUM('B4-FinPerf RE'!J8:J11) -> -1 | J8: =SUM('B4-FinPerf RE'!K8:K11) -> 4017823676 | K8: =SUM('B4-FinPerf RE'!L8:L11) -> 4444141036 | L8: =SUM('B4-FinPerf RE'!M8:M11) -> 4851845642
A9: Investment revenue | B9: ='B4-FinPerf RE'!C14 -> 16076855 | C9: ='B4-FinPerf RE'!D14 -> 0 | D9: ='B4-FinPerf RE'!E14 -> 0 | E9: ='B4-FinPerf RE'!F14 -> 0 | F9: ='B4-FinPerf RE'!G14 -> 0 | G9: ='B4-FinPerf RE'!H14 -> 0 | H9: ='B4-FinPerf RE'!I14 -> 0 | I9: 0 | J9: 16076855 | K9: ='B4-FinPerf RE'!L14 -> 17030213 | L9: ='B4-FinPerf RE'!M14 -> 18057134
A10: Transfers recognised - operational | B10: ='B4-FinPerf RE'!C20 -> 661215835 | C10: ='B4-FinPerf RE'!D20 -> 0 | D10: ='B4-FinPerf RE'!E20 -> 0 | E10: ='B4-FinPerf RE'!F20 -> 0 | F10: ='B4-FinPerf RE'!G20 -> 0 | G10: ='B4-FinPerf RE'!H20 -> 0 | H10: ='B4-FinPerf RE'!I20 -> 64741213.55 | I10: 64741213.55 | J10: 725957048.5 | K10: ='B4-FinPerf RE'!L20 -> 696906045 | L10: ='B4-FinPerf RE'!M20 -> 701999381
A11: Other own revenue | B11: ='B4-FinPerf RE'!C13+'B4-FinPerf RE'!C15+'B4-FinPerf RE'!C16+'B4-FinPerf RE'!C17+'B4-FinPerf RE'!C18+'B4-FinPerf RE'!C19+'B4-FinPerf RE'!C21+'B4-FinPerf RE'!C22 -> 401919252 | C11: ='B4-FinPerf RE'!D13+'B4-FinPerf RE'!D15+'B4-FinPerf RE'!D16+'B4-FinPerf RE'!D17+'B4-FinPerf RE'!D18+'B4-FinPerf RE'!D19+'B4-FinPerf RE'!D21+'B4-FinPerf RE'!D22 -> 0 | D11: ='B4-FinPerf RE'!E13+'B4-FinPerf RE'!E15+'B4-FinPerf RE'!E16+'B4-FinPerf RE'!E17+'B4-FinPerf RE'!E18+'B4-FinPerf RE'!E19+'B4-FinPerf RE'!E21+'B4-FinPerf RE'!E22 -> 0 | E11: ='B4-FinPerf RE'!F13+'B4-FinPerf RE'!F15+'B4-FinPerf RE'!F16+'B4-FinPerf RE'!F17+'B4-FinPerf RE'!F18+'B4-FinPerf RE'!F19+'B4-FinPerf RE'!F21+'B4-FinPerf RE'!F22 -> 0 | F11: ='B4-FinPerf RE'!G13+'B4-FinPerf RE'!G15+'B4-FinPerf RE'!G16+'B4-FinPerf RE'!G17+'B4-FinPerf RE'!G18+'B4-FinPerf RE'!G19+'B4-FinPerf RE'!G21+'B4-FinPerf RE'!G22 -> 0 | G11: ='B4-FinPerf RE'!H13+'B4-FinPerf RE'!H15+'B4-FinPerf RE'!H16+'B4-FinPerf RE'!H17+'B4-FinPerf RE'!H18+'B4-FinPerf RE'!H19+'B4-FinPerf RE'!H21+'B4-FinPerf RE'!H22 -> 0 | H11: ='B4-FinPerf RE'!I13+'B4-FinPerf RE'!I15+'B4-FinPerf RE'!I16+'B4-FinPerf RE'!I17+'B4-FinPerf RE'!I18+'B4-FinPerf RE'!I19+'B4-FinPerf RE'!I21+'B4-FinPerf RE'!I22 -> -154 | I11: -154 | J11: 401919098 | K11: ='B4-FinPerf RE'!L13+'B4-FinPerf RE'!L15+'B4-FinPerf RE'!L16+'B4-FinPerf RE'!L17+'B4-FinPerf RE'!L18+'B4-FinPerf RE'!L19+'B4-FinPerf RE'!L21+'B4-FinPerf RE'!L22 -> 425753058 | L11: ='B4-FinPerf RE'!M13+'B4-FinPerf RE'!M15+'B4-FinPerf RE'!M16+'B4-FinPerf RE'!M17+'B4-FinPerf RE'!M18+'B4-FinPerf RE'!M19+'B4-FinPerf RE'!M21+'B4-FinPerf RE'!M22 -> 451425957
A12: Total Revenue (excluding capital transfers and contributions) | B12: =SUM(B7:B11) -> 6418414194 | C12: 0 | D12: 0 | E12: 0 | F12: 0 | G12: 0 | H12: 64741059.55 | I12: 64741059.55 | J12: 6483155254 | K12: 6984491642 | L12: 7515032388
A13: Employee costs | B13: ='B4-FinPerf RE'!C26 -> 1538089743 | C13: ='B4-FinPerf RE'!D26 -> 0 | D13: ='B4-FinPerf RE'!E26 -> 0 | E13: ='B4-FinPerf RE'!F26 -> 0 | F13: ='B4-FinPerf RE'!G26 -> 0 | G13: ='B4-FinPerf RE'!H26 -> 0 | H13: ='B4-FinPerf RE'!I26 -> 36819895.34 | I13: =SUM(D13:H13) -> 36819895.34 | J13: 1574909638 | K13: ='B4-FinPerf RE'!L26 -> 1612775382 | L13: ='B4-FinPerf RE'!M26 -> 1692314803
A14: Remuneration of councillors | B14: ='B4-FinPerf RE'!C27 -> 56332922 | C14: ='B4-FinPerf RE'!D27 -> 0 | D14: ='B4-FinPerf RE'!E27 -> 0 | E14: ='B4-FinPerf RE'!F27 -> 0 | F14: ='B4-FinPerf RE'!G27 -> 0 | G14: ='B4-FinPerf RE'!H27 -> 0 | H14: ='B4-FinPerf RE'!I27 -> 0 | I14: 0 | J14: 56332922 | K14: ='B4-FinPerf RE'!L27 -> 59149569 | L14: ='B4-FinPerf RE'!M27 -> 62107045
A15: Depreciation & asset impairment | B15: ='B4-FinPerf RE'!C29 -> 421872297.6 | C15: ='B4-FinPerf RE'!D29 -> 0 | D15: ='B4-FinPerf RE'!E29 -> 0 | E15: ='B4-FinPerf RE'!F29 -> 0 | F15: ='B4-FinPerf RE'!G29 -> 0 | G15: ='B4-FinPerf RE'!H29 -> 0 | H15: ='B4-FinPerf RE'!I29 -> -426 | I15: -426 | J15: 421871871.6 | K15: ='B4-FinPerf RE'!L29 -> 405795701 | L15: ='B4-FinPerf RE'!M29 -> 313902124
A16: Finance charges | B16: ='B4-FinPerf RE'!C30 -> 34724271 | C16: ='B4-FinPerf RE'!D30 -> 0 | D16: ='B4-FinPerf RE'!E30 -> 0 | E16: ='B4-FinPerf RE'!F30 -> 0 | F16: ='B4-FinPerf RE'!G30 -> 0 | G16: ='B4-FinPerf RE'!H30 -> 0 | H16: ='B4-FinPerf RE'!I30 -> -1 | I16: -1 | J16: 34724270 | K16: ='B4-FinPerf RE'!L30 -> 36669377 | L16: ='B4-FinPerf RE'!M30 -> 27063704
A17: Inventory consumed and bulk purchases | B17: =SUM('B4-FinPerf RE'!C31:C32) -> 3015913148 | C17: =SUM('B4-FinPerf RE'!D31:D32) -> 0 | D17: =SUM('B4-FinPerf RE'!E31:E32) -> 0 | E17: =SUM('B4-FinPerf RE'!F31:F32) -> 0 | F17: =SUM('B4-FinPerf RE'!G31:G32) -> 0 | G17: =SUM('B4-FinPerf RE'!H31:H32) -> 0 | H17: =SUM('B4-FinPerf RE'!I31:I32) -> 7196812.638 | I17: 7196812.638 | J17: 3023109961 | K17: =SUM('B4-FinPerf RE'!L31:L32) -> 3337446467 | L17: =SUM('B4-FinPerf RE'!M31:M32) -> 3648112068
A18: Transfers and grants | B18: ='B4-FinPerf RE'!C34 -> 45862883 | C18: ='B4-FinPerf RE'!D34 -> 0 | D18: ='B4-FinPerf RE'!E34 -> 0 | E18: ='B4-FinPerf RE'!F34 -> 0 | F18: ='B4-FinPerf RE'!G34 -> 0 | G18: ='B4-FinPerf RE'!H34 -> 0 | H18: ='B4-FinPerf RE'!I34 -> 0 | I18: 0 | J18: 45862883 | K18: ='B4-FinPerf RE'!L34 -> 52058868 | L18: ='B4-FinPerf RE'!M34 -> 55615730
A19: Other expenditure | B19: ='B4-FinPerf RE'!C37-SUM('B1-Sum'!B13:B18) -> 1005618728 | C19: ='B4-FinPerf RE'!D37-SUM('B1-Sum'!C13:C18) -> 0 | D19: ='B4-FinPerf RE'!E37-SUM('B1-Sum'!D13:D18) -> 0 | E19: ='B4-FinPerf RE'!F37-SUM('B1-Sum'!E13:E18) -> 0 | F19: ='B4-FinPerf RE'!G37-SUM('B1-Sum'!F13:F18) -> 0 | G19: ='B4-FinPerf RE'!H37-SUM('B1-Sum'!G13:G18) -> 0 | H19: ='B4-FinPerf RE'!I37-SUM('B1-Sum'!H13:H18) -> 77968789.37 | I19: 77968789.37 | J19: 1083587517 | K19: ='B4-FinPerf RE'!L37-SUM('B1-Sum'!K13:K18) -> 1031171192 | L19: ='B4-FinPerf RE'!M37-SUM('B1-Sum'!L13:L18) -> 1024470303
A20: Total Expenditure | B20: =SUM(B13:B19) -> 6118413992 | C20: 0 | D20: 0 | E20: 0 | F20: 0 | G20: 0 | H20: 121985070.3 | I20: 121985070.3 | J20: 6240399063 | K20: 6535066556 | L20: 6823585777
A21: Surplus/(Deficit) | B21: =B12-B20 -> 300000202.1 | C21: 0 | D21: 0 | E21: 0 | F21: 0 | G21: 0 | H21: -57244010.8 | I21: -57244010.8 | J21: 242756191.3 | K21: 449425086.3 | L21: 691446611
A22: ='B4-FinPerf RE'!A40 -> Transfers and subsidies - capital (monetary allocations) (National / Provincial and District) | B22: ='B4-FinPerf RE'!C40 -> 380796576 | C22: ='B4-FinPerf RE'!D40 -> 0 | D22: ='B4-FinPerf RE'!E40 -> 0 | E22: ='B4-FinPerf RE'!F40 -> 0 | F22: ='B4-FinPerf RE'!G40 -> 0 | G22: ='B4-FinPerf RE'!H40 -> 0 | H22: ='B4-FinPerf RE'!I40 -> 48874238.69 | I22: =SUM(D22:H22) -> 48874238.69 | J22: =IF(C22=0,B22+I22,C22+I22) -> 429670814.7 | K22: ='B4-FinPerf RE'!L40 -> 328615855 | L22: ='B4-FinPerf RE'!M40 -> 341642134
A23: ='B4-FinPerf RE'!A41&" & "&'B4-FinPerf RE'!A42 -> Transfers and subsidies - capital (monetary allocations) (National / Provincial Departmental Agencies, Households, Non-profit Institutions, Private Enterprises, Public Corporatons, Higher Educational Institutions) & Transfers and subsidies - capital (in-kind - all) | B23: =SUM('B4-FinPerf RE'!C41:C42) -> 0 | C23: =SUM('B4-FinPerf RE'!D41:D42) -> 0 | D23: =SUM('B4-FinPerf RE'!E41:E42) -> 0 | E23: =SUM('B4-FinPerf RE'!F41:F42) -> 0 | F23: =SUM('B4-FinPerf RE'!G41:G42) -> 0 | G23: =SUM('B4-FinPerf RE'!H41:H42) -> 0 | H23: =SUM('B4-FinPerf RE'!I41:I42) -> 0 | I23: =SUM(D23:H23) -> 0 | J23: =IF(C23=0,B23+I23,C23+I23) -> 0 | K23: =SUM('B4-FinPerf RE'!L41:L42) -> 3500000 | L23: =SUM('B4-FinPerf RE'!M41:M42) -> 3500000
A24: Surplus/(Deficit) after capital transfers & contributions | B24: =B21+SUM(B22:B23) -> 680796778.1 | C24: 0 | D24: 0 | E24: 0 | F24: 0 | G24: 0 | H24: -8369772.108 | I24: =SUM(D24:H24) -> -8369772.108 | J24: =IF(C24=0,B24+I24,C24+I24) -> 672427006 | K24: 781540941.3 | L24: 1036588745
A25: Share of surplus/ (deficit) of associate | B25: ='B4-FinPerf RE'!C48 -> 0 | C25: ='B4-FinPerf RE'!D48 -> 0 | D25: ='B4-FinPerf RE'!E48 -> 0 | E25: ='B4-FinPerf RE'!F48 -> 0 | F25: ='B4-FinPerf RE'!G48 -> 0 | G25: ='B4-FinPerf RE'!H48 -> 0 | H25: ='B4-FinPerf RE'!I48 -> 0 | I25: =SUM(D25:H25) -> 0 | J25: =IF(C25=0,B25+I25,C25+I25) -> 0 | K25: ='B4-FinPerf RE'!L48 -> 0 | L25: ='B4-FinPerf RE'!M48 -> 0
A26: Surplus/ (Deficit) for the year | B26: =B24+B25 -> 680796778.1 | C26: 0 | D26: 0 | E26: 0 | F26: 0 | G26: 0 | H26: -8369772.108 | I26: -8369772.108 | J26: 672427006 | K26: 781540941.3 | L26: 1036588745
A28: Capital expenditure & funds sources
A29: Capital expenditure | B29: ='B5-Capex'!C42 -> 576301627 | C29: ='B5-Capex'!D42 -> 0 | D29: ='B5-Capex'!E42 -> 0 | E29: ='B5-Capex'!F42 -> 0 | F29: ='B5-Capex'!G42 -> 0 | G29: ='B5-Capex'!H42 -> 0 | H29: ='B5-Capex'!I42 -> 78905342.01 | I29: =SUM(D29:H29) -> 78905342.01 | J29: =IF(C29=0,B29+I29,C29+I29) -> 655206969 | K29: ='B5-Capex'!L42 -> 24166607 | L29: ='B5-Capex'!M42 -> 18599390
A30: Transfers recognised - capital | B30: ='B5-Capex'!C72 -> 380796576 | C30: ='B5-Capex'!D72 -> 0 | D30: ='B5-Capex'!E72 -> 0 | E30: ='B5-Capex'!F72 -> 0 | F30: ='B5-Capex'!G72 -> 0 | G30: ='B5-Capex'!H72 -> 0 | H30: ='B5-Capex'!I72 -> 48874239 | I30: =SUM(D30:H30) -> 48874239 | J30: =IF(C30=0,B30+I30,C30+I30) -> 429670815 | K30: ='B5-Capex'!L72 -> 332115854 | L30: ='B5-Capex'!M72 -> 345142134
A32: Borrowing | B32: ='B5-Capex'!C74 -> 100000000 | C32: ='B5-Capex'!D74 -> 0 | D32: ='B5-Capex'!E74 -> 0 | E32: ='B5-Capex'!F74 -> 0 | F32: ='B5-Capex'!G74 -> 0 | G32: ='B5-Capex'!H74 -> 0 | H32: ='B5-Capex'!I74 -> 0 | I32: =SUM(D32:H32) -> 0 | J32: =IF(C32=0,B32+I32,C32+I32) -> 100000000 | K32: ='B5-Capex'!L74 -> 100000000 | L32: ='B5-Capex'!M74 -> 0
A33: Internally generated funds | B33: ='B5-Capex'!C75 -> 95505050.95 | C33: ='B5-Capex'!D75 -> 0 | D33: ='B5-Capex'!E75 -> 0 | E33: ='B5-Capex'!F75 -> 0 | F33: ='B5-Capex'!G75 -> 0 | G33: ='B5-Capex'!H75 -> 0 | H33: ='B5-Capex'!I75 -> 30031104.05 | I33: =SUM(D33:H33) -> 30031104.05 | J33: =IF(C33=0,B33+I33,C33+I33) -> 125536155 | K33: ='B5-Capex'!L75 -> 39586607 | L33: ='B5-Capex'!M75 -> 100680831
A34: Total sources of capital funds | B34: =+B30+B32+B33 -> 576301627 | C34: =+C30+C32+C33 -> 0 | D34: 0 | E34: 0 | F34: 0 | G34: 0 | H34: 78905343.05 | I34: =SUM(D34:H34) -> 78905343.05 | J34: =IF(C34=0,B34+I34,C34+I34) -> 655206970 | K34: 471702461 | L34: 445822965
A36: Financial position
A37: Total current assets | B37: ='B6-FinPos'!C14 -> 3808880704 | C37: ='B6-FinPos'!D14 -> 0 | D37: ='B6-FinPos'!E14 -> 0 | E37: ='B6-FinPos'!F14 -> 0 | F37: ='B6-FinPos'!G14 -> 0 | G37: ='B6-FinPos'!H14 -> 0 | H37: ='B6-FinPos'!I14 -> -12822040.95 | I37: =SUM(D37:H37) -> -12822040.95 | J37: =IF(C37=0,B37+I37,C37+I37) -> 3796058663 | K37: ='B6-FinPos'!L14 -> 8146095412 | L37: ='B6-FinPos'!M14 -> 8256022913
A38: Total non current assets | B38: ='B6-FinPos'!C26 -> 7969426726 | C38: ='B6-FinPos'!D26 -> 0 | D38: ='B6-FinPos'!E26 -> 0 | E38: ='B6-FinPos'!F26 -> 0 | F38: ='B6-FinPos'!G26 -> 0 | G38: ='B6-FinPos'!H26 -> 0 | H38: ='B6-FinPos'!I26 -> 78905343.05 | I38: =SUM(D38:H38) -> 78905343.05 | J38: =IF(C38=0,B38+I38,C38+I38) -> 8048332069 | K38: ='B6-FinPos'!L26 -> 7421453780 | L38: ='B6-FinPos'!M26 -> 6887188568
A39: Total current liabilities | B39: ='B6-FinPos'!C36 -> 1295697303 | C39: ='B6-FinPos'!D36 -> 0 | D39: ='B6-FinPos'!E36 -> 0 | E39: ='B6-FinPos'!F36 -> 0 | F39: ='B6-FinPos'!G36 -> 0 | G39: ='B6-FinPos'!H36 -> 0 | H39: ='B6-FinPos'!I36 -> 0 | I39: =SUM(D39:H39) -> 0 | J39: =IF(C39=0,B39+I39,C39+I39) -> 1295697303 | K39: ='B6-FinPos'!L36 -> 1865498564 | L39: ='B6-FinPos'!M36 -> 2267413649
A40: Total non current liabilities | B40: ='B6-FinPos'!C41 -> 1187237456 | C40: ='B6-FinPos'!D41 -> 0 | D40: ='B6-FinPos'!E41 -> 0 | E40: ='B6-FinPos'!F41 -> 0 | F40: ='B6-FinPos'!G41 -> 0 | G40: ='B6-FinPos'!H41 -> 0 | H40: ='B6-FinPos'!I41 -> 0 | I40: =SUM(D40:H40) -> 0 | J40: =IF(C40=0,B40+I40,C40+I40) -> 1187237456 | K40: ='B6-FinPos'!L41 -> 968335023 | L40: ='B6-FinPos'!M41 -> 951652431
A41: Community wealth/Equity | B41: ='B6-FinPos'!C50 -> 9295372855 | C41: ='B6-FinPos'!D50 -> 0 | D41: ='B6-FinPos'!E50 -> 0 | E41: ='B6-FinPos'!F50 -> 0 | F41: ='B6-FinPos'!G50 -> 0 | G41: ='B6-FinPos'!H50 -> 0 | H41: ='B6-FinPos'!I50 -> -8369772.108 | I41: =SUM(D41:H41) -> -8369772.108 | J41: =IF(C41=0,B41+I41,C41+I41) -> 9287003083 | K41: ='B6-FinPos'!L50 -> 1.330052609e+10 | L41: ='B6-FinPos'!M50 -> 1.218835175e+10
A43: Cash flows
A44: Net cash from (used) operating | B44: ='B7-CFlow'!C19 -> 636907927.5 | C44: ='B7-CFlow'!D19 -> 0 | D44: ='B7-CFlow'!E19 -> 0 | E44: ='B7-CFlow'!F19 -> 0 | F44: ='B7-CFlow'!G19 -> 0 | G44: ='B7-CFlow'!H19 -> 0 | H44: ='B7-CFlow'!I19 -> -8369734.158 | I44: =SUM(D44:H44) -> -8369734.158 | J44: =IF(C44=0,B44+I44,C44+I44) -> 628538193.4 | K44: ='B7-CFlow'!L19 -> 3111949685 | L44: ='B7-CFlow'!M19 -> 3356861765
A45: Net cash from (used) investing | B45: ='B7-CFlow'!C29 -> -576301507 | C45: ='B7-CFlow'!D29 -> 0 | D45: ='B7-CFlow'!E29 -> 0 | E45: ='B7-CFlow'!F29 -> 0 | F45: ='B7-CFlow'!G29 -> 0 | G45: ='B7-CFlow'!H29 -> 0 | H45: ='B7-CFlow'!I29 -> -78905343.05 | I45: =SUM(D45:H45) -> -78905343.05 | J45: =IF(C45=0,B45+I45,C45+I45) -> -655206850 | K45: ='B7-CFlow'!L29 -> 11982215 | L45: ='B7-CFlow'!M29 -> 12704743
A46: Net cash from (used) financing | B46: ='B7-CFlow'!C38 -> 8362465.853 | C46: ='B7-CFlow'!D38 -> 0 | D46: ='B7-CFlow'!E38 -> 0 | E46: ='B7-CFlow'!F38 -> 0 | F46: ='B7-CFlow'!G38 -> 0 | G46: ='B7-CFlow'!H38 -> 0 | H46: ='B7-CFlow'!I38 -> 0.1469487846 | I46: =SUM(D46:H46) -> 0.1469487846 | J46: =IF(C46=0,B46+I46,C46+I46) -> 8362466 | K46: ='B7-CFlow'!L38 -> 100000000 | L46: ='B7-CFlow'!M38 -> 0
A47: Cash/cash equivalents at the year end | B47: ='B7-CFlow'!C42 -> 355836581.2 | C47: ='B7-CFlow'!D42 -> 0 | D47: ='B7-CFlow'!E42 -> 0 | E47: ='B7-CFlow'!F42 -> 0 | F47: ='B7-CFlow'!G42 -> 0 | G47: ='B7-CFlow'!H42 -> 0 | H47: ='B7-CFlow'!I42 -> -12822040.8 | I47: =SUM(D47:H47) -> -12822040.8 | J47: =IF(C47=0,B47+I47,C47+I47) -> 343014540.4 | K47: ='B7-CFlow'!L42 -> 3610138201 | L47: ='B7-CFlow'!M42 -> 6979704709
A49: Cash backing/surplus reconciliation
A50: Cash and investments available | B50: ='B8-ResRecon'!C10 -> 355836461 | C50: ='B8-ResRecon'!D10 -> 0 | D50: ='B8-ResRecon'!E10 -> 0 | E50: ='B8-ResRecon'!F10 -> 0 | F50: ='B8-ResRecon'!G10 -> 0 | G50: ='B8-ResRecon'!H10 -> 0 | H50: ='B8-ResRecon'!I10 -> -12822040.95 | I50: =SUM(D50:H50) -> -12822040.95 | J50: =IF(C50=0,B50+I50,C50+I50) -> 343014420 | K50: ='B8-ResRecon'!L10 -> 310524955 | L50: ='B8-ResRecon'!M10 -> 96085282
A51: Application of cash and investments | B51: ='B8-ResRecon'!C20 -> -1860354072 | C51: ='B8-ResRecon'!D20 -> 0 | D51: ='B8-ResRecon'!E20 -> 0 | E51: ='B8-ResRecon'!F20 -> 0 | F51: ='B8-ResRecon'!G20 -> 0 | G51: ='B8-ResRecon'!H20 -> 0 | H51: ='B8-ResRecon'!I20 -> 228913342 | I51: =SUM(D51:H51) -> 228913342 | J51: =IF(C51=0,B51+I51,C51+I51) -> -1631440730 | K51: ='B8-ResRecon'!L20 -> -5133334459 | L51: ='B8-ResRecon'!M20 -> -5062510916
A52: Balance - surplus (shortfall) | B52: =B50-B51 -> 2216190533 | C52: 0 | D52: 0 | E52: 0 | F52: 0 | G52: 0 | H52: -241735383 | I52: -241735383 | J52: 1974455150 | K52: 5443859414 | L52: 5158596198
A54: Asset Management
A55: Asset register summary (WDV) | B55: ='B9-Asset'!C167 -> 7603684243 | C55: ='B9-Asset'!D167 -> 0 | D55: ='B9-Asset'!E167 -> 0 | E55: ='B9-Asset'!F167 -> 0 | F55: ='B9-Asset'!G167 -> 0 | G55: ='B9-Asset'!H167 -> 0 | H55: ='B9-Asset'!I167 -> 0 | I55: =SUM(D55:H55) -> 0 | J55: =IF(C55=0,B55+I55,C55+I55) -> 7603684243 | K55: ='B9-Asset'!L167 -> 11588507629 | L55: ='B9-Asset'!M167 -> 10938054335
A56: Depreciation | B56: ='B9-Asset'!C170 -> 421872297.6 | C56: ='B9-Asset'!D170 -> 0 | D56: ='B9-Asset'!E170 -> 0 | E56: ='B9-Asset'!F170 -> 0 | F56: ='B9-Asset'!G170 -> 0 | G56: ='B9-Asset'!H170 -> 0 | H56: ='B9-Asset'!I170 -> -310.6399999 | I56: =SUM(D56:H56) -> -310.6399999 | J56: =IF(C56=0,B56+I56,C56+I56) -> 421871987 | K56: ='B9-Asset'!L170 -> 405795701 | L56: ='B9-Asset'!M170 -> 313902124
A57: Renewal and Upgrading of Existing Assets | B57: ='B9-Asset'!C39+'B9-Asset'!C71 -> 373119775 | C57: ='B9-Asset'!D39+'B9-Asset'!D71 -> 0 | D57: ='B9-Asset'!E39+'B9-Asset'!E71 -> 0 | E57: ='B9-Asset'!F39+'B9-Asset'!F71 -> 0 | F57: ='B9-Asset'!G39+'B9-Asset'!G71 -> 0 | G57: ='B9-Asset'!H39+'B9-Asset'!H71 -> 0 | H57: ='B9-Asset'!I39+'B9-Asset'!I71 -> 0 | I57: =SUM(D57:H57) -> 0 | J57: =IF(C57=0,B57+I57,C57+I57) -> 373119775 | K57: ='B9-Asset'!L39+'B9-Asset'!L71 -> 439919854 | L57: ='B9-Asset'!M39+'B9-Asset'!M71 -> 418913576
A58: Repairs and Maintenance | B58: ='B9-Asset'!C171 -> 405336559.7 | C58: ='B9-Asset'!D171 -> 0 | D58: ='B9-Asset'!E171 -> 0 | E58: ='B9-Asset'!F171 -> 0 | F58: ='B9-Asset'!G171 -> 0 | G58: ='B9-Asset'!H171 -> 0 | H58: ='B9-Asset'!I171 -> -85065000 | I58: =SUM(D58:H58) -> -85065000 | J58: =IF(C58=0,B58+I58,C58+I58) -> 320271559.7 | K58: ='B9-Asset'!L171 -> 495660484 | L58: ='B9-Asset'!M171 -> 538377093
A60: Free services
A61: Cost of Free Basic Services provided | B61: ='B10-SerDel'!C62 -> 214698464.2 | C61: ='B10-SerDel'!D62 -> 0 | D61: ='B10-SerDel'!E62 -> 0 | E61: ='B10-SerDel'!F62 -> 0 | F61: ='B10-SerDel'!G62 -> 0 | G61: ='B10-SerDel'!H62 -> 0 | H61: ='B10-SerDel'!I62 -> 0 | I61: ='B10-SerDel'!J62 -> 0 | J61: ='B10-SerDel'!K62 -> 214698464.2 | K61: ='B10-SerDel'!L62 -> 459661650 | L61: ='B10-SerDel'!M62 -> 491933976
A62: Revenue cost of free services provided | B62: ='B10-SerDel'!C81 -> 105677918 | C62: ='B10-SerDel'!D81 -> 0 | D62: ='B10-SerDel'!E81 -> 0 | E62: ='B10-SerDel'!F81 -> 0 | F62: ='B10-SerDel'!G81 -> 0 | G62: ='B10-SerDel'!H81 -> 0 | H62: ='B10-SerDel'!I81 -> 0 | I62: ='B10-SerDel'!J81 -> 0 | J62: ='B10-SerDel'!K81 -> 105677918 | K62: ='B10-SerDel'!L81 -> 231521432 | L62: ='B10-SerDel'!M81 -> 249973726
A63: Households below minimum service level
A64: Water: | B64: ='B10-SerDel'!C16 -> 0 | C64: ='B10-SerDel'!D16 -> 0 | D64: ='B10-SerDel'!E16 -> 0 | E64: ='B10-SerDel'!F16 -> 0 | F64: ='B10-SerDel'!G16 -> 0 | G64: ='B10-SerDel'!H16 -> 0 | H64: ='B10-SerDel'!I16 -> 0 | I64: =SUM(D64:H64) -> 0 | J64: =IF(C64=0,B64+I64,C64+I64) -> 0 | K64: ='B10-SerDel'!L16 -> 0 | L64: ='B10-SerDel'!M16 -> 0
A65: Sanitation/sewerage: | B65: ='B10-SerDel'!C28 -> 0 | C65: ='B10-SerDel'!D28 -> 0 | D65: ='B10-SerDel'!E28 -> 0 | E65: ='B10-SerDel'!F28 -> 0 | F65: ='B10-SerDel'!G28 -> 0 | G65: ='B10-SerDel'!H28 -> 0 | H65: ='B10-SerDel'!I28 -> 0 | I65: =SUM(D65:H65) -> 0 | J65: =IF(C65=0,B65+I65,C65+I65) -> 0 | K65: ='B10-SerDel'!L28 -> 0 | L65: ='B10-SerDel'!M28 -> 0
A66: Energy: | B66: ='B10-SerDel'!C37 -> 0 | C66: ='B10-SerDel'!D37 -> 0 | D66: ='B10-SerDel'!E37 -> 0 | E66: ='B10-SerDel'!F37 -> 0 | F66: ='B10-SerDel'!G37 -> 0 | G66: ='B10-SerDel'!H37 -> 0 | H66: ='B10-SerDel'!I37 -> 0 | I66: =SUM(D66:H66) -> 0 | J66: =IF(C66=0,B66+I66,C66+I66) -> 0 | K66: ='B10-SerDel'!L37 -> 0 | L66: ='B10-SerDel'!M37 -> 0
A67: Refuse: | B67: ='B10-SerDel'!C47 -> 0 | C67: ='B10-SerDel'!D47 -> 0 | D67: ='B10-SerDel'!E47 -> 0 | E67: ='B10-SerDel'!F47 -> 0 | F67: ='B10-SerDel'!G47 -> 0 | G67: ='B10-SerDel'!H47 -> 0 | H67: ='B10-SerDel'!I47 -> 0 | I67: =SUM(D67:H67) -> 0 | J67: =IF(C67=0,B67+I67,C67+I67) -> 0 | K67: ='B10-SerDel'!L47 -> 0 | L67: ='B10-SerDel'!M47 -> 0
M68: =B68-'[4]B1-Sum'!$B68 -> 0
A69: References
A70: 1. Only complete if a previous adjusted budget has been approved in the same financial year. Reflect most recent adjusted budget.
A71: 2. Additional cash-backed accumulated funds/unspent funds (MFMA section 18(1)(b) and section 28(2)(e)) identified after the Original Budget approved and after annual financial statements audited (note: only where underspending could not reasonably have been foreseen)
A72: 3. Increases of funds approved under MFMA section 31
A73: 4. Adjustments approved in accordance with MFMA section 29
A74: 5. Adjustments to transfers from National or Provincial Government
A75: 6. Adjusts. = 'Other' Adjustments proposed to be approved; including revenue under-collection (MFMA section 28(2)(a)); additional revenue appropriation on existing programmes (section 28(2))(b); projected savings (section 28(2)(d)); error correction (section 28(2)(f))
A76: 7. G = B + C + D + E + F
A77: 8. Adjusted Budget H = (A or A1/2 etc) + G

Sheet B2-FinPerf SC
A1: =muni&" - "&_ADJ3&" - "&Date -> KZN225 Msunduzi - Table B2 Adjustments Budget Financial Performance (functional classification) -
A2: ="Standard "&desc -> Standard Description | B2: =head27 -> Ref | C2: =Head2 -> Budget Year 2021/22 | L2: =Head10 -> Budget Year +1 2022/23 | M2: =Head11 -> Budget Year +2 2023/24
C3: =Head6 -> Original Budget | D3: =Head54 -> Prior Adjusted | E3: =Head51 -> Accum. Funds | F3: =Head52 -> Multi-year capital | G3: =Head53 -> Unfore. Unavoid. | H3: =Head55 -> Nat. or Prov. Govt | I3: =Head50 -> Other Adjusts. | J3: =Head56 -> Total Adjusts. | K3: =Head7 -> Adjusted Budget | L3: =Head7 -> Adjusted Budget | M3: =Head7 -> Adjusted Budget
D4: 5 | E4: =D4+1 -> 6 | F4: 7 | G4: 8 | H4: 9 | I4: 10 | J4: 11 | K4: 12
A5: R thousands | B5: 1, 4 | C5: A | D5: A1 | E5: B | F5: C | G5: D | H5: E | I5: F | J5: G | K5: H
A6: Revenue - Functional
A7: Governance and administration | C7: =SUM(C8:C10) -> 1981018743 | D7: =SUM(D8:D10) -> 0 | E7: 0 | F7: 0 | G7: 0 | H7: 0 | I7: -3503427.778 | J7: =SUM(J8:J10) -> -3503427.778 | K7: =SUM(K8:K10) -> 1977515316 | L7: =SUM(L8:L10) -> 2000933196 | M7: =SUM(M8:M10) -> 2108150537
A8: Executive and council | C8: =B2B!C8 -> 3578714.869 | D8: =B2B!D8 -> 0 | E8: =B2B!E8 -> 0 | F8: =B2B!F8 -> 0 | G8: =B2B!G8 -> 0 | H8: =B2B!H8 -> 0 | I8: =B2B!I8 -> 0 | J8: =SUM(E8:I8) -> 0 | K8: =IF(D8=0,C8+J8,D8+J8) -> 3578714.869 | L8: =B2B!L8 -> 98434 | M8: =B2B!M8 -> 103440
A9: Finance and administration | C9: =B2B!C11 -> 1977440028 | D9: =B2B!D11 -> 0 | E9: =B2B!E11 -> 0 | F9: =B2B!F11 -> 0 | G9: =B2B!G11 -> 0 | H9: =B2B!H11 -> 0 | I9: =B2B!I11 -> -3503427.778 | J9: =SUM(E9:I9) -> -3503427.778 | K9: =IF(D9=0,C9+J9,D9+J9) -> 1973936601 | L9: =B2B!L11 -> 2000834762 | M9: =B2B!M11 -> 2108047097
A10: Internal audit | C10: =B2B!C25 -> 0 | D10: =B2B!D25 -> 0 | E10: =B2B!E25 -> 0 | F10: =B2B!F25 -> 0 | G10: =B2B!G25 -> 0 | H10: =B2B!H25 -> 0 | I10: =B2B!I25 -> 0 | J10: =SUM(E10:I10) -> 0 | K10: =IF(D10=0,C10+J10,D10+J10) -> 0 | L10: =B2B!L25 -> 0 | M10: =B2B!M25 -> 0
A11: Community and public safety | C11: =SUM(C12:C16) -> 130529798.9 | D11: =SUM(D12:D16) -> 0 | E11: 0 | F11: 0 | G11: 0 | H11: 0 | I11: 77264643.71 | J11: =SUM(J12:J16) -> 77264643.71 | K11: =SUM(K12:K16) -> 207794442.6 | L11: =SUM(L12:L16) -> 34340282 | M11: =SUM(M12:M16) -> 33706504
A12: Community and social services | C12: =B2B!C28 -> 21601427.47 | D12: =B2B!D28 -> 0 | E12: =B2B!E28 -> 0 | F12: =B2B!F28 -> 0 | G12: =B2B!G28 -> 0 | H12: =B2B!H28 -> 0 | I12: =B2B!I28 -> 4674000 | J12: =SUM(E12:I12) -> 4674000 | K12: =IF(D12=0,C12+J12,D12+J12) -> 26275427.47 | L12: =B2B!L28 -> 13296443 | M12: =B2B!M28 -> 11850537
A13: Sport and recreation | C13: =B2B!C50 -> 291934 | D13: =B2B!D50 -> 0 | E13: =B2B!E50 -> 0 | F13: =B2B!F50 -> 0 | G13: =B2B!G50 -> 0 | H13: =B2B!H50 -> 0 | I13: =B2B!I50 -> 0 | J13: =SUM(E13:I13) -> 0 | K13: =IF(D13=0,C13+J13,D13+J13) -> 291934 | L13: =B2B!L50 -> 309246 | M13: =B2B!M50 -> 327895
A14: Public safety | C14: =B2B!C56 -> 3970362.811 | D14: =B2B!D56 -> 0 | E14: =B2B!E56 -> 0 | F14: =B2B!F56 -> 0 | G14: =B2B!G56 -> 0 | H14: =B2B!H56 -> 0 | I14: =B2B!I56 -> 0 | J14: =SUM(E14:I14) -> 0 | K14: =IF(D14=0,C14+J14,D14+J14) -> 3970362.811 | L14: =B2B!L56 -> 4205806 | M14: =B2B!M56 -> 4459415
A15: Housing | C15: =B2B!C65 -> 104666074.6 | D15: =B2B!D65 -> 0 | E15: =B2B!E65 -> 0 | F15: =B2B!F65 -> 0 | G15: =B2B!G65 -> 0 | H15: =B2B!H65 -> 0 | I15: =B2B!I65 -> 72590643.71 | J15: =SUM(E15:I15) -> 72590643.71 | K15: =IF(D15=0,C15+J15,D15+J15) -> 177256718.3 | L15: =B2B!L65 -> 16528787 | M15: =B2B!M65 -> 17068657
A16: Health | C16: =B2B!C68 -> 0 | D16: =B2B!D68 -> 0 | E16: =B2B!E68 -> 0 | F16: =B2B!F68 -> 0 | G16: =B2B!G68 -> 0 | H16: =B2B!H68 -> 0 | I16: =B2B!I68 -> 0 | J16: =SUM(E16:I16) -> 0 | K16: =IF(D16=0,C16+J16,D16+J16) -> 0 | L16: =B2B!L68 -> 0 | M16: =B2B!M68 -> 0
A17: Economic and environmental services | C17: =SUM(C18:C20) -> 38412632.01 | D17: =SUM(D18:D20) -> 0 | E17: 0 | F17: 0 | G17: 0 | H17: 0 | I17: 55132810.68 | J17: =SUM(J18:J20) -> 55132810.68 | K17: =SUM(K18:K20) -> 93545442.69 | L17: =SUM(L18:L20) -> 49674300 | M17: =SUM(M18:M20) -> 54956161
A18: Planning and development | C18: =B2B!C77 -> 38298488.01 | D18: =B2B!D77 -> 0 | E18: =B2B!E77 -> 0 | F18: =B2B!F77 -> 0 | G18: =B2B!G77 -> 0 | H18: =B2B!H77 -> 0 | I18: =B2B!I77 -> 4686731.525 | J18: =SUM(E18:I18) -> 4686731.525 | K18: =IF(D18=0,C18+J18,D18+J18) -> 42985219.53 | L18: =B2B!L77 -> 49553387 | M18: =B2B!M77 -> 54827957
A19: Road transport | C19: =B2B!C88 -> 0 | D19: =B2B!D88 -> 0 | E19: =B2B!E88 -> 0 | F19: =B2B!F88 -> 0 | G19: =B2B!G88 -> 0 | H19: =B2B!H88 -> 0 | I19: =B2B!I88 -> 50446079.16 | J19: =SUM(E19:I19) -> 50446079.16 | K19: =IF(D19=0,C19+J19,D19+J19) -> 50446079.16 | L19: =B2B!L88 -> 0 | M19: =B2B!M88 -> 0
A20: Environmental protection | C20: =B2B!C93 -> 114144 | D20: =B2B!D93 -> 0 | E20: =B2B!E93 -> 0 | F20: =B2B!F93 -> 0 | G20: =B2B!G93 -> 0 | H20: =B2B!H93 -> 0 | I20: =B2B!I93 -> 0 | J20: =SUM(E20:I20) -> 0 | K20: =IF(D20=0,C20+J20,D20+J20) -> 114144 | L20: =B2B!L93 -> 120913 | M20: =B2B!M93 -> 128204
A21: Trading services | C21: =SUM(C22:C25) -> 4904764744 | D21: =SUM(D22:D25) -> 0 | E21: 0 | F21: 0 | G21: 0 | H21: 0 | I21: -15278571.48 | J21: -15278571.48 | K21: 4889486173 | L21: 5163000270 | M21: 5590560778
A22: Energy sources | C22: =B2B!C101 -> 3038086189 | D22: =B2B!D101 -> 0 | E22: =B2B!E101 -> 0 | F22: =B2B!F101 -> 0 | G22: =B2B!G101 -> 0 | H22: =B2B!H101 -> 0 | I22: =B2B!I101 -> 0 | J22: =SUM(E22:I22) -> 0 | K22: =IF(D22=0,C22+J22,D22+J22) -> 3038086189 | L22: =B2B!L101 -> 3376007152 | M22: =B2B!M101 -> 3711637911
A23: Water management | C23: =B2B!C105 -> 1476594054 | D23: =B2B!D105 -> 0 | E23: =B2B!E105 -> 0 | F23: =B2B!F105 -> 0 | G23: =B2B!G105 -> 0 | H23: =B2B!H105 -> 0 | I23: =B2B!I105 -> -15278571.48 | J23: =SUM(E23:I23) -> -15278571.48 | K23: =IF(D23=0,C23+J23,D23+J23) -> 1461315483 | L23: =B2B!L105 -> 1394746892 | M23: =B2B!M105 -> 1466285403
A24: Waste water management | C24: =B2B!C109 -> 213394622.9 | D24: =B2B!D109 -> 0 | E24: =B2B!E109 -> 0 | F24: =B2B!F109 -> 0 | G24: =B2B!G109 -> 0 | H24: =B2B!H109 -> 0 | I24: =B2B!I109 -> 0 | J24: =SUM(E24:I24) -> 0 | K24: =IF(D24=0,C24+J24,D24+J24) -> 213394622.9 | L24: =B2B!L109 -> 212167468 | M24: =B2B!M109 -> 223830187
A25: Waste management | C25: =B2B!C114 -> 176689878.4 | D25: =B2B!D114 -> 0 | E25: =B2B!E114 -> 0 | F25: =B2B!F114 -> 0 | G25: =B2B!G114 -> 0 | H25: =B2B!H114 -> 0 | I25: =B2B!I114 -> 0 | J25: =SUM(E25:I25) -> 0 | K25: =IF(D25=0,C25+J25,D25+J25) -> 176689878.4 | L25: =B2B!L114 -> 180078758 | M25: =B2B!M114 -> 188807277
A26: Other | C26: =B2B!C119 -> 64846075.39 | D26: =B2B!D119 -> 0 | E26: =B2B!E119 -> 0 | F26: =B2B!F119 -> 0 | G26: =B2B!G119 -> 0 | H26: =B2B!H119 -> 0 | I26: =B2B!I119 -> 0 | J26: =SUM(E26:I26) -> 0 | K26: =IF(D26=0,C26+J26,D26+J26) -> 64846075.39 | L26: =B2B!L119 -> 68659449 | M26: =B2B!M119 -> 72800542
A27: ="Total "&A6 -> Total Revenue - Functional | B27: 2 | C27: =C7+C11+C17+C21+C26 -> 7119571994 | D27: =D7+D11+D17+D21+D26 -> 0 | E27: 0 | F27: 0 | G27: 0 | H27: 0 | I27: 113615455.1 | J27: 113615455.1 | K27: 7233187449 | L27: 7316607497 | M27: 7860174522
A29: Expenditure - Functional
A30: Governance and administration | C30: =SUM(C31:C33) -> 1216239065 | D30: =SUM(D31:D33) -> 0 | E30: 0 | F30: 0 | G30: 0 | H30: 0 | I30: 31143060.35 | J30: =SUM(J31:J33) -> 31143060.35 | K30: =SUM(K31:K33) -> 1247382125 | L30: =SUM(L31:L33) -> 1273330835 | M30: =SUM(M31:M33) -> 1376874167
A31: Executive and council | C31: =B2B!C130 -> 117003171.7 | D31: =B2B!D130 -> 0 | E31: =B2B!E130 -> 0 | F31: =B2B!F130 -> 0 | G31: =B2B!G130 -> 0 | H31: =B2B!H130 -> 0 | I31: =B2B!I130 -> 9394206.274 | J31: =SUM(E31:I31) -> 9394206.274 | K31: =IF(D31=0,C31+J31,D31+J31) -> 126397378 | L31: =B2B!L130 -> 137920660 | M31: =B2B!M130 -> 140775606
A32: Finance and administration | C32: =B2B!C133 -> 1077460435 | D32: =B2B!D133 -> 0 | E32: =B2B!E133 -> 0 | F32: =B2B!F133 -> 0 | G32: =B2B!G133 -> 0 | H32: =B2B!H133 -> 0 | I32: =B2B!I133 -> 20749747.82 | J32: =SUM(E32:I32) -> 20749747.82 | K32: =IF(D32=0,C32+J32,D32+J32) -> 1098210183 | L32: =B2B!L133 -> 1114030048 | M32: =B2B!M133 -> 1213019870
A33: Internal audit | C33: =B2B!C147 -> 21775457.74 | D33: =B2B!D147 -> 0 | E33: =B2B!E147 -> 0 | F33: =B2B!F147 -> 0 | G33: =B2B!G147 -> 0 | H33: =B2B!H147 -> 0 | I33: =B2B!I147 -> 999106.2615 | J33: =SUM(E33:I33) -> 999106.2615 | K33: =IF(D33=0,C33+J33,D33+J33) -> 22774564 | L33: =B2B!L147 -> 21380127 | M33: =B2B!M147 -> 23078691
A34: Community and public safety | C34: =SUM(C35:C39) -> 549083301.6 | D34: =SUM(D35:D39) -> 0 | E34: 0 | F34: 0 | G34: 0 | H34: 0 | I34: 52666709.7 | J34: =SUM(J35:J39) -> 52666709.7 | K34: =SUM(K35:K39) -> 601750011.3 | L34: =SUM(L35:L39) -> 551386622 | M34: =SUM(M35:M39) -> 568607250
A35: Community and social services | C35: =B2B!C150 -> 138323594.9 | D35: =B2B!D150 -> 0 | E35: =B2B!E150 -> 0 | F35: =B2B!F150 -> 0 | G35: =B2B!G150 -> 0 | H35: =B2B!H150 -> 0 | I35: =B2B!I150 -> -16550232.86 | J35: =SUM(E35:I35) -> -16550232.86 | K35: =IF(D35=0,C35+J35,D35+J35) -> 121773362 | L35: =B2B!L150 -> 137409301 | M35: =B2B!M150 -> 136658389
A36: Sport and recreation | C36: =B2B!C172 -> 133116283.9 | D36: =B2B!D172 -> 0 | E36: =B2B!E172 -> 0 | F36: =B2B!F172 -> 0 | G36: =B2B!G172 -> 0 | H36: =B2B!H172 -> 0 | I36: =B2B!I172 -> 13762923.11 | J36: =SUM(E36:I36) -> 13762923.11 | K36: =IF(D36=0,C36+J36,D36+J36) -> 146879207 | L36: =B2B!L172 -> 143571821 | M36: =B2B!M172 -> 150413892
A37: Public safety | C37: =B2B!C178 -> 211547136.6 | D37: =B2B!D178 -> 0 | E37: =B2B!E178 -> 0 | F37: =B2B!F178 -> 0 | G37: =B2B!G178 -> 0 | H37: =B2B!H178 -> 0 | I37: =B2B!I178 -> 20379273.44 | J37: =SUM(E37:I37) -> 20379273.44 | K37: =IF(D37=0,C37+J37,D37+J37) -> 231926410 | L37: =B2B!L178 -> 217505911 | M37: =B2B!M178 -> 227015672
A38: Housing | C38: =B2B!C187 -> 50925986.88 | D38: =B2B!D187 -> 0 | E38: =B2B!E187 -> 0 | F38: =B2B!F187 -> 0 | G38: =B2B!G187 -> 0 | H38: =B2B!H187 -> 0 | I38: =B2B!I187 -> 38190025.42 | J38: =SUM(E38:I38) -> 38190025.42 | K38: =IF(D38=0,C38+J38,D38+J38) -> 89116012.3 | L38: =B2B!L187 -> 37601896 | M38: =B2B!M187 -> 38376805
A39: Health | C39: =B2B!C190 -> 15170299.41 | D39: =B2B!D190 -> 0 | E39: =B2B!E190 -> 0 | F39: =B2B!F190 -> 0 | G39: =B2B!G190 -> 0 | H39: =B2B!H190 -> 0 | I39: =B2B!I190 -> -3115279.414 | J39: =SUM(E39:I39) -> -3115279.414 | K39: =IF(D39=0,C39+J39,D39+J39) -> 12055020 | L39: =B2B!L190 -> 15297693 | M39: =B2B!M190 -> 16142492
A40: Economic and environmental services | C40: =SUM(C41:C43) -> 421022081.1 | D40: =SUM(D41:D43) -> 0 | E40: 0 | F40: 0 | G40: 0 | H40: 0 | I40: -17445648.64 | J40: =SUM(J41:J43) -> -17445648.64 | K40: =SUM(K41:K43) -> 403576432.4 | L40: =SUM(L41:L43) -> 413233441 | M40: =SUM(M41:M43) -> 383520687
A41: Planning and development | C41: =B2B!C199 -> 73618014.47 | D41: =B2B!D199 -> 0 | E41: =B2B!E199 -> 0 | F41: =B2B!F199 -> 0 | G41: =B2B!G199 -> 0 | H41: =B2B!H199 -> 0 | I41: =B2B!I199 -> 2985357.938 | J41: =SUM(E41:I41) -> 2985357.938 | K41: =IF(D41=0,C41+J41,D41+J41) -> 76603372.41 | L41: =B2B!L199 -> 76465301 | M41: =B2B!M199 -> 80443511
A42: Road transport | C42: =B2B!C210 -> 321529184.4 | D42: =B2B!D210 -> 0 | E42: =B2B!E210 -> 0 | F42: =B2B!F210 -> 0 | G42: =B2B!G210 -> 0 | H42: =B2B!H210 -> 0 | I42: =B2B!I210 -> -18940892.45 | J42: =SUM(E42:I42) -> -18940892.45 | K42: =IF(D42=0,C42+J42,D42+J42) -> 302588292 | L42: =B2B!L210 -> 311780733 | M42: =B2B!M210 -> 275938860
A43: Environmental protection | C43: =B2B!C215 -> 25874882.14 | D43: =B2B!D215 -> 0 | E43: =B2B!E215 -> 0 | F43: =B2B!F215 -> 0 | G43: =B2B!G215 -> 0 | H43: =B2B!H215 -> 0 | I43: =B2B!I215 -> -1490114.137 | J43: =SUM(E43:I43) -> -1490114.137 | K43: =IF(D43=0,C43+J43,D43+J43) -> 24384768 | L43: =B2B!L215 -> 24987407 | M43: =B2B!M215 -> 27138316
A44: Trading services | C44: =SUM(C45:C48) -> 4189944597 | D44: =SUM(D45:D48) -> 0 | E44: 0 | F44: 0 | G44: 0 | H44: 0 | I44: 58563732.41 | J44: 58563732.41 | K44: 4248508329 | L44: 4349483932 | M44: 4684066892
A45: Energy sources | C45: =B2B!C223 -> 2660033713 | D45: =B2B!D223 -> 0 | E45: =B2B!E223 -> 0 | F45: =B2B!F223 -> 0 | G45: =B2B!G223 -> 0 | H45: =B2B!H223 -> 0 | I45: =B2B!I223 -> 10901696.35 | J45: =SUM(E45:I45) -> 10901696.35 | K45: =IF(D45=0,C45+J45,D45+J45) -> 2670935409 | L45: =B2B!L223 -> 2950978472 | M45: =B2B!M223 -> 3222884423
A46: Water management | C46: =B2B!C227 -> 1127189124 | D46: =B2B!D227 -> 0 | E46: =B2B!E227 -> 0 | F46: =B2B!F227 -> 0 | G46: =B2B!G227 -> 0 | H46: =B2B!H227 -> 0 | I46: =B2B!I227 -> 19820042.52 | J46: =SUM(E46:I46) -> 19820042.52 | K46: =IF(D46=0,C46+J46,D46+J46) -> 1147009167 | L46: =B2B!L227 -> 1009025942 | M46: =B2B!M227 -> 1051273479
A47: Waste water management | C47: =B2B!C231 -> 287545278.3 | D47: =B2B!D231 -> 0 | E47: =B2B!E231 -> 0 | F47: =B2B!F231 -> 0 | G47: =B2B!G231 -> 0 | H47: =B2B!H231 -> 0 | I47: =B2B!I231 -> 20432153.65 | J47: =SUM(E47:I47) -> 20432153.65 | K47: =IF(D47=0,C47+J47,D47+J47) -> 307977432 | L47: =B2B!L231 -> 267115168 | M47: =B2B!M231 -> 280958827
A48: Waste management | C48: =B2B!C236 -> 115176481.1 | D48: =B2B!D236 -> 0 | E48: =B2B!E236 -> 0 | F48: =B2B!F236 -> 0 | G48: =B2B!G236 -> 0 | H48: =B2B!H236 -> 0 | I48: =B2B!I236 -> 7409839.883 | J48: =SUM(E48:I48) -> 7409839.883 | K48: =IF(D48=0,C48+J48,D48+J48) -> 122586321 | L48: =B2B!L236 -> 122364350 | M48: =B2B!M236 -> 128950163
A49: Other | C49: =B2B!C241 -> 62486356.9 | D49: =B2B!D241 -> 0 | E49: =B2B!E241 -> 0 | F49: =B2B!F241 -> 0 | G49: =B2B!G241 -> 0 | H49: =B2B!H241 -> 0 | I49: =B2B!I241 -> -2819037.9 | J49: =SUM(E49:I49) -> -2819037.9 | K49: =IF(D49=0,C49+J49,D49+J49) -> 59667319 | L49: =B2B!L241 -> 63572578 | M49: =B2B!M241 -> 64755424
A50: ="Total "&A29 -> Total Expenditure - Functional | B50: 3 | C50: =C30+C34+C40+C44+C49 -> 6438775401 | D50: =D30+D34+D40+D44+D49 -> 0 | E50: 0 | F50: 0 | G50: 0 | H50: 0 | I50: 122108815.9 | J50: 122108815.9 | K50: 6560884217 | L50: 6651007408 | M50: 7077824420
A51: Surplus/ (Deficit) for the year | C51: =C27-C50 -> 680796593.3 | D51: 0 | E51: 0 | F51: 0 | G51: 0 | H51: 0 | I51: -8493360.782 | J51: -8493360.782 | K51: 672303232.5 | L51: 665600089 | M51: 782350102
A52: =head27a -> References
A53: 1. Government Finance Statistics Functions and Sub-functions are standardised to assist the compilation of national and international accounts for comparison purposes
A54: 2. Total Revenue by standard classification must reconcile to Total Operating Revenue shown in the Adjustments Budget Financial Performance (revenue and expenditure)
A55: 3. Total Operating Expenditure by standard classification must reconcile to Total Operating Expenditure shown in the Adjustments Budget Financial Performance (revenue and expenditure)
A56: 4. All amounts must be classified under a standard classification (modified GFS). The GFS function 'Other' is only for Abbatoirs, Air Transport, Markets and Tourism - and if used must be supported by footnotes. Nothing else may be placed under 'Other'. Assign associate share to relevant classification
A57: 5. Only complete if a previous adjusted budget has been approved in the same financial year. Reflect most recent adjusted budget.
A58: 6. Additional cash-backed accumulated funds/unspent funds (MFMA section 18(1)(b) and section 28(2)(e)) identified after the Original Budget approved and after annual financial statements audited (note: only where underspending could not reasonably have been foreseen)
A59: 7. Increases of funds approved under MFMA section 31
A60: 8. Adjustments approved in accordance with MFMA section 29
A61: 9. Adjustments to transfers from National or Provincial Government
A62: 10. Adjusts. = 'Other' Adjustments proposed to be approved; including revenue under-collection (MFMA section 28(2)(a)); additional revenue appropriation on existing programmes (section 28(2))(b); projected savings (section 28(2)(d)); error correction (section 28(2)(f))
A63: 11. G = B + C + D + E + F
A64: 12. Adjusted Budget H = (A or A1/2 etc) + G

Sheet B2B
A1: =muni&" - "&_ADJ3&" - B"&" - "&Date -> KZN225 Msunduzi - Table B2 Adjustments Budget Financial Performance (functional classification) - B -
A2: ="Standard Classification "&desc -> Standard Classification Description | B2: =head27 -> Ref | C2: =Head2 -> Budget Year 2021/22 | L2: =Head10 -> Budget Year +1 2022/23 | M2: =Head11 -> Budget Year +2 2023/24
C3: =Head6 -> Original Budget | D3: =Head54 -> Prior Adjusted | E3: =Head51 -> Accum. Funds | F3: =Head52 -> Multi-year capital | G3: =Head53 -> Unfore. Unavoid. | H3: =Head55 -> Nat. or Prov. Govt | I3: =Head50 -> Other Adjusts. | J3: =Head56 -> Total Adjusts. | K3: =Head7 -> Adjusted Budget | L3: =Head7 -> Adjusted Budget | M3: =Head7 -> Adjusted Budget
D4: 5 | E4: =D4+1 -> 6 | F4: 7 | G4: 8 | H4: 9 | I4: 10 | J4: 11 | K4: 12
A5: R thousand | B5: 1 | C5: A | D5: A1 | E5: B | F5: C | G5: D | H5: E | I5: F | J5: G | K5: H
A6: Revenue - Functional
A7: Municipal governance and administration | C7: =C8+C11+C25 -> 1981018743 | D7: 0 | E7: 0 | F7: 0 | G7: 0 | H7: 0 | I7: -3503427.778 | J7: =SUM(E7:I7) -> -3503427.778 | K7: =IF(D7=0,C7+J7,D7+J7) -> 1977515316 | L7: =L8+L11+L25 -> 2000933196 | M7: =M8+M11+M25 -> 2108150537
A8: Executive and council | C8: =SUM(C9:C10) -> 3578714.869 | D8: 0 | E8: 0 | F8: 0 | G8: 0 | H8: 0 | I8: 0 | J8: =SUM(E8:I8) -> 0 | K8: =IF(D8=0,C8+J8,D8+J8) -> 3578714.869 | L8: =SUM(L9:L10) -> 98434 | M8: =SUM(M9:M10) -> 103440
A9: Mayor and Council | C9: 0 | D9: 0 | I9: 0 | J9: =SUM(E9:I9) -> 0 | K9: =IF(D9=0,C9+J9,D9+J9) -> 0 | L9: 0 | M9: 0
A10: Municipal Manager, Town Secretary and Chief Executive | C10: 3578714.869 | D10: 0 | J10: =SUM(E10:I10) -> 0 | K10: =IF(D10=0,C10+J10,D10+J10) -> 3578714.869 | L10: 98434 | M10: 103440
A11: Finance and administration | C11: =SUM(C12:C24) -> 1977440028 | D11: 0 | E11: 0 | F11: 0 | G11: 0 | H11: 0 | I11: =SUM(I12:I24) -> -3503427.778 | J11: =SUM(E11:I11) -> -3503427.778 | K11: =IF(D11=0,C11+J11,D11+J11) -> 1973936601 | L11: =SUM(L12:L24) -> 2000834762 | M11: =SUM(M12:M24) -> 2108047097
A12: Administrative and Corporate Support | J12: 0 | K12: =IF(D12=0,C12+J12,D12+J12) -> 0 | L12: 0 | M12: 0
A13: Asset Management | C13: 11713700.32 | J13: 0 | K13: 11713700.32 | L13: 12408322 | M13: 13156545
A14: Finance | C14: 1939216554 | J14: 0 | K14: 1939216554 | L14: 1960437957 | M14: 2063825358
A15: Fleet Management | J15: 0 | K15: 0 | L15: 0 | M15: 0
A16: Human Resources | C16: 12339543.78 | I16: -3503427.778 | J16: -3503427.778 | K16: 8836116 | L16: 12977958 | M16: 15149535
A17: Information Technology | C17: 2123.870749 | J17: 0 | K17: 2123.870749 | L17: 2250 | M17: 2385
A18: Legal Services | C18: 270861.2043 | J18: 0 | K18: 270861.2043 | L18: 286923 | M18: 304225
A19: Marketing, Customer Relations, Publicity and Media Co-ordination | J19: 0 | K19: 0 | L19: 0 | M19: 0
A20: Property Services | C20: 13602002.3 | J20: 0 | K20: 13602002.3 | L20: 14408601 | M20: 15277440
A21: Risk Management | J21: 0 | K21: 0 | L21: 0 | M21: 0
A22: Security Services | J22: 0 | K22: 0 | L22: 0 | M22: 0
A23: Supply Chain Management | C23: 295242.5403 | J23: 0 | K23: 295242.5403 | L23: 312751 | M23: 331609
A24: Valuation Service | J24: 0 | K24: 0 | L24: 0 | M24: 0
A25: Internal audit | C25: =SUM(C26:C26) -> 0 | D25: 0 | E25: 0 | F25: 0 | G25: 0 | H25: 0 | I25: 0 | J25: 0 | K25: 0 | L25: 0 | M25: 0
A26: Governance Function | C26: 0 | D26: 0 | I26: 0 | J26: =SUM(E26:I26) -> 0 | K26: 0 | L26: 0 | M26: 0
A27: Community and public safety | C27: =C28+C50+C56+C65+C68 -> 130529798.9 | D27: 0 | E27: 0 | F27: 0 | G27: 0 | H27: 0 | I27: 77264643.71 | J27: 77264643.71 | K27: 207794442.6 | L27: =L28+L50+L56+L65+L68 -> 34340282 | M27: =M28+M50+M56+M65+M68 -> 33706504
A28: Community and social services | C28: =SUM(C29:C49) -> 21601427.47 | D28: 0 | E28: 0 | F28: 0 | G28: 0 | H28: 0 | I28: 4674000 | J28: 4674000 | K28: 26275427.47 | L28: 13296443 | M28: 11850537
A29: Aged Care | J29: 0 | K29: 0 | L29: 0 | M29: 0
A30: Agricultural | J30: 0 | K30: 0 | L30: 0 | M30: 0
A31: Animal Care and Diseases | J31: 0 | K31: 0 | L31: 0 | M31: 0
A32: Cemeteries, Funeral Parlours and Crematoriums | C32: 3711678.855 | J32: 0 | K32: 3711678.855 | L32: 3931781 | M32: 4168868
A33: Child Care Facilities | J33: 0 | K33: 0 | L33: 0 | M33: 0
A34: Community Halls and Facilities | C34: 1101748.615 | J34: 0 | K34: 1101748.615 | L34: 1167083 | M34: 1237458
A35: Consumer Protection | J35: 0 | K35: 0 | L35: 0 | M35: 0
A36: Cultural Matters | J36: 0 | K36: 0 | L36: 0 | M36: 0
A37: Disaster Management | J37: 0 | K37: 0 | L37: 0 | M37: 0
A38: Education | J38: 0 | K38: 0 | L38: 0 | M38: 0
A39: Indigenous and Customary Law | J39: 0 | K39: 0 | L39: 0 | M39: 0
A40: Industrial Promotion | J40: 0 | K40: 0 | L40: 0 | M40: 0
A41: Language Policy | J41: 0 | K41: 0 | L41: 0 | M41: 0
A42: Libraries and Archives | C42: 16363000 | I42: 4868000 | J42: 4868000 | K42: 21231000 | L42: 7658579 | M42: 5873211
A43: Literacy Programmes | J43: 0 | K43: 0 | L43: 0 | M43: 0
A44: Media Services | J44: 0 | K44: 0 | L44: 0 | M44: 0
A45: Museums and Art Galleries | C45: 425000 | I45: -194000 | J45: -194000 | K45: 231000 | L45: 539000 | M45: 571000
A46: Population Development | J46: 0 | K46: 0 | L46: 0 | M46: 0
A47: Provincial Cultural Matters | J47: 0 | K47: 0 | L47: 0 | M47: 0
A48: Theatres | J48: 0 | K48: 0 | L48: 0 | M48: 0
A49: Zoo's | J49: 0 | K49: 0 | L49: 0 | M49: 0
A50: Sport and recreation | C50: =SUM(C51:C55) -> 291934 | D50: 0 | E50: 0 | F50: 0 | G50: 0 | H50: 0 | I50: 0 | J50: 0 | K50: 291934 | L50: 309246 | M50: 327895
A51: Beaches and Jetties | C51: 0 | D51: 0 | J51: 0 | K51: 0 | L51: 0 | M51: 0
A52: Casinos, Racing, Gambling, Wagering | C52: 0 | D52: 0 | J52: 0 | K52: 0 | L52: 0 | M52: 0
A53: Community Parks (including Nurseries) | C53: 0 | D53: 0 | J53: 0 | K53: 0 | L53: 0 | M53: 0
A54: Recreational Facilities | C54: 291934 | D54: 0 | J54: 0 | K54: 291934 | L54: 309246 | M54: 327895
A55: Sports Grounds and Stadiums | C55: 0 | D55: 0 | J55: 0 | K55: 0 | L55: 0 | M55: 0
A56: Public safety | C56: =SUM(C57:C64) -> 3970362.811 | D56: 0 | E56: 0 | F56: 0 | G56: 0 | H56: 0 | I56: 0 | J56: 0 | K56: 3970362.811 | L56: 4205806 | M56: 4459415
A57: Civil Defence | J57: 0 | K57: 0 | L57: 0 | M57: 0
A58: Cleansing | J58: 0 | K58: 0 | L58: 0 | M58: 0
A59: Control of Public Nuisances | J59: 0 | K59: 0 | L59: 0 | M59: 0
A60: Fencing and Fences | J60: 0 | K60: 0 | L60: 0 | M60: 0
A61: Fire Fighting and Protection | C61: 352152.9407 | J61: 0 | K61: 352152.9407 | L61: 373036 | M61: 395530
A62: Licensing and Control of Animals | J62: 0 | K62: 0 | L62: 0 | M62: 0
A63: Police Forces, Traffic and Street Parking Control | C63: 3618209.871 | J63: 0 | K63: 3618209.871 | L63: 3832770 | M63: 4063885
A64: Pounds | J64: 0 | K64: 0 | L64: 0 | M64: 0
A65: Housing | C65: =SUM(C66:C67) -> 104666074.6 | D65: =SUM(D66:D67) -> 0 | E65: 0 | F65: 0 | G65: 0 | H65: 0 | I65: 72590643.71 | J65: 72590643.71 | K65: 177256718.3 | L65: =SUM(L66:L67) -> 16528787 | M65: =SUM(M66:M67) -> 17068657
A66: Housing | C66: 104666074.6 | D66: 0 | I66: 72590643.71 | J66: 72590643.71 | K66: 177256718.3 | L66: 16528787 | M66: 17068657
A67: Informal Settlements | C67: 0 | D67: 0 | I67: 0 | J67: 0 | K67: 0 | L67: 0 | M67: 0
A68: Health | C68: =SUM(C69:C75) -> 0 | D68: =SUM(D69:D75) -> 0 | E68: 0 | F68: 0 | G68: 0 | H68: 0 | I68: 0 | J68: 0 | K68: 0 | L68: =SUM(L69:L75) -> 0 | M68: =SUM(M69:M75) -> 0
A69: Ambulance | C69: 0 | D69: 0 | I69: 0 | J69: 0 | K69: 0 | L69: 0 | M69: 0
A70: Health Services | C70: 0 | D70: 0 | I70: 0 | J70: 0 | K70: 0 | L70: 0 | M70: 0
A71: Laboratory Services | C71: 0 | D71: 0 | I71: 0 | J71: 0 | K71: 0 | L71: 0 | M71: 0
A72: Food Control | C72: 0 | D72: 0 | I72: 0 | J72: 0 | K72: 0 | L72: 0 | M72: 0
A73: Health Surveillance and Prevention of Communicable Diseases including immunizations | C73: 0 | D73: 0 | I73: 0 | J73: 0 | K73: 0 | L73: 0 | M73: 0
A74: Vector Control | C74: 0 | D74: 0 | I74: 0 | J74: 0 | K74: 0 | L74: 0 | M74: 0
A75: Chemical Safety | C75: 0 | D75: 0 | I75: 0 | J75: =SUM(E75:I75) -> 0 | K75: =IF(D75=0,C75+J75,D75+J75) -> 0 | L75: 0 | M75: 0
A76: Economic and environmental services | C76: =C77+C88+C93 -> 38412632.01 | D76: 0 | E76: 0 | F76: 0 | G76: 0 | H76: 0 | I76: 55132810.68 | J76: =SUM(E76:I76) -> 55132810.68 | K76: =IF(D76=0,C76+J76,D76+J76) -> 93545442.69 | L76: =L77+L88+L93 -> 49674300 | M76: =M77+M88+M93 -> 54956161
A77: Planning and development | C77: =SUM(C78:C87) -> 38298488.01 | D77: =SUM(D78:D87) -> 0 | E77: 0 | F77: 0 | G77: 0 | H77: 0 | I77: 4686731.525 | J77: 4686731.525 | K77: 42985219.53 | L77: =SUM(L78:L87) -> 49553387 | M77: =SUM(M78:M87) -> 54827957
A78: Billboards | J78: 0 | K78: 0 | L78: 0 | M78: 0
A79: Corporate Wide Strategic Planning (IDPs, LEDs) | J79: 0 | K79: 0 | L79: 0 | M79: 0
A80: Central City Improvement District | J80: 0 | K80: 0 | L80: 0 | M80: 0
A81: Development Facilitation | J81: 0 | K81: 0 | L81: 0 | M81: 0
A82: Economic Development/Planning | I82: 3686731.53 | J82: 3686731.53 | K82: 3686731.53 | L82: 0 | M82: 0
A83: Regional Planning and Development | J83: 0 | K83: 0 | L83: 0 | M83: 0
A84: Town Planning, Building Regulations and Enforcement, and City Engineer | C84: 38298488.01 | I84: 999999.9946 | J84: 999999.9946 | K84: 39298488 | L84: 49553387 | M84: 54827957
A85: Project Management Unit | J85: 0 | K85: 0 | L85: 0 | M85: 0
A86: Provincial Planning | J86: 0 | K86: 0 | L86: 0 | M86: 0
A87: Support to Local Municipalities | J87: 0 | K87: 0 | L87: 0 | M87: 0
A88: Road transport | C88: =SUM(C89:C92) -> 0 | D88: 0 | E88: 0 | F88: 0 | G88: 0 | H88: 0 | I88: 50446079.16 | J88: 50446079.16 | K88: 50446079.16 | L88: =SUM(L89:L92) -> 0 | M88: =SUM(M89:M92) -> 0
A89: Public Transport | I89: 50446079.16 | J89: 50446079.16 | K89: 50446079.16 | L89: 0 | M89: 0
A90: Road and Traffic Regulation | J90: 0 | K90: 0 | L90: 0 | M90: 0
A91: Roads | J91: 0 | K91: 0 | L91: 0 | M91: 0
A92: Taxi Ranks | J92: 0 | K92: 0 | L92: 0 | M92: 0
A93: Environmental protection | C93: =SUM(C94:C99) -> 114144 | D93: =SUM(D94:D99) -> 0 | E93: 0 | F93: 0 | G93: 0 | H93: 0 | I93: 0 | J93: 0 | K93: 114144 | L93: =SUM(L94:L99) -> 120913 | M93: =SUM(M94:M99) -> 128204
A94: Biodiversity and Landscape | C94: 0 | D94: 0 | J94: 0 | K94: 0 | L94: 0 | M94: 0
A95: Coastal Protection | C95: 0 | D95: 0 | J95: 0 | K95: 0 | L95: 0 | M95: 0
A96: Indigenous Forests | C96: 0 | D96: 0 | J96: 0 | K96: 0 | L96: 0 | M96: 0
A97: Nature Conservation | C97: 0 | D97: 0 | J97: 0 | K97: 0 | L97: 0 | M97: 0
A98: Pollution Control | C98: 114144 | D98: 0 | J98: 0 | K98: 114144 | L98: 120913 | M98: 128204
A99: Soil Conservation | C99: 0 | D99: 0 | J99: 0 | K99: 0 | L99: 0 | M99: 0
A100: Trading services | C100: =C101+C105+C109+C114 -> 4904764744 | D100: =D101+D105+D109+D114 -> 0 | E100: 0 | F100: 0 | G100: 0 | H100: 0 | I100: -15278571.48 | J100: -15278571.48 | K100: 4889486173 | L100: 5163000270 | M100: 5590560778
A101: Energy sources | C101: =SUM(C102:C104) -> 3038086189 | D101: =SUM(D102:D104) -> 0 | E101: 0 | F101: 0 | G101: 0 | H101: 0 | I101: 0 | J101: 0 | K101: 3038086189 | L101: =SUM(L102:L104) -> 3376007152 | M101: =SUM(M102:M104) -> 3711637911
A102: Electricity | C102: 3038086189 | J102: 0 | K102: 3038086189 | L102: 3376007152 | M102: 3711637911
A103: Street Lighting and Signal Systems | J103: 0 | K103: 0 | L103: 0 | M103: 0
A104: Nonelectric Energy | D104: 0 | J104: 0 | K104: 0 | L104: 0 | M104: 0
A105: Water management | C105: =SUM(C106:C108) -> 1476594054 | D105: =SUM(D106:D108) -> 0 | E105: 0 | F105: 0 | G105: 0 | H105: 0 | I105: -15278571.48 | J105: -15278571.48 | K105: 1461315483 | L105: =SUM(L106:L108) -> 1394746892 | M105: =SUM(M106:M108) -> 1466285403
A106: Water Treatment | J106: 0 | K106: 0 | L106: 0 | M106: 0
A107: Water Distribution | C107: 1476594054 | I107: -15278571.48 | J107: -15278571.48 | K107: 1461315483 | L107: 1394746892 | M107: 1466285403
A108: Water Storage | J108: 0 | K108: 0 | L108: 0 | M108: 0
A109: Waste water management | C109: =SUM(C110:C113) -> 213394622.9 | D109: =SUM(D110:D113) -> 0 | E109: 0 | F109: 0 | G109: 0 | H109: 0 | I109: 0 | J109: 0 | K109: 213394622.9 | L109: =SUM(L110:L113) -> 212167468 | M109: =SUM(M110:M113) -> 223830187
A110: Public Toilets | J110: 0 | K110: 0 | L110: 0 | M110: 0
A111: Sewerage | C111: 213394622.9 | J111: 0 | K111: 213394622.9 | L111: 212167468 | M111: 223830187
A112: Storm Water Management | J112: 0 | K112: 0 | L112: 0 | M112: 0
A113: Waste Water Treatment | J113: 0 | K113: 0 | L113: 0 | M113: 0
A114: Waste management | C114: =SUM(C115:C118) -> 176689878.4 | D114: =SUM(D115:D118) -> 0 | E114: 0 | F114: 0 | G114: 0 | H114: 0 | I114: 0 | J114: 0 | K114: 176689878.4 | L114: 180078758 | M114: =SUM(M115:M118) -> 188807277
A115: Recycling | J115: 0 | K115: 0 | L115: 0 | M115: 0
A116: Solid Waste Disposal (Landfill Sites) | C116: 36843731.06 | J116: 0 | K116: 36843731.06 | L116: 39331060 | M116: 39572416
A117: Solid Waste Removal | C117: 139846147.4 | J117: 0 | K117: 139846147.4 | L117: 140747698 | M117: 149234861
A118: Street Cleaning | J118: 0 | K118: 0 | L118: 0 | M118: 0
A119: Other | C119: =SUM(C120:C125) -> 64846075.39 | D119: 0 | E119: 0 | F119: 0 | G119: 0 | H119: 0 | I119: 0 | J119: 0 | K119: 64846075.39 | L119: 68659449 | M119: 72800542
A120: Abattoirs | J120: 0 | K120: 0 | L120: 0 | M120: 0
A121: Air Transport | C121: 10525223.09 | J121: 0 | K121: 10525223.09 | L121: 11149369 | M121: 11821676
A122: Forestry | C122: 8073178.138 | J122: 0 | K122: 8073178.138 | L122: 8551918 | M122: 9067598
A123: Licensing and Regulation | C123: 465741.516 | J123: 0 | K123: 465741.516 | L123: 493360 | M123: 523110
A124: Markets | C124: 45781932.64 | J124: 0 | K124: 45781932.64 | L124: 48464802 | M124: 51388158
A125: Tourism | J125: 0 | K125: 0 | L125: 0 | M125: 0
A126: ="Total "&A6 -> Total Revenue - Functional | B126: 2 | C126: =C7+C27+C76+C100+C119 -> 7119571994 | D126: 0 | E126: 0 | F126: 0 | G126: 0 | H126: 0 | I126: 113615455.1 | J126: 113615455.1 | K126: 7233187449 | L126: =L7+L27+L76+L100+L119 -> 7316607497 | M126: =M7+M27+M76+M100+M119 -> 7860174522
J127: 0 | K127: 0
A128: Expenditure - Functional | J128: 0 | K128: 0
A129: =A7 -> Municipal governance and administration | C129: =C130+C133+C147 -> 1216239065 | D129: 0 | E129: 0 | F129: 0 | G129: 0 | H129: 0 | I129: 31143060.35 | J129: 31143060.35 | K129: 1247382125 | L129: =L130+L133+L147 -> 1273330835 | M129: =M130+M133+M147 -> 1376874167
A130: Executive and council | C130: =SUM(C131:C132) -> 117003171.7 | D130: 0 | E130: 0 | F130: 0 | G130: 0 | H130: 0 | I130: 9394206.274 | J130: 9394206.274 | K130: 126397378 | L130: =SUM(L131:L132) -> 137920660 | M130: =SUM(M131:M132) -> 140775606
A131: Mayor and Council | C131: 81937773.72 | I131: 12587850.28 | J131: 12587850.28 | K131: 94525624 | L131: 87743812 | M131: 91824664
A132: Municipal Manager, Town Secretary and Chief Executive | C132: 35065398.01 | I132: -3193644.008 | J132: -3193644.008 | K132: 31871754 | L132: 50176848 | M132: 48950942
A133: Finance and administration | C133: =SUM(C134:C146) -> 1077460435 | D133: 0 | E133: 0 | F133: 0 | G133: 0 | H133: 0 | I133: 20749747.82 | J133: 20749747.82 | K133: 1098210183 | L133: =SUM(L134:L146) -> 1114030048 | M133: =SUM(M134:M146) -> 1213019870
A134: Administrative and Corporate Support | C134: 60503138.97 | I134: -5150434.97 | J134: -5150434.97 | K134: 55352704 | L134: 57669009 | M134: 60913288
A135: Asset Management | C135: 64914782.56 | I135: 2419913.443 | J135: 2419913.443 | K135: 67334696 | L135: 66459961 | M135: 92313952
A136: Finance | C136: 541319059.7 | I136: 33579018.27 | J136: 33579018.27 | K136: 574898078 | L136: 515065040 | M136: 567877943
A137: Fleet Management | J137: 0 | K137: 0 | L137: 0 | M137: 0
A138: Human Resources | C138: 120049117.5 | I138: -36901323.55 | J138: -36901323.55 | K138: 83147794 | L138: 126940507 | M138: 132805623
A139: Information Technology | C139: 32962041.95 | I139: 9852908.051 | J139: =SUM(E139:I139) -> 9852908.051 | K139: =IF(D139=0,C139+J139,D139+J139) -> 42814950 | L139: 35714945 | M139: 39264015
A140: Legal Services | C140: 16293851.43 | I140: 1490622.568 | J140: 1490622.568 | K140: 17784474 | L140: 19517161 | M140: 20744829
A141: Marketing, Customer Relations, Publicity and Media Co-ordination | C141: 14978962.98 | I141: 1977834.019 | J141: 1977834.019 | K141: 16956797 | L141: 16217399 | M141: 17026353
A142: Property Services | C142: 59734838.36 | I142: -8929129.356 | J142: -8929129.356 | K142: 50805709 | L142: 64788899 | M142: 59092224
A143: Risk Management | J143: 0 | K143: 0 | L143: 0 | M143: 0
A144: Security Services | C144: 120933820.1 | I144: 4082411.885 | J144: 4082411.885 | K144: 125016232 | L144: 151477210 | M144: 160091345
A145: Supply Chain Management | C145: 45770821.54 | I145: 18327927.46 | J145: 18327927.46 | K145: 64098749 | L145: 60179917 | M145: 62890298
A146: Valuation Service | J146: 0 | K146: 0 | L146: 0 | M146: 0
A147: Internal audit | C147: =SUM(C148:C148) -> 21775457.74 | D147: 0 | E147: 0 | F147: 0 | G147: 0 | H147: 0 | I147: 999106.2615 | J147: =SUM(E147:I147) -> 999106.2615 | K147: =IF(D147=0,C147+J147,D147+J147) -> 22774564 | L147: 21380127 | M147: 23078691
A148: Governance Function | C148: 21775457.74 | I148: 999106.2615 | J148: 999106.2615 | K148: 22774564 | L148: 21380127 | M148: 23078691
A149: Community and public safety | C149: =C150+C172+C178+C187+C190 -> 549083301.6 | D149: 0 | E149: 0 | F149: 0 | G149: 0 | H149: 0 | I149: 52666709.7 | J149: 52666709.7 | K149: 601750011.3 | L149: =L150+L172+L178+L187+L190 -> 551386622 | M149: =M150+M172+M178+M187+M190 -> 568607250
A150: Community and social services | C150: =SUM(C151:C171) -> 138323594.9 | D150: 0 | E150: 0 | F150: 0 | G150: 0 | H150: 0 | I150: -16550232.86 | J150: -16550232.86 | K150: 121773362 | L150: =SUM(L151:L171) -> 137409301 | M150: =SUM(M151:M171) -> 136658389
A151: Aged Care | C151: 16610.15 | I151: -10001.15 | J151: -10001.15 | K151: 6609 | L151: 17541 | M151: 21110
A152: Agricultural | J152: 0 | K152: 0 | L152: 0 | M152: 0
A153: Animal Care and Diseases | C153: 1482653.13 | I153: -0.1299999999 | J153: -0.1299999999 | K153: 1482653 | L153: 1384639 | M153: 1482510
A154: Cemeteries, Funeral Parlours and Crematoriums | C154: 28695970.24 | I154: 53362.759 | J154: 53362.759 | K154: 28749333 | L154: 30183033 | M154: 31711333
A155: Child Care Facilities | J155: 0 | K155: 0 | L155: 0 | M155: 0
A156: Community Halls and Facilities | C156: 15871751.88 | I156: -2813151.877 | J156: -2813151.877 | K156: 13058600 | L156: 15210865 | M156: 11111651
A157: Consumer Protection | J157: 0 | K157: 0 | L157: 0 | M157: 0
A158: Cultural Matters | J158: 0 | K158: 0 | L158: 0 | M158: 0
A159: Disaster Management | J159: 0 | K159: 0 | L159: 0 | M159: 0
A160: Education | J160: 0 | K160: 0 | L160: 0 | M160: 0
A161: Indigenous and Customary Law | J161: 0 | K161: 0 | L161: 0 | M161: 0
A162: Industrial Promotion | J162: 0 | K162: 0 | L162: 0 | M162: 0
A163: Language Policy | J163: 0 | K163: 0 | L163: 0 | M163: 0
A164: Libraries and Archives | C164: 76962358.47 | I164: -10041044.47 | J164: -10041044.47 | K164: 66921314 | L164: 75073574 | M164: 76015486
A165: Literacy Programmes | J165: 0 | K165: 0 | L165: 0 | M165: 0
A166: Media Services | J166: 0 | K166: 0 | L166: 0 | M166: 0
A167: Museums and Art Galleries | C167: 6232282.659 | I167: 149188.3409 | J167: 149188.3409 | K167: 6381471 | L167: 6438821 | M167: 6790187
A168: Population Development | C168: 9061968.331 | I168: -3888586.331 | J168: -3888586.331 | K168: 5173382 | L168: 9100828 | M168: 9526112
A169: Provincial Cultural Matters | J169: 0 | K169: 0 | L169: 0 | M169: 0
A170: Theatres | J170: 0 | K170: 0 | L170: 0 | M170: 0
A171: Zoo's | J171: 0 | K171: 0 | L171: 0 | M171: 0
A172: Sport and recreation | C172: =SUM(C173:C177) -> 133116283.9 | D172: 0 | E172: 0 | F172: 0 | G172: 0 | H172: 0 | I172: 13762923.11 | J172: 13762923.11 | K172: 146879207 | L172: =SUM(L173:L177) -> 143571821 | M172: =SUM(M173:M177) -> 150413892
A173: Beaches and Jetties | J173: 0 | K173: 0 | L173: 0 | M173: 0
A174: Casinos, Racing, Gambling, Wagering | J174: 0 | K174: 0 | L174: 0 | M174: 0
A175: Community Parks (including Nurseries) | C175: 57138463.6 | I175: 11327894.4 | J175: 11327894.4 | K175: 68466358 | L175: 59080216 | M175: 61156103
A176: Recreational Facilities | C176: 75977820.29 | I176: 999024.7105 | J176: 999024.7105 | K176: 76976845 | L176: 84491605 | M176: 89257789
A177: Sports Grounds and Stadiums | I177: 1436004 | J177: 1436004 | K177: 1436004 | L177: 0 | M177: 0
A178: Public safety | C178: =SUM(C179:C186) -> 211547136.6 | D178: 0 | E178: 0 | F178: 0 | G178: 0 | H178: 0 | I178: 20379273.44 | J178: 20379273.44 | K178: 231926410 | L178: =SUM(L179:L186) -> 217505911 | M178: =SUM(M179:M186) -> 227015672
A179: Civil Defence | C179: 9112937.443 | I179: 9637402.557 | J179: 9637402.557 | K179: 18750340 | L179: 20843643 | M179: 21646071
A180: Cleansing | J180: 0 | K180: 0 | L180: 0 | M180: 0
A181: Control of Public Nuisances | J181: 0 | K181: 0 | L181: 0 | M181: 0
A182: Fencing and Fences | J182: 0 | K182: 0 | L182: 0 | M182: 0
A183: Fire Fighting and Protection | C183: 97784309.23 | I183: 30833503.77 | J183: 30833503.77 | K183: 128617813 | L183: 108178011 | M183: 113327838
A184: Licensing and Control of Animals | J184: 0 | K184: 0 | L184: 0 | M184: 0
A185: Police Forces, Traffic and Street Parking Control | C185: 104649889.9 | I185: -20091632.89 | J185: -20091632.89 | K185: 84558257 | L185: 88484257 | M185: 92041763
A186: Pounds | J186: 0 | K186: 0 | L186: 0 | M186: 0
A187: Housing | C187: =SUM(C188:C189) -> 50925986.88 | D187: =SUM(D188:D189) -> 0 | E187: 0 | F187: 0 | G187: 0 | H187: 0 | I187: 38190025.42 | J187: 38190025.42 | K187: 89116012.3 | L187: 37601896 | M187: 38376805
A188: Housing | C188: 50925986.88 | I188: 38190025.42 | J188: 38190025.42 | K188: 89116012.3 | L188: 37601896 | M188: 38376805
A189: Informal Settlements | J189: 0 | K189: 0 | L189: 0 | M189: 0
A190: Health | C190: =SUM(C191:C197) -> 15170299.41 | D190: 0 | E190: 0 | F190: 0 | G190: 0 | H190: 0 | I190: -3115279.414 | J190: -3115279.414 | K190: 12055020 | L190: =SUM(L191:L197) -> 15297693 | M190: =SUM(M191:M197) -> 16142492
A191: Ambulance | J191: 0 | K191: 0 | L191: 0 | M191: 0
A192: Health Services | C192: 15170299.41 | I192: -3115279.414 | J192: -3115279.414 | K192: 12055020 | L192: 15297693 | M192: 16142492
A193: =A71 -> Laboratory Services | J193: 0 | K193: 0 | L193: 0 | M193: 0
A194: Food Control | J194: 0 | K194: 0 | L194: 0 | M194: 0
A195: Health Surveillance and Prevention of Communicable Diseases including immunizations | J195: 0 | K195: 0 | L195: 0 | M195: 0
A196: Vector Control | J196: 0 | K196: 0 | L196: 0 | M196: 0
A197: Chemical Safety | J197: 0 | K197: 0 | L197: 0 | M197: 0
A198: Economic and environmental services | C198: =C199+C210+C215 -> 421022081.1 | D198: 0 | E198: 0 | F198: 0 | G198: 0 | H198: 0 | I198: -17445648.64 | J198: -17445648.64 | K198: 403576432.4 | L198: =L199+L210+L215 -> 413233441 | M198: =M199+M210+M215 -> 383520687
A199: Planning and development | C199: =SUM(C200:C209) -> 73618014.47 | D199: 0 | E199: 0 | F199: 0 | G199: 0 | H199: 0 | I199: 2985357.938 | J199: 2985357.938 | K199: 76603372.41 | L199: =SUM(L200:L209) -> 76465301 | M199: =SUM(M200:M209) -> 80443511
A200: Billboards | J200: 0 | K200: 0 | L200: 0 | M200: 0
... 54 more rows

Sheet B3-FinPerf V
A1: =muni&" - "&_ADJ2&" - "&Date -> KZN225 Msunduzi - Table B3 Adjustments Budget Financial Performance (revenue and expenditure by municipal vote) -
A2: =Vdesc -> Vote Description | B2: =head27 -> Ref | C2: =Head2 -> Budget Year 2021/22 | L2: =Head10 -> Budget Year +1 2022/23 | M2: =Head11 -> Budget Year +2 2023/24
C3: =Head6 -> Original Budget | D3: =Head54 -> Prior Adjusted | E3: =Head51 -> Accum. Funds | F3: =Head52 -> Multi-year capital | G3: =Head53 -> Unfore. Unavoid. | H3: =Head55 -> Nat. or Prov. Govt | I3: =Head50 -> Other Adjusts. | J3: =Head56 -> Total Adjusts. | K3: =Head7 -> Adjusted Budget | L3: =Head7 -> Adjusted Budget | M3: =Head7 -> Adjusted Budget
A4: [Insert departmental structure etc] | D4: 3 | E4: 4 | F4: 5 | G4: 6 | H4: 7 | I4: 8 | J4: 9 | K4: 10
A5: R thousands | C5: A | D5: A1 | E5: B | F5: C | G5: D | H5: E | I5: F | J5: G | K5: H
A6: Revenue by Vote | B6: 1
A7: =B3B!A7 -> Vote 1 - City Manager | C7: =B3B!C7 -> 62714.86912 | D7: =B3B!D7 -> 0 | E7: =B3B!E7 -> 0 | F7: =B3B!F7 -> 0 | G7: =B3B!G7 -> 0 | H7: =B3B!H7 -> 0 | I7: =B3B!I7 -> 0 | J7: =SUM(E7:I7) -> 0 | K7: =IF(D7=0,C7+J7,D7+J7) -> 62714.86912 | L7: =B3B!L7 -> 98434 | M7: =B3B!M7 -> 103440
A8: =B3B!A18 -> Vote 2 - City Finance | C8: =B3B!C18 -> 1955891051 | D8: =B3B!D18 -> 0 | E8: =B3B!E18 -> 0 | F8: =B3B!F18 -> 0 | G8: =B3B!G18 -> 0 | H8: =B3B!H18 -> 0 | I8: =B3B!I18 -> 0 | J8: 0 | K8: 1955891051 | L8: =B3B!L18 -> 1985824237 | M8: =B3B!M18 -> 2092131438
A9: =B3B!A29 -> Vote 3 - Community Services and Social Equity | C9: =B3B!C29 -> 210662798.7 | D9: =B3B!D29 -> 0 | E9: =B3B!E29 -> 0 | F9: =B3B!F29 -> 0 | G9: =B3B!G29 -> 0 | H9: =B3B!H29 -> 0 | I9: =B3B!I29 -> 4867999.062 | J9: 4867999.062 | K9: 215530797.8 | L9: =B3B!L29 -> 0 | M9: =B3B!M29 -> 0
A10: =B3B!A40 -> Vote 4 - Corporate Services | C10: =B3B!C40 -> 6094104.853 | D10: =B3B!D40 -> 0 | E10: =B3B!E40 -> 0 | F10: =B3B!F40 -> 0 | G10: =B3B!G40 -> 0 | H10: =B3B!H40 -> 0 | I10: =B3B!I40 -> 0 | J10: 0 | K10: 6094104.853 | L10: =B3B!L40 -> 11590360 | M10: =B3B!M40 -> 10042079
A11: =B3B!A51 -> Vote 5 - Infrastructure Services | C11: =B3B!C51 -> 4738511544 | D11: =B3B!D51 -> 0 | E11: =B3B!E51 -> 0 | F11: =B3B!F51 -> 0 | G11: =B3B!G51 -> 0 | H11: =B3B!H51 -> 0 | I11: =B3B!I51 -> 31664079.66 | J11: 31664079.66 | K11: 4770175624 | L11: =B3B!L51 -> 309246 | M11: =B3B!M51 -> 327895
A12: =B3B!A62 -> Vote 6 - Sustainable Development and City Enterprises | C12: =B3B!C62 -> 208349782 | D12: =B3B!D62 -> 0 | E12: =B3B!E62 -> 0 | F12: =B3B!F62 -> 0 | G12: =B3B!G62 -> 0 | H12: =B3B!H62 -> 0 | I12: =B3B!I62 -> 77083376.8 | J12: 77083376.8 | K12: 285433158.8 | L12: =B3B!L62 -> 0 | M12: =B3B!M62 -> 0
A13: =B3B!A73 -> Vote 7 - [NAME OF VOTE 7] | C13: =B3B!C73 -> 0 | D13: =B3B!D73 -> 0 | E13: =B3B!E73 -> 0 | F13: =B3B!F73 -> 0 | G13: =B3B!G73 -> 0 | H13: =B3B!H73 -> 0 | I13: =B3B!I73 -> 0 | J13: 0 | K13: 0 | L13: =B3B!L73 -> 0 | M13: =B3B!M73 -> 0
A14: =B3B!A84 -> Vote 8 - [NAME OF VOTE 8] | C14: =B3B!C84 -> 0 | D14: =B3B!D84 -> 0 | E14: =B3B!E84 -> 0 | F14: =B3B!F84 -> 0 | G14: =B3B!G84 -> 0 | H14: =B3B!H84 -> 0 | I14: =B3B!I84 -> 0 | J14: 0 | K14: 0 | L14: =B3B!L84 -> 0 | M14: =B3B!M84 -> 0
A15: =B3B!A95 -> Vote 9 - [NAME OF VOTE 9] | C15: =B3B!C95 -> 0 | D15: =B3B!D95 -> 0 | E15: =B3B!E95 -> 0 | F15: =B3B!F95 -> 0 | G15: =B3B!G95 -> 0 | H15: =B3B!H95 -> 0 | I15: =B3B!I95 -> 0 | J15: 0 | K15: 0 | L15: =B3B!L95 -> 0 | M15: =B3B!M95 -> 0
A16: =B3B!A106 -> Vote 10 - [NAME OF VOTE 10] | C16: =B3B!C106 -> 0 | D16: =B3B!D106 -> 0 | E16: =B3B!E106 -> 0 | F16: =B3B!F106 -> 0 | G16: =B3B!G106 -> 0 | H16: =B3B!H106 -> 0 | I16: =B3B!I106 -> 0 | J16: 0 | K16: 0 | L16: =B3B!L106 -> 0 | M16: =B3B!M106 -> 0
A17: =B3B!A117 -> Vote 11 - [NAME OF VOTE 11] | C17: =B3B!C117 -> 0 | D17: =B3B!D117 -> 0 | E17: =B3B!E117 -> 0 | F17: =B3B!F117 -> 0 | G17: =B3B!G117 -> 0 | H17: =B3B!H117 -> 0 | I17: =B3B!I117 -> 0 | J17: 0 | K17: 0 | L17: =B3B!L117 -> 0 | M17: =B3B!M117 -> 0
A18: =B3B!A128 -> Vote 12 - [NAME OF VOTE 12] | C18: =B3B!C128 -> 0 | D18: =B3B!D128 -> 0 | E18: =B3B!E128 -> 0 | F18: =B3B!F128 -> 0 | G18: =B3B!G128 -> 0 | H18: =B3B!H128 -> 0 | I18: =B3B!I128 -> 0 | J18: 0 | K18: 0 | L18: =B3B!L128 -> 0 | M18: =B3B!M128 -> 0
A19: =B3B!A139 -> Vote 13 - [NAME OF VOTE 13] | C19: =B3B!C139 -> 0 | D19: =B3B!D139 -> 0 | E19: =B3B!E139 -> 0 | F19: =B3B!F139 -> 0 | G19: =B3B!G139 -> 0 | H19: =B3B!H139 -> 0 | I19: =B3B!I139 -> 0 | J19: 0 | K19: 0 | L19: =B3B!L139 -> 0 | M19: =B3B!M139 -> 0
A20: =B3B!A150 -> Vote 14 - [NAME OF VOTE 14] | C20: =B3B!C150 -> 0 | D20: =B3B!D150 -> 0 | E20: =B3B!E150 -> 0 | F20: =B3B!F150 -> 0 | G20: =B3B!G150 -> 0 | H20: =B3B!H150 -> 0 | I20: =B3B!I150 -> 0 | J20: 0 | K20: 0 | L20: =B3B!L150 -> 0 | M20: =B3B!M150 -> 0
A21: =B3B!A161 -> Vote 15 - [NAME OF VOTE 15] | C21: =B3B!C161 -> 0 | D21: =B3B!D161 -> 0 | E21: =B3B!E161 -> 0 | F21: =B3B!F161 -> 0 | G21: =B3B!G161 -> 0 | H21: =B3B!H161 -> 0 | I21: =B3B!I161 -> 0 | J21: 0 | K21: 0 | L21: =B3B!L161 -> 0 | M21: =B3B!M161 -> 0
A22: Total Revenue by Vote | B22: 2 | C22: =SUM(C7:C21) -> 7119571995 | D22: =SUM(D7:D21) -> 0 | E22: 0 | F22: 0 | G22: 0 | H22: 0 | I22: 113615455.5 | J22: =SUM(J7:J21) -> 113615455.5 | K22: 7233187451 | L22: =SUM(L7:L21) -> 1997822277 | M22: =SUM(M7:M21) -> 2102604852
A24: Expenditure by Vote | B24: 1
A25: =B3B!A175 -> Vote 1 - City Manager | C25: =B3B!C175 -> 149906309.9 | D25: =B3B!D175 -> 0 | E25: =B3B!E175 -> 0 | F25: =B3B!F175 -> 0 | G25: =B3B!G175 -> 0 | H25: =B3B!H175 -> 0 | I25: =B3B!I175 -> 16638056.14 | J25: =SUM(E25:I25) -> 16638056.14 | K25: =IF(D25=0,C25+J25,D25+J25) -> 166544366 | L25: =B3B!L175 -> 137920660 | M25: =B3B!M175 -> 140775606
A26: =B3B!A186 -> Vote 2 - City Finance | C26: =B3B!C186 -> 646309781.6 | D26: =B3B!D186 -> 0 | E26: =B3B!E186 -> 0 | F26: =B3B!F186 -> 0 | G26: =B3B!G186 -> 0 | H26: =B3B!H186 -> 0 | I26: =B3B!I186 -> 54963828.41 | J26: 54963828.41 | K26: 701273610 | L26: =B3B!L186 -> 766134517 | M26: =B3B!M186 -> 853910806
A27: =B3B!A197 -> Vote 3 - Community Services and Social Equity | C27: =B3B!C197 -> 785013601.5 | D27: =B3B!D197 -> 0 | E27: =B3B!E197 -> 0 | F27: =B3B!F197 -> 0 | G27: =B3B!G197 -> 0 | H27: =B3B!H197 -> 0 | I27: =B3B!I197 -> 14080189.52 | J27: 14080189.52 | K27: 799093791 | L27: =B3B!L197 -> 190459375 | M27: =B3B!M197 -> 201678899
A28: =B3B!A208 -> Vote 4 - Corporate Services | C28: =B3B!C208 -> 195537113.7 | D28: =B3B!D208 -> 0 | E28: =B3B!E208 -> 0 | F28: =B3B!F208 -> 0 | G28: =B3B!G208 -> 0 | H28: =B3B!H208 -> 0 | I28: =B3B!I208 -> -28404918.69 | J28: -28404918.69 | K28: 167132195 | L28: =B3B!L208 -> 105274148 | M28: =B3B!M208 -> 107747929
A29: =B3B!A219 -> Vote 5 - Infrastructure Services | C29: =B3B!C219 -> 4437107376 | D29: =B3B!D219 -> 0 | E29: =B3B!E219 -> 0 | F29: =B3B!F219 -> 0 | G29: =B3B!G219 -> 0 | H29: =B3B!H219 -> 0 | I29: =B3B!I219 -> 27988186.75 | J29: 27988186.75 | K29: 4465095563 | L29: =B3B!L219 -> 143571821 | M29: =B3B!M219 -> 150413892
A30: =B3B!A230 -> Vote 6 - Sustainable Development and City Enterprises | C30: =B3B!C230 -> 224901217.9 | D30: =B3B!D230 -> 0 | E30: =B3B!E230 -> 0 | F30: =B3B!F230 -> 0 | G30: =B3B!G230 -> 0 | H30: =B3B!H230 -> 0 | I30: =B3B!I230 -> 36843473.78 | J30: 36843473.78 | K30: 261744691.7 | L30: =B3B!L230 -> 129021654 | M30: =B3B!M230 -> 134973909
A31: =B3B!A241 -> Vote 7 - [NAME OF VOTE 7] | C31: =B3B!C241 -> 0 | D31: =B3B!D241 -> 0 | E31: =B3B!E241 -> 0 | F31: =B3B!F241 -> 0 | G31: =B3B!G241 -> 0 | H31: =B3B!H241 -> 0 | I31: =B3B!I241 -> 0 | J31: 0 | K31: 0 | L31: =B3B!L241 -> 0 | M31: =B3B!M241 -> 0
A32: =B3B!A252 -> Vote 8 - [NAME OF VOTE 8] | C32: =B3B!C252 -> 0 | D32: =B3B!D252 -> 0 | E32: =B3B!E252 -> 0 | F32: =B3B!F252 -> 0 | G32: =B3B!G252 -> 0 | H32: =B3B!H252 -> 0 | I32: =B3B!I252 -> 0 | J32: 0 | K32: 0 | L32: =B3B!L252 -> 0 | M32: =B3B!M252 -> 0
A33: =B3B!A263 -> Vote 9 - [NAME OF VOTE 9] | C33: =B3B!C263 -> 0 | D33: =B3B!D263 -> 0 | E33: =B3B!E263 -> 0 | F33: =B3B!F263 -> 0 | G33: =B3B!G263 -> 0 | H33: =B3B!H263 -> 0 | I33: =B3B!I263 -> 0 | J33: 0 | K33: 0 | L33: =B3B!L263 -> 0 | M33: =B3B!M263 -> 0
A34: =B3B!A274 -> Vote 10 - [NAME OF VOTE 10] | C34: =B3B!C274 -> 0 | D34: =B3B!D274 -> 0 | E34: =B3B!E274 -> 0 | F34: =B3B!F274 -> 0 | G34: =B3B!G274 -> 0 | H34: =B3B!H274 -> 0 | I34: =B3B!I274 -> 0 | J34: 0 | K34: 0 | L34: =B3B!L274 -> 0 | M34: =B3B!M274 -> 0
A35: =B3B!A285 -> Vote 11 - [NAME OF VOTE 11] | C35: =B3B!C285 -> 0 | D35: =B3B!D285 -> 0 | E35: =B3B!E285 -> 0 | F35: =B3B!F285 -> 0 | G35: =B3B!G285 -> 0 | H35: =B3B!H285 -> 0 | I35: =B3B!I285 -> 0 | J35: 0 | K35: 0 | L35: =B3B!L285 -> 0 | M35: =B3B!M285 -> 0
A36: =B3B!A296 -> Vote 12 - [NAME OF VOTE 12] | C36: =B3B!C296 -> 0 | D36: =B3B!D296 -> 0 | E36: =B3B!E296 -> 0 | F36: =B3B!F296 -> 0 | G36: =B3B!G296 -> 0 | H36: =B3B!H296 -> 0 | I36: =B3B!I296 -> 0 | J36: 0 | K36: 0 | L36: =B3B!L296 -> 0 | M36: =B3B!M296 -> 0
A37: =B3B!A307 -> Vote 13 - [NAME OF VOTE 13] | C37: =B3B!C307 -> 0 | D37: =B3B!D307 -> 0 | E37: =B3B!E307 -> 0 | F37: =B3B!F307 -> 0 | G37: =B3B!G307 -> 0 | H37: =B3B!H307 -> 0 | I37: =B3B!I307 -> 0 | J37: 0 | K37: 0 | L37: =B3B!L307 -> 0 | M37: =B3B!M307 -> 0
A38: =B3B!A318 -> Vote 14 - [NAME OF VOTE 14] | C38: =B3B!C318 -> 0 | D38: =B3B!D318 -> 0 | E38: =B3B!E318 -> 0 | F38: =B3B!F318 -> 0 | G38: =B3B!G318 -> 0 | H38: =B3B!H318 -> 0 | I38: =B3B!I318 -> 0 | J38: 0 | K38: 0 | L38: =B3B!L318 -> 0 | M38: =B3B!M318 -> 0
A39: =B3B!A329 -> Vote 15 - [NAME OF VOTE 15] | C39: =B3B!C329 -> 0 | D39: =B3B!D329 -> 0 | E39: =B3B!E329 -> 0 | F39: =B3B!F329 -> 0 | G39: =B3B!G329 -> 0 | H39: =B3B!H329 -> 0 | I39: =B3B!I329 -> 0 | J39: 0 | K39: 0 | L39: =B3B!L329 -> 0 | M39: =B3B!M329 -> 0
A40: Total Expenditure by Vote | B40: 2 | C40: =SUM(C25:C39) -> 6438775401 | D40: =SUM(D25:D39) -> 0 | E40: 0 | F40: 0 | G40: 0 | H40: 0 | I40: 122108815.9 | J40: =SUM(J25:J39) -> 122108815.9 | K40: =SUM(K25:K39) -> 6560884217 | L40: =SUM(L25:L39) -> 1472382175 | M40: =SUM(M25:M39) -> 1589501041
A41: =result -> Surplus/ (Deficit) for the year | B41: 2 | C41: =C22-C40 -> 680796594.7 | D41: =D22-D40 -> 0 | E41: 0 | F41: 0 | G41: 0 | H41: 0 | I41: -8493360.404 | J41: -8493360.404 | K41: 672303234.3 | L41: 525440102 | M41: 513103811
A42: =head27a -> References
A43: 1. Insert 'Vote'; e.g. Department, if different to standard classification structure
A44: 2. Must reconcile to Budgeted Financial Performance (revenue and expenditure)
A45: 3. Only complete if a previous adjusted budget has been approved in the same financial year. Reflect most recent adjusted budget.
A46: 4. Additional cash-backed accumulated funds/unspent funds (MFMA section 18(1)(b) and section 28(2)(e)) identified after the Original Budget approved and after annual financial statements audited (note: only where underspending could not reasonably have been foreseen)
A47: 5. Increases of funds approved under MFMA section 31
A48: 6. Adjustments approved in accordance with MFMA section 29
A49: 7. Adjustments to transfers from National or Provincial Government
A50: 8. Adjusts. = 'Other' Adjustments proposed to be approved; including revenue under-collection (MFMA section 28(2)(a)); additional revenue appropriation on existing programmes (section 28(2))(b); projected savings (section 28(2)(d)); error correction (section 28(2)(f))
A51: 9. G = B + C + D + E + F
A52: 10. Adjusted Budget H = (A or A1/2 etc) + G
A54: check revenue | C54: =C22-'B4-FinPerf RE'!C62 -> 320361382.3 | D54: =D22-'B4-FinPerf RE'!D62 -> 0 | E54: =E22-'B4-FinPerf RE'!E62 -> 0 | F54: =F22-'B4-FinPerf RE'!F62 -> 0 | G54: =G22-'B4-FinPerf RE'!G62 -> 0 | H54: =H22-'B4-FinPerf RE'!H62 -> 0 | I54: =I22-'B4-FinPerf RE'!I62 -> 157.2727525 | J54: =J22-'B4-FinPerf RE'!J62 -> 157.2727525 | K54: =K22-'B4-FinPerf RE'!K62 -> 320361382.4 | L54: =L22-'B4-FinPerf RE'!L62 -> -5318785220 | M54: =M22-'B4-FinPerf RE'!M62 -> -5757569670
A55: check expenditure | C55: =C40-'B4-FinPerf RE'!C37 -> 320361408.6 | D55: =D40-'B4-FinPerf RE'!D37 -> 0 | E55: =E40-'B4-FinPerf RE'!E37 -> 0 | F55: =F40-'B4-FinPerf RE'!F37 -> 0 | G55: =G40-'B4-FinPerf RE'!G37 -> 0 | H55: =H40-'B4-FinPerf RE'!H37 -> 0 | I55: =I40-'B4-FinPerf RE'!I37 -> 123745.5685 | J55: =J40-'B4-FinPerf RE'!J37 -> 123745.5685 | K55: =K40-'B4-FinPerf RE'!K37 -> 320485154.2 | L55: =L40-'B4-FinPerf RE'!L37 -> -5062684381 | M55: =M40-'B4-FinPerf RE'!M37 -> -5234084736
C57: =C55/2 -> 160180704.3 | D57: 0 | E57: 0 | F57: 0 | G57: 0 | H57: 0 | I57: 61872.78427 | J57: 61872.78427 | K57: 160242577.1 | L57: =L55/2 -> -2531342190 | M57: =M55/2 -> -2617042368
C58: =C55*2 -> 640722817.2 | D58: 0 | E58: 0 | F58: 0 | G58: 0 | H58: 0 | I58: 247491.1371 | J58: 247491.1371 | K58: 640970308.3 | L58: =L55*2 -> -1.012536876e+10 | M58: =M55*2 -> -10468169472

Sheet B3B
A1: =muni&" - "&_ADJ2&" - B"&" - "&Date -> KZN225 Msunduzi - Table B3 Adjustments Budget Financial Performance (revenue and expenditure by municipal vote) - B -
A2: =Vdesc -> Vote Description | B2: =head27 -> Ref | C2: =Head2 -> Budget Year 2021/22 | L2: =Head10 -> Budget Year +1 2022/23 | M2: =Head11 -> Budget Year +2 2023/24
C3: =Head6 -> Original Budget | D3: =Head54 -> Prior Adjusted | E3: =Head51 -> Accum. Funds | F3: =Head52 -> Multi-year capital | G3: =Head53 -> Unfore. Unavoid. | H3: =Head55 -> Nat. or Prov. Govt | I3: =Head50 -> Other Adjusts. | J3: =Head56 -> Total Adjusts. | K3: =Head7 -> Adjusted Budget | L3: =Head7 -> Adjusted Budget | M3: =Head7 -> Adjusted Budget
A4: [Insert departmental structure etc] | D4: 3 | E4: 4 | F4: 5 | G4: 6 | H4: 7 | I4: 8 | J4: 9 | K4: 10
A5: R thousands | C5: A | D5: A1 | E5: B | F5: C | G5: D | H5: E | I5: F | J5: G | K5: H
A6: Revenue by Vote | B6: 1
A7: ='Org structure'!A2 -> Vote 1 - City Manager | C7: =SUM(C8:C17) -> 62714.86912 | D7: =SUM(D8:D17) -> 0 | E7: 0 | F7: 0 | G7: 0 | H7: 0 | I7: 0 | J7: =SUM(E7:I7) -> 0 | K7: =IF(D7=0,C7+J7,D7+J7) -> 62714.86912 | L7: =SUM(L8:L17) -> 98434 | M7: =SUM(M8:M17) -> 103440
A8: ='Org structure'!E3 -> 1,1 - Internal Audit and Compliance | J8: =SUM(E8:I8) -> 0 | K8: =IF(D8=0,C8+J8,D8+J8) -> 0 | L8: 0 | M8: 0
A9: ='Org structure'!E4 -> 1,2 - Office of the City Manager | C9: 62714.86912 | J9: =SUM(E9:I9) -> 0 | K9: =IF(D9=0,C9+J9,D9+J9) -> 62714.86912 | L9: 98434 | M9: 103440
A10: ='Org structure'!E5 -> 1,3 - Political Support | J10: 0 | K10: 0 | L10: 0 | M10: 0
A11: ='Org structure'!E6 -> 1,4 - Strategic Planning | J11: 0 | K11: 0 | L11: 0 | M11: 0
A12: ='Org structure'!E7 -> 1,5 - [Name of sub-vote] | C12: 0 | D12: 0 | I12: 0 | J12: 0 | K12: 0 | L12: 0 | M12: 0
A13: ='Org structure'!E8 -> 1,6 - [Name of sub-vote] | C13: 0 | D13: 0 | I13: 0 | J13: 0 | K13: 0 | L13: 0 | M13: 0
A14: ='Org structure'!E9 -> 1,7 - [Name of sub-vote] | C14: 0 | D14: 0 | I14: 0 | J14: 0 | K14: 0 | L14: 0 | M14: 0
A15: ='Org structure'!E10 -> 1,8 - [Name of sub-vote] | C15: 0 | D15: 0 | I15: 0 | J15: 0 | K15: 0 | L15: 0 | M15: 0
A16: ='Org structure'!E11 -> 1,9 - [Name of sub-vote] | C16: 0 | D16: 0 | I16: 0 | J16: 0 | K16: 0 | L16: 0 | M16: 0
A17: ='Org structure'!E12 -> 1.10 - [Name of sub-vote] | C17: 0 | D17: 0 | I17: 0 | J17: 0 | K17: 0 | L17: 0 | M17: 0
A18: ='Org structure'!A3 -> Vote 2 - City Finance | C18: =SUM(C19:C28) -> 1955891051 | D18: =SUM(D19:D28) -> 0 | E18: 0 | F18: 0 | G18: 0 | H18: 0 | I18: 0 | J18: =SUM(E18:I18) -> 0 | K18: =IF(D18=0,C18+J18,D18+J18) -> 1955891051 | L18: =SUM(L19:L28) -> 1985824237 | M18: =SUM(M19:M28) -> 2092131438
A19: ='Org structure'!E14 -> 2,1 - Asset Management | C19: 16379253.87 | J19: 0 | K19: 16379253.87 | L19: 0 | M19: 0
A20: ='Org structure'!E15 -> 2,2 - Budget and Treasury Management | C20: 384922702.2 | J20: 0 | K20: 384922702.2 | L20: 12408322 | M20: 13156545
A21: ='Org structure'!E16 -> 2,3 - Expenditure Management | C21: 353276.725 | J21: 0 | K21: 353276.725 | L21: 1960437957 | M21: 2063825358
A22: ='Org structure'!E17 -> 2,4 - Revenue Management | C22: 1553940576 | J22: 0 | K22: 1553940576 | L22: 0 | M22: 0
A23: ='Org structure'!E18 -> 2,5 - Supply Chain Management | C23: 295242.5403 | J23: 0 | K23: 295242.5403 | L23: 12977958 | M23: 15149535
A24: ='Org structure'!E19 -> 2,6 - [Name of sub-vote] | J24: 0 | K24: 0
A25: ='Org structure'!E20 -> 2,7 - [Name of sub-vote] | J25: 0 | K25: 0
A26: ='Org structure'!E21 -> 2,8 - [Name of sub-vote] | J26: 0 | K26: 0
A27: ='Org structure'!E22 -> 2,9 - [Name of sub-vote] | J27: 0 | K27: 0
A28: ='Org structure'!E23 -> 2.10 - [Name of sub-vote] | C28: 0 | D28: 0 | I28: 0 | J28: 0 | K28: 0 | L28: 0 | M28: 0
A29: ='Org structure'!A4 -> Vote 3 - Community Services and Social Equity | C29: =SUM(C30:C39) -> 210662798.7 | D29: 0 | E29: 0 | F29: 0 | G29: 0 | H29: 0 | I29: 4867999.062 | J29: 4867999.062 | K29: 215530797.8 | L29: =SUM(L30:L39) -> 0 | M29: =SUM(M30:M39) -> 0
A30: ='Org structure'!E25 -> 3,1 - Area Based Management | C30: 1070442.527 | J30: 0 | K30: 1070442.527 | L30: 0 | M30: 0
A31: ='Org structure'!E26 -> 3,2 - Public Safety, Emergency Services and Enforcement | C31: 3970362.811 | J31: 0 | K31: 3970362.811 | L31: 0 | M31: 0
A32: ='Org structure'!E27 -> 3,3 - Recreation and Facilities | C32: 28932114.94 | I32: 4867999.062 | J32: 4867999.062 | K32: 33800114 | L32: 0 | M32: 0
A33: ='Org structure'!E28 -> 3,4 - Waste Management | C33: 176689878.4 | J33: 0 | K33: 176689878.4 | L33: 0 | M33: 0
A34: ='Org structure'!E29 -> 3,5 - [Name of sub-vote] | C34: 0 | D34: 0 | I34: 0 | J34: 0 | K34: 0 | L34: 0 | M34: 0
A35: ='Org structure'!E30 -> 3,6 - [Name of sub-vote] | C35: 0 | D35: 0 | I35: 0 | J35: 0 | K35: 0 | L35: 0 | M35: 0
A36: ='Org structure'!E31 -> 3,7 - [Name of sub-vote] | C36: 0 | D36: 0 | I36: 0 | J36: 0 | K36: 0 | L36: 0 | M36: 0
A37: ='Org structure'!E32 -> 3,8 - [Name of sub-vote] | C37: 0 | D37: 0 | I37: 0 | J37: 0 | K37: 0 | L37: 0 | M37: 0
A38: ='Org structure'!E33 -> 3,9 - [Name of sub-vote] | C38: 0 | D38: 0 | I38: 0 | J38: 0 | K38: 0 | L38: 0 | M38: 0
A39: ='Org structure'!E34 -> 3.10 - [Name of sub-vote] | C39: 0 | D39: 0 | I39: 0 | J39: 0 | K39: 0 | L39: 0 | M39: 0
A40: ='Org structure'!A5 -> Vote 4 - Corporate Services | C40: =SUM(C41:C50) -> 6094104.853 | D40: 0 | E40: 0 | F40: 0 | G40: 0 | H40: 0 | I40: 0 | J40: 0 | K40: 6094104.853 | L40: =SUM(L41:L50) -> 11590360 | M40: =SUM(M41:M50) -> 10042079
A41: ='Org structure'!E36 -> 4,1 - Human Resources Management | C41: 2305119.778 | J41: 0 | K41: 2305119.778 | L41: 0 | M41: 0
A42: ='Org structure'!E37 -> 4,2 - Information Technology | C42: 2123.870749 | J42: 0 | K42: 2123.870749 | L42: 0 | M42: 0
A43: ='Org structure'!E38 -> 4,3 - Legal Services | C43: 270861.2043 | J43: 0 | K43: 270861.2043 | L43: 7658579 | M43: 5873211
A44: ='Org structure'!E39 -> 4,4 - Secretariat and Auxiliary Services | J44: 0 | K44: 0 | L44: 3931781 | M44: 4168868
A45: ='Org structure'!E40 -> 4,5 - General Manager: Corporate Service | C45: 3516000 | J45: 0 | K45: 3516000 | L45: 0 | M45: 0
A46: ='Org structure'!E41 -> 4,6 - [Name of sub-vote] | J46: 0 | K46: 0
A47: ='Org structure'!E42 -> 4,7 - [Name of sub-vote] | C47: 0 | D47: 0 | I47: 0 | J47: 0 | K47: 0 | L47: 0 | M47: 0
A48: ='Org structure'!E43 -> 4,8 - [Name of sub-vote] | C48: 0 | D48: 0 | I48: 0 | J48: 0 | K48: 0 | L48: 0 | M48: 0
A49: ='Org structure'!E44 -> 4,9 - [Name of sub-vote] | C49: 0 | D49: 0 | I49: 0 | J49: 0 | K49: 0 | L49: 0 | M49: 0
A50: ='Org structure'!E45 -> 4.10 - [Name of sub-vote] | C50: 0 | D50: 0 | I50: 0 | J50: 0 | K50: 0 | L50: 0 | M50: 0
A51: ='Org structure'!A6 -> Vote 5 - Infrastructure Services | C51: =SUM(C52:C61) -> 4738511544 | D51: =SUM(D52:D61) -> 0 | E51: 0 | F51: 0 | G51: 0 | H51: 0 | I51: 31664079.66 | J51: 31664079.66 | K51: 4770175624 | L51: =SUM(L52:L61) -> 309246 | M51: =SUM(M52:M61) -> 327895
A52: ='Org structure'!E47 -> 5,1 - Electricity | C52: 3038086189 | J52: 0 | K52: 3038086189 | L52: 0 | M52: 0
A53: ='Org structure'!E48 -> 5,2 - Project Management Office | C53: 10034424 | I53: -3503428 | J53: -3503428 | K53: 6530996 | L53: 0 | M53: 0
A54: ='Org structure'!E49 -> 5,3 - Roads and Transportation | C54: 402254.1181 | I54: 50446079.04 | J54: 50446079.04 | K54: 50848333.16 | L54: 0 | M54: 0
A55: ='Org structure'!E50 -> 5,4 - Water and Sanitation | C55: 1689988677 | I55: -15278571.39 | J55: -15278571.39 | K55: 1674710106 | L55: 309246 | M55: 327895
A56: ='Org structure'!E51 -> 5,5 - General Manager: Infrastructure | J56: 0 | K56: 0 | L56: 0 | M56: 0
A57: ='Org structure'!E52 -> 5,6 - [Name of sub-vote] | C57: 0 | D57: 0 | I57: 0 | J57: 0 | K57: 0 | L57: 0 | M57: 0
A58: ='Org structure'!E53 -> 5,7 - [Name of sub-vote] | C58: 0 | D58: 0 | I58: 0 | J58: 0 | K58: 0 | L58: 0 | M58: 0
A59: ='Org structure'!E54 -> 5,8 - [Name of sub-vote] | C59: 0 | D59: 0 | I59: 0 | J59: 0 | K59: 0 | L59: 0 | M59: 0
A60: ='Org structure'!E55 -> 5,9 - [Name of sub-vote] | C60: 0 | D60: 0 | I60: 0 | J60: 0 | K60: 0 | L60: 0 | M60: 0
A61: ='Org structure'!E56 -> 5.10 - [Name of sub-vote] | C61: 0 | D61: 0 | I61: 0 | J61: 0 | K61: 0 | L61: 0 | M61: 0
A62: ='Org structure'!A7 -> Vote 6 - Sustainable Development and City Enterprises | C62: =SUM(C63:C72) -> 208349782 | D62: =SUM(D63:D72) -> 0 | E62: 0 | F62: 0 | G62: 0 | H62: 0 | I62: 77083376.8 | J62: 77083376.8 | K62: 285433158.8 | L62: =SUM(L63:L72) -> 0 | M62: =SUM(M63:M72) -> 0
A63: ='Org structure'!E58 -> 6,1 - City Entities | C63: 64805333.87 | I63: -193998.8727 | J63: -193998.8727 | K63: 64611335 | L63: 0 | M63: 0
A64: ='Org structure'!E59 -> 6,2 - Development Services | C64: 465741.516 | I64: 3686732.014 | J64: 3686732.014 | K64: 4152473.53 | L64: 0 | M64: 0
A65: ='Org structure'!E60 -> 6,3 - Human Settlement Development | C65: 104666074.6 | I65: 72590643.71 | J65: 72590643.71 | K65: 177256718.3 | L65: 0 | M65: 0
A66: ='Org structure'!E61 -> 6,4 - Town Planning | C66: 38412632.05 | I66: 999999.9454 | J66: 999999.9454 | K66: 39412632 | L66: 0 | M66: 0
A67: ='Org structure'!E62 -> 6,5 - General Manager: Sustainable Development and City Enterprises | J67: 0 | K67: 0
A68: ='Org structure'!E63 -> 6,6 - [Name of sub-vote] | J68: 0 | K68: 0
A69: ='Org structure'!E64 -> 6,7 - [Name of sub-vote] | J69: 0 | K69: 0
A70: ='Org structure'!E65 -> 6,8 - [Name of sub-vote] | J70: 0 | K70: 0
A71: ='Org structure'!E66 -> 6,9 - [Name of sub-vote] | J71: 0 | K71: 0
A72: ='Org structure'!E67 -> 6.10 - [Name of sub-vote] | J72: =SUM(E72:I72) -> 0 | K72: =IF(D72=0,C72+J72,D72+J72) -> 0
A73: ='Org structure'!A8 -> Vote 7 - [NAME OF VOTE 7] | C73: =SUM(C74:C83) -> 0 | D73: 0 | E73: 0 | F73: 0 | G73: 0 | H73: 0 | I73: 0 | J73: =SUM(E73:I73) -> 0 | K73: =IF(D73=0,C73+J73,D73+J73) -> 0 | L73: =SUM(L74:L83) -> 0 | M73: =SUM(M74:M83) -> 0
A74: ='Org structure'!E69 -> 7.1 - | J74: 0 | K74: 0
A75: ='Org structure'!E70 -> 7.2 - | J75: 0 | K75: 0
A76: ='Org structure'!E71 -> 7.3 - | J76: 0 | K76: 0
A77: ='Org structure'!E72 -> 7.4 - | J77: 0 | K77: 0
A78: ='Org structure'!E73 -> 7.5 - | J78: 0 | K78: 0
A79: ='Org structure'!E74 -> 7.6 - | J79: 0 | K79: 0
A80: ='Org structure'!E75 -> 7.7 - | J80: 0 | K80: 0
A81: ='Org structure'!E76 -> 7.8 - | J81: 0 | K81: 0
A82: ='Org structure'!E77 -> 7.9 - | J82: 0 | K82: 0
A83: ='Org structure'!E78 -> 7.10 - | J83: 0 | K83: 0 | L83: 0 | M83: 0
A84: ='Org structure'!A9 -> Vote 8 - [NAME OF VOTE 8] | C84: =SUM(C85:C94) -> 0 | D84: =SUM(D85:D94) -> 0 | E84: 0 | F84: 0 | G84: 0 | H84: 0 | I84: 0 | J84: 0 | K84: 0 | L84: =SUM(L85:L94) -> 0 | M84: =SUM(M85:M94) -> 0
A85: ='Org structure'!E80 -> 8.1 - | C85: 0 | D85: 0 | I85: 0 | J85: 0 | K85: 0 | L85: 0 | M85: 0
A86: ='Org structure'!E81 -> 8.2 - | C86: 0 | D86: 0 | I86: 0 | J86: 0 | K86: 0 | L86: 0 | M86: 0
A87: ='Org structure'!E82 -> 8.3 - | C87: 0 | D87: 0 | I87: 0 | J87: 0 | K87: 0 | L87: 0 | M87: 0
A88: ='Org structure'!E83 -> 8.4 - | C88: 0 | D88: 0 | I88: 0 | J88: 0 | K88: 0 | L88: 0 | M88: 0
A89: ='Org structure'!E84 -> 8.5 - | C89: 0 | D89: 0 | I89: 0 | J89: 0 | K89: 0 | L89: 0 | M89: 0
A90: ='Org structure'!E85 -> 8.6 - | C90: 0 | D90: 0 | I90: 0 | J90: 0 | K90: 0 | L90: 0 | M90: 0
A91: ='Org structure'!E86 -> 8.7 - | C91: 0 | D91: 0 | I91: 0 | J91: 0 | K91: 0 | L91: 0 | M91: 0
A92: ='Org structure'!E87 -> 8.8 - | C92: 0 | D92: 0 | I92: 0 | J92: 0 | K92: 0 | L92: 0 | M92: 0
A93: ='Org structure'!E88 -> 8.9 - | C93: 0 | D93: 0 | I93: 0 | J93: 0 | K93: 0 | L93: 0 | M93: 0
A94: ='Org structure'!E89 -> 8.10 - | C94: 0 | D94: 0 | I94: 0 | J94: 0 | K94: 0 | L94: 0 | M94: 0
A95: ='Org structure'!A10 -> Vote 9 - [NAME OF VOTE 9] | C95: =SUM(C96:C105) -> 0 | D95: =SUM(D96:D105) -> 0 | E95: 0 | F95: 0 | G95: 0 | H95: 0 | I95: 0 | J95: 0 | K95: 0 | L95: =SUM(L96:L105) -> 0 | M95: =SUM(M96:M105) -> 0
A96: ='Org structure'!E91 -> 9.1 - | J96: 0 | K96: 0
A97: ='Org structure'!E92 -> 9.2 - | J97: 0 | K97: 0
A98: ='Org structure'!E93 -> 9.3 - | J98: 0 | K98: 0
A99: ='Org structure'!E94 -> 9.4 - | J99: 0 | K99: 0
A100: ='Org structure'!E95 -> 9.5 - | J100: 0 | K100: 0
A101: ='Org structure'!E96 -> 9.6 - | J101: 0 | K101: 0
A102: ='Org structure'!E97 -> 9.7 - | J102: 0 | K102: 0
A103: ='Org structure'!E98 -> 9.8 - | J103: 0 | K103: 0
A104: ='Org structure'!E99 -> 9.9 - | J104: 0 | K104: 0
A105: ='Org structure'!E100 -> 9.10 - | J105: 0 | K105: 0
A106: ='Org structure'!A11 -> Vote 10 - [NAME OF VOTE 10] | C106: =SUM(C107:C116) -> 0 | D106: =SUM(D107:D116) -> 0 | E106: 0 | F106: 0 | G106: 0 | H106: 0 | I106: 0 | J106: 0 | K106: 0 | L106: =SUM(L107:L116) -> 0 | M106: =SUM(M107:M116) -> 0
A107: ='Org structure'!E102 -> 10.1 - | C107: 0 | D107: 0 | J107: 0 | K107: 0 | L107: 0 | M107: 0
A108: ='Org structure'!E103 -> 10.2 - | C108: 0 | D108: 0 | I108: 0 | J108: 0 | K108: 0 | L108: 0 | M108: 0
A109: ='Org structure'!E104 -> 10.3 - | C109: 0 | D109: 0 | I109: 0 | J109: 0 | K109: 0 | L109: 0 | M109: 0
A110: ='Org structure'!E105 -> 10.4 - | C110: 0 | D110: 0 | I110: 0 | J110: 0 | K110: 0 | L110: 0 | M110: 0
A111: ='Org structure'!E106 -> 10.5 - | C111: 0 | D111: 0 | I111: 0 | J111: 0 | K111: 0 | L111: 0 | M111: 0
A112: ='Org structure'!E107 -> 10.6 - | C112: 0 | D112: 0 | I112: 0 | J112: 0 | K112: 0 | L112: 0 | M112: 0
A113: ='Org structure'!E108 -> 10.7 - | C113: 0 | D113: 0 | I113: 0 | J113: 0 | K113: 0 | L113: 0 | M113: 0
A114: ='Org structure'!E109 -> 10.8 - | C114: 0 | D114: 0 | I114: 0 | J114: 0 | K114: 0 | L114: 0 | M114: 0
A115: ='Org structure'!E110 -> 10.9 - | C115: 0 | D115: 0 | I115: 0 | J115: 0 | K115: 0 | L115: 0 | M115: 0
A116: ='Org structure'!E111 -> 10.10 - | C116: 0 | D116: 0 | I116: 0 | J116: 0 | K116: 0 | L116: 0 | M116: 0
A117: ='Org structure'!A12 -> Vote 11 - [NAME OF VOTE 11] | C117: =SUM(C118:C127) -> 0 | D117: =SUM(D118:D127) -> 0 | E117: 0 | F117: 0 | G117: 0 | H117: 0 | I117: 0 | J117: 0 | K117: 0 | L117: =SUM(L118:L127) -> 0 | M117: =SUM(M118:M127) -> 0
A118: ='Org structure'!E113 -> 11.1 - | J118: 0 | K118: 0
A119: ='Org structure'!E114 -> 11.2 - | J119: 0 | K119: 0
A120: ='Org structure'!E115 -> 11.3 - | J120: 0 | K120: 0
A121: ='Org structure'!E116 -> 11.4 - | J121: 0 | K121: 0
A122: ='Org structure'!E117 -> 11.5 - | J122: 0 | K122: 0
A123: ='Org structure'!E118 -> 11.6 - | J123: 0 | K123: 0
A124: ='Org structure'!E119 -> 11.7 - | J124: 0 | K124: 0
A125: ='Org structure'!E120 -> 11.8 - | J125: 0 | K125: 0
A126: ='Org structure'!E121 -> 11.9 - | J126: 0 | K126: 0
A127: ='Org structure'!E122 -> 11.10 - | J127: 0 | K127: 0
A128: ='Org structure'!A13 -> Vote 12 - [NAME OF VOTE 12] | C128: =SUM(C129:C138) -> 0 | D128: =SUM(D129:D138) -> 0 | E128: 0 | F128: 0 | G128: 0 | H128: 0 | I128: 0 | J128: 0 | K128: 0 | L128: =SUM(L129:L138) -> 0 | M128: =SUM(M129:M138) -> 0
A129: ='Org structure'!E124 -> 12.1 - | J129: 0 | K129: 0
A130: ='Org structure'!E125 -> 12.2 - | J130: 0 | K130: 0
A131: ='Org structure'!E126 -> 12.3 - | J131: 0 | K131: 0
A132: ='Org structure'!E127 -> 12.4 - | J132: 0 | K132: 0
A133: ='Org structure'!E128 -> 12.5 - | J133: 0 | K133: 0
A134: ='Org structure'!E129 -> 12.6 - | J134: 0 | K134: 0
A135: ='Org structure'!E130 -> 12.7 - | J135: 0 | K135: 0
A136: ='Org structure'!E131 -> 12.8 - | J136: =SUM(E136:I136) -> 0 | K136: =IF(D136=0,C136+J136,D136+J136) -> 0
A137: ='Org structure'!E132 -> 12.9 - | J137: =SUM(E137:I137) -> 0 | K137: =IF(D137=0,C137+J137,D137+J137) -> 0
A138: ='Org structure'!E133 -> 12.10 - | J138: =SUM(E138:I138) -> 0 | K138: =IF(D138=0,C138+J138,D138+J138) -> 0
A139: ='Org structure'!A14 -> Vote 13 - [NAME OF VOTE 13] | C139: =SUM(C140:C149) -> 0 | D139: =SUM(D140:D149) -> 0 | E139: 0 | F139: 0 | G139: 0 | H139: 0 | I139: 0 | J139: =SUM(E139:I139) -> 0 | K139: =IF(D139=0,C139+J139,D139+J139) -> 0 | L139: =SUM(L140:L149) -> 0 | M139: =SUM(M140:M149) -> 0
A140: ='Org structure'!E135 -> 13.1 - | J140: 0 | K140: 0
A141: ='Org structure'!E136 -> 13.2 - | J141: 0 | K141: 0
A142: ='Org structure'!E137 -> 13.3 - | J142: 0 | K142: 0
A143: ='Org structure'!E138 -> 13.4 - | J143: 0 | K143: 0
A144: ='Org structure'!E139 -> 13.5 - | J144: 0 | K144: 0
A145: ='Org structure'!E140 -> 13.6 - | J145: 0 | K145: 0
A146: ='Org structure'!E141 -> 13.7 - | J146: 0 | K146: 0
A147: ='Org structure'!E142 -> 13.8 - | J147: 0 | K147: 0
A148: ='Org structure'!E143 -> 13.9 - | J148: 0 | K148: 0
A149: ='Org structure'!E144 -> 13.10 - | J149: 0 | K149: 0
A150: ='Org structure'!A15 -> Vote 14 - [NAME OF VOTE 14] | C150: =SUM(C151:C160) -> 0 | D150: =SUM(D151:D160) -> 0 | E150: 0 | F150: 0 | G150: 0 | H150: 0 | I150: 0 | J150: 0 | K150: 0 | L150: =SUM(L151:L160) -> 0 | M150: =SUM(M151:M160) -> 0
A151: ='Org structure'!E146 -> 14.1 - | J151: 0 | K151: 0
A152: ='Org structure'!E147 -> 14.2 - | J152: 0 | K152: 0
A153: ='Org structure'!E148 -> 14.3 - | J153: 0 | K153: 0
A154: ='Org structure'!E149 -> 14.4 - | J154: 0 | K154: 0
A155: ='Org structure'!E150 -> 14.5 - | J155: 0 | K155: 0
A156: ='Org structure'!E151 -> 14.6 - | J156: 0 | K156: 0
A157: ='Org structure'!E152 -> 14.7 - | J157: 0 | K157: 0
A158: ='Org structure'!E153 -> 14.8 - | J158: 0 | K158: 0
A159: ='Org structure'!E154 -> 14.9 - | J159: 0 | K159: 0
A160: ='Org structure'!E155 -> 14.10 - | J160: 0 | K160: 0
A161: ='Org structure'!A16 -> Vote 15 - [NAME OF VOTE 15] | C161: =SUM(C162:C171) -> 0 | D161: =SUM(D162:D171) -> 0 | E161: 0 | F161: 0 | G161: 0 | H161: 0 | I161: 0 | J161: 0 | K161: 0 | L161: =SUM(L162:L171) -> 0 | M161: =SUM(M162:M171) -> 0
A162: ='Org structure'!E157 -> 15.1 - | J162: 0 | K162: 0 | L162: 0 | M162: 0
A163: ='Org structure'!E158 -> 15.2 - | J163: 0 | K163: 0
A164: ='Org structure'!E159 -> 15.3 - | J164: 0 | K164: 0
A165: ='Org structure'!E160 -> 15.4 - | J165: 0 | K165: 0
A166: ='Org structure'!E161 -> 15.5 - | J166: 0 | K166: 0
A167: ='Org structure'!E162 -> 15.6 - | J167: 0 | K167: 0
A168: ='Org structure'!E163 -> 15.7 - | J168: 0 | K168: 0
A169: ='Org structure'!E164 -> 15.8 - | J169: 0 | K169: 0
A170: ='Org structure'!E165 -> 15.9 - | J170: 0 | K170: 0
A171: ='Org structure'!E166 -> 15.10 - | J171: 0 | K171: 0
A172: Total Revenue by Vote | B172: 2 | C172: =C7+C18+C29+C40+C51+C62+C73+C84+C95+C106+C117+C128+C139+C150+C161 -> 7119571995 | D172: =D7+D18+D29+D40+D51+D62+D73+D84+D95+D106+D117+D128+D139+D150+D161 -> 0 | E172: 0 | F172: 0 | G172: 0 | H172: 0 | I172: 113615455.5 | J172: =SUM(E172:I172) -> 113615455.5 | K172: =IF(D172=0,C172+J172,D172+J172) -> 7233187451 | L172: =L7+L18+L29+L40+L51+L62+L73+L84+L95+L106+L117+L128+L139+L150+L161 -> 1997822277 | M172: =M7+M18+M29+M40+M51+M62+M73+M84+M95+M106+M117+M128+M139+M150+M161 -> 2102604852
A174: Expenditure by Vote | B174: 1
A175: =A7 -> Vote 1 - City Manager | C175: =SUM(C176:C185) -> 149906309.9 | D175: 0 | E175: 0 | F175: 0 | G175: 0 | H175: 0 | I175: 16638056.14 | J175: =SUM(E175:I175) -> 16638056.14 | K175: =IF(D175=0,C175+J175,D175+J175) -> 166544366 | L175: =SUM(L176:L185) -> 137920660 | M175: =SUM(M176:M185) -> 140775606
A176: =A8 -> 1,1 - Internal Audit and Compliance | C176: 21775457.74 | I176: 999106.2615 | J176: =SUM(E176:I176) -> 999106.2615 | K176: =IF(D176=0,C176+J176,D176+J176) -> 22774564 | L176: 87743812 | M176: 91824664
A177: 1,2 - Office of the City Manager | C177: 29733213.96 | I177: 1863105.04 | J177: 1863105.04 | K177: 31596319 | L177: 50176848 | M177: 48950942
A178: 1,3 - Political Support | C178: 90885614.01 | I178: 13453894.99 | J178: 13453894.99 | K178: 104339509 | L178: 0 | M178: 0
A179: 1,4 - Strategic Planning | C179: 7512024.147 | I179: 321949.8531 | J179: 321949.8531 | K179: 7833974 | L179: 0 | M179: 0
A180: 1,5 - [Name of sub-vote] | C180: 0 | D180: 0 | I180: 0 | J180: 0 | K180: 0 | L180: 0 | M180: 0
A181: 1,6 - [Name of sub-vote] | C181: 0 | D181: 0 | I181: 0 | J181: 0 | K181: 0 | L181: 0 | M181: 0
A182: 1,7 - [Name of sub-vote] | C182: 0 | D182: 0 | I182: 0 | J182: 0 | K182: 0 | L182: 0 | M182: 0
A183: 1,8 - [Name of sub-vote] | C183: 0 | D183: 0 | I183: 0 | J183: 0 | K183: 0 | L183: 0 | M183: 0
A184: 1,9 - [Name of sub-vote] | C184: 0 | D184: 0 | I184: 0 | J184: 0 | K184: 0 | L184: 0 | M184: 0
A185: 1.10 - [Name of sub-vote] | C185: 0 | D185: 0 | I185: 0 | J185: 0 | K185: 0 | L185: 0 | M185: 0
A186: =A18 -> Vote 2 - City Finance | C186: =SUM(C187:C196) -> 646309781.6 | D186: 0 | E186: 0 | F186: 0 | G186: 0 | H186: 0 | I186: 54963828.41 | J186: =SUM(E186:I186) -> 54963828.41 | K186: =IF(D186=0,C186+J186,D186+J186) -> 701273610 | L186: =SUM(L187:L196) -> 766134517 | M186: =SUM(M187:M196) -> 853910806
A187: =A19 -> 2,1 - Asset Management | C187: 72457420.13 | I187: 1638046.873 | J187: 1638046.873 | K187: 74095467 | L187: 57669009 | M187: 60913288
A188: 2,2 - Budget and Treasury Management | C188: 122871191.4 | I188: 10599960.6 | J188: 10599960.6 | K188: 133471152 | L188: 66459961 | M188: 92313952
A189: 2,3 - Expenditure Management | C189: 31427404.01 | I189: 9699848.99 | J189: 9699848.99 | K189: 41127253 | L189: 515065040 | M189: 567877943
A190: 2,4 - Revenue Management | C190: 373782944.5 | I190: 14698044.49 | J190: 14698044.49 | K190: 388480989 | L190: 0 | M190: 0
A191: 2,5 - Supply Chain Management | C191: 45770821.54 | I191: 18327927.46 | J191: 18327927.46 | K191: 64098749 | L191: 126940507 | M191: 132805623
A192: 2,6 - [Name of sub-vote] | J192: 0 | K192: 0
A193: 2,7 - [Name of sub-vote] | J193: 0 | K193: 0
A194: 2,8 - [Name of sub-vote] | J194: 0 | K194: 0
A195: 2,9 - [Name of sub-vote] | J195: 0 | K195: 0
A196: 2.10 - [Name of sub-vote] | J196: 0 | K196: 0
A197: Vote 3 - Community Services and Social Equity | C197: =SUM(C198:C207) -> 785013601.5 | D197: 0 | E197: 0 | F197: 0 | G197: 0 | H197: 0 | I197: 14080189.52 | J197: 14080189.52 | K197: 799093791 | L197: =SUM(L198:L207) -> 190459375 | M197: =SUM(M198:M207) -> 201678899
A198: 3,1 - Area Based Management | C198: 51984820.22 | I198: -9352551.215 | J198: -9352551.215 | K198: 42632269 | L198: 21380127 | M198: 23078691
A199: 3,2 - Public Safety, Emergency Services and Enforcement | C199: 317247534.2 | I199: 24461685.77 | J199: 24461685.77 | K199: 341709220 | L199: 151477210 | M199: 160091345
A200: 3,3 - Recreation and Facilities | C200: 299705258.3 | I200: -8351580.297 | J200: -8351580.297 | K200: 291353678 | L200: 16217399 | M200: 17026353
A201: 3,4 - Waste Management | C201: 116075988.7 | I201: 7322635.263 | J201: 7322635.263 | K201: 123398624 | L201: 1384639 | M201: 1482510
... 144 more rows

Sheet B4-FinPerf RE
A1: =muni&" - "&_ADJ4&" - "&Date -> KZN225 Msunduzi - Table B4 Adjustments Budget Financial Performance (revenue and expenditure) -
A2: =desc -> Description | B2: =head27 -> Ref | C2: =Head2 -> Budget Year 2021/22 | L2: =Head10 -> Budget Year +1 2022/23 | M2: =Head11 -> Budget Year +2 2023/24
C3: =Head6 -> Original Budget | D3: =Head54 -> Prior Adjusted | E3: =Head51 -> Accum. Funds | F3: =Head52 -> Multi-year capital | G3: =Head53 -> Unfore. Unavoid. | H3: =Head55 -> Nat. or Prov. Govt | I3: =Head50 -> Other Adjusts. | J3: =Head56 -> Total Adjusts. | K3: =Head7 -> Adjusted Budget | L3: =Head7 -> Adjusted Budget | M3: =Head7 -> Adjusted Budget
D4: 3 | E4: 4 | F4: 5 | G4: 6 | H4: 7 | I4: 8 | J4: 9 | K4: 10
A5: R thousands | B5: 1 | C5: A | D5: A1 | E5: B | F5: C | G5: D | H5: E | I5: F | J5: G | K5: H
A6: Revenue By Source
A7: Property rates | B7: 2 | C7: 1321378575 | D7: ='SB1'!D10 -> 0 | E7: ='SB1'!E10 -> 0 | F7: ='SB1'!F10 -> 0 | G7: ='SB1'!G10 -> 0 | H7: ='SB1'!H10 -> 0 | I7: ='SB1'!I10 -> 1 | J7: =SUM(E7:I7) -> 1 | K7: =IF(D7=0,C7+J7,D7+J7) -> 1321378576 | L7: ='SB1'!L10 -> 1400661290 | M7: ='SB1'!M10 -> 1491704274
A8: Service charges - electricity revenue | B8: 2 | C8: ='SB1'!C16 -> 2961894451 | D8: ='SB1'!D16 -> 0 | E8: ='SB1'!E16 -> 0 | F8: ='SB1'!F16 -> 0 | G8: ='SB1'!G16 -> 0 | H8: ='SB1'!H16 -> 0 | I8: ='SB1'!I16 -> -1 | J8: =SUM(E8:I8) -> -1 | K8: =IF(D8=0,C8+J8,D8+J8) -> 2961894450 | L8: ='SB1'!L16 -> 3317321780 | M8: ='SB1'!M16 -> 3649053962
A9: Service charges - water revenue | B9: 2 | C9: ='SB1'!C22 -> 773217412 | D9: ='SB1'!D22 -> 0 | E9: ='SB1'!E22 -> 0 | F9: ='SB1'!F22 -> 0 | G9: ='SB1'!G22 -> 0 | H9: ='SB1'!H22 -> 0 | I9: ='SB1'!I22 -> 0 | J9: =SUM(E9:I9) -> 0 | K9: =IF(D9=0,C9+J9,D9+J9) -> 773217412 | L9: ='SB1'!L22 -> 827342631 | M9: ='SB1'!M22 -> 885256615
A10: Service charges - sanitation revenue | B10: 2 | C10: ='SB1'!C28 -> 160154913 | D10: ='SB1'!D28 -> 0 | E10: ='SB1'!E28 -> 0 | F10: ='SB1'!F28 -> 0 | G10: ='SB1'!G28 -> 0 | H10: ='SB1'!H28 -> 0 | I10: ='SB1'!I28 -> 0 | J10: =SUM(E10:I10) -> 0 | K10: =IF(D10=0,C10+J10,D10+J10) -> 160154913 | L10: ='SB1'!L28 -> 169652100 | M10: ='SB1'!M28 -> 179882121
A11: Service charges - refuse revenue | B11: 2 | C11: ='SB1'!C35 -> 122556901 | D11: ='SB1'!D35 -> 0 | E11: ='SB1'!E35 -> 0 | F11: ='SB1'!F35 -> 0 | G11: ='SB1'!G35 -> 0 | H11: ='SB1'!H35 -> 0 | I11: ='SB1'!I35 -> 0 | J11: =SUM(E11:I11) -> 0 | K11: =IF(D11=0,C11+J11,D11+J11) -> 122556901 | L11: ='SB1'!L35 -> 129824525 | M11: ='SB1'!M35 -> 137652944
A13: Rental of facilities and equipment | C13: 30634512 | D13: 0 | I13: 1 | J13: =SUM(E13:I13) -> 1 | K13: =IF(D13=0,C13+J13,D13+J13) -> 30634513 | L13: 32451140 | M13: 34407946
A14: Interest earned - external investments | C14: 16076855 | D14: 0 | I14: 0 | J14: =SUM(E14:I14) -> 0 | K14: =IF(D14=0,C14+J14,D14+J14) -> 16076855 | L14: 17030213 | M14: 18057134
A15: Interest earned - outstanding debtors | C15: 213289286 | D15: 0 | I15: 0 | J15: 0 | K15: 213289286 | L15: 225937340 | M15: 239561361
A16: Dividends received | C16: 120 | D16: 0 | I16: -120 | J16: -120 | K16: 0 | L16: 120 | M16: 120
A17: Fines, penalties and forfeits | C17: 1894810 | D17: 0 | I17: -36 | J17: -36 | K17: 1894774 | L17: 2007171 | M17: 2128199
A18: Licences and permits | C18: 1179465 | D18: 0 | I18: 0 | J18: 0 | K18: 1179465 | L18: 1249409 | M18: 1324748
A19: Agency services | C19: 634104 | D19: 0 | I19: 0 | J19: 0 | K19: 634104 | L19: 671706 | M19: 712210
A20: Transfers and subsidies | C20: 661215835 | D20: 0 | I20: 64741213.55 | J20: 64741213.55 | K20: 725957048.5 | L20: 696906045 | M20: 701999381
A21: Other revenue | B21: 2 | C21: ='SB1'!C50 -> 154286955 | D21: ='SB1'!D50 -> 0 | E21: ='SB1'!E50 -> 0 | F21: ='SB1'!F50 -> 0 | G21: ='SB1'!G50 -> 0 | H21: ='SB1'!H50 -> 0 | I21: ='SB1'!I50 -> 1 | J21: =SUM(E21:I21) -> 1 | K21: =IF(D21=0,C21+J21,D21+J21) -> 154286956 | L21: ='SB1'!L50 -> 163436172 | M21: ='SB1'!M50 -> 173291373
A22: Gains | C22: 0 | D22: 0 | I22: 0 | J22: =SUM(E22:I22) -> 0 | K22: =IF(D22=0,C22+J22,D22+J22) -> 0 | L22: 0 | M22: 0
A23: Total Revenue (excluding capital transfers and contributions) | C23: =SUM(C7:C11)+SUM(C13:C22) -> 6418414194 | D23: =SUM(D7:D11)+SUM(D13:D22) -> 0 | E23: 0 | F23: 0 | G23: 0 | H23: 0 | I23: 64741059.55 | J23: =SUM(J7:J11)+SUM(J13:J22) -> 64741059.55 | K23: =SUM(K7:K11)+SUM(K13:K22) -> 6483155254 | L23: =SUM(L7:L11)+SUM(L13:L22) -> 6984491642 | M23: =SUM(M7:M11)+SUM(M13:M22) -> 7515032388
A25: Expenditure By Type
A26: Employee related costs | C26: ='SB1'!C68 -> 1538089743 | D26: ='SB1'!D68 -> 0 | E26: ='SB1'!E68 -> 0 | F26: ='SB1'!F68 -> 0 | G26: ='SB1'!G68 -> 0 | H26: ='SB1'!H68 -> 0 | I26: ='SB1'!I68 -> 36819895.34 | J26: =SUM(E26:I26) -> 36819895.34 | K26: =IF(D26=0,C26+J26,D26+J26) -> 1574909638 | L26: ='SB1'!L68 -> 1612775382 | M26: ='SB1'!M68 -> 1692314803
A27: Remuneration of councillors | C27: 56332922 | D27: 0 | J27: =SUM(E27:I27) -> 0 | K27: 56332922 | L27: 59149569 | M27: 62107045
A28: Debt impairment | C28: 150000000 | D28: 0 | J28: =SUM(E28:I28) -> 0 | K28: 150000000 | L28: 200000000 | M28: 250000000
A29: Depreciation & asset impairment | C29: ='SB1'!C84 -> 421872297.6 | D29: ='SB1'!D84 -> 0 | E29: ='SB1'!E84 -> 0 | F29: ='SB1'!F84 -> 0 | G29: ='SB1'!G84 -> 0 | H29: ='SB1'!H84 -> 0 | I29: ='SB1'!I84 -> -426 | J29: -426 | K29: 421871871.6 | L29: ='SB1'!L84 -> 405795701 | M29: ='SB1'!M84 -> 313902124
A30: Finance charges | C30: 34724271 | D30: 0 | I30: -1 | J30: =SUM(E30:I30) -> -1 | K30: 34724270 | L30: 36669377 | M30: 27063704
A31: Bulk purchases - electricity | C31: ='SB1'!C87 -> 2185393029 | D31: ='SB1'!D87 -> 0 | E31: ='SB1'!E87 -> 0 | F31: ='SB1'!F87 -> 0 | G31: ='SB1'!G87 -> 0 | H31: ='SB1'!H87 -> 0 | I31: ='SB1'!I87 -> 0 | J31: 0 | K31: 2185393029 | L31: ='SB1'!L87 -> 2432755559 | M31: ='SB1'!M87 -> 2679542121
A32: Inventory consumed | C32: 830520119.4 | D32: ='SB1'!D227 -> 0 | E32: ='SB1'!E227 -> 0 | F32: ='SB1'!F227 -> 0 | G32: ='SB1'!G227 -> 0 | H32: ='SB1'!H227 -> 0 | I32: ='SB1'!I227 -> 7196812.638 | J32: 7196812.638 | K32: =IF(D32=0,C32+J32,D32+J32) -> 837716932 | L32: ='SB1'!L227 -> 904690908 | M32: ='SB1'!M227 -> 968569947
A33: Contracted services | C33: ='SB1'!C128 -> 655391205 | D33: ='SB1'!D128 -> 0 | E33: ='SB1'!E128 -> 0 | F33: ='SB1'!F128 -> 0 | G33: ='SB1'!G128 -> 0 | H33: ='SB1'!H128 -> 0 | I33: ='SB1'!I128 -> 76814851.2 | J33: 76814851.2 | K33: =IF(D33=0,C33+J33,D33+J33) -> 732206056.2 | L33: ='SB1'!L128 -> 716382507 | M33: ='SB1'!M128 -> 774470303
A34: Transfers and subsidies | C34: 45862883 | D34: 0 | J34: =SUM(E34:I34) -> 0 | K34: 45862883 | L34: 52058868 | M34: 55615730
A35: Other expenditure | C35: ='SB1'!C215 -> 200227522.5 | D35: ='SB1'!D215 -> 0 | E35: ='SB1'!E215 -> 0 | F35: ='SB1'!F215 -> 0 | G35: ='SB1'!G215 -> 0 | H35: ='SB1'!H215 -> 0 | I35: ='SB1'!I215 -> 1153938.172 | J35: 1153938.172 | K35: 201381460.7 | L35: ='SB1'!L215 -> 0 | M35: ='SB1'!M215 -> 0
A36: Losses | C36: 0 | D36: 0 | J36: =SUM(E36:I36) -> 0 | K36: 0 | L36: =I26+I31+I33+I35 -> 114788684.7 | M36: 0
A37: Total Expenditure | C37: =SUM(C26:C36) -> 6118413992 | D37: 0 | E37: 0 | F37: 0 | G37: 0 | H37: 0 | I37: 121985070.3 | J37: 121985070.3 | K37: =SUM(K26:K36) -> 6240399063 | L37: 6535066556 | M37: 6823585777
A39: Surplus/(Deficit) | C39: =C23-C37 -> 300000202.1 | D39: 0 | E39: 0 | F39: 0 | G39: 0 | H39: 0 | I39: -57244010.8 | J39: -57244010.8 | K39: =K23-K37 -> 242756191.3 | L39: 449425086.3 | M39: 691446611
A40: Transfers and subsidies - capital (monetary allocations) (National / Provincial and District) | C40: 380796576 | D40: 0 | I40: 48874238.69 | J40: =SUM(E40:I40) -> 48874238.69 | K40: =IF(D40=0,C40+J40,D40+J40) -> 429670814.7 | L40: 328615855 | M40: 341642134
A41: Transfers and subsidies - capital (monetary allocations) (National / Provincial Departmental Agencies, Households, Non-profit Institutions, Private Enterprises, Public Corporatons, Higher Educational Institutions) | C41: 0 | D41: 0 | J41: =SUM(E41:I41) -> 0 | K41: =IF(D41=0,C41+J41,D41+J41) -> 0 | L41: 3500000 | M41: 3500000
A42: Transfers and subsidies - capital (in-kind - all) | C42: 0 | D42: 0 | I42: 0 | J42: =SUM(E42:I42) -> 0 | K42: =IF(D42=0,C42+J42,D42+J42) -> 0 | L42: 0 | M42: 0
A43: Surplus/(Deficit) before taxation | C43: =C39+C40 -> 680796778.1 | D43: =SUM(D39:D42) -> 0 | E43: 0 | F43: 0 | G43: 0 | H43: 0 | I43: -8369772.108 | J43: -8369772.108 | K43: =SUM(K39:K42) -> 672427006 | L43: 781540941.3 | M43: 1036588745
A44: Taxation | C44: 0 | D44: 0 | I44: 0 | J44: =SUM(E44:I44) -> 0 | K44: =IF(D44=0,C44+J44,D44+J44) -> 0 | L44: 0 | M44: 0
A45: Surplus/(Deficit) after taxation | C45: =C43-C44 -> 680796778.1 | D45: 0 | E45: 0 | F45: 0 | G45: 0 | H45: 0 | I45: -8369772.108 | J45: -8369772.108 | K45: =K43-K44 -> 672427006 | L45: 781540941.3 | M45: 1036588745
A46: Attributable to minorities | C46: 0 | D46: 0 | I46: 0 | J46: =SUM(E46:I46) -> 0 | K46: =IF(D46=0,C46+J46,D46+J46) -> 0 | L46: 0 | M46: 0
A47: Surplus/(Deficit) attributable to municipality | C47: =SUM(C45:C46) -> 680796778.1 | D47: 0 | E47: 0 | F47: 0 | G47: 0 | H47: 0 | I47: -8369772.108 | J47: -8369772.108 | K47: =SUM(K45:K46) -> 672427006 | L47: 781540941.3 | M47: 1036588745
A48: Share of surplus/ (deficit) of associate | C48: 0 | D48: 0 | I48: 0 | J48: =SUM(E48:I48) -> 0 | K48: =IF(D48=0,C48+J48,D48+J48) -> 0 | L48: 0 | M48: 0
A49: Surplus/ (Deficit) for the year | C49: =C47+C48 -> 680796778.1 | D49: 0 | E49: 0 | F49: 0 | G49: 0 | H49: 0 | I49: -8369772.108 | J49: -8369772.108 | K49: =K47+K48 -> 672427006 | L49: 781540941.3 | M49: 1036588745
A50: =head27a -> References
A51: 1. Classifications are revenue sources and expenditure type
A52: 2. Detail to be provided in Table SB1
A53: 3. Only complete if a previous adjusted budget has been approved in the same financial year. Reflect most recent adjusted budget.
A54: 4. Additional cash-backed accumulated funds/unspent funds (MFMA section 18(1)(b) and section 28(2)(e)) identified after the Original Budget approved and after annual financial statements audited (note: only where underspending could not reasonably have been foreseen)
A55: 5. Increases of funds approved under MFMA section 31
A56: 6. Adjustments approved in accordance with MFMA section 29
A57: 7. Adjustments to transfers from National or Provincial Government
A58: 8. Adjusts. = 'Other' Adjustments proposed to be approved; including revenue under-collection (MFMA section 28(2)(a)); additional revenue appropriation on existing programmes (section 28(2))(b); projected savings (section 28(2)(d)); error correction (section 28(2)(f))
A59: 9. G = B + C + D + E + F
A60: 10. Adjusted Budget H = (A or A1/2 etc) + G
A62: Revenue total | C62: 6799210613 | D62: =D23+D40+D41+D42 -> 0 | E62: 0 | F62: 0 | G62: 0 | H62: 0 | I62: 113615298.2 | J62: 113615298.2 | K62: 6912826069 | L62: 7316607497 | M62: 7860174522

Sheet B5-Capex
A1: =muni&" - "&_ADJ5&" - "&Date -> KZN225 Msunduzi - Table B5 Adjustments Capital Expenditure Budget by vote and funding -
A2: =desc -> Description | B2: =head27 -> Ref | C2: =Head2 -> Budget Year 2021/22 | L2: =Head10 -> Budget Year +1 2022/23 | M2: =Head11 -> Budget Year +2 2023/24
C3: =Head6 -> Original Budget | D3: =Head54 -> Prior Adjusted | E3: =Head51 -> Accum. Funds | F3: =Head52 -> Multi-year capital | G3: =Head53 -> Unfore. Unavoid. | H3: =Head55 -> Nat. or Prov. Govt | I3: =Head50 -> Other Adjusts. | J3: =Head56 -> Total Adjusts. | K3: =Head7 -> Adjusted Budget | L3: =Head7 -> Adjusted Budget | M3: =Head7 -> Adjusted Budget
D4: 5 | E4: 6 | F4: 7 | G4: 8 | H4: 9 | I4: 10 | J4: 11 | K4: 12
A5: R thousands | C5: A | D5: A1 | E5: B | F5: C | G5: D | H5: E | I5: F | J5: G | K5: H
A6: Capital expenditure - Vote
A7: Multi-year expenditure to be adjusted | B7: 2
A8: =B5B!A8 -> Vote 1 - City Manager | C8: =B5B!C148 -> 0 | D8: =B5B!D8 -> 0 | E8: =B5B!E8 -> 0 | F8: =B5B!F8 -> 0 | G8: =B5B!G8 -> 0 | H8: =B5B!H8 -> 0 | I8: =B5B!I8 -> 0 | J8: =SUM(E8:I8) -> 0 | K8: =IF(D8=0,C8+J8,D8+J8) -> 0 | L8: =B5B!L8 -> 0 | M8: =B5B!M8 -> 0
A9: =B5B!A19 -> Vote 2 - City Finance | C9: =B5B!C149 -> 0 | D9: =B5B!D19 -> 0 | E9: =B5B!E19 -> 0 | F9: =B5B!F19 -> 0 | G9: =B5B!G19 -> 0 | H9: =B5B!H19 -> 0 | I9: =B5B!I19 -> 0 | J9: =SUM(E9:I9) -> 0 | K9: 0 | L9: =B5B!L19 -> 0 | M9: =B5B!M19 -> 0
A10: =B5B!A30 -> Vote 3 - Community Services and Social Equity | C10: =B5B!C150 -> 0 | D10: =B5B!D30 -> 0 | E10: =B5B!E30 -> 0 | F10: =B5B!F30 -> 0 | G10: =B5B!G30 -> 0 | H10: =B5B!H30 -> 0 | I10: =B5B!I30 -> 0 | J10: 0 | K10: 0 | L10: =B5B!L30 -> 0 | M10: =B5B!M30 -> 0
A11: =B5B!A41 -> Vote 4 - Corporate Services | C11: =B5B!C151 -> 0 | D11: =B5B!D41 -> 0 | E11: =B5B!E41 -> 0 | F11: =B5B!F41 -> 0 | G11: =B5B!G41 -> 0 | H11: =B5B!H41 -> 0 | I11: =B5B!I41 -> 0 | J11: 0 | K11: 0 | L11: =B5B!L41 -> 0 | M11: =B5B!M41 -> 0
A12: =B5B!A52 -> Vote 5 - Infrastructure Services | C12: =B5B!C152 -> 0 | D12: =B5B!D52 -> 0 | E12: =B5B!E52 -> 0 | F12: =B5B!F52 -> 0 | G12: =B5B!G52 -> 0 | H12: =B5B!H52 -> 0 | I12: =B5B!I52 -> 0 | J12: 0 | K12: 0 | L12: =B5B!L52 -> 0 | M12: =B5B!M52 -> 0
A13: =B5B!A63 -> Vote 6 - Sustainable Development and City Enterprises | C13: =B5B!C153 -> 0 | D13: =B5B!D63 -> 0 | E13: =B5B!E63 -> 0 | F13: =B5B!F63 -> 0 | G13: =B5B!G63 -> 0 | H13: =B5B!H63 -> 0 | I13: =B5B!I63 -> 0 | J13: 0 | K13: 0 | L13: =B5B!L63 -> 0 | M13: =B5B!M63 -> 0
A14: =B5B!A74 -> Vote 7 - [NAME OF VOTE 7] | C14: =B5B!C154 -> 0 | D14: =B5B!D74 -> 0 | E14: =B5B!E74 -> 0 | F14: =B5B!F74 -> 0 | G14: =B5B!G74 -> 0 | H14: =B5B!H74 -> 0 | I14: =B5B!I74 -> 0 | J14: 0 | K14: 0 | L14: =B5B!L74 -> 0 | M14: =B5B!M74 -> 0
A15: =B5B!A85 -> Vote 8 - [NAME OF VOTE 8] | C15: =B5B!C155 -> 0 | D15: =B5B!D85 -> 0 | E15: =B5B!E85 -> 0 | F15: =B5B!F85 -> 0 | G15: =B5B!G85 -> 0 | H15: =B5B!H85 -> 0 | I15: =B5B!I85 -> 0 | J15: 0 | K15: 0 | L15: =B5B!L85 -> 0 | M15: =B5B!M85 -> 0
A16: =B5B!A96 -> Vote 9 - [NAME OF VOTE 9] | C16: =B5B!C156 -> 0 | D16: =B5B!D96 -> 0 | E16: =B5B!E96 -> 0 | F16: =B5B!F96 -> 0 | G16: =B5B!G96 -> 0 | H16: =B5B!H96 -> 0 | I16: =B5B!I96 -> 0 | J16: 0 | K16: 0 | L16: =B5B!L96 -> 0 | M16: =B5B!M96 -> 0
A17: =B5B!A107 -> Vote 10 - [NAME OF VOTE 10] | C17: =B5B!C157 -> 0 | D17: =B5B!D107 -> 0 | E17: =B5B!E107 -> 0 | F17: =B5B!F107 -> 0 | G17: =B5B!G107 -> 0 | H17: =B5B!H107 -> 0 | I17: =B5B!I107 -> 0 | J17: 0 | K17: 0 | L17: =B5B!L107 -> 0 | M17: =B5B!M107 -> 0
A18: =B5B!A118 -> Vote 11 - [NAME OF VOTE 11] | C18: =B5B!C158 -> 0 | D18: =B5B!D118 -> 0 | E18: =B5B!E118 -> 0 | F18: =B5B!F118 -> 0 | G18: =B5B!G118 -> 0 | H18: =B5B!H118 -> 0 | I18: =B5B!I118 -> 0 | J18: 0 | K18: 0 | L18: =B5B!L118 -> 0 | M18: =B5B!M118 -> 0
A19: =B5B!A129 -> Vote 12 - [NAME OF VOTE 12] | C19: =B5B!C159 -> 0 | D19: =B5B!D129 -> 0 | E19: =B5B!E129 -> 0 | F19: =B5B!F129 -> 0 | G19: =B5B!G129 -> 0 | H19: =B5B!H129 -> 0 | I19: =B5B!I129 -> 0 | J19: 0 | K19: 0 | L19: =B5B!L129 -> 0 | M19: =B5B!M129 -> 0
A20: =B5B!A140 -> Vote 13 - [NAME OF VOTE 13] | C20: =B5B!C160 -> 0 | D20: =B5B!D140 -> 0 | E20: =B5B!E140 -> 0 | F20: =B5B!F140 -> 0 | G20: =B5B!G140 -> 0 | H20: =B5B!H140 -> 0 | I20: =B5B!I140 -> 0 | J20: 0 | K20: 0 | L20: =B5B!L140 -> 0 | M20: =B5B!M140 -> 0
A21: =B5B!A151 -> Vote 14 - [NAME OF VOTE 14] | C21: =B5B!C161 -> 0 | D21: =B5B!D151 -> 0 | E21: =B5B!E151 -> 0 | F21: =B5B!F151 -> 0 | G21: =B5B!G151 -> 0 | H21: =B5B!H151 -> 0 | I21: =B5B!I151 -> 0 | J21: 0 | K21: 0 | L21: =B5B!L151 -> 0 | M21: =B5B!M151 -> 0
A22: =B5B!A162 -> Vote 15 - [NAME OF VOTE 15] | C22: =B5B!C162 -> 0 | D22: =B5B!D162 -> 0 | E22: =B5B!E162 -> 0 | F22: =B5B!F162 -> 0 | G22: =B5B!G162 -> 0 | H22: =B5B!H162 -> 0 | I22: =B5B!I162 -> 0 | J22: 0 | K22: 0 | L22: =B5B!L162 -> 0 | M22: =B5B!M162 -> 0
A23: Capital multi-year expenditure sub-total | B23: 3 | C23: =SUM(C8:C22) -> 0 | D23: =SUM(D8:D22) -> 0 | E23: 0 | F23: 0 | G23: 0 | H23: 0 | I23: 0 | J23: =SUM(J8:J22) -> 0 | K23: =SUM(K8:K22) -> 0 | L23: =SUM(L8:L22) -> 0 | M23: =SUM(M8:M22) -> 0
A25: Single-year expenditure to be adjusted | B25: 2
A26: =B5B!A177 -> Vote 1 - City Manager | C26: =B5B!C177 -> 9040000 | D26: =B5B!D177 -> 0 | E26: =B5B!E177 -> 0 | F26: =B5B!F177 -> 0 | G26: =B5B!G177 -> 0 | H26: =B5B!H177 -> 0 | I26: =B5B!I177 -> 0 | J26: =SUM(E26:I26) -> 0 | K26: =IF(D26=0,C26+J26,D26+J26) -> 9040000 | L26: =B5B!L177 -> 3750000 | M26: =B5B!M177 -> 4530000
A27: =B5B!A188 -> Vote 2 - City Finance | C27: =B5B!C188 -> 39856796.95 | D27: =B5B!D188 -> 0 | E27: =B5B!E188 -> 0 | F27: =B5B!F188 -> 0 | G27: =B5B!G188 -> 0 | H27: =B5B!H188 -> 0 | I27: =B5B!I188 -> 3240000.05 | J27: 3240000.05 | K27: 43096797 | L27: =B5B!L188 -> 16636607 | M27: =B5B!M188 -> 10389390
A28: =B5B!A199 -> Vote 3 - Community Services and Social Equity | C28: =B5B!C199 -> 50556700 | D28: =B5B!D199 -> 0 | E28: =B5B!E199 -> 0 | F28: =B5B!F199 -> 0 | G28: =B5B!G199 -> 0 | H28: =B5B!H199 -> 0 | I28: =B5B!I199 -> 5919721.5 | J28: 5919721.5 | K28: 56476421.5 | L28: =B5B!L199 -> 210000 | M28: =B5B!M199 -> 180000
A29: =B5B!A210 -> Vote 4 - Corporate Services | C29: =B5B!C210 -> 4457625 | D29: =B5B!D210 -> 0 | E29: =B5B!E210 -> 0 | F29: =B5B!F210 -> 0 | G29: =B5B!G210 -> 0 | H29: =B5B!H210 -> 0 | I29: =B5B!I210 -> 5000000 | J29: 5000000 | K29: 9457625 | L29: =B5B!L210 -> 3500000 | M29: =B5B!M210 -> 3500000
A30: =B5B!A221 -> Vote 5 - Infrastructure Services | C30: =B5B!C221 -> 346647960 | D30: =B5B!D221 -> 0 | E30: =B5B!E221 -> 0 | F30: =B5B!F221 -> 0 | G30: =B5B!G221 -> 0 | H30: =B5B!H221 -> 0 | I30: =B5B!I221 -> 51463085.16 | J30: 51463085.16 | K30: 398111045.2 | L30: =B5B!L221 -> 70000 | M30: =B5B!M221 -> 0
A31: =B5B!A232 -> Vote 6 - Sustainable Development and City Enterprises | C31: =B5B!C232 -> 125742545 | D31: =B5B!D232 -> 0 | E31: =B5B!E232 -> 0 | F31: =B5B!F232 -> 0 | G31: =B5B!G232 -> 0 | H31: =B5B!H232 -> 0 | I31: =B5B!I232 -> 13282535.3 | J31: 13282535.3 | K31: 139025080.3 | L31: =B5B!L232 -> 0 | M31: =B5B!M232 -> 0
A32: =B5B!A243 -> Vote 7 - [NAME OF VOTE 7] | C32: =B5B!C243 -> 0 | D32: =B5B!D243 -> 0 | E32: =B5B!E243 -> 0 | F32: =B5B!F243 -> 0 | G32: =B5B!G243 -> 0 | H32: =B5B!H243 -> 0 | I32: =B5B!I243 -> 0 | J32: 0 | K32: 0 | L32: =B5B!L243 -> 0 | M32: =B5B!M243 -> 0
A33: =B5B!A254 -> Vote 8 - [NAME OF VOTE 8] | C33: =B5B!C254 -> 0 | D33: =B5B!D254 -> 0 | E33: =B5B!E254 -> 0 | F33: =B5B!F254 -> 0 | G33: =B5B!G254 -> 0 | H33: =B5B!H254 -> 0 | I33: =B5B!I254 -> 0 | J33: 0 | K33: 0 | L33: =B5B!L254 -> 0 | M33: =B5B!M254 -> 0
A34: =B5B!A265 -> Vote 9 - [NAME OF VOTE 9] | C34: =B5B!C265 -> 0 | D34: =B5B!D265 -> 0 | E34: =B5B!E265 -> 0 | F34: =B5B!F265 -> 0 | G34: =B5B!G265 -> 0 | H34: =B5B!H265 -> 0 | I34: =B5B!I265 -> 0 | J34: 0 | K34: 0 | L34: =B5B!L265 -> 0 | M34: =B5B!M265 -> 0
A35: =B5B!A276 -> Vote 10 - [NAME OF VOTE 10] | C35: =B5B!C276 -> 0 | D35: =B5B!D276 -> 0 | E35: =B5B!E276 -> 0 | F35: =B5B!F276 -> 0 | G35: =B5B!G276 -> 0 | H35: =B5B!H276 -> 0 | I35: =B5B!I276 -> 0 | J35: 0 | K35: 0 | L35: =B5B!L276 -> 0 | M35: =B5B!M276 -> 0
A36: =B5B!A287 -> Vote 11 - [NAME OF VOTE 11] | C36: =B5B!C287 -> 0 | D36: =B5B!D287 -> 0 | E36: =B5B!E287 -> 0 | F36: =B5B!F287 -> 0 | G36: =B5B!G287 -> 0 | H36: =B5B!H287 -> 0 | I36: =B5B!I287 -> 0 | J36: 0 | K36: 0 | L36: =B5B!L287 -> 0 | M36: =B5B!M287 -> 0
A37: =B5B!A298 -> Vote 12 - [NAME OF VOTE 12] | C37: =B5B!C298 -> 0 | D37: =B5B!D298 -> 0 | E37: =B5B!E298 -> 0 | F37: =B5B!F298 -> 0 | G37: =B5B!G298 -> 0 | H37: =B5B!H298 -> 0 | I37: =B5B!I298 -> 0 | J37: 0 | K37: =IF(D37=0,C37+J37,D37+J37) -> 0 | L37: =B5B!L298 -> 0 | M37: =B5B!M298 -> 0
A38: =B5B!A309 -> Vote 13 - [NAME OF VOTE 13] | C38: =B5B!C309 -> 0 | D38: =B5B!D309 -> 0 | E38: =B5B!E309 -> 0 | F38: =B5B!F309 -> 0 | G38: =B5B!G309 -> 0 | H38: =B5B!H309 -> 0 | I38: =B5B!I309 -> 0 | J38: 0 | K38: 0 | L38: =B5B!L309 -> 0 | M38: =B5B!M309 -> 0
A39: =B5B!A320 -> Vote 14 - [NAME OF VOTE 14] | C39: =B5B!C320 -> 0 | D39: =B5B!D320 -> 0 | E39: =B5B!E320 -> 0 | F39: =B5B!F320 -> 0 | G39: =B5B!G320 -> 0 | H39: =B5B!H320 -> 0 | I39: =B5B!I320 -> 0 | J39: 0 | K39: 0 | L39: =B5B!L320 -> 0 | M39: =B5B!M320 -> 0
A40: =B5B!A331 -> Vote 15 - [NAME OF VOTE 15] | C40: =B5B!C331 -> 0 | D40: =B5B!D331 -> 0 | E40: =B5B!E331 -> 0 | F40: =B5B!F331 -> 0 | G40: =B5B!G331 -> 0 | H40: =B5B!H331 -> 0 | I40: =B5B!I331 -> 0 | J40: 0 | K40: 0 | L40: =B5B!L331 -> 0 | M40: =B5B!M331 -> 0
A41: Capital single-year expenditure sub-total | C41: =SUM(C26:C40) -> 576301627 | D41: =SUM(D26:D40) -> 0 | E41: 0 | F41: 0 | G41: 0 | H41: 0 | I41: 78905342.01 | J41: =SUM(J26:J40) -> 78905342.01 | K41: =SUM(K26:K40) -> 655206969 | L41: =SUM(L26:L40) -> 24166607 | M41: =SUM(M26:M40) -> 18599390
A42: Total Capital Expenditure - Vote | C42: =C41+C23 -> 576301627 | D42: =D41+D23 -> 0 | E42: 0 | F42: 0 | G42: 0 | H42: 0 | I42: 78905342.01 | J42: =J23+J41 -> 78905342.01 | K42: =K23+K41 -> 655206969 | L42: =L41+L23 -> 24166607 | M42: =M41+M23 -> 18599390
A44: Capital Expenditure - Functional
A45: Governance and administration | C45: 52295750.95 | D45: =SUM(D46:D48) -> 0 | E45: 0 | F45: 0 | G45: 0 | H45: 0 | I45: 8240000.05 | J45: =SUM(J46:J48) -> 8240000.05 | K45: 60535751.05 | L45: 23416607 | M45: 18449390
A46: Executive and council | C46: 6042000 | D46: 0 | J46: =SUM(E46:I46) -> 0 | K46: =IF(D46=0,C46+J46,D46+J46) -> 6042000 | L46: 3750000 | M46: 4530000
A47: Finance and administration | C47: 45843751 | D47: 0 | I47: 8240000.05 | J47: =SUM(E47:I47) -> 8240000.05 | K47: =IF(D47=0,C47+J47,D47+J47) -> 54083751.05 | L47: 19456607 | M47: 13739390
A48: Internal audit | C48: 410000 | D48: 0 | J48: =SUM(E48:I48) -> 0 | K48: =IF(D48=0,C48+J48,D48+J48) -> 410000 | L48: 210000 | M48: 180000
A49: Community and public safety | C49: 133799245 | D49: =SUM(D50:D54) -> 0 | E49: 0 | F49: 0 | G49: 0 | H49: 0 | I49: -2459359.5 | J49: =SUM(J50:J54) -> -2459359.5 | K49: 131339885.5 | L49: 54461500 | M49: 47712111
A50: Community and social services | C50: 43382300 | I50: -4909359.5 | J50: =SUM(E50:I50) -> -4909359.5 | K50: =IF(D50=0,C50+J50,D50+J50) -> 38472940.5 | L50: 52441500 | M50: 46112112
A51: Sport and recreation | C51: 2475000 | I51: -1750000 | J51: =SUM(E51:I51) -> -1750000 | K51: =IF(D51=0,C51+J51,D51+J51) -> 725000 | L51: 70000 | M51: 0
A52: Public safety | C52: 1100000 | I52: 0 | J52: =SUM(E52:I52) -> 0 | K52: =IF(D52=0,C52+J52,D52+J52) -> 1100000 | L52: 1950000 | M52: 1600000
A53: Housing | C53: 86841945 | I53: 4200000 | J53: =SUM(E53:I53) -> 4200000 | K53: =IF(D53=0,C53+J53,D53+J53) -> 91041945 | L53: 0 | M53: -1
A54: Health | C54: 0 | D54: 0 | J54: =SUM(E54:I54) -> 0 | K54: =IF(D54=0,C54+J54,D54+J54) -> 0 | L54: 0 | M54: 0
A55: Economic and environmental services | C55: =SUM(C56:C58) -> 115510000 | D55: 0 | E55: 0 | F55: 0 | G55: 0 | H55: 0 | I55: 92868163.69 | J55: 92868163.69 | K55: 208378163.7 | L55: 107432500 | M55: 119360070
A56: Planning and development | C56: 35890000 | D56: 0 | I56: 7516731.53 | J56: =SUM(E56:I56) -> 7516731.53 | K56: =IF(D56=0,C56+J56,D56+J56) -> 43406731.53 | L56: 45550000 | M56: 50510000
A57: Road transport | C57: 79620000 | D57: 0 | I57: 84653359.16 | J57: =SUM(E57:I57) -> 84653359.16 | K57: =IF(D57=0,C57+J57,D57+J57) -> 164273359.2 | L57: 61882500 | M57: 68850070
A58: Environmental protection | C58: 0 | D58: 0 | I58: 698073 | J58: =SUM(E58:I58) -> 698073 | K58: =IF(D58=0,C58+J58,D58+J58) -> 698073 | L58: 0 | M58: 0
A59: Trading services | C59: =SUM(C60:C63) -> 272096631 | D59: =SUM(D60:D63) -> 0 | E59: 0 | F59: 0 | G59: 0 | H59: 0 | I59: =SUM(I60:I63) -> -20606493 | J59: =SUM(J60:J63) -> -20606493 | K59: 251490138 | L59: 284391854 | M59: 258351394
A60: Energy sources | C60: 130000000 | D60: 0 | I60: 1423227 | J60: =SUM(E60:I60) -> 1423227 | K60: =IF(D60=0,C60+J60,D60+J60) -> 131423227 | L60: 113300000 | M60: 76521440
A61: Water management | C61: 77660964 | D61: 0 | I61: -32479621 | J61: =SUM(E61:I61) -> -32479621 | K61: =IF(D61=0,C61+J61,D61+J61) -> 45181343 | L61: 168791854 | M61: 179629954
A62: Waste water management | C62: 59935667 | D62: 0 | I62: -2133880 | J62: =SUM(E62:I62) -> -2133880 | K62: =IF(D62=0,C62+J62,D62+J62) -> 57801787 | L62: 0 | M62: 0
A63: Waste management | C63: 4500000 | D63: 0 | I63: 12583781 | J63: =SUM(E63:I63) -> 12583781 | K63: =IF(D63=0,C63+J63,D63+J63) -> 17083781 | L63: 2300000 | M63: 2200000
A64: Other | C64: 2600000 | D64: 0 | I64: 863030.77 | J64: =SUM(E64:I64) -> 863030.77 | K64: =IF(D64=0,C64+J64,D64+J64) -> 3463030.77 | L64: 2000000 | M64: 1950000
A65: Total Capital Expenditure - Functional | B65: 3 | C65: =C45+C49+C55+C59+C64 -> 576301627 | D65: =D45+D49+D55+D59+D64 -> 0 | E65: 0 | F65: 0 | G65: 0 | H65: 0 | I65: =I45+I49+I55+I59+I64 -> 78905342.01 | J65: 78905342.01 | K65: 655206969 | L65: 471702461 | M65: 445822965
A67: Funded by:
A68: National Government | C68: 297296576 | D68: 0 | I68: 35667507 | J68: =SUM(E68:I68) -> 35667507 | K68: =IF(D68=0,C68+J68,D68+J68) -> 332964083 | L68: 328615854 | M68: 341642134
A69: Provincial Government | C69: 83500000 | D69: 0 | I69: 13206732 | J69: =SUM(E69:I69) -> 13206732 | K69: =IF(D69=0,C69+J69,D69+J69) -> 96706732 | L69: 3500000 | M69: 3500000
A70: District Municipality | C70: 0 | D70: 0 | I70: 0 | J70: =SUM(E70:I70) -> 0 | K70: =IF(D70=0,C70+J70,D70+J70) -> 0 | L70: 0 | M70: 0
A71: ='B4-FinPerf RE'!A41 -> Transfers and subsidies - capital (monetary allocations) (National / Provincial Departmental Agencies, Households, Non-profit Institutions, Private Enterprises, Public Corporatons, Higher Educational Institutions) | C71: 0 | D71: 0 | I71: 0 | J71: =SUM(E71:I71) -> 0 | K71: =IF(D71=0,C71+J71,D71+J71) -> 0 | L71: 0 | M71: 0
A72: Transfers recognised - capital | B72: 4 | C72: =SUM(C68:C71) -> 380796576 | D72: 0 | E72: 0 | F72: 0 | G72: 0 | H72: 0 | I72: 48874239 | J72: 48874239 | K72: 429670815 | L72: 332115854 | M72: 345142134
A74: Borrowing | C74: 100000000 | D74: 0 | J74: =SUM(E74:I74) -> 0 | K74: =IF(D74=0,C74+J74,D74+J74) -> 100000000 | L74: 100000000 | M74: 0
A75: Internally generated funds | C75: 95505050.95 | D75: 0 | I75: 30031104.05 | J75: =SUM(E75:I75) -> 30031104.05 | K75: =IF(D75=0,C75+J75,D75+J75) -> 125536155 | L75: 39586607 | M75: 100680831
A76: Total Capital Funding | C76: =+C72+C74+C75 -> 576301627 | D76: =+D72+D74+D75 -> 0 | E76: 0 | F76: 0 | G76: 0 | H76: 0 | I76: 78905343.05 | J76: 78905343.05 | K76: 655206970 | L76: 471702461 | M76: 445822965
A77: =head27a -> References
A78: 1. Municipalities may choose to appropriate for capital expenditure for three years or for one year (if one year appropriation projected expenditure required for yr2 and yr3).
A79: 2. Include capital component of PPP unitary payment. Note that capital transfers are only appropriated to municipalities for the budget year
A80: 3. Capital expenditure by standard classification must reconcile to the appropriations by vote
A81: 4. Must reconcile to supporting table SB7 and to Adjustments Budget Financial Performance (revenue and expenditure)
A82: 5. Only complete if a previous adjusted budget has been approved in the same financial year. Reflect most recent adjusted budget.
A83: 6. Additional cash-backed accumulated funds/unspent funds (MFMA section 18(1)(b) and section 28(2)(e)) identified after the Original Budget approved and after annual financial statements audited (note: only where underspending could not reasonably have been foreseen)
A84: 7. Increases of funds approved under MFMA section 31
A85: 8. Adjustments approved in accordance with MFMA section 29
A86: 9. Adjustments to transfers from National or Provincial Government
A87: 10. Adjusts. = 'Other' Adjustments proposed to be approved; including revenue under-collection (MFMA section 28(2)(a)); additional revenue appropriation on existing programmes (section 28(2))(b); projected savings (section 28(2)(d)); error correction (section 28(2)(f))
A88: 11. G = B + C + D + E + F
A89: 12. Adjusted Budget H = (A or A1/2 etc) + G
A91: check balance | C91: =C65-C76 -> 0 | D91: =D65-D76 -> 0 | E91: =E65-E76 -> 0 | H91: =H65-H76 -> 0 | I91: -1.040000021 | J91: -1.040000021 | K91: -0.9900000095 | L91: 0 | M91: 0

Sheet B5B
A1: =muni&" - "&_ADJ5&" - B"&" - "&Date -> KZN225 Msunduzi - Table B5 Adjustments Capital Expenditure Budget by vote and funding - B -
A2: =Vdesc -> Vote Description | B2: =head27 -> Ref | C2: =Head2 -> Budget Year 2021/22 | L2: =Head10 -> Budget Year +1 2022/23 | M2: =Head11 -> Budget Year +2 2023/24
C3: =Head6 -> Original Budget | D3: =Head54 -> Prior Adjusted | E3: =Head51 -> Accum. Funds | F3: =Head52 -> Multi-year capital | G3: =Head53 -> Unfore. Unavoid. | H3: =Head55 -> Nat. or Prov. Govt | I3: =Head50 -> Other Adjusts. | J3: =Head56 -> Total Adjusts. | K3: =Head7 -> Adjusted Budget | L3: =Head7 -> Adjusted Budget | M3: =Head7 -> Adjusted Budget
A4: [Insert departmental structure etc] | D4: 3 | E4: 4 | F4: 5 | G4: 6 | H4: 7 | I4: 8 | J4: 9 | K4: 10
A5: R thousands | C5: A | D5: A1 | E5: B | F5: C | G5: D | H5: E | I5: F | J5: G | K5: H
A6: Capital expenditure - Municipal Vote
A7: Multi-year expenditure appropriation | B7: 2
A8: ='Org structure'!A2 -> Vote 1 - City Manager | C8: =SUM(C9:C18) -> 0 | D8: =SUM(D9:D18) -> 0 | E8: 0 | F8: 0 | G8: 0 | H8: 0 | I8: 0 | J8: =SUM(E8:I8) -> 0 | K8: =IF(D8=0,C8+J8,D8+J8) -> 0 | L8: =SUM(L9:L18) -> 0 | M8: =SUM(M9:M18) -> 0
A9: ='Org structure'!E3 -> 1,1 - Internal Audit and Compliance | C9: 0 | D9: 0 | I9: 0 | J9: =SUM(E9:I9) -> 0 | K9: =IF(D9=0,C9+J9,D9+J9) -> 0 | L9: 0 | M9: 0
A10: ='Org structure'!E4 -> 1,2 - Office of the City Manager | C10: 0 | D10: 0 | I10: 0 | J10: =SUM(E10:I10) -> 0 | K10: =IF(D10=0,C10+J10,D10+J10) -> 0 | L10: 0 | M10: 0
A11: ='Org structure'!E5 -> 1,3 - Political Support | C11: 0 | D11: 0 | I11: 0 | J11: 0 | K11: 0 | L11: 0 | M11: 0
A12: ='Org structure'!E6 -> 1,4 - Strategic Planning | C12: 0 | D12: 0 | I12: 0 | J12: 0 | K12: 0 | L12: 0 | M12: 0
A13: ='Org structure'!E7 -> 1,5 - [Name of sub-vote] | C13: 0 | D13: 0 | I13: 0 | J13: 0 | K13: 0 | L13: 0 | M13: 0
A14: ='Org structure'!E8 -> 1,6 - [Name of sub-vote] | C14: 0 | D14: 0 | I14: 0 | J14: 0 | K14: 0 | L14: 0 | M14: 0
A15: ='Org structure'!E9 -> 1,7 - [Name of sub-vote] | C15: 0 | D15: 0 | I15: 0 | J15: 0 | K15: 0 | L15: 0 | M15: 0
A16: ='Org structure'!E10 -> 1,8 - [Name of sub-vote] | C16: 0 | D16: 0 | I16: 0 | J16: 0 | K16: 0 | L16: 0 | M16: 0
A17: ='Org structure'!E11 -> 1,9 - [Name of sub-vote] | C17: 0 | D17: 0 | I17: 0 | J17: 0 | K17: 0 | L17: 0 | M17: 0
A18: ='Org structure'!E12 -> 1.10 - [Name of sub-vote] | C18: 0 | D18: 0 | I18: 0 | J18: 0 | K18: 0 | L18: 0 | M18: 0
A19: ='Org structure'!A3 -> Vote 2 - City Finance | C19: =SUM(C20:C29) -> 0 | D19: =SUM(D20:D29) -> 0 | E19: 0 | F19: 0 | G19: 0 | H19: 0 | I19: 0 | J19: =SUM(E19:I19) -> 0 | K19: =IF(D19=0,C19+J19,D19+J19) -> 0 | L19: =SUM(L20:L29) -> 0 | M19: =SUM(M20:M29) -> 0
A20: ='Org structure'!E14 -> 2,1 - Asset Management | C20: 0 | D20: 0 | I20: 0 | J20: =SUM(E20:I20) -> 0 | K20: =IF(D20=0,C20+J20,D20+J20) -> 0 | L20: 0 | M20: 0
A21: ='Org structure'!E15 -> 2,2 - Budget and Treasury Management | C21: 0 | D21: 0 | I21: 0 | J21: 0 | K21: 0 | L21: 0 | M21: 0
A22: ='Org structure'!E16 -> 2,3 - Expenditure Management | C22: 0 | D22: 0 | I22: 0 | J22: 0 | K22: 0 | L22: 0 | M22: 0
A23: ='Org structure'!E17 -> 2,4 - Revenue Management | C23: 0 | D23: 0 | I23: 0 | J23: 0 | K23: 0 | L23: 0 | M23: 0
A24: ='Org structure'!E18 -> 2,5 - Supply Chain Management | C24: 0 | D24: 0 | I24: 0 | J24: 0 | K24: 0 | L24: 0 | M24: 0
A25: ='Org structure'!E19 -> 2,6 - [Name of sub-vote] | C25: 0 | D25: 0 | I25: 0 | J25: 0 | K25: 0 | L25: 0 | M25: 0
A26: ='Org structure'!E20 -> 2,7 - [Name of sub-vote] | C26: 0 | D26: 0 | I26: 0 | J26: 0 | K26: 0 | L26: 0 | M26: 0
A27: ='Org structure'!E21 -> 2,8 - [Name of sub-vote] | C27: 0 | D27: 0 | I27: 0 | J27: 0 | K27: 0 | L27: 0 | M27: 0
A28: ='Org structure'!E22 -> 2,9 - [Name of sub-vote] | C28: 0 | D28: 0 | I28: 0 | J28: 0 | K28: 0 | L28: 0 | M28: 0
A29: ='Org structure'!E23 -> 2.10 - [Name of sub-vote] | C29: 0 | D29: 0 | I29: 0 | J29: 0 | K29: 0 | L29: 0 | M29: 0
A30: ='Org structure'!A4 -> Vote 3 - Community Services and Social Equity | C30: =SUM(C31:C40) -> 0 | D30: =SUM(D31:D40) -> 0 | E30: 0 | F30: 0 | G30: 0 | H30: 0 | I30: 0 | J30: =SUM(E30:I30) -> 0 | K30: =IF(D30=0,C30+J30,D30+J30) -> 0 | L30: =SUM(L31:L40) -> 0 | M30: =SUM(M31:M40) -> 0
A31: ='Org structure'!E25 -> 3,1 - Area Based Management | C31: 0 | D31: 0 | I31: 0 | J31: =SUM(E31:I31) -> 0 | K31: =IF(D31=0,C31+J31,D31+J31) -> 0 | L31: 0 | M31: 0
A32: ='Org structure'!E26 -> 3,2 - Public Safety, Emergency Services and Enforcement | C32: 0 | D32: 0 | I32: 0 | J32: 0 | K32: 0 | L32: 0 | M32: 0
A33: ='Org structure'!E27 -> 3,3 - Recreation and Facilities | C33: 0 | D33: 0 | I33: 0 | J33: 0 | K33: 0 | L33: 0 | M33: 0
A34: ='Org structure'!E28 -> 3,4 - Waste Management | C34: 0 | D34: 0 | I34: 0 | J34: 0 | K34: 0 | L34: 0 | M34: 0
A35: ='Org structure'!E29 -> 3,5 - [Name of sub-vote] | C35: 0 | D35: 0 | I35: 0 | J35: 0 | K35: 0 | L35: 0 | M35: 0
A36: ='Org structure'!E30 -> 3,6 - [Name of sub-vote] | C36: 0 | D36: 0 | I36: 0 | J36: 0 | K36: 0 | L36: 0 | M36: 0
A37: ='Org structure'!E31 -> 3,7 - [Name of sub-vote] | C37: 0 | D37: 0 | I37: 0 | J37: 0 | K37: 0 | L37: 0 | M37: 0
A38: ='Org structure'!E32 -> 3,8 - [Name of sub-vote] | C38: 0 | D38: 0 | I38: 0 | J38: 0 | K38: 0 | L38: 0 | M38: 0
A39: ='Org structure'!E33 -> 3,9 - [Name of sub-vote] | C39: 0 | D39: 0 | I39: 0 | J39: 0 | K39: 0 | L39: 0 | M39: 0
A40: ='Org structure'!E34 -> 3.10 - [Name of sub-vote] | C40: 0 | D40: 0 | I40: 0 | J40: 0 | K40: 0 | L40: 0 | M40: 0
A41: ='Org structure'!A5 -> Vote 4 - Corporate Services | C41: =SUM(C42:C51) -> 0 | D41: =SUM(D42:D51) -> 0 | E41: 0 | F41: 0 | G41: 0 | H41: 0 | I41: 0 | J41: =SUM(E41:I41) -> 0 | K41: =IF(D41=0,C41+J41,D41+J41) -> 0 | L41: =SUM(L42:L51) -> 0 | M41: =SUM(M42:M51) -> 0
A42: ='Org structure'!E36 -> 4,1 - Human Resources Management | C42: 0 | D42: 0 | I42: 0 | J42: =SUM(E42:I42) -> 0 | K42: =IF(D42=0,C42+J42,D42+J42) -> 0 | L42: 0 | M42: 0
A43: ='Org structure'!E37 -> 4,2 - Information Technology | C43: 0 | D43: 0 | I43: 0 | J43: 0 | K43: 0 | L43: 0 | M43: 0
A44: ='Org structure'!E38 -> 4,3 - Legal Services | C44: 0 | D44: 0 | I44: 0 | J44: 0 | K44: 0 | L44: 0 | M44: 0
A45: ='Org structure'!E39 -> 4,4 - Secretariat and Auxiliary Services | C45: 0 | D45: 0 | I45: 0 | J45: 0 | K45: 0 | L45: 0 | M45: 0
A46: ='Org structure'!E40 -> 4,5 - General Manager: Corporate Service | C46: 0 | D46: 0 | I46: 0 | J46: 0 | K46: 0 | L46: 0 | M46: 0
A47: ='Org structure'!E41 -> 4,6 - [Name of sub-vote] | C47: 0 | D47: 0 | I47: 0 | J47: 0 | K47: 0 | L47: 0 | M47: 0
A48: ='Org structure'!E42 -> 4,7 - [Name of sub-vote] | C48: 0 | D48: 0 | I48: 0 | J48: 0 | K48: 0 | L48: 0 | M48: 0
A49: ='Org structure'!E43 -> 4,8 - [Name of sub-vote] | C49: 0 | D49: 0 | I49: 0 | J49: 0 | K49: 0 | L49: 0 | M49: 0
A50: ='Org structure'!E44 -> 4,9 - [Name of sub-vote] | C50: 0 | D50: 0 | I50: 0 | J50: 0 | K50: 0 | L50: 0 | M50: 0
A51: ='Org structure'!E45 -> 4.10 - [Name of sub-vote] | C51: 0 | D51: 0 | I51: 0 | J51: 0 | K51: 0 | L51: 0 | M51: 0
A52: ='Org structure'!A6 -> Vote 5 - Infrastructure Services | C52: =SUM(C53:C62) -> 0 | D52: =SUM(D53:D62) -> 0 | E52: 0 | F52: 0 | G52: 0 | H52: 0 | I52: 0 | J52: =SUM(E52:I52) -> 0 | K52: =IF(D52=0,C52+J52,D52+J52) -> 0 | L52: =SUM(L53:L62) -> 0 | M52: =SUM(M53:M62) -> 0
A53: ='Org structure'!E47 -> 5,1 - Electricity | C53: 0 | D53: 0 | I53: 0 | J53: =SUM(E53:I53) -> 0 | K53: =IF(D53=0,C53+J53,D53+J53) -> 0 | L53: 0 | M53: 0
A54: ='Org structure'!E48 -> 5,2 - Project Management Office | C54: 0 | D54: 0 | I54: 0 | J54: 0 | K54: 0 | L54: 0 | M54: 0
A55: ='Org structure'!E49 -> 5,3 - Roads and Transportation | C55: 0 | D55: 0 | I55: 0 | J55: 0 | K55: 0 | L55: 0 | M55: 0
A56: ='Org structure'!E50 -> 5,4 - Water and Sanitation | C56: 0 | D56: 0 | I56: 0 | J56: 0 | K56: 0 | L56: 0 | M56: 0
A57: ='Org structure'!E51 -> 5,5 - General Manager: Infrastructure | C57: 0 | D57: 0 | I57: 0 | J57: 0 | K57: 0 | L57: 0 | M57: 0
A58: ='Org structure'!E52 -> 5,6 - [Name of sub-vote] | C58: 0 | D58: 0 | I58: 0 | J58: 0 | K58: 0 | L58: 0 | M58: 0
A59: ='Org structure'!E53 -> 5,7 - [Name of sub-vote] | C59: 0 | D59: 0 | I59: 0 | J59: 0 | K59: 0 | L59: 0 | M59: 0
A60: ='Org structure'!E54 -> 5,8 - [Name of sub-vote] | C60: 0 | D60: 0 | I60: 0 | J60: 0 | K60: 0 | L60: 0 | M60: 0
A61: ='Org structure'!E55 -> 5,9 - [Name of sub-vote] | C61: 0 | D61: 0 | I61: 0 | J61: 0 | K61: 0 | L61: 0 | M61: 0
A62: ='Org structure'!E56 -> 5.10 - [Name of sub-vote] | C62: 0 | D62: 0 | I62: 0 | J62: 0 | K62: 0 | L62: 0 | M62: 0
A63: ='Org structure'!A7 -> Vote 6 - Sustainable Development and City Enterprises | C63: =SUM(C64:C73) -> 0 | D63: =SUM(D64:D73) -> 0 | E63: 0 | F63: 0 | G63: 0 | H63: 0 | I63: 0 | J63: =SUM(E63:I63) -> 0 | K63: =IF(D63=0,C63+J63,D63+J63) -> 0 | L63: =SUM(L64:L73) -> 0 | M63: =SUM(M64:M73) -> 0
A64: ='Org structure'!E58 -> 6,1 - City Entities | C64: 0 | D64: 0 | I64: 0 | J64: =SUM(E64:I64) -> 0 | K64: =IF(D64=0,C64+J64,D64+J64) -> 0 | L64: 0 | M64: 0
A65: ='Org structure'!E59 -> 6,2 - Development Services | C65: 0 | D65: 0 | I65: 0 | J65: 0 | K65: 0 | L65: 0 | M65: 0
A66: ='Org structure'!E60 -> 6,3 - Human Settlement Development | C66: 0 | D66: 0 | I66: 0 | J66: 0 | K66: 0 | L66: 0 | M66: 0
A67: ='Org structure'!E61 -> 6,4 - Town Planning | C67: 0 | D67: 0 | I67: 0 | J67: 0 | K67: 0 | L67: 0 | M67: 0
A68: ='Org structure'!E62 -> 6,5 - General Manager: Sustainable Development and City Enterprises | C68: 0 | D68: 0 | I68: 0 | J68: 0 | K68: 0 | L68: 0 | M68: 0
A69: ='Org structure'!E63 -> 6,6 - [Name of sub-vote] | C69: 0 | D69: 0 | I69: 0 | J69: 0 | K69: 0 | L69: 0 | M69: 0
A70: ='Org structure'!E64 -> 6,7 - [Name of sub-vote] | C70: 0 | D70: 0 | I70: 0 | J70: 0 | K70: 0 | L70: 0 | M70: 0
A71: ='Org structure'!E65 -> 6,8 - [Name of sub-vote] | C71: 0 | D71: 0 | I71: 0 | J71: 0 | K71: 0 | L71: 0 | M71: 0
A72: ='Org structure'!E66 -> 6,9 - [Name of sub-vote] | C72: 0 | D72: 0 | I72: 0 | J72: 0 | K72: 0 | L72: 0 | M72: 0
A73: ='Org structure'!E67 -> 6.10 - [Name of sub-vote] | C73: 0 | D73: 0 | I73: 0 | J73: 0 | K73: 0 | L73: 0 | M73: 0
A74: ='Org structure'!A8 -> Vote 7 - [NAME OF VOTE 7] | C74: =SUM(C75:C84) -> 0 | D74: =SUM(D75:D84) -> 0 | E74: 0 | F74: 0 | G74: 0 | H74: 0 | I74: 0 | J74: =SUM(E74:I74) -> 0 | K74: =IF(D74=0,C74+J74,D74+J74) -> 0 | L74: =SUM(L75:L84) -> 0 | M74: =SUM(M75:M84) -> 0
A75: ='Org structure'!E69 -> 7.1 - | C75: 0 | D75: 0 | I75: 0 | J75: 0 | K75: 0 | L75: 0 | M75: 0
A76: ='Org structure'!E70 -> 7.2 - | C76: 0 | D76: 0 | I76: 0 | J76: 0 | K76: 0 | L76: 0 | M76: 0
A77: ='Org structure'!E71 -> 7.3 - | C77: 0 | D77: 0 | I77: 0 | J77: 0 | K77: 0 | L77: 0 | M77: 0
A78: ='Org structure'!E72 -> 7.4 - | C78: 0 | D78: 0 | I78: 0 | J78: 0 | K78: 0 | L78: 0 | M78: 0
A79: ='Org structure'!E73 -> 7.5 - | C79: 0 | D79: 0 | I79: 0 | J79: 0 | K79: 0 | L79: 0 | M79: 0
A80: ='Org structure'!E74 -> 7.6 - | C80: 0 | D80: 0 | I80: 0 | J80: 0 | K80: 0 | L80: 0 | M80: 0
A81: ='Org structure'!E75 -> 7.7 - | C81: 0 | D81: 0 | I81: 0 | J81: 0 | K81: 0 | L81: 0 | M81: 0
A82: ='Org structure'!E76 -> 7.8 - | C82: 0 | D82: 0 | I82: 0 | J82: 0 | K82: 0 | L82: 0 | M82: 0
A83: ='Org structure'!E77 -> 7.9 - | C83: 0 | D83: 0 | I83: 0 | J83: 0 | K83: 0 | L83: 0 | M83: 0
A84: ='Org structure'!E78 -> 7.10 - | C84: 0 | D84: 0 | I84: 0 | J84: 0 | K84: 0 | L84: 0 | M84: 0
A85: ='Org structure'!A9 -> Vote 8 - [NAME OF VOTE 8] | C85: =SUM(C86:C95) -> 0 | D85: =SUM(D86:D95) -> 0 | E85: 0 | F85: 0 | G85: 0 | H85: 0 | I85: 0 | J85: 0 | K85: 0 | L85: =SUM(L86:L95) -> 0 | M85: =SUM(M86:M95) -> 0
A86: ='Org structure'!E80 -> 8.1 - | C86: 0 | D86: 0 | I86: 0 | J86: 0 | K86: 0 | L86: 0 | M86: 0
A87: ='Org structure'!E81 -> 8.2 - | C87: 0 | D87: 0 | I87: 0 | J87: 0 | K87: 0 | L87: 0 | M87: 0
A88: ='Org structure'!E82 -> 8.3 - | C88: 0 | D88: 0 | I88: 0 | J88: 0 | K88: 0 | L88: 0 | M88: 0
A89: ='Org structure'!E83 -> 8.4 - | C89: 0 | D89: 0 | I89: 0 | J89: 0 | K89: 0 | L89: 0 | M89: 0
A90: ='Org structure'!E84 -> 8.5 - | C90: 0 | D90: 0 | I90: 0 | J90: 0 | K90: 0 | L90: 0 | M90: 0
A91: ='Org structure'!E85 -> 8.6 - | C91: 0 | D91: 0 | I91: 0 | J91: 0 | K91: 0 | L91: 0 | M91: 0
A92: ='Org structure'!E86 -> 8.7 - | C92: 0 | D92: 0 | I92: 0 | J92: 0 | K92: 0 | L92: 0 | M92: 0
A93: ='Org structure'!E87 -> 8.8 - | C93: 0 | D93: 0 | I93: 0 | J93: 0 | K93: 0 | L93: 0 | M93: 0
A94: ='Org structure'!E88 -> 8.9 - | C94: 0 | D94: 0 | I94: 0 | J94: 0 | K94: 0 | L94: 0 | M94: 0
A95: ='Org structure'!E89 -> 8.10 - | C95: 0 | D95: 0 | I95: 0 | J95: 0 | K95: 0 | L95: 0 | M95: 0
A96: ='Org structure'!A10 -> Vote 9 - [NAME OF VOTE 9] | C96: =SUM(C97:C106) -> 0 | D96: =SUM(D97:D106) -> 0 | E96: 0 | F96: 0 | G96: 0 | H96: 0 | I96: 0 | J96: 0 | K96: 0 | L96: =SUM(L97:L106) -> 0 | M96: =SUM(M97:M106) -> 0
A97: ='Org structure'!E91 -> 9.1 - | C97: 0 | D97: 0 | I97: 0 | J97: 0 | K97: 0 | L97: 0 | M97: 0
A98: ='Org structure'!E92 -> 9.2 - | C98: 0 | D98: 0 | I98: 0 | J98: 0 | K98: 0 | L98: 0 | M98: 0
A99: ='Org structure'!E93 -> 9.3 - | C99: 0 | D99: 0 | I99: 0 | J99: 0 | K99: 0 | L99: 0 | M99: 0
A100: ='Org structure'!E94 -> 9.4 - | C100: 0 | D100: 0 | I100: 0 | J100: 0 | K100: 0 | L100: 0 | M100: 0
A101: ='Org structure'!E95 -> 9.5 - | C101: 0 | D101: 0 | I101: 0 | J101: 0 | K101: 0 | L101: 0 | M101: 0
A102: ='Org structure'!E96 -> 9.6 - | C102: 0 | D102: 0 | I102: 0 | J102: 0 | K102: 0 | L102: 0 | M102: 0
A103: ='Org structure'!E97 -> 9.7 - | C103: 0 | D103: 0 | I103: 0 | J103: 0 | K103: 0 | L103: 0 | M103: 0
A104: ='Org structure'!E98 -> 9.8 - | C104: 0 | D104: 0 | I104: 0 | J104: 0 | K104: 0 | L104: 0 | M104: 0
A105: ='Org structure'!E99 -> 9.9 - | C105: 0 | D105: 0 | I105: 0 | J105: 0 | K105: 0 | L105: 0 | M105: 0
A106: ='Org structure'!E100 -> 9.10 - | C106: 0 | D106: 0 | I106: 0 | J106: 0 | K106: 0 | L106: 0 | M106: 0
A107: ='Org structure'!A11 -> Vote 10 - [NAME OF VOTE 10] | C107: =SUM(C108:C117) -> 0 | D107: =SUM(D108:D117) -> 0 | E107: 0 | F107: 0 | G107: 0 | H107: 0 | I107: 0 | J107: 0 | K107: 0 | L107: =SUM(L108:L117) -> 0 | M107: =SUM(M108:M117) -> 0
A108: ='Org structure'!E102 -> 10.1 - | C108: 0 | D108: 0 | I108: 0 | J108: 0 | K108: 0 | L108: 0 | M108: 0
A109: ='Org structure'!E103 -> 10.2 - | C109: 0 | D109: 0 | I109: 0 | J109: 0 | K109: 0 | L109: 0 | M109: 0
A110: ='Org structure'!E104 -> 10.3 - | C110: 0 | D110: 0 | I110: 0 | J110: 0 | K110: 0 | L110: 0 | M110: 0
A111: ='Org structure'!E105 -> 10.4 - | C111: 0 | D111: 0 | I111: 0 | J111: 0 | K111: 0 | L111: 0 | M111: 0
A112: ='Org structure'!E106 -> 10.5 - | C112: 0 | D112: 0 | I112: 0 | J112: 0 | K112: 0 | L112: 0 | M112: 0
A113: ='Org structure'!E107 -> 10.6 - | C113: 0 | D113: 0 | I113: 0 | J113: 0 | K113: 0 | L113: 0 | M113: 0
A114: ='Org structure'!E108 -> 10.7 - | C114: 0 | D114: 0 | I114: 0 | J114: 0 | K114: 0 | L114: 0 | M114: 0
A115: ='Org structure'!E109 -> 10.8 - | C115: 0 | D115: 0 | I115: 0 | J115: 0 | K115: 0 | L115: 0 | M115: 0
A116: ='Org structure'!E110 -> 10.9 - | C116: 0 | D116: 0 | I116: 0 | J116: 0 | K116: 0 | L116: 0 | M116: 0
A117: ='Org structure'!E111 -> 10.10 - | C117: 0 | D117: 0 | I117: 0 | J117: 0 | K117: 0 | L117: 0 | M117: 0
A118: ='Org structure'!A12 -> Vote 11 - [NAME OF VOTE 11] | C118: =SUM(C119:C128) -> 0 | D118: =SUM(D119:D128) -> 0 | E118: 0 | F118: 0 | G118: 0 | H118: 0 | I118: 0 | J118: 0 | K118: 0 | L118: =SUM(L119:L128) -> 0 | M118: =SUM(M119:M128) -> 0
A119: ='Org structure'!E113 -> 11.1 - | C119: 0 | D119: 0 | I119: 0 | J119: 0 | K119: 0 | L119: 0 | M119: 0
A120: ='Org structure'!E114 -> 11.2 - | C120: 0 | D120: 0 | I120: 0 | J120: 0 | K120: 0 | L120: 0 | M120: 0
A121: ='Org structure'!E115 -> 11.3 - | C121: 0 | D121: 0 | I121: 0 | J121: 0 | K121: 0 | L121: 0 | M121: 0
A122: ='Org structure'!E116 -> 11.4 - | C122: 0 | D122: 0 | I122: 0 | J122: 0 | K122: 0 | L122: 0 | M122: 0
A123: ='Org structure'!E117 -> 11.5 - | C123: 0 | D123: 0 | I123: 0 | J123: 0 | K123: 0 | L123: 0 | M123: 0
A124: ='Org structure'!E118 -> 11.6 - | C124: 0 | D124: 0 | I124: 0 | J124: 0 | K124: 0 | L124: 0 | M124: 0
A125: ='Org structure'!E119 -> 11.7 - | C125: 0 | D125: 0 | I125: 0 | J125: 0 | K125: 0 | L125: 0 | M125: 0
A126: ='Org structure'!E120 -> 11.8 - | C126: 0 | D126: 0 | I126: 0 | J126: 0 | K126: 0 | L126: 0 | M126: 0
A127: ='Org structure'!E121 -> 11.9 - | C127: 0 | D127: 0 | I127: 0 | J127: 0 | K127: 0 | L127: 0 | M127: 0
A128: ='Org structure'!E122 -> 11.10 - | C128: 0 | D128: 0 | I128: 0 | J128: 0 | K128: 0 | L128: 0 | M128: 0
A129: ='Org structure'!A13 -> Vote 12 - [NAME OF VOTE 12] | C129: =SUM(C130:C139) -> 0 | D129: =SUM(D130:D139) -> 0 | E129: 0 | F129: 0 | G129: 0 | H129: 0 | I129: 0 | J129: 0 | K129: 0 | L129: =SUM(L130:L139) -> 0 | M129: =SUM(M130:M139) -> 0
A130: ='Org structure'!E124 -> 12.1 - | C130: 0 | D130: 0 | I130: 0 | J130: 0 | K130: 0 | L130: 0 | M130: 0
A131: ='Org structure'!E125 -> 12.2 - | C131: 0 | D131: 0 | I131: 0 | J131: 0 | K131: 0 | L131: 0 | M131: 0
A132: ='Org structure'!E126 -> 12.3 - | C132: 0 | D132: 0 | I132: 0 | J132: 0 | K132: 0 | L132: 0 | M132: 0
A133: ='Org structure'!E127 -> 12.4 - | C133: 0 | D133: 0 | I133: 0 | J133: 0 | K133: 0 | L133: 0 | M133: 0
A134: ='Org structure'!E128 -> 12.5 - | C134: 0 | D134: 0 | I134: 0 | J134: 0 | K134: 0 | L134: 0 | M134: 0
A135: ='Org structure'!E129 -> 12.6 - | C135: 0 | D135: 0 | I135: 0 | J135: 0 | K135: 0 | L135: 0 | M135: 0
A136: ='Org structure'!E130 -> 12.7 - | C136: 0 | D136: 0 | I136: 0 | J136: =SUM(E136:I136) -> 0 | K136: =IF(D136=0,C136+J136,D136+J136) -> 0 | L136: 0 | M136: 0
A137: ='Org structure'!E131 -> 12.8 - | C137: 0 | D137: 0 | I137: 0 | J137: =SUM(E137:I137) -> 0 | K137: =IF(D137=0,C137+J137,D137+J137) -> 0 | L137: 0 | M137: 0
A138: ='Org structure'!E132 -> 12.9 - | C138: 0 | D138: 0 | I138: 0 | J138: =SUM(E138:I138) -> 0 | K138: =IF(D138=0,C138+J138,D138+J138) -> 0 | L138: 0 | M138: 0
A139: ='Org structure'!E133 -> 12.10 - | C139: 0 | D139: 0 | I139: 0 | J139: =SUM(E139:I139) -> 0 | K139: =IF(D139=0,C139+J139,D139+J139) -> 0 | L139: 0 | M139: 0
A140: ='Org structure'!A14 -> Vote 13 - [NAME OF VOTE 13] | C140: =SUM(C141:C150) -> 0 | D140: =SUM(D141:D150) -> 0 | E140: 0 | F140: 0 | G140: 0 | H140: 0 | I140: 0 | J140: =SUM(E140:I140) -> 0 | K140: =IF(D140=0,C140+J140,D140+J140) -> 0 | L140: =SUM(L141:L150) -> 0 | M140: =SUM(M141:M150) -> 0
A141: ='Org structure'!E135 -> 13.1 - | C141: 0 | D141: 0 | I141: 0 | J141: 0 | K141: 0 | L141: 0 | M141: 0
A142: ='Org structure'!E136 -> 13.2 - | C142: 0 | D142: 0 | I142: 0 | J142: 0 | K142: 0 | L142: 0 | M142: 0
A143: ='Org structure'!E137 -> 13.3 - | C143: 0 | D143: 0 | I143: 0 | J143: 0 | K143: 0 | L143: 0 | M143: 0
A144: ='Org structure'!E138 -> 13.4 - | C144: 0 | D144: 0 | I144: 0 | J144: 0 | K144: 0 | L144: 0 | M144: 0
A145: ='Org structure'!E139 -> 13.5 - | C145: 0 | D145: 0 | I145: 0 | J145: 0 | K145: 0 | L145: 0 | M145: 0
A146: ='Org structure'!E140 -> 13.6 - | C146: 0 | D146: 0 | I146: 0 | J146: 0 | K146: 0 | L146: 0 | M146: 0
A147: ='Org structure'!E141 -> 13.7 - | C147: 0 | D147: 0 | I147: 0 | J147: 0 | K147: 0 | L147: 0 | M147: 0
A148: ='Org structure'!E142 -> 13.8 - | C148: 0 | D148: 0 | I148: 0 | J148: 0 | K148: 0 | L148: 0 | M148: 0
A149: ='Org structure'!E143 -> 13.9 - | C149: 0 | D149: 0 | I149: 0 | J149: 0 | K149: 0 | L149: 0 | M149: 0
A150: ='Org structure'!E144 -> 13.10 - | C150: 0 | D150: 0 | I150: 0 | J150: 0 | K150: 0 | L150: 0 | M150: 0
A151: ='Org structure'!A15 -> Vote 14 - [NAME OF VOTE 14] | C151: =SUM(C152:C161) -> 0 | D151: =SUM(D152:D161) -> 0 | E151: 0 | F151: 0 | G151: 0 | H151: 0 | I151: 0 | J151: 0 | K151: 0 | L151: =SUM(L152:L161) -> 0 | M151: =SUM(M152:M161) -> 0
A152: ='Org structure'!E146 -> 14.1 - | C152: 0 | D152: 0 | I152: 0 | J152: 0 | K152: 0 | L152: 0 | M152: 0
A153: ='Org structure'!E147 -> 14.2 - | C153: 0 | D153: 0 | I153: 0 | J153: 0 | K153: 0 | L153: 0 | M153: 0
A154: ='Org structure'!E148 -> 14.3 - | C154: 0 | D154: 0 | I154: 0 | J154: 0 | K154: 0 | L154: 0 | M154: 0
A155: ='Org structure'!E149 -> 14.4 - | C155: 0 | D155: 0 | I155: 0 | J155: 0 | K155: 0 | L155: 0 | M155: 0
A156: ='Org structure'!E150 -> 14.5 - | C156: 0 | D156: 0 | I156: 0 | J156: 0 | K156: 0 | L156: 0 | M156: 0
A157: ='Org structure'!E151 -> 14.6 - | C157: 0 | D157: 0 | I157: 0 | J157: 0 | K157: 0 | L157: 0 | M157: 0
A158: ='Org structure'!E152 -> 14.7 - | C158: 0 | D158: 0 | I158: 0 | J158: 0 | K158: 0 | L158: 0 | M158: 0
A159: ='Org structure'!E153 -> 14.8 - | C159: 0 | D159: 0 | I159: 0 | J159: 0 | K159: 0 | L159: 0 | M159: 0
A160: ='Org structure'!E154 -> 14.9 - | C160: 0 | D160: 0 | I160: 0 | J160: 0 | K160: 0 | L160: 0 | M160: 0
A161: ='Org structure'!E155 -> 14.10 - | C161: 0 | D161: 0 | I161: 0 | J161: 0 | K161: 0 | L161: 0 | M161: 0
A162: ='Org structure'!A16 -> Vote 15 - [NAME OF VOTE 15] | C162: =SUM(C163:C172) -> 0 | D162: =SUM(D163:D172) -> 0 | E162: 0 | F162: 0 | G162: 0 | H162: 0 | I162: 0 | J162: 0 | K162: 0 | L162: =SUM(L163:L172) -> 0 | M162: =SUM(M163:M172) -> 0
A163: ='Org structure'!E157 -> 15.1 - | C163: 0 | D163: 0 | I163: 0 | J163: 0 | K163: 0 | L163: 0 | M163: 0
A164: ='Org structure'!E158 -> 15.2 - | C164: 0 | D164: 0 | I164: 0 | J164: 0 | K164: 0 | L164: 0 | M164: 0
A165: ='Org structure'!E159 -> 15.3 - | C165: 0 | D165: 0 | I165: 0 | J165: 0 | K165: 0 | L165: 0 | M165: 0
A166: ='Org structure'!E160 -> 15.4 - | C166: 0 | D166: 0 | I166: 0 | J166: 0 | K166: 0 | L166: 0 | M166: 0
A167: ='Org structure'!E161 -> 15.5 - | C167: 0 | D167: 0 | I167: 0 | J167: 0 | K167: 0 | L167: 0 | M167: 0
A168: ='Org structure'!E162 -> 15.6 - | C168: 0 | D168: 0 | I168: 0 | J168: 0 | K168: 0 | L168: 0 | M168: 0
A169: ='Org structure'!E163 -> 15.7 - | C169: 0 | D169: 0 | I169: 0 | J169: 0 | K169: 0 | L169: 0 | M169: 0
A170: ='Org structure'!E164 -> 15.8 - | C170: 0 | D170: 0 | I170: 0 | J170: 0 | K170: 0 | L170: 0 | M170: 0
A171: ='Org structure'!E165 -> 15.9 - | C171: 0 | D171: 0 | I171: 0 | J171: 0 | K171: 0 | L171: 0 | M171: 0
A172: ='Org structure'!E166 -> 15.10 - | C172: 0 | D172: 0 | I172: 0 | J172: 0 | K172: 0 | L172: 0 | M172: 0
A173: Capital multi-year expenditure sub-total | C173: =C8+C19+C30+C41+C52+C63+C74+C85+C96+C107+C118+C129+C140+C151+C162 -> 0 | D173: =D8+D19+D30+D41+D52+D63+D74+D85+D96+D107+D118+D129+D140+D151+D162 -> 0 | E173: 0 | F173: 0 | G173: 0 | H173: 0 | I173: 0 | J173: 0 | K173: 0 | L173: =L8+L19+L30+L41+L52+L63+L74+L85+L96+L107+L118+L129+L140+L151+L162 -> 0 | M173: =M8+M19+M30+M41+M52+M63+M74+M85+M96+M107+M118+M129+M140+M151+M162 -> 0
A175: Capital expenditure - Municipal Vote | B175: 2
A176: Single-year expenditure appropriation
A177: =B5B!A8 -> Vote 1 - City Manager | C177: =SUM(C178:C187) -> 9040000 | D177: =SUM(D178:D187) -> 0 | E177: 0 | F177: 0 | G177: 0 | H177: 0 | I177: 0 | J177: =SUM(E177:I177) -> 0 | K177: =IF(D177=0,C177+J177,D177+J177) -> 9040000 | L177: =SUM(L178:L187) -> 3750000 | M177: =SUM(M178:M187) -> 4530000
A178: =B5B!A9 -> 1,1 - Internal Audit and Compliance | C178: 510000 | I178: -100000 | J178: =SUM(E178:I178) -> -100000 | K178: =IF(D178=0,C178+J178,D178+J178) -> 410000 | L178: 2250000 | M178: 2530000
A179: =B5B!A10 -> 1,2 - Office of the City Manager | C179: 1700000 | I179: 100000 | J179: =SUM(E179:I179) -> 100000 | K179: =IF(D179=0,C179+J179,D179+J179) -> 1800000 | L179: 1500000 | M179: 2000000
A180: =B5B!A11 -> 1,3 - Political Support | C180: 4940000 | J180: 0 | K180: 4940000 | L180: 0 | M180: 0
A181: =B5B!A12 -> 1,4 - Strategic Planning | C181: 1890000 | J181: 0 | K181: 1890000 | L181: 0 | M181: 0
A182: =B5B!A13 -> 1,5 - [Name of sub-vote] | C182: 0 | D182: 0 | I182: 0 | J182: 0 | K182: 0 | L182: 0 | M182: 0
A183: =B5B!A14 -> 1,6 - [Name of sub-vote] | C183: 0 | D183: 0 | I183: 0 | J183: 0 | K183: 0 | L183: 0 | M183: 0
A184: =B5B!A15 -> 1,7 - [Name of sub-vote] | C184: 0 | D184: 0 | I184: 0 | J184: 0 | K184: 0 | L184: 0 | M184: 0
A185: =B5B!A16 -> 1,8 - [Name of sub-vote] | C185: 0 | D185: 0 | I185: 0 | J185: 0 | K185: 0 | L185: 0 | M185: 0
A186: =B5B!A17 -> 1,9 - [Name of sub-vote] | C186: 0 | D186: 0 | I186: 0 | J186: 0 | K186: 0 | L186: 0 | M186: 0
A187: =B5B!A18 -> 1.10 - [Name of sub-vote] | C187: 0 | D187: 0 | I187: 0 | J187: 0 | K187: 0 | L187: 0 | M187: 0
A188: =B5B!A19 -> Vote 2 - City Finance | C188: =SUM(C189:C198) -> 39856796.95 | D188: =SUM(D189:D198) -> 0 | E188: 0 | F188: 0 | G188: 0 | H188: 0 | I188: 3240000.05 | J188: =SUM(E188:I188) -> 3240000.05 | K188: =IF(D188=0,C188+J188,D188+J188) -> 43096797 | L188: =SUM(L189:L198) -> 16636607 | M188: =SUM(M189:M198) -> 10389390
A189: =B5B!A20 -> 2,1 - Asset Management | C189: 4864855.4 | I189: 429999.6 | J189: =SUM(E189:I189) -> 429999.6 | K189: =IF(D189=0,C189+J189,D189+J189) -> 5294855 | L189: 543500 | M189: 418500
A190: =B5B!A21 -> 2,2 - Budget and Treasury Management | C190: 31362168.94 | I190: -7349999.94 | J190: -7349999.94 | K190: 24012169 | L190: 3500000 | M190: 3500000
A191: =B5B!A22 -> 2,3 - Expenditure Management | C191: 163000 | I191: 20000 | J191: 20000 | K191: 183000 | L191: 12249107 | M191: 6077890
A192: =B5B!A23 -> 2,4 - Revenue Management | C192: 2055000 | I192: 10340000 | J192: 10340000 | K192: 12395000 | L192: 0 | M192: 0
A193: =B5B!A24 -> 2,5 - Supply Chain Management | C193: 1411772.61 | I193: -199999.61 | J193: -199999.61 | K193: 1211773 | L193: 344000 | M193: 393000
A194: =B5B!A25 -> 2,6 - [Name of sub-vote] | J194: 0 | K194: 0
A195: =B5B!A26 -> 2,7 - [Name of sub-vote] | J195: 0 | K195: 0
A196: =B5B!A27 -> 2,8 - [Name of sub-vote] | J196: 0 | K196: 0
A197: =B5B!A28 -> 2,9 - [Name of sub-vote] | J197: 0 | K197: 0
A198: =B5B!A29 -> 2.10 - [Name of sub-vote] | J198: 0 | K198: 0
A199: =B5B!A30 -> Vote 3 - Community Services and Social Equity | C199: =SUM(C200:C209) -> 50556700 | D199: =SUM(D200:D209) -> 0 | E199: 0 | F199: 0 | G199: 0 | H199: 0 | I199: 5919721.5 | J199: =SUM(E199:I199) -> 5919721.5 | K199: =IF(D199=0,C199+J199,D199+J199) -> 56476421.5 | L199: =SUM(L200:L209) -> 210000 | M199: =SUM(M200:M209) -> 180000
A200: =B5B!A31 -> 3,1 - Area Based Management | C200: 2459000 | I200: -416900 | J200: =SUM(E200:I200) -> -416900 | K200: =IF(D200=0,C200+J200,D200+J200) -> 2042100 | L200: 210000 | M200: 180000
A201: =B5B!A32 -> 3,2 - Public Safety, Emergency Services and Enforcement | C201: 2500000 | J201: 0 | K201: 2500000 | L201: 0 | M201: 0
... 146 more rows

Sheet B6-FinPos
A1: =muni&" - "&_ADJ6&" - "&Date -> KZN225 Msunduzi - Table B6 Adjustments Budget Financial Position -
A2: =desc -> Description | B2: =head27 -> Ref | C2: =Head2 -> Budget Year 2021/22 | L2: =Head10 -> Budget Year +1 2022/23 | M2: =Head11 -> Budget Year +2 2023/24
C3: =Head6 -> Original Budget | D3: =Head54 -> Prior Adjusted | E3: =Head51 -> Accum. Funds | F3: =Head52 -> Multi-year capital | G3: =Head53 -> Unfore. Unavoid. | H3: =Head55 -> Nat. or Prov. Govt | I3: =Head50 -> Other Adjusts. | J3: =Head56 -> Total Adjusts. | K3: =Head7 -> Adjusted Budget | L3: =Head7 -> Adjusted Budget | M3: =Head7 -> Adjusted Budget
D4: 3 | E4: 4 | F4: 5 | G4: 6 | H4: 7 | I4: 8 | J4: 9 | K4: 10
A5: R thousands | C5: A | D5: A1 | E5: B | F5: C | G5: D | H5: E | I5: F | J5: G | K5: H
A6: ASSETS
A7: Current assets
A8: Cash | C8: 355836461 | D8: 0 | I8: -12822040.95 | J8: =SUM(E8:I8) -> -12822040.95 | K8: =IF(D8=0,C8+J8,D8+J8) -> 343014420 | L8: 307188233 | M8: 91500140
A9: Call investment deposits | B9: 1 | C9: 0 | D9: 0 | J9: 0 | K9: 0 | M9: 836000
A10: Consumer debtors | B10: 1 | C10: ='SB2'!C14 -> 2549906678 | D10: ='SB2'!D14 -> 0 | E10: ='SB2'!E14 -> 0 | F10: ='SB2'!F14 -> 0 | G10: ='SB2'!G14 -> 0 | H10: ='SB2'!H14 -> 0 | I10: ='SB2'!I14 -> 0 | J10: 0 | K10: =IF(D10=0,C10+J10,D10+J10) -> 2549906678 | L10: ='SB2'!L14 -> 7682335760 | M10: ='SB2'!M14 -> 7680907024
A11: Other debtors | C11: 729641518.6 | D11: 0 | J11: 0 | K11: 729641518.6 | L11: 0 | M11: 256351910.1
A12: Current portion of long-term receivables | C12: 0 | D12: 0 | J12: 0 | K12: 0 | L12: 0 | M12: =K8-M11 -> 86662509.97
A13: Inventory | C13: 173496047.1 | D13: ='SB2'!D115 -> 0 | E13: ='SB2'!E115 -> 0 | F13: ='SB2'!F115 -> 0 | G13: ='SB2'!G115 -> 0 | H13: ='SB2'!H115 -> 0 | I13: ='SB2'!I115 -> 0 | J13: 0 | K13: 173496047.1 | L13: ='SB2'!L115 -> 156571419.1 | M13: ='SB2'!M115 -> 139765329.1
A14: Total current assets | C14: =SUM(C8:C13) -> 3808880704 | D14: 0 | E14: 0 | F14: 0 | G14: 0 | H14: 0 | I14: -12822040.95 | J14: -12822040.95 | K14: 3796058663 | L14: 8146095412 | M14: 8256022913
A16: Non current assets
A17: Long-term receivables | C17: 120 | D17: 0 | J17: =SUM(E17:I17) -> 0 | K17: =IF(D17=0,C17+J17,D17+J17) -> 120 | L17: 0 | M17: 0
A18: Investments | C18: 0 | D18: 0 | J18: =SUM(E18:I18) -> 0 | K18: =IF(D18=0,C18+J18,D18+J18) -> 0 | L18: 3336722 | M18: 3749142
A19: Investment property | C19: 821671435 | D19: 0 | J19: =SUM(E19:I19) -> 0 | K19: =IF(D19=0,C19+J19,D19+J19) -> 821671435 | L19: 829272486 | M19: 879028835
A20: Investment in Associate | C20: 0 | D20: 0 | J20: =SUM(E20:I20) -> 0 | K20: =IF(D20=0,C20+J20,D20+J20) -> 0 | L20: 0 | M20: 0
A21: Property, plant and equipment | B21: 1 | C21: 6755609329 | D21: ='SB2'!D121 -> 0 | E21: ='SB2'!E121 -> 0 | F21: ='SB2'!F121 -> 0 | G21: ='SB2'!G121 -> 0 | H21: ='SB2'!H121 -> 0 | I21: ='SB2'!I121 -> 78905343.05 | J21: =SUM(E21:I21) -> 78905343.05 | K21: =IF(D21=0,C21+J21,D21+J21) -> 6834514672 | L21: ='SB2'!L121 -> 6541646195 | M21: ='SB2'!M121 -> 5957212214
A23: Biological | C23: 1070250 | D23: 0 | J23: =SUM(E23:I23) -> 0 | K23: =IF(D23=0,C23+J23,D23+J23) -> 1070250 | L23: 1065650 | M23: 1065650
A24: Intangible | C24: 30700413 | D24: 0 | J24: =SUM(E24:I24) -> 0 | K24: =IF(D24=0,C24+J24,D24+J24) -> 30700413 | L24: 46132727 | M24: 46132727
A25: Other non-current assets | C25: 360375178.5 | D25: 0 | J25: =SUM(E25:I25) -> 0 | K25: =IF(D25=0,C25+J25,D25+J25) -> 360375178.5 | L25: 0 | M25: 0
A26: Total non current assets | C26: =SUM(C17:C21)+SUM(C23:C25) -> 7969426726 | D26: =SUM(D17:D21)+SUM(D23:D25) -> 0 | E26: 0 | F26: 0 | G26: 0 | H26: 0 | I26: 78905343.05 | J26: 78905343.05 | K26: 8048332069 | L26: 7421453780 | M26: 6887188568
A27: TOTAL ASSETS | C27: =C14+C26 -> 1.177830743e+10 | D27: 0 | E27: 0 | F27: 0 | G27: 0 | H27: 0 | I27: 66083302.1 | J27: 66083302.1 | K27: 1.184439073e+10 | L27: 1.556754919e+10 | M27: 1.514321148e+10
A29: LIABILITIES
A30: Current liabilities
A31: Bank overdraft | C31: 0 | D31: 0 | I31: 0 | J31: =SUM(E31:I31) -> 0 | K31: =IF(D31=0,C31+J31,D31+J31) -> 0 | L31: 0 | M31: 0
A32: Borrowing | C32: 95346077.83 | D32: ='SB2'!D127 -> 0 | E32: ='SB2'!E127 -> 0 | F32: ='SB2'!F127 -> 0 | G32: ='SB2'!G127 -> 0 | H32: ='SB2'!H127 -> 0 | I32: ='SB2'!I127 -> 0 | J32: =SUM(E32:I32) -> 0 | K32: =IF(D32=0,C32+J32,D32+J32) -> 95346077.83 | L32: ='SB2'!L127 -> 100538517 | M32: ='SB2'!M127 -> 102063188
A33: Consumer deposits | C33: 114344431 | D33: 0 | J33: =SUM(E33:I33) -> 0 | K33: =IF(D33=0,C33+J33,D33+J33) -> 114344431 | L33: 121205097 | M33: 128477402
A34: Trade and other payables | C34: ='SB2'!C134 -> 945608981.8 | D34: ='SB2'!D134 -> 0 | E34: ='SB2'!E134 -> 0 | F34: ='SB2'!F134 -> 0 | G34: ='SB2'!G134 -> 0 | H34: ='SB2'!H134 -> 0 | I34: ='SB2'!I134 -> 0 | J34: =SUM(E34:I34) -> 0 | K34: =IF(D34=0,C34+J34,D34+J34) -> 945608981.8 | L34: ='SB2'!L134 -> 1494933269 | M34: ='SB2'!M134 -> 1879122078
A35: Provisions | C35: 140397812 | D35: 0 | J35: =SUM(E35:I35) -> 0 | K35: =IF(D35=0,C35+J35,D35+J35) -> 140397812 | L35: 148821681 | M35: 157750981
A36: Total current liabilities | C36: =SUM(C31:C35) -> 1295697303 | D36: 0 | E36: 0 | F36: 0 | G36: 0 | H36: 0 | I36: 0 | J36: 0 | K36: 1295697303 | L36: 1865498564 | M36: 2267413649
A38: Non current liabilities
A39: Borrowing | B39: 1 | C39: ='SB2'!C139 -> 377458040.8 | D39: ='SB2'!D139 -> 0 | E39: ='SB2'!E139 -> 0 | F39: ='SB2'!F139 -> 0 | G39: ='SB2'!G139 -> 0 | H39: ='SB2'!H139 -> 0 | I39: ='SB2'!I139 -> 0 | J39: =SUM(E39:I39) -> 0 | K39: =IF(D39=0,C39+J39,D39+J39) -> 377458040.8 | L39: ='SB2'!L139 -> 158555608 | M39: ='SB2'!M139 -> 141873016
A40: Provisions | B40: 1 | C40: 809779414.9 | D40: ='SB2'!D146 -> 0 | E40: ='SB2'!E146 -> 0 | F40: ='SB2'!F146 -> 0 | G40: ='SB2'!G146 -> 0 | H40: ='SB2'!H146 -> 0 | I40: ='SB2'!I146 -> 0 | J40: =SUM(E40:I40) -> 0 | K40: =IF(D40=0,C40+J40,D40+J40) -> 809779414.9 | L40: ='SB2'!L146 -> 809779415 | M40: ='SB2'!M146 -> 809779415
A41: Total non current liabilities | C41: =SUM(C39:C40) -> 1187237456 | D41: 0 | E41: 0 | F41: 0 | G41: 0 | H41: 0 | I41: 0 | J41: 0 | K41: 1187237456 | L41: 968335023 | M41: 951652431
A42: TOTAL LIABILITIES | C42: =C36+C41 -> 2482934758 | D42: 0 | E42: 0 | F42: 0 | G42: 0 | H42: 0 | I42: 0 | J42: 0 | K42: 2482934758 | L42: 2833833587 | M42: 3219066080
A44: NET ASSETS | B44: 2 | C44: =C27-C42 -> 9295372672 | D44: 0 | E44: 0 | F44: 0 | G44: 0 | H44: 0 | I44: 66083302.1 | J44: 66083302.1 | K44: 9361455974 | L44: 1.273371561e+10 | M44: 1.19241454e+10
A46: COMMUNITY WEALTH/EQUITY
A47: Accumulated Surplus/(Deficit) | C47: ='SB2'!C158 -> 9066459597 | D47: ='SB2'!D158 -> 0 | E47: ='SB2'!E158 -> 0 | F47: ='SB2'!F158 -> 0 | G47: ='SB2'!G158 -> 0 | H47: ='SB2'!H158 -> 0 | I47: ='SB2'!I158 -> -8369772.108 | J47: =SUM(E47:I47) -> -8369772.108 | K47: =IF(D47=0,C47+J47,D47+J47) -> 9058089825 | L47: ='SB2'!L158 -> 1.316237476e+10 | M47: ='SB2'!M158 -> 1.205020043e+10
A48: Reserves | C48: ='SB2'!C165 -> 228913258 | D48: ='SB2'!D165 -> 0 | E48: ='SB2'!E165 -> 0 | F48: ='SB2'!F165 -> 0 | G48: ='SB2'!G165 -> 0 | H48: ='SB2'!H165 -> 0 | I48: ='SB2'!I165 -> 0 | J48: =SUM(E48:I48) -> 0 | K48: =IF(D48=0,C48+J48,D48+J48) -> 228913258 | L48: ='SB2'!L165 -> 138151322 | M48: ='SB2'!M165 -> 138151322
A50: TOTAL COMMUNITY WEALTH/EQUITY | C50: =SUM(C47:C48) -> 9295372855 | D50: =SUM(D47:D48) -> 0 | E50: 0 | F50: 0 | G50: 0 | H50: 0 | I50: -8369772.108 | J50: -8369772.108 | K50: =SUM(K47:K48) -> 9287003083 | L50: 1.330052609e+10 | M50: 1.218835175e+10
A51: =head27a -> References
A52: 1. Detail to be provided in Table SA3
A53: 2. Net assets must balance with Total Community Wealth/Equity
A54: 3. Only complete if a previous adjusted budget has been approved in the same financial year. Reflect most recent adjusted budget.
A55: 4. Additional cash-backed accumulated funds/unspent funds (MFMA section 18(1)(b) and section 28(2)(e)) identified after the Original Budget approved and after annual financial statements audited (note: only where underspending could not reasonably have been foreseen)
A56: 5. Increases of funds approved under MFMA section 31
A57: 6. Adjustments approved in accordance with MFMA section 29
A58: 7. Adjustments to transfers from National or Provincial Government
A59: 8. Adjusts. = 'Other' Adjustments proposed to be approved; including revenue under-collection (MFMA section 28(2)(a)); additional revenue appropriation on existing programmes (section 28(2))(b); projected savings (section 28(2)(d)); error correction (section 28(2)(f))
A60: 9. G = B + C + D + E + F
A61: 10. Adjusted Budget H = (A or A1/2 etc) + G
A63: check balance | C63: =C44-C50 -> -183.4407291 | D63: 0 | E63: 0 | F63: 0 | G63: 0 | H63: 0 | I63: 74453036.57 | J63: 74453036.57 | K63: 74453036.57 | L63: 17945755.66 | M63: 19201958.55
C65: =C63/2 -> -91.72036457 | D65: =D63/2 -> 0 | E65: 0 | F65: 0 | G65: 0 | H65: 0
C67: =C63*2 -> -366.8814583 | D67: =D63*2 -> 0 | E67: 0 | F67: 0 | G67: 0 | H67: 0

Sheet B7-CFlow
A1: =muni&" - "&_ADJ7&" - "&Date -> KZN225 Msunduzi - Table B7 Adjustments Budget Cash Flows -
A2: =desc -> Description | B2: =head27 -> Ref | C2: =Head2 -> Budget Year 2021/22 | L2: =Head10 -> Budget Year +1 2022/23 | M2: =Head11 -> Budget Year +2 2023/24
C3: =Head6 -> Original Budget | D3: =Head54 -> Prior Adjusted | E3: =Head51 -> Accum. Funds | F3: =Head52 -> Multi-year capital | G3: =Head53 -> Unfore. Unavoid. | H3: =Head55 -> Nat. or Prov. Govt | I3: =Head50 -> Other Adjusts. | J3: =Head56 -> Total Adjusts. | K3: =Head7 -> Adjusted Budget | L3: =Head7 -> Adjusted Budget | M3: =Head7 -> Adjusted Budget
D4: 3 | E4: 4 | F4: 5 | G4: 6 | H4: 7 | I4: 8 | J4: 9 | K4: 10
A5: R thousands | C5: A | D5: A1 | E5: B | F5: C | G5: D | H5: E | I5: F | J5: G | K5: H
A6: CASH FLOW FROM OPERATING ACTIVITIES
A7: Receipts
A8: Property rates | C8: 1228882075 | D8: 0 | J8: =SUM(E8:I8) -> 0 | K8: =IF(D8=0,C8+J8,D8+J8) -> 1228882075 | L8: 1347289688 | M8: 1419527632
A9: Service charges | C9: 3495506596 | D9: 0 | J9: =SUM(E9:I9) -> 0 | K9: =IF(D9=0,C9+J9,D9+J9) -> 3495506596 | L9: 3847781985 | M9: 4301176806
A10: Other revenue | C10: 187682425.7 | D10: 0 | J10: 0 | K10: 187682425.7 | L10: 198829953 | M10: 210819400
A11: Transfers and Subsidies - Operational | B11: 1 | C11: 661215834.8 | D11: 0 | I11: 64741213.55 | J11: 64741213.55 | K11: 725957048.3 | L11: 701406045 | M11: 706149380
A12: Transfers and Subsidies - Capital | B12: 1 | C12: 380796576 | D12: 0 | I12: 48874239 | J12: 48874239 | K12: 429670815 | L12: 320133640 | M12: 332437391
A13: Interest | C13: 229366140.9 | D13: 0 | J13: 0 | K13: 229366140.9 | L13: 17030213 | M13: 18057134
A14: Dividends | D14: 0 | I14: 0 | J14: 0 | K14: 0 | L14: 0 | M14: 0
A15: Payments
A16: Suppliers and employees | C16: -5465954566 | D16: 0 | I16: -121985186.7 | J16: =SUM(E16:I16) -> -121985186.7 | K16: =IF(D16=0,C16+J16,D16+J16) -> -5587939753 | L16: =-('SB15'!Q46-'SB15'!Q44-'SB15'!Q43-'SB15'!Q38+'SB15'!Q51) -> -3320521839 | M16: =-('SB15'!R46-'SB15'!R44-'SB15'!R43-'SB15'!R38+'SB15'!R51) -> -3631305978
A17: Finance charges | C17: -34724271.93 | D17: 0 | J17: =SUM(E17:I17) -> 0 | K17: =IF(D17=0,C17+J17,D17+J17) -> -34724271.93
A18: Transfers and Grants | B18: 1 | C18: -45862882.85 | D18: 0 | J18: =SUM(E18:I18) -> 0 | K18: =IF(D18=0,C18+J18,D18+J18) -> -45862882.85
A19: NET CASH FROM/(USED) OPERATING ACTIVITIES | C19: =SUM(C8:C14)+SUM(C16:C18) -> 636907927.5 | D19: 0 | E19: 0 | F19: 0 | G19: 0 | H19: 0 | I19: -8369734.158 | J19: =SUM(J8:J18) -> -8369734.158 | K19: =SUM(K8:K18) -> 628538193.4 | L19: =SUM(L8:L14)+SUM(L16:L18) -> 3111949685 | M19: =SUM(M8:M14)+SUM(M16:M18) -> 3356861765
A21: CASH FLOWS FROM INVESTING ACTIVITIES
A22: Receipts
A23: Proceeds on disposal of PPE | C23: 0 | D23: 0 | J23: =SUM(E23:I23) -> 0 | K23: =IF(D23=0,C23+J23,D23+J23) -> 0 | L23: 11982215 | M23: 12704743
A25: Decrease (increase) in non-current receivables | C25: 120 | D25: 0 | J25: =SUM(E25:I25) -> 0 | K25: =IF(D25=0,C25+J25,D25+J25) -> 120 | L25: 0 | M25: 0
A26: Decrease (increase) in non-current investments | C26: 0 | D26: 0 | J26: =SUM(E26:I26) -> 0 | K26: =IF(D26=0,C26+J26,D26+J26) -> 0 | L26: 0 | M26: 0
A27: Payments
A28: Capital assets | C28: -576301627 | D28: 0 | I28: -78905343.05 | J28: =SUM(E28:I28) -> -78905343.05 | K28: =IF(D28=0,C28+J28,D28+J28) -> -655206970 | L28: 0 | M28: 0
A29: NET CASH FROM/(USED) INVESTING ACTIVITIES | C29: =+C23+C25+C26+C28 -> -576301507 | D29: =+D23+D25+D26+D28 -> 0 | E29: =+E23+E25+E26+E28 -> 0 | F29: 0 | G29: 0 | H29: 0 | I29: =+I23+I25+I26+I28 -> -78905343.05 | J29: -78905343.05 | K29: -655206850 | L29: =+L23+L25+L26+L28 -> 11982215 | M29: =+M23+M25+M26+M28 -> 12704743
A31: CASH FLOWS FROM FINANCING ACTIVITIES
A32: Receipts
A33: Short term loans | C33: 0 | D33: 0 | I33: 0 | J33: =SUM(E33:I33) -> 0 | K33: =IF(D33=0,C33+J33,D33+J33) -> 0 | L33: 0
A34: Borrowing long term/refinancing | C34: 100000000 | D34: 0 | J34: =SUM(E34:I34) -> 0 | K34: =IF(D34=0,C34+J34,D34+J34) -> 100000000 | L34: 100000000
A35: Increase (decrease) in consumer deposits | C35: 0 | D35: 0 | I35: 0 | J35: =SUM(E35:I35) -> 0 | K35: =IF(D35=0,C35+J35,D35+J35) -> 0 | L35: 0 | M35: 0
A36: Payments
A37: Repayment of borrowing | C37: -91637534.15 | D37: 0 | I37: 0.1469487846 | J37: =SUM(E37:I37) -> 0.1469487846 | K37: =IF(D37=0,C37+J37,D37+J37) -> -91637534 | L37: 0 | M37: 0
A38: NET CASH FROM/(USED) FINANCING ACTIVITIES | C38: =SUM(C33:C35)+C37 -> 8362465.853 | D38: 0 | E38: 0 | F38: 0 | G38: 0 | H38: 0 | I38: 0.1469487846 | J38: =SUM(J33:J37) -> 0.1469487846 | K38: =SUM(K33:K37) -> 8362466 | L38: =SUM(L33:L35)+L37 -> 100000000 | M38: =SUM(M33:M35)+M37 -> 0
A40: NET INCREASE/ (DECREASE) IN CASH HELD | C40: =C19+C29+C38 -> 68968886.42 | D40: =D19+D29+D38 -> 0 | E40: =E19+E29+E38 -> 0 | F40: 0 | G40: 0 | H40: 0 | I40: =I19+I29+I38 -> -87275077.06 | J40: -87275077.06 | K40: -18306190.64 | L40: =L19+L29+L38 -> 3223931900 | M40: =M19+M29+M38 -> 3369566508
A41: Cash/cash equivalents at the year begin: | B41: 2 | C41: 286867694.7 | D41: 0 | I41: 74453036.26 | J41: =SUM(E41:I41) -> 74453036.26 | K41: =IF(D41=0,C41+J41,D41+J41) -> 361320731 | L41: 386206301 | M41: 3610138201
A42: Cash/cash equivalents at the year end: | B42: 2 | C42: =C40+C41 -> 355836581.2 | D42: =D40+D41 -> 0 | E42: =E40+E41 -> 0 | F42: 0 | G42: 0 | H42: 0 | I42: =I40+I41 -> -12822040.8 | J42: -12822040.8 | K42: =K40+K41 -> 343014540.4 | L42: =L40+L41 -> 3610138201 | M42: =M40+M41 -> 6979704709
A43: =head27a -> References
A44: 1. Local/District municipalities to include transfers from/to District/Local Municipalities
A45: 2. Cash equivalents includes investments with maturities of 3 months or less
A46: 3. Only complete if a previous adjusted budget has been approved in the same financial year. Reflect most recent adjusted budget.
A47: 4. Additional cash-backed accumulated funds/unspent funds (MFMA section 18(1)(b) and section 28(2)(e)) identified after the Original Budget approved and after annual financial statements audited (note: only where underspending could not reasonably have been foreseen)
A48: 5. Increases of funds approved under MFMA section 31
A49: 6. Adjustments approved in accordance with MFMA section 29
A50: 7. Adjustments to transfers from National or Provincial Government
A51: 8. Adjusts. = 'Other' Adjustments proposed to be approved; including revenue under-collection (MFMA section 28(2)(a)); additional revenue appropriation on existing programmes (section 28(2))(b); projected savings (section 28(2)(d)); error correction (section 28(2)(f))
A52: 9. G = B + C + D + E + F
A53: 10. Adjusted Budget H = (A or A1) + G

Sheet B8-ResRecon
A1: =muni&" - "&_ADJ8&" - "&Date -> KZN225 Msunduzi - Table B8 Cash backed reserves/accumulated surplus reconciliation -
A2: =desc -> Description | B2: =head27 -> Ref | C2: =Head2 -> Budget Year 2021/22 | L2: =Head10 -> Budget Year +1 2022/23 | M2: =Head11 -> Budget Year +2 2023/24
C3: =Head6 -> Original Budget | D3: =Head54 -> Prior Adjusted | E3: =Head51 -> Accum. Funds | F3: =Head52 -> Multi-year capital | G3: =Head53 -> Unfore. Unavoid. | H3: =Head55 -> Nat. or Prov. Govt | I3: =Head50 -> Other Adjusts. | J3: =Head56 -> Total Adjusts. | K3: =Head7 -> Adjusted Budget | L3: =Head7 -> Adjusted Budget | M3: =Head7 -> Adjusted Budget
D4: 3 | E4: 4 | F4: 5 | G4: 6 | H4: 7 | I4: 8 | J4: 9 | K4: 10
A5: R thousands | C5: A | D5: A1 | E5: B | F5: C | G5: D | H5: E | I5: F | J5: G | K5: H
A6: Cash and investments available
A7: Cash/cash equivalents at the year end | B7: 1 | C7: ='B7-CFlow'!C42 -> 355836581.2 | D7: ='B7-CFlow'!D42 -> 0 | E7: ='B7-CFlow'!E42 -> 0 | F7: ='B7-CFlow'!F42 -> 0 | G7: ='B7-CFlow'!G42 -> 0 | H7: ='B7-CFlow'!H42 -> 0 | I7: ='B7-CFlow'!I42 -> -12822040.8 | J7: =SUM(E7:I7) -> -12822040.8 | K7: =IF(D7=0,C7+J7,D7+J7) -> 343014540.4 | L7: ='B7-CFlow'!L42 -> 3610138201 | M7: ='B7-CFlow'!M42 -> 6979704709
A8: Other current investments > 90 days | C8: ='B6-FinPos'!C8+'B6-FinPos'!C9-'B6-FinPos'!C31-'B8-ResRecon'!C7 -> -120.1637665 | D8: ='B6-FinPos'!D8+'B6-FinPos'!D9-'B6-FinPos'!D31-'B8-ResRecon'!D7 -> 0 | E8: ='B6-FinPos'!E8+'B6-FinPos'!E9-'B6-FinPos'!E31-'B8-ResRecon'!E7 -> 0 | F8: ='B6-FinPos'!F8+'B6-FinPos'!F9-'B6-FinPos'!F31-'B8-ResRecon'!F7 -> 0 | G8: ='B6-FinPos'!G8+'B6-FinPos'!G9-'B6-FinPos'!G31-'B8-ResRecon'!G7 -> 0 | H8: ='B6-FinPos'!H8+'B6-FinPos'!H9-'B6-FinPos'!H31-'B8-ResRecon'!H7 -> 0 | I8: ='B6-FinPos'!I8+'B6-FinPos'!I9-'B6-FinPos'!I31-'B8-ResRecon'!I7 -> -0.1469487846 | J8: =SUM(E8:I8) -> -0.1469487846 | K8: =IF(D8=0,C8+J8,D8+J8) -> -120.3107153 | L8: ='B6-FinPos'!L8+'B6-FinPos'!L9-'B6-FinPos'!L31-'B8-ResRecon'!L7 -> -3302949968 | M8: ='B6-FinPos'!M8+'B6-FinPos'!M9-'B6-FinPos'!M31-'B8-ResRecon'!M7 -> -6887368569
A9: Non current assets - Investments | B9: 1 | C9: ='B6-FinPos'!C18 -> 0 | D9: ='B6-FinPos'!D18 -> 0 | E9: ='B6-FinPos'!E18 -> 0 | F9: ='B6-FinPos'!F18 -> 0 | G9: ='B6-FinPos'!G18 -> 0 | H9: ='B6-FinPos'!H18 -> 0 | I9: ='B6-FinPos'!I18 -> 0 | J9: =SUM(E9:I9) -> 0 | K9: =IF(D9=0,C9+J9,D9+J9) -> 0 | L9: ='B6-FinPos'!L18 -> 3336722 | M9: ='B6-FinPos'!M18 -> 3749142
A10: Cash and investments available: | C10: =SUM(C7:C9) -> 355836461 | D10: 0 | E10: 0 | F10: 0 | G10: 0 | H10: 0 | I10: -12822040.95 | J10: -12822040.95 | K10: 343014420 | L10: 310524955 | M10: 96085282
A12: Applications of cash and investments
A13: Unspent conditional transfers | C13: ='SB2'!C132 -> 0 | D13: ='SB2'!D132 -> 0 | E13: ='SB2'!E132 -> 0 | F13: ='SB2'!F132 -> 0 | G13: ='SB2'!G132 -> 0 | H13: ='SB2'!H132 -> 0 | I13: ='SB2'!I132 -> 0 | J13: =SUM(E13:I13) -> 0 | K13: =IF(D13=0,C13+J13,D13+J13) -> 0 | L13: ='SB2'!L132 -> 437009262 | M13: ='SB2'!M132 -> 807918819
A14: Unspent borrowing | C14: 0 | D14: 0 | I14: 0 | J14: =SUM(E14:I14) -> 0 | K14: =IF(D14=0,C14+J14,D14+J14) -> 0 | L14: 0 | M14: 0
A15: Statutory requirements | C15: 0 | D15: 0 | I15: 0 | J15: 0 | K15: =IF(D15=0,C15+J15,D15+J15) -> 0 | L15: 0 | M15: 0
A16: Other working capital requirements | B16: 2 | C16: =-C40 -> -1860354072 | D16: =-D40 -> 0 | I16: =IF(D16=0,(K16-C16)-SUM(E16:H16),(K16-D16)-SUM(E16:H16)) -> 84 | J16: 84 | K16: =-K40 -> -1860353988 | L16: =-L40 -> -5611336099 | M16: =-M40 -> -5911422113
A17: Other provisions | C17: 0 | D17: 0 | I17: 0 | J17: 0 | K17: =IF(D17=0,C17+J17,D17+J17) -> 0 | L17: 0 | M17: 0
A18: Long term investments committed | C18: =C50 -> 0 | D18: =D50 -> 0 | I18: =IF(D18=0,(K18-C18)-SUM(E18:H18),(K18-D18)-SUM(E18:H18)) -> 0 | J18: 0 | K18: =K50 -> 0 | L18: =L50 -> 0 | M18: =M50 -> 0
A19: Reserves to be backed by cash/investments | C19: =C57 -> 0 | D19: =D57 -> 0 | I19: =IF(D19=0,(K19-C19)-SUM(E19:H19),(K19-D19)-SUM(E19:H19)) -> 228913258 | J19: 228913258 | K19: =K57 -> 228913258 | L19: =L57 -> 40992378 | M19: =M57 -> 40992378
A20: Total Application of cash and investments: | C20: =SUM(C13:C19) -> -1860354072 | D20: 0 | E20: 0 | F20: 0 | G20: 0 | H20: 0 | I20: 228913342 | J20: 228913342 | K20: -1631440730 | L20: -5133334459 | M20: -5062510916
A21: Surplus(shortfall) | C21: =C10-C20 -> 2216190533 | D21: 0 | E21: 0 | F21: 0 | G21: 0 | H21: 0 | I21: -241735383 | J21: -241735383 | K21: 1974455150 | L21: 5443859414 | M21: 5158596198
A22: =head27a -> References
A23: 1. Must reconcile with the Adjustments Budget Cash Flow and Adjustements Budget Financial Position
A24: 2. Council approval for policy required - include sufficient working capital (e.g. allowing for a % of current debtors > 90 days as uncollectable)
A25: 3. Only complete if a previous adjusted budget has been approved in the same financial year. Reflect most recent adjusted budget.
A26: 4. Additional cash-backed accumulated funds/unspent funds (MFMA section 18(1)(b) and section 28(2)(e)) identified after the Original Budget approved and after annual financial statements audited (note: only where underspending could not reasonably have been foreseen)
A27: 5. Increases of funds approved under MFMA section 31
A28: 6. Adjustments approved in accordance with MFMA section 29
A29: 7. Adjustments to transfers from National or Provincial Government
A30: 8. Adjusts. = 'Other' Adjustments proposed to be approved; including revenue under-collection (MFMA section 28(2)(a)); additional revenue appropriation on existing programmes (section 28(2))(b); projected savings (section 28(2)(d)); error correction (section 28(2)(f))
A31: 9. G = B + C + D + E + F
A32: 10. Adjusted Budget H = (A or A1) + G
A37: =A16 -> Other working capital requirements
A38: Debtors | C38: =IF(ISERROR(ROUND(C43*C44,0)),0,(ROUND(C43*C44,0))) -> 2805963054 | D38: =IF(ISERROR(ROUND(D43*D44,0)),0,(ROUND(D43*D44,0))) -> 0 | K38: 2805962970 | L38: =IF(ISERROR(ROUND(L43*L44,0)),0,(ROUND(L43*L44,0))) -> 6608308452 | M38: =IF(ISERROR(ROUND(M43*M44,0)),0,(ROUND(M43*M44,0))) -> 6928654684
A39: Creditors due | C39: ='SB2'!C130 -> 945608981.8 | D39: ='SB2'!D130 -> 0 | K39: 945608981.8 | L39: ='SB2'!L130 -> 996972353 | M39: ='SB2'!M130 -> 1017232571
A40: Total | C40: =C38-C39 -> 1860354072 | D40: =D38-D39 -> 0 | K40: =K38-K39 -> 1860353988 | L40: =L38-L39 -> 5611336099 | M40: =M38-M39 -> 5911422113
A42: Debtors collection assumptions:
A43: Balance outstanding - debtors | C43: ='B6-FinPos'!C10+'B6-FinPos'!C11+'B6-FinPos'!C17 -> 3279548316 | D43: ='B6-FinPos'!D10+'B6-FinPos'!D11+'B6-FinPos'!D17 -> 0 | K43: ='B6-FinPos'!K10+'B6-FinPos'!K11+'B6-FinPos'!K17 -> 3279548316 | L43: ='B6-FinPos'!L10+'B6-FinPos'!L11+'B6-FinPos'!L17 -> 7682335760 | M43: ='B6-FinPos'!M10+'B6-FinPos'!M11+'B6-FinPos'!M17 -> 7937258934
A44: Estimate of debtors collection rate | C44: =IF(ISERROR('SB6'!G10),0,('SB6'!G10)) -> 0.8555943635 | D44: =IF(ISERROR('SB6'!H10),0,('SB6'!H10)) -> 0 | K44: =IF(ISERROR('SB6'!I10),0,('SB6'!I10)) -> 0.8555943686 | L44: =IF(ISERROR('SB6'!J10),0,('SB6'!J10)) -> 0.8601952138 | M44: =IF(ISERROR('SB6'!K10),0,('SB6'!K10)) -> 0.8729278887
A46: =A18 -> Long term investments committed
A47: (Insert description; eg sinking fund)
C50: =SUM(C47:C49) -> 0 | D50: =SUM(D47:D49) -> 0 | K50: =SUM(K47:K49) -> 0 | L50: =SUM(L47:L49) -> 0 | M50: =SUM(M47:M49) -> 0
A52: =A19 -> Reserves to be backed by cash/investments
A53: Housing Development Fund
A54: Capital replacement | D54: 0 | K54: 228913258 | L54: 40992378 | M54: 40992378
A55: Self-insurance | C55: 0 | D55: 0 | K55: 0 | L55: 0 | M55: 0
A56: Other reserves | C56: 0 | D56: 0 | K56: 0 | L56: 0 | M56: 0
C57: =SUM(C53:C56) -> 0 | D57: =SUM(D53:D56) -> 0 | K57: =SUM(K53:K56) -> 228913258 | L57: =SUM(L53:L56) -> 40992378 | M57: =SUM(M53:M56) -> 40992378

Sheet B9-Asset
A1: =muni&" - "&_ADJ9&" - "&Date -> KZN225 Msunduzi - Table B9 Asset Management -
A2: =desc -> Description | B2: =head27 -> Ref | C2: =Head2 -> Budget Year 2021/22 | L2: =Head10 -> Budget Year +1 2022/23 | M2: =Head11 -> Budget Year +2 2023/24
C3: =Head6 -> Original Budget | D3: =Head54 -> Prior Adjusted | E3: =Head51 -> Accum. Funds | F3: =Head52 -> Multi-year capital | G3: =Head53 -> Unfore. Unavoid. | H3: =Head55 -> Nat. or Prov. Govt | I3: =Head50 -> Other Adjusts. | J3: =Head56 -> Total Adjusts. | K3: =Head7 -> Adjusted Budget | L3: =Head7 -> Adjusted Budget | M3: =Head7 -> Adjusted Budget
D4: 7 | E4: 8 | F4: 9 | G4: 10 | H4: 11 | I4: 12 | J4: 13 | K4: 14
A5: R thousands | C5: A | D5: A1 | E5: B | F5: C | G5: D | H5: E | I5: F | J5: G | K5: H
A6: CAPITAL EXPENDITURE
A7: Total New Assets to be adjusted | B7: 1 | C7: =C17+C20+C21+C24+C27+C28+SUM(C31:C37) -> 203181851.9 | D7: =D17+D20+D21+D24+D27+D28+SUM(D31:D37) -> 0 | E7: 0 | F7: 0 | G7: 0 | H7: 0 | I7: 78904000 | J7: 78904000 | K7: 282085851.9 | L7: 31782607 | M7: 26909389
A8: Roads Infrastructure | C8: =SB18a!C9 -> 24100000 | D8: =SB18a!D9 -> 0 | E8: =SB18a!E9 -> 0 | F8: =SB18a!F9 -> 0 | G8: =SB18a!G9 -> 0 | H8: =SB18a!H9 -> 0 | I8: =SB18a!I9 -> 0 | J8: =SB18a!J9 -> 0 | K8: =SB18a!K9 -> 24100000 | L8: =SB18a!L9 -> 0 | M8: =SB18a!M9 -> 0
A9: Storm water Infrastructure | C9: =SB18a!C14 -> 0 | D9: =SB18a!D14 -> 0 | E9: =SB18a!E14 -> 0 | F9: =SB18a!F14 -> 0 | G9: =SB18a!G14 -> 0 | H9: =SB18a!H14 -> 0 | I9: =SB18a!I14 -> 0 | J9: =SB18a!J14 -> 0 | K9: =SB18a!K14 -> 0 | L9: =SB18a!L14 -> 0 | M9: =SB18a!M14 -> 0
A10: Electrical Infrastructure | C10: =SB18a!C18 -> 7600000 | D10: =SB18a!D18 -> 0 | E10: =SB18a!E18 -> 0 | F10: =SB18a!F18 -> 0 | G10: =SB18a!G18 -> 0 | H10: =SB18a!H18 -> 0 | I10: =SB18a!I18 -> 0 | J10: =SB18a!J18 -> 0 | K10: =SB18a!K18 -> 7600000 | L10: =SB18a!L18 -> 0 | M10: =SB18a!M18 -> 0
A11: Water Supply Infrastructure | C11: =SB18a!C28 -> 0 | D11: =SB18a!D28 -> 0 | E11: =SB18a!E28 -> 0 | F11: =SB18a!F28 -> 0 | G11: =SB18a!G28 -> 0 | H11: =SB18a!H28 -> 0 | I11: =SB18a!I28 -> 0 | J11: =SB18a!J28 -> 0 | K11: =SB18a!K28 -> 0 | L11: =SB18a!L28 -> 0 | M11: =SB18a!M28 -> 0
A12: Sanitation Infrastructure | C12: =SB18a!C39 -> 0 | D12: =SB18a!D39 -> 0 | E12: =SB18a!E39 -> 0 | F12: =SB18a!F39 -> 0 | G12: =SB18a!G39 -> 0 | H12: =SB18a!H39 -> 0 | I12: =SB18a!I39 -> 0 | J12: =SB18a!J39 -> 0 | K12: =SB18a!K39 -> 0 | L12: =SB18a!L39 -> 0 | M12: =SB18a!M39 -> 0
A13: Solid Waste Infrastructure | C13: =SB18a!C46 -> 0 | D13: =SB18a!D46 -> 0 | E13: =SB18a!E46 -> 0 | F13: =SB18a!F46 -> 0 | G13: =SB18a!G46 -> 0 | H13: =SB18a!H46 -> 0 | I13: =SB18a!I46 -> 0 | J13: =SB18a!J46 -> 0 | K13: =SB18a!K46 -> 0 | L13: =SB18a!L46 -> 0 | M13: =SB18a!M46 -> 0
A14: Rail Infrastructure | C14: =SB18a!C54 -> 0 | D14: =SB18a!D54 -> 0 | E14: =SB18a!E54 -> 0 | F14: =SB18a!F54 -> 0 | G14: =SB18a!G54 -> 0 | H14: =SB18a!H54 -> 0 | I14: =SB18a!I54 -> 0 | J14: =SB18a!J54 -> 0 | K14: =SB18a!K54 -> 0 | L14: =SB18a!L54 -> 0 | M14: =SB18a!M54 -> 0
A15: Coastal Infrastructure | C15: =SB18a!C64 -> 0 | D15: =SB18a!D64 -> 0 | E15: =SB18a!E64 -> 0 | F15: =SB18a!F64 -> 0 | G15: =SB18a!G64 -> 0 | H15: =SB18a!H64 -> 0 | I15: =SB18a!I64 -> 0 | J15: =SB18a!J64 -> 0 | K15: =SB18a!K64 -> 0 | L15: =SB18a!L64 -> 0 | M15: =SB18a!M64 -> 0
A16: Information and Communication Infrastructure | C16: =SB18a!C70 -> 0 | D16: =SB18a!D70 -> 0 | E16: =SB18a!E70 -> 0 | F16: =SB18a!F70 -> 0 | G16: =SB18a!G70 -> 0 | H16: =SB18a!H70 -> 0 | I16: =SB18a!I70 -> 0 | J16: =SB18a!J70 -> 0 | K16: =SB18a!K70 -> 0 | L16: =SB18a!L70 -> 0 | M16: =SB18a!M70 -> 0
A17: Infrastructure | C17: =SUM(C8:C16) -> 31700000 | D17: =SUM(D8:D16) -> 0 | E17: 0 | F17: 0 | G17: 0 | H17: 0 | I17: 0 | J17: 0 | K17: 31700000 | L17: 0 | M17: 0
A18: Community Facilities | C18: =SB18a!C77 -> 1800000 | D18: =SB18a!D77 -> 0 | E18: =SB18a!E77 -> 0 | F18: =SB18a!F77 -> 0 | G18: =SB18a!G77 -> 0 | H18: =SB18a!H77 -> 0 | I18: =SB18a!I77 -> 0 | J18: =SB18a!J77 -> 0 | K18: =SB18a!K77 -> 1800000 | L18: =SB18a!L77 -> 0 | M18: =SB18a!M77 -> 0
A19: Sport and Recreation Facilities | C19: =SB18a!C100 -> 0 | D19: =SB18a!D100 -> 0 | E19: =SB18a!E100 -> 0 | F19: =SB18a!F100 -> 0 | G19: =SB18a!G100 -> 0 | H19: =SB18a!H100 -> 0 | I19: =SB18a!I100 -> 0 | J19: =SB18a!J100 -> 0 | K19: =SB18a!K100 -> 0 | L19: =SB18a!L100 -> 0 | M19: =SB18a!M100 -> 0
A20: Community Assets | C20: =SUM(C18:C19) -> 1800000 | D20: =SUM(D18:D19) -> 0 | E20: 0 | F20: 0 | G20: 0 | H20: 0 | I20: 0 | J20: 0 | K20: 1800000 | L20: 0 | M20: 0
A21: Heritage Assets | C21: =SB18a!C105 -> 0 | D21: =SB18a!D105 -> 0 | E21: =SB18a!E105 -> 0 | F21: =SB18a!F105 -> 0 | G21: =SB18a!G105 -> 0 | H21: =SB18a!H105 -> 0 | I21: =SB18a!I105 -> 0 | J21: =SB18a!J105 -> 0 | K21: =SB18a!K105 -> 0 | L21: =SB18a!L105 -> 0 | M21: =SB18a!M105 -> 0
A22: Revenue Generating | C22: =SB18a!C113 -> 0 | D22: =SB18a!D113 -> 0 | E22: =SB18a!E113 -> 0 | F22: =SB18a!F113 -> 0 | G22: =SB18a!G113 -> 0 | H22: =SB18a!H113 -> 0 | I22: =SB18a!I113 -> 0 | J22: =SB18a!J113 -> 0 | K22: =SB18a!K113 -> 0 | L22: =SB18a!L113 -> 0 | M22: =SB18a!M113 -> 0
A23: Non-revenue Generating | C23: =SB18a!C116 -> 0 | D23: =SB18a!D116 -> 0 | E23: =SB18a!E116 -> 0 | F23: =SB18a!F116 -> 0 | G23: =SB18a!G116 -> 0 | H23: =SB18a!H116 -> 0 | I23: =SB18a!I116 -> 0 | J23: =SB18a!J116 -> 0 | K23: =SB18a!K116 -> 0 | L23: =SB18a!L116 -> 0 | M23: =SB18a!M116 -> 0
A24: Investment properties | C24: =SUM(C22:C23) -> 0 | D24: =SUM(D22:D23) -> 0 | E24: 0 | F24: 0 | G24: 0 | H24: 0 | I24: 0 | J24: 0 | K24: 0 | L24: 0 | M24: 0
A25: Operational Buildings | C25: =SB18a!C121 -> 1100000 | D25: =SB18a!D121 -> 0 | E25: =SB18a!E121 -> 0 | F25: =SB18a!F121 -> 0 | G25: =SB18a!G121 -> 0 | H25: =SB18a!H121 -> 0 | I25: =SB18a!I121 -> 0 | J25: =SB18a!J121 -> 0 | K25: =SB18a!K121 -> 1100000 | L25: =SB18a!L121 -> 1500000 | M25: =SB18a!M121 -> 1000000
A26: Housing | C26: =SB18a!C133 -> 106241945 | D26: =SB18a!D133 -> 0 | E26: =SB18a!E133 -> 0 | F26: =SB18a!F133 -> 0 | G26: =SB18a!G133 -> 0 | H26: =SB18a!H133 -> 0 | I26: =SB18a!I133 -> 0 | J26: =SB18a!J133 -> 0 | K26: =SB18a!K133 -> 106241945 | L26: =SB18a!L133 -> 0 | M26: =SB18a!M133 -> -1
A27: Other Assets | B27: 6 | C27: =SUM(C25:C26) -> 107341945 | D27: =SUM(D25:D26) -> 0 | E27: 0 | F27: 0 | G27: 0 | H27: 0 | I27: 0 | J27: 0 | K27: 107341945 | L27: 1500000 | M27: 999999
A28: Biological or Cultivated Assets | C28: =SB18a!C138 -> 0 | D28: =SB18a!D138 -> 0 | E28: =SB18a!E138 -> 0 | F28: =SB18a!F138 -> 0 | G28: =SB18a!G138 -> 0 | H28: =SB18a!H138 -> 0 | I28: =SB18a!I138 -> 0 | J28: =SB18a!J138 -> 0 | K28: =SB18a!K138 -> 0 | L28: =SB18a!L138 -> 0 | M28: =SB18a!M138 -> 0
A29: Servitudes | C29: =SB18a!C142 -> 0 | D29: =SB18a!D142 -> 0 | E29: =SB18a!E142 -> 0 | F29: =SB18a!F142 -> 0 | G29: =SB18a!G142 -> 0 | H29: =SB18a!H142 -> 0 | I29: =SB18a!I142 -> 0 | J29: =SB18a!J142 -> 0 | K29: =SB18a!K142 -> 0 | L29: =SB18a!L142 -> 0 | M29: =SB18a!M142 -> 0
A30: Licences and Rights | C30: =SB18a!C143 -> 0 | D30: =SB18a!D143 -> 0 | E30: =SB18a!E143 -> 0 | F30: =SB18a!F143 -> 0 | G30: =SB18a!G143 -> 0 | H30: =SB18a!H143 -> 0 | I30: =SB18a!I143 -> 0 | J30: =SB18a!J143 -> 0 | K30: =SB18a!K143 -> 0 | L30: =SB18a!L143 -> 10700000 | M30: =SB18a!M143 -> 5900000
A31: Intangible Assets | C31: =SUM(C29:C30) -> 0 | D31: =SUM(D29:D30) -> 0 | E31: 0 | F31: 0 | G31: 0 | H31: 0 | I31: 0 | J31: 0 | K31: 0 | L31: 10700000 | M31: 5900000
A32: Computer Equipment | C32: =SB18a!C151 -> 5106690.34 | D32: =SB18a!D151 -> 0 | E32: =SB18a!E151 -> 0 | F32: =SB18a!F151 -> 0 | G32: =SB18a!G151 -> 0 | H32: =SB18a!H151 -> 0 | I32: =SB18a!I151 -> 19726000 | J32: =SB18a!J151 -> 19726000 | K32: =SB18a!K151 -> 24832690.34 | L32: =SB18a!L151 -> 4241718 | M32: =SB18a!M151 -> 3666998
A33: Furniture and Office Equipment | C33: =SB18a!C154 -> 7196887.61 | D33: =SB18a!D154 -> 0 | E33: =SB18a!E154 -> 0 | F33: =SB18a!F154 -> 0 | G33: =SB18a!G154 -> 0 | H33: =SB18a!H154 -> 0 | I33: =SB18a!I154 -> 0 | J33: =SB18a!J154 -> 0 | K33: =SB18a!K154 -> 7196887.61 | L33: =SB18a!L154 -> 3704889 | M33: =SB18a!M154 -> 3857392
A34: Machinery and Equipment | C34: =SB18a!C157 -> 35881095 | D34: =SB18a!D157 -> 0 | E34: =SB18a!E157 -> 0 | F34: =SB18a!F157 -> 0 | G34: =SB18a!G157 -> 0 | H34: =SB18a!H157 -> 0 | I34: =SB18a!I157 -> 47343000 | J34: =SB18a!J157 -> 47343000 | K34: =SB18a!K157 -> 83224095 | L34: =SB18a!L157 -> 7136000 | M34: =SB18a!M157 -> 4985000
A35: Transport Assets | C35: =SB18a!C160 -> 14155234 | D35: =SB18a!D160 -> 0 | E35: =SB18a!E160 -> 0 | F35: =SB18a!F160 -> 0 | G35: =SB18a!G160 -> 0 | H35: =SB18a!H160 -> 0 | I35: =SB18a!I160 -> 11835000 | J35: =SB18a!J160 -> 11835000 | K35: =SB18a!K160 -> 25990234 | L35: =SB18a!L160 -> 4500000 | M35: =SB18a!M160 -> 7500000
A36: Land | C36: =SB18a!C163 -> 0 | D36: =SB18a!D163 -> 0 | E36: =SB18a!E163 -> 0 | F36: =SB18a!F163 -> 0 | G36: =SB18a!G163 -> 0 | H36: =SB18a!H163 -> 0 | I36: =SB18a!I163 -> 0 | J36: =SB18a!J163 -> 0 | K36: =SB18a!K163 -> 0 | L36: =SB18a!L163 -> 0 | M36: =SB18a!M163 -> 0
A37: Zoo's, Marine and Non-biological Animals | C37: =SB18a!C166 -> 0 | D37: =SB18a!D166 -> 0 | E37: =SB18a!E166 -> 0 | F37: =SB18a!F166 -> 0 | G37: =SB18a!G166 -> 0 | H37: =SB18a!H166 -> 0 | I37: =SB18a!I166 -> 0 | J37: =SB18a!J166 -> 0 | K37: =SB18a!K166 -> 0 | L37: =SB18a!L166 -> 0 | M37: =SB18a!M166 -> 0
A39: Total Renewal of Existing Assets to be adjusted | B39: 2 | C39: =C49+C52+C53+C56+C59+C60+SUM(C63:C69) -> 251781525 | D39: =D49+D52+D53+D56+D59+D60+SUM(D63:D69) -> 0 | E39: 0 | F39: 0 | G39: 0 | H39: 0 | I39: 0 | J39: 0 | K39: 251781525 | L39: 4500000 | M39: 8500000
A40: Roads Infrastructure | C40: =SB18b!C9 -> 41326894 | D40: =SB18b!D9 -> 0 | E40: =SB18b!E9 -> 0 | F40: =SB18b!F9 -> 0 | G40: =SB18b!G9 -> 0 | H40: =SB18b!H9 -> 0 | I40: =SB18b!I9 -> 0 | J40: =SB18b!J9 -> 0 | K40: =SB18b!K9 -> 41326894 | L40: =SB18b!L9 -> 1000000 | M40: =SB18b!M9 -> 5000000
A41: Storm water Infrastructure | C41: =SB18b!C14 -> 0 | D41: =SB18b!D14 -> 0 | E41: =SB18b!E14 -> 0 | F41: =SB18b!F14 -> 0 | G41: =SB18b!G14 -> 0 | H41: =SB18b!H14 -> 0 | I41: =SB18b!I14 -> 0 | J41: =SB18b!J14 -> 0 | K41: =SB18b!K14 -> 0 | L41: =SB18b!L14 -> 0 | M41: =SB18b!M14 -> 0
A42: Electrical Infrastructure | C42: =SB18b!C18 -> 0 | D42: =SB18b!D18 -> 0 | E42: =SB18b!E18 -> 0 | F42: =SB18b!F18 -> 0 | G42: =SB18b!G18 -> 0 | H42: =SB18b!H18 -> 0 | I42: =SB18b!I18 -> 0 | J42: =SB18b!J18 -> 0 | K42: =SB18b!K18 -> 0 | L42: =SB18b!L18 -> 0 | M42: =SB18b!M18 -> 0
A43: Water Supply Infrastructure | C43: =SB18b!C28 -> 64261109 | D43: =SB18b!D28 -> 0 | E43: =SB18b!E28 -> 0 | F43: =SB18b!F28 -> 0 | G43: =SB18b!G28 -> 0 | H43: =SB18b!H28 -> 0 | I43: =SB18b!I28 -> 0 | J43: =SB18b!J28 -> 0 | K43: =SB18b!K28 -> 64261109 | L43: =SB18b!L28 -> 0 | M43: =SB18b!M28 -> 0
A44: Sanitation Infrastructure | C44: =SB18b!C39 -> 74185522 | D44: =SB18b!D39 -> 0 | E44: =SB18b!E39 -> 0 | F44: =SB18b!F39 -> 0 | G44: =SB18b!G39 -> 0 | H44: =SB18b!H39 -> 0 | I44: =SB18b!I39 -> 0 | J44: =SB18b!J39 -> 0 | K44: =SB18b!K39 -> 74185522 | L44: =SB18b!L39 -> 0 | M44: =SB18b!M39 -> 0
A45: Solid Waste Infrastructure | C45: =SB18b!C46 -> 2000000 | D45: =SB18b!D46 -> 0 | E45: =SB18b!E46 -> 0 | F45: =SB18b!F46 -> 0 | G45: =SB18b!G46 -> 0 | H45: =SB18b!H46 -> 0 | I45: =SB18b!I46 -> 0 | J45: =SB18b!J46 -> 0 | K45: =SB18b!K46 -> 2000000 | L45: =SB18b!L46 -> 0 | M45: =SB18b!M46 -> 0
A46: Rail Infrastructure | C46: =SB18b!C54 -> 0 | D46: =SB18b!D54 -> 0 | E46: =SB18b!E54 -> 0 | F46: =SB18b!F54 -> 0 | G46: =SB18b!G54 -> 0 | H46: =SB18b!H54 -> 0 | I46: =SB18b!I54 -> 0 | J46: =SB18b!J54 -> 0 | K46: =SB18b!K54 -> 0 | L46: =SB18b!L54 -> 0 | M46: =SB18b!M54 -> 0
A47: Coastal Infrastructure | C47: =SB18b!C64 -> 0 | D47: =SB18b!D64 -> 0 | E47: =SB18b!E64 -> 0 | F47: =SB18b!F64 -> 0 | G47: =SB18b!G64 -> 0 | H47: =SB18b!H64 -> 0 | I47: =SB18b!I64 -> 0 | J47: =SB18b!J64 -> 0 | K47: =SB18b!K64 -> 0 | L47: =SB18b!L64 -> 0 | M47: =SB18b!M64 -> 0
A48: Information and Communication Infrastructure | C48: =SB18b!C70 -> 0 | D48: =SB18b!D70 -> 0 | E48: =SB18b!E70 -> 0 | F48: =SB18b!F70 -> 0 | G48: =SB18b!G70 -> 0 | H48: =SB18b!H70 -> 0 | I48: =SB18b!I70 -> 0 | J48: =SB18b!J70 -> 0 | K48: =SB18b!K70 -> 0 | L48: =SB18b!L70 -> 0 | M48: =SB18b!M70 -> 0
A49: Infrastructure | C49: =SUM(C40:C48) -> 181773525 | D49: =SUM(D40:D48) -> 0 | E49: 0 | F49: 0 | G49: 0 | H49: 0 | I49: 0 | J49: 0 | K49: 181773525 | L49: 1000000 | M49: 5000000
A50: Community Facilities | C50: =SB18b!C77 -> 35808000 | D50: =SB18b!D77 -> 0 | E50: =SB18b!E77 -> 0 | F50: =SB18b!F77 -> 0 | G50: =SB18b!G77 -> 0 | H50: =SB18b!H77 -> 0 | I50: =SB18b!I77 -> 0 | J50: =SB18b!J77 -> 0 | K50: =SB18b!K77 -> 35808000 | L50: =SB18b!L77 -> 0 | M50: =SB18b!M77 -> 0
A51: Sport and Recreation Facilities | C51: =SB18b!C100 -> 0 | D51: =SB18b!D100 -> 0 | E51: =SB18b!E100 -> 0 | F51: =SB18b!F100 -> 0 | G51: =SB18b!G100 -> 0 | H51: =SB18b!H100 -> 0 | I51: =SB18b!I100 -> 0 | J51: =SB18b!J100 -> 0 | K51: =SB18b!K100 -> 0 | L51: =SB18b!L100 -> 0 | M51: =SB18b!M100 -> 0
A52: Community Assets | C52: =SUM(C50:C51) -> 35808000 | D52: =SUM(D50:D51) -> 0 | E52: 0 | F52: 0 | G52: 0 | H52: 0 | I52: 0 | J52: 0 | K52: 35808000 | L52: 0 | M52: 0
A53: Heritage Assets | C53: =SB18b!C105 -> 0 | D53: =SB18b!D105 -> 0 | E53: =SB18b!E105 -> 0 | F53: =SB18b!F105 -> 0 | G53: =SB18b!G105 -> 0 | H53: =SB18b!H105 -> 0 | I53: =SB18b!I105 -> 0 | J53: =SB18b!J105 -> 0 | K53: =SB18b!K105 -> 0 | L53: =SB18b!L105 -> 3500000 | M53: =SB18b!M105 -> 3500000
A54: Revenue Generating | C54: =SB18b!C113 -> 0 | D54: =SB18b!D113 -> 0 | E54: =SB18b!E113 -> 0 | F54: =SB18b!F113 -> 0 | G54: =SB18b!G113 -> 0 | H54: =SB18b!H113 -> 0 | I54: =SB18b!I113 -> 0 | J54: =SB18b!J113 -> 0 | K54: =SB18b!K113 -> 0 | L54: =SB18b!L113 -> 0 | M54: =SB18b!M113 -> 0
A55: Non-revenue Generating | C55: =SB18b!C116 -> 0 | D55: =SB18b!D116 -> 0 | E55: =SB18b!E116 -> 0 | F55: =SB18b!F116 -> 0 | G55: =SB18b!G116 -> 0 | H55: =SB18b!H116 -> 0 | I55: =SB18b!I116 -> 0 | J55: =SB18b!J116 -> 0 | K55: =SB18b!K116 -> 0 | L55: =SB18b!L116 -> 0 | M55: =SB18b!M116 -> 0
A56: Investment properties | C56: =SUM(C54:C55) -> 0 | D56: =SUM(D54:D55) -> 0 | E56: 0 | F56: 0 | G56: 0 | H56: 0 | I56: 0 | J56: 0 | K56: 0 | L56: 0 | M56: 0
A57: Operational Buildings | C57: =SB18b!C121 -> 1000000 | D57: =SB18b!D121 -> 0 | E57: =SB18b!E121 -> 0 | F57: =SB18b!F121 -> 0 | G57: =SB18b!G121 -> 0 | H57: =SB18b!H121 -> 0 | I57: =SB18b!I121 -> 0 | J57: =SB18b!J121 -> 0 | K57: =SB18b!K121 -> 1000000 | L57: =SB18b!L121 -> 0 | M57: =SB18b!M121 -> 0
A58: Housing | C58: =SB18b!C133 -> 1000000 | D58: =SB18b!D133 -> 0 | E58: =SB18b!E133 -> 0 | F58: =SB18b!F133 -> 0 | G58: =SB18b!G133 -> 0 | H58: =SB18b!H133 -> 0 | I58: =SB18b!I133 -> 0 | J58: =SB18b!J133 -> 0 | K58: =SB18b!K133 -> 1000000 | L58: =SB18b!L133 -> 0 | M58: =SB18b!M133 -> 0
A59: Other Assets | B59: 6 | C59: =SUM(C57:C58) -> 2000000 | D59: =SUM(D57:D58) -> 0 | E59: 0 | F59: 0 | G59: 0 | H59: 0 | I59: 0 | J59: 0 | K59: 2000000 | L59: 0 | M59: 0
A60: Biological or Cultivated Assets | C60: =SB18b!C138 -> 0 | D60: =SB18b!D138 -> 0 | E60: =SB18b!E138 -> 0 | F60: =SB18b!F138 -> 0 | G60: =SB18b!G138 -> 0 | H60: =SB18b!H138 -> 0 | I60: =SB18b!I138 -> 0 | J60: =SB18b!J138 -> 0 | K60: =SB18b!K138 -> 0 | L60: =SB18b!L138 -> 0 | M60: =SB18b!M138 -> 0
A61: Servitudes | C61: =SB18b!C142 -> 0 | D61: =SB18b!D142 -> 0 | E61: =SB18b!E142 -> 0 | F61: =SB18b!F142 -> 0 | G61: =SB18b!G142 -> 0 | H61: =SB18b!H142 -> 0 | I61: =SB18b!I142 -> 0 | J61: =SB18b!J142 -> 0 | K61: =SB18b!K142 -> 0 | L61: =SB18b!L142 -> 0 | M61: =SB18b!M142 -> 0
A62: Licences and Rights | C62: =SB18b!C143 -> 32200000 | D62: =SB18b!D143 -> 0 | E62: =SB18b!E143 -> 0 | F62: =SB18b!F143 -> 0 | G62: =SB18b!G143 -> 0 | H62: =SB18b!H143 -> 0 | I62: =SB18b!I143 -> 0 | J62: =SB18b!J143 -> 0 | K62: =SB18b!K143 -> 32200000 | L62: =SB18b!L143 -> 0 | M62: =SB18b!M143 -> 0
A63: Intangible Assets | C63: =SUM(C61:C62) -> 32200000 | D63: =SUM(D61:D62) -> 0 | E63: 0 | F63: 0 | G63: 0 | H63: 0 | I63: 0 | J63: 0 | K63: 32200000 | L63: 0 | M63: 0
A64: Computer Equipment | C64: =SB18b!C151 -> 0 | D64: =SB18b!D151 -> 0 | E64: =SB18b!E151 -> 0 | F64: =SB18b!F151 -> 0 | G64: =SB18b!G151 -> 0 | H64: =SB18b!H151 -> 0 | I64: =SB18b!I151 -> 0 | J64: =SB18b!J151 -> 0 | K64: =SB18b!K151 -> 0 | L64: =SB18b!L151 -> 0 | M64: =SB18b!M151 -> 0
A65: Furniture and Office Equipment | C65: =SB18b!C154 -> 0 | D65: =SB18b!D154 -> 0 | E65: =SB18b!E154 -> 0 | F65: =SB18b!F154 -> 0 | G65: =SB18b!G154 -> 0 | H65: =SB18b!H154 -> 0 | I65: =SB18b!I154 -> 0 | J65: =SB18b!J154 -> 0 | K65: =SB18b!K154 -> 0 | L65: =SB18b!L154 -> 0 | M65: =SB18b!M154 -> 0
A66: Machinery and Equipment | C66: =SB18b!C157 -> 0 | D66: =SB18b!D157 -> 0 | E66: =SB18b!E157 -> 0 | F66: =SB18b!F157 -> 0 | G66: =SB18b!G157 -> 0 | H66: =SB18b!H157 -> 0 | I66: =SB18b!I157 -> 0 | J66: =SB18b!J157 -> 0 | K66: =SB18b!K157 -> 0 | L66: =SB18b!L157 -> 0 | M66: =SB18b!M157 -> 0
A67: Transport Assets | C67: =SB18b!C160 -> 0 | D67: =SB18b!D160 -> 0 | E67: =SB18b!E160 -> 0 | F67: =SB18b!F160 -> 0 | G67: =SB18b!G160 -> 0 | H67: =SB18b!H160 -> 0 | I67: =SB18b!I160 -> 0 | J67: =SB18b!J160 -> 0 | K67: =SB18b!K160 -> 0 | L67: =SB18b!L160 -> 0 | M67: =SB18b!M160 -> 0
A68: Land | C68: =SB18b!C163 -> 0 | D68: =SB18b!D163 -> 0 | E68: =SB18b!E163 -> 0 | F68: =SB18b!F163 -> 0 | G68: =SB18b!G163 -> 0 | H68: =SB18b!H163 -> 0 | I68: =SB18b!I163 -> 0 | J68: =SB18b!J163 -> 0 | K68: =SB18b!K163 -> 0 | L68: =SB18b!L163 -> 0 | M68: =SB18b!M163 -> 0
A69: Zoo's, Marine and Non-biological Animals | C69: =SB18b!C166 -> 0 | D69: =SB18b!D166 -> 0 | E69: =SB18b!E166 -> 0 | F69: =SB18b!F166 -> 0 | G69: =SB18b!G166 -> 0 | H69: =SB18b!H166 -> 0 | I69: =SB18b!I166 -> 0 | J69: =SB18b!J166 -> 0 | K69: =SB18b!K166 -> 0 | L69: =SB18b!L166 -> 0 | M69: =SB18b!M166 -> 0
A71: Total Upgrading of Existing Assets to be adjusted | B71: 2a | C71: =C81+C84+C85+C88+C91+C92+SUM(C95:C101) -> 121338250 | D71: =D81+D84+D85+D88+D91+D92+SUM(D95:D101) -> 0 | E71: 0 | F71: 0 | G71: 0 | H71: 0 | I71: 0 | J71: 0 | K71: 121338250 | L71: 435419854 | M71: 410413576
A72: Roads Infrastructure | C72: =SB18e!C9 -> 39149250 | D72: =SB18e!D9 -> 0 | E72: =SB18e!E9 -> 0 | F72: =SB18e!F9 -> 0 | G72: =SB18e!G9 -> 0 | H72: =SB18e!H9 -> 0 | I72: =SB18e!I9 -> 0 | J72: =SB18e!J9 -> 0 | K72: =SB18e!K9 -> 39149250 | L72: =SB18e!L9 -> 66632500 | M72: =SB18e!M9 -> 73250070
A73: Storm water Infrastructure | C73: =SB18e!C14 -> 0 | D73: =SB18e!D14 -> 0 | E73: =SB18e!E14 -> 0 | F73: =SB18e!F14 -> 0 | G73: =SB18e!G14 -> 0 | H73: =SB18e!H14 -> 0 | I73: =SB18e!I14 -> 0 | J73: =SB18e!J14 -> 0 | K73: =SB18e!K14 -> 0 | L73: =SB18e!L14 -> 0 | M73: =SB18e!M14 -> 0
A74: Electrical Infrastructure | C74: =SB18e!C18 -> 74000000 | D74: =SB18e!D18 -> 0 | E74: =SB18e!E18 -> 0 | F74: =SB18e!F18 -> 0 | G74: =SB18e!G18 -> 0 | H74: =SB18e!H18 -> 0 | I74: =SB18e!I18 -> 0 | J74: =SB18e!J18 -> 0 | K74: =SB18e!K18 -> 74000000 | L74: =SB18e!L18 -> 10854000 | M74: =SB18e!M18 -> 10400000
A75: Water Supply Infrastructure | C75: =SB18e!C28 -> 0 | D75: =SB18e!D28 -> 0 | E75: =SB18e!E28 -> 0 | F75: =SB18e!F28 -> 0 | G75: =SB18e!G28 -> 0 | H75: =SB18e!H28 -> 0 | I75: =SB18e!I28 -> 0 | J75: =SB18e!J28 -> 0 | K75: =SB18e!K28 -> 0 | L75: =SB18e!L28 -> 232193834 | M75: =SB18e!M28 -> 206816702
A76: Sanitation Infrastructure | C76: =SB18e!C39 -> 0 | D76: =SB18e!D39 -> 0 | E76: =SB18e!E39 -> 0 | F76: =SB18e!F39 -> 0 | G76: =SB18e!G39 -> 0 | H76: =SB18e!H39 -> 0 | I76: =SB18e!I39 -> 0 | J76: =SB18e!J39 -> 0 | K76: =SB18e!K39 -> 0 | L76: =SB18e!L39 -> 76898020 | M76: =SB18e!M39 -> 79334692
A77: Solid Waste Infrastructure | C77: =SB18e!C46 -> 2300000 | D77: =SB18e!D46 -> 0 | E77: =SB18e!E46 -> 0 | F77: =SB18e!F46 -> 0 | G77: =SB18e!G46 -> 0 | H77: =SB18e!H46 -> 0 | I77: =SB18e!I46 -> 0 | J77: =SB18e!J46 -> 0 | K77: =SB18e!K46 -> 2300000 | L77: =SB18e!L46 -> 2100000 | M77: =SB18e!M46 -> 2200000
A78: Rail Infrastructure | C78: =SB18e!C54 -> 0 | D78: =SB18e!D54 -> 0 | E78: =SB18e!E54 -> 0 | F78: =SB18e!F54 -> 0 | G78: =SB18e!G54 -> 0 | H78: =SB18e!H54 -> 0 | I78: =SB18e!I54 -> 0 | J78: =SB18e!J54 -> 0 | K78: =SB18e!K54 -> 0 | L78: =SB18e!L54 -> 0 | M78: =SB18e!M54 -> 0
A79: Coastal Infrastructure | C79: =SB18e!C64 -> 0 | D79: =SB18e!D64 -> 0 | E79: =SB18e!E64 -> 0 | F79: =SB18e!F64 -> 0 | G79: =SB18e!G64 -> 0 | H79: =SB18e!H64 -> 0 | I79: =SB18e!I64 -> 0 | J79: =SB18e!J64 -> 0 | K79: =SB18e!K64 -> 0 | L79: =SB18e!L64 -> 0 | M79: =SB18e!M64 -> 0
A80: Information and Communication Infrastructure | C80: =SB18e!C70 -> 0 | D80: =SB18e!D70 -> 0 | E80: =SB18e!E70 -> 0 | F80: =SB18e!F70 -> 0 | G80: =SB18e!G70 -> 0 | H80: =SB18e!H70 -> 0 | I80: =SB18e!I70 -> 0 | J80: =SB18e!J70 -> 0 | K80: =SB18e!K70 -> 0 | L80: =SB18e!L70 -> 0 | M80: =SB18e!M70 -> 0
A81: Infrastructure | C81: =SUM(C72:C80) -> 115449250 | D81: =SUM(D72:D80) -> 0 | E81: 0 | F81: 0 | G81: 0 | H81: 0 | I81: 0 | J81: 0 | K81: 115449250 | L81: 388678354 | M81: 372001464
A82: Community Facilities | C82: =SB18e!C77 -> 3500000 | D82: =SB18e!D77 -> 0 | E82: =SB18e!E77 -> 0 | F82: =SB18e!F77 -> 0 | G82: =SB18e!G77 -> 0 | H82: =SB18e!H77 -> 0 | I82: =SB18e!I77 -> 0 | J82: =SB18e!J77 -> 0 | K82: =SB18e!K77 -> 3500000 | L82: =SB18e!L77 -> 46741500 | M82: =SB18e!M77 -> 38412112
A83: Sport and Recreation Facilities | C83: =SB18e!C100 -> 0 | D83: =SB18e!D100 -> 0 | E83: =SB18e!E100 -> 0 | F83: =SB18e!F100 -> 0 | G83: =SB18e!G100 -> 0 | H83: =SB18e!H100 -> 0 | I83: =SB18e!I100 -> 0 | J83: =SB18e!J100 -> 0 | K83: =SB18e!K100 -> 0 | L83: =SB18e!L100 -> 0 | M83: =SB18e!M100 -> 0
A84: Community Assets | C84: =SUM(C82:C83) -> 3500000 | D84: =SUM(D82:D83) -> 0 | E84: 0 | F84: 0 | G84: 0 | H84: 0 | I84: 0 | J84: 0 | K84: 3500000 | L84: 46741500 | M84: 38412112
A85: Heritage Assets | C85: =SB18e!C105 -> 0 | D85: =SB18e!D105 -> 0 | E85: =SB18e!E105 -> 0 | F85: =SB18e!F105 -> 0 | G85: =SB18e!G105 -> 0 | H85: =SB18e!H105 -> 0 | I85: =SB18e!I105 -> 0 | J85: =SB18e!J105 -> 0 | K85: =SB18e!K105 -> 0 | L85: =SB18e!L105 -> 0 | M85: =SB18e!M105 -> 0
A86: Revenue Generating | C86: =SB18e!C113 -> 0 | D86: =SB18e!D113 -> 0 | E86: =SB18e!E113 -> 0 | F86: =SB18e!F113 -> 0 | G86: =SB18e!G113 -> 0 | H86: =SB18e!H113 -> 0 | I86: =SB18e!I113 -> 0 | J86: =SB18e!J113 -> 0 | K86: =SB18e!K113 -> 0 | L86: =SB18e!L113 -> 0 | M86: =SB18e!M113 -> 0
A87: Non-revenue Generating | C87: =SB18e!C116 -> 0 | D87: =SB18e!D116 -> 0 | E87: =SB18e!E116 -> 0 | F87: =SB18e!F116 -> 0 | G87: =SB18e!G116 -> 0 | H87: =SB18e!H116 -> 0 | I87: =SB18e!I116 -> 0 | J87: =SB18e!J116 -> 0 | K87: =SB18e!K116 -> 0 | L87: =SB18e!L116 -> 0 | M87: =SB18e!M116 -> 0
A88: Investment properties | C88: =SUM(C86:C87) -> 0 | D88: =SUM(D86:D87) -> 0 | E88: 0 | F88: 0 | G88: 0 | H88: 0 | I88: 0 | J88: 0 | K88: 0 | L88: 0 | M88: 0
A89: Operational Buildings | C89: =SB18e!C121 -> 2389000 | D89: =SB18e!D121 -> 0 | E89: =SB18e!E121 -> 0 | F89: =SB18e!F121 -> 0 | G89: =SB18e!G121 -> 0 | H89: =SB18e!H121 -> 0 | I89: =SB18e!I121 -> 0 | J89: =SB18e!J121 -> 0 | K89: =SB18e!K121 -> 2389000 | L89: =SB18e!L121 -> 0 | M89: =SB18e!M121 -> 0
A90: Housing | C90: =SB18e!C133 -> 0 | D90: =SB18e!D133 -> 0 | E90: =SB18e!E133 -> 0 | F90: =SB18e!F133 -> 0 | G90: =SB18e!G133 -> 0 | H90: =SB18e!H133 -> 0 | I90: =SB18e!I133 -> 0 | J90: =SB18e!J133 -> 0 | K90: =SB18e!K133 -> 0 | L90: =SB18e!L133 -> 0 | M90: =SB18e!M133 -> 0
A91: Other Assets | B91: 6 | C91: =SUM(C89:C90) -> 2389000 | D91: =SUM(D89:D90) -> 0 | E91: 0 | F91: 0 | G91: 0 | H91: 0 | I91: 0 | J91: 0 | K91: 2389000 | L91: 0 | M91: 0
A92: Biological or Cultivated Assets | C92: =SB18e!C138 -> 0 | D92: =SB18e!D138 -> 0 | E92: =SB18e!E138 -> 0 | F92: =SB18e!F138 -> 0 | G92: =SB18e!G138 -> 0 | H92: =SB18e!H138 -> 0 | I92: =SB18e!I138 -> 0 | J92: =SB18e!J138 -> 0 | K92: =SB18e!K138 -> 0 | L92: =SB18e!L138 -> 0 | M92: =SB18e!M138 -> 0
A93: Servitudes | C93: =SB18e!C142 -> 0 | D93: =SB18e!D142 -> 0 | E93: =SB18e!E142 -> 0 | F93: =SB18e!F142 -> 0 | G93: =SB18e!G142 -> 0 | H93: =SB18e!H142 -> 0 | I93: =SB18e!I142 -> 0 | J93: =SB18e!J142 -> 0 | K93: =SB18e!K142 -> 0 | L93: =SB18e!L142 -> 0 | M93: =SB18e!M142 -> 0
A94: Licences and Rights | C94: =SB18e!C143 -> 0 | D94: =SB18e!D143 -> 0 | E94: =SB18e!E143 -> 0 | F94: =SB18e!F143 -> 0 | G94: =SB18e!G143 -> 0 | H94: =SB18e!H143 -> 0 | I94: =SB18e!I143 -> 0 | J94: =SB18e!J143 -> 0 | K94: =SB18e!K143 -> 0 | L94: =SB18e!L143 -> 0 | M94: =SB18e!M143 -> 0
A95: Intangible Assets | C95: =SUM(C93:C94) -> 0 | D95: =SUM(D93:D94) -> 0 | E95: 0 | F95: 0 | G95: 0 | H95: 0 | I95: 0 | J95: 0 | K95: 0 | L95: 0 | M95: 0
A96: Computer Equipment | C96: =SB18e!C151 -> 0 | D96: =SB18e!D151 -> 0 | E96: =SB18e!E151 -> 0 | F96: =SB18e!F151 -> 0 | G96: =SB18e!G151 -> 0 | H96: =SB18e!H151 -> 0 | I96: =SB18e!I151 -> 0 | J96: =SB18e!J151 -> 0 | K96: =SB18e!K151 -> 0 | L96: =SB18e!L151 -> 0 | M96: =SB18e!M151 -> 0
A97: Furniture and Office Equipment | C97: =SB18e!C154 -> 0 | D97: =SB18e!D154 -> 0 | E97: =SB18e!E154 -> 0 | F97: =SB18e!F154 -> 0 | G97: =SB18e!G154 -> 0 | H97: =SB18e!H154 -> 0 | I97: =SB18e!I154 -> 0 | J97: =SB18e!J154 -> 0 | K97: =SB18e!K154 -> 0 | L97: =SB18e!L154 -> 0 | M97: =SB18e!M154 -> 0
A98: Machinery and Equipment | C98: =SB18e!C157 -> 0 | D98: =SB18e!D157 -> 0 | E98: =SB18e!E157 -> 0 | F98: =SB18e!F157 -> 0 | G98: =SB18e!G157 -> 0 | H98: =SB18e!H157 -> 0 | I98: =SB18e!I157 -> 0 | J98: =SB18e!J157 -> 0 | K98: =SB18e!K157 -> 0 | L98: =SB18e!L157 -> 0 | M98: =SB18e!M157 -> 0
A99: Transport Assets | C99: =SB18e!C160 -> 0 | D99: =SB18e!D160 -> 0 | E99: =SB18e!E160 -> 0 | F99: =SB18e!F160 -> 0 | G99: =SB18e!G160 -> 0 | H99: =SB18e!H160 -> 0 | I99: =SB18e!I160 -> 0 | J99: =SB18e!J160 -> 0 | K99: =SB18e!K160 -> 0 | L99: =SB18e!L160 -> 0 | M99: =SB18e!M160 -> 0
A100: Land | C100: =SB18e!C163 -> 0 | D100: =SB18e!D163 -> 0 | E100: =SB18e!E163 -> 0 | F100: =SB18e!F163 -> 0 | G100: =SB18e!G163 -> 0 | H100: =SB18e!H163 -> 0 | I100: =SB18e!I163 -> 0 | J100: =SB18e!J163 -> 0 | K100: =SB18e!K163 -> 0 | L100: =SB18e!L163 -> 0 | M100: =SB18e!M163 -> 0
A101: Zoo's, Marine and Non-biological Animals | C101: =SB18e!C166 -> 0 | D101: =SB18e!D166 -> 0 | E101: =SB18e!E166 -> 0 | F101: =SB18e!F166 -> 0 | G101: =SB18e!G166 -> 0 | H101: =SB18e!H166 -> 0 | I101: =SB18e!I166 -> 0 | J101: =SB18e!J166 -> 0 | K101: =SB18e!K166 -> 0 | L101: =SB18e!L166 -> 0 | M101: =SB18e!M166 -> 0
A103: Total Capital Expenditure to be adjusted | B103: 4 | C103: =C7+C39+C71 -> 576301627 | D103: =D7+D39+D71 -> 0 | E103: 0 | F103: 0 | G103: 0 | H103: 0 | I103: 78904000 | J103: 78904000 | K103: 655205627 | L103: 471702461 | M103: 445822965
A104: Roads Infrastructure | C104: 104576144 | D104: 0 | E104: 0 | F104: 0 | G104: 0 | H104: 0 | I104: 0 | J104: 0 | K104: 104576144 | L104: 67632500 | M104: 78250070
A105: Storm water Infrastructure | C105: 0 | D105: 0 | E105: 0 | F105: 0 | G105: 0 | H105: 0 | I105: 0 | J105: 0 | K105: 0 | L105: 0 | M105: 0
A106: Electrical Infrastructure | C106: 81600000 | D106: 0 | E106: 0 | F106: 0 | G106: 0 | H106: 0 | I106: 0 | J106: 0 | K106: 81600000 | L106: 10854000 | M106: 10400000
A107: Water Supply Infrastructure | C107: 64261109 | D107: 0 | E107: 0 | F107: 0 | G107: 0 | H107: 0 | I107: 0 | J107: 0 | K107: 64261109 | L107: 232193834 | M107: 206816702
A108: Sanitation Infrastructure | C108: 74185522 | D108: 0 | E108: 0 | F108: 0 | G108: 0 | H108: 0 | I108: 0 | J108: 0 | K108: 74185522 | L108: 76898020 | M108: 79334692
A109: Solid Waste Infrastructure | C109: 4300000 | D109: 0 | E109: 0 | F109: 0 | G109: 0 | H109: 0 | I109: 0 | J109: 0 | K109: 4300000 | L109: 2100000 | M109: 2200000
A110: Rail Infrastructure | C110: 0 | D110: 0 | E110: 0 | F110: 0 | G110: 0 | H110: 0 | I110: 0 | J110: 0 | K110: 0 | L110: 0 | M110: 0
A111: Coastal Infrastructure | C111: 0 | D111: 0 | E111: 0 | F111: 0 | G111: 0 | H111: 0 | I111: 0 | J111: 0 | K111: 0 | L111: 0 | M111: 0
A112: Information and Communication Infrastructure | C112: 0 | D112: 0 | E112: 0 | F112: 0 | G112: 0 | H112: 0 | I112: 0 | J112: 0 | K112: 0 | L112: 0 | M112: 0
A113: Infrastructure | C113: 328922775 | D113: 0 | E113: 0 | F113: 0 | G113: 0 | H113: 0 | I113: 0 | J113: 0 | K113: 328922775 | L113: 389678354 | M113: 377001464
A114: Community Facilities | C114: 41108000 | D114: 0 | E114: 0 | F114: 0 | G114: 0 | H114: 0 | I114: 0 | J114: 0 | K114: 41108000 | L114: 46741500 | M114: 38412112
A115: Sport and Recreation Facilities | C115: 0 | D115: 0 | E115: 0 | F115: 0 | G115: 0 | H115: 0 | I115: 0 | J115: 0 | K115: 0 | L115: 0 | M115: 0
A116: Community Assets | C116: 41108000 | D116: 0 | E116: 0 | F116: 0 | G116: 0 | H116: 0 | I116: 0 | J116: 0 | K116: 41108000 | L116: 46741500 | M116: 38412112
A117: Heritage Assets | C117: 0 | D117: 0 | E117: 0 | F117: 0 | G117: 0 | H117: 0 | I117: 0 | J117: 0 | K117: 0 | L117: 3500000 | M117: 3500000
A118: Revenue Generating | C118: 0 | D118: 0 | E118: 0 | F118: 0 | G118: 0 | H118: 0 | I118: 0 | J118: 0 | K118: 0 | L118: 0 | M118: 0
A119: Non-revenue Generating | C119: 0 | D119: =D23+D55+D87 -> 0 | E119: 0 | F119: 0 | G119: 0 | H119: 0 | I119: 0 | J119: 0 | K119: 0 | L119: 0 | M119: 0
A120: Investment properties | C120: =C24+C56+C88 -> 0 | D120: 0 | E120: 0 | F120: 0 | G120: 0 | H120: 0 | I120: 0 | J120: 0 | K120: 0 | L120: 0 | M120: 0
A121: Operational Buildings | C121: 4489000 | D121: 0 | E121: 0 | F121: 0 | G121: 0 | H121: 0 | I121: 0 | J121: 0 | K121: 4489000 | L121: 1500000 | M121: 1000000
A122: Housing | C122: 107241945 | D122: 0 | E122: 0 | F122: 0 | G122: 0 | H122: 0 | I122: 0 | J122: 0 | K122: 107241945 | L122: 0 | M122: -1
A123: Other Assets | C123: 111730945 | D123: 0 | E123: 0 | F123: 0 | G123: 0 | H123: 0 | I123: 0 | J123: 0 | K123: 111730945 | L123: 1500000 | M123: 999999
A124: Biological or Cultivated Assets | C124: 0 | D124: 0 | E124: 0 | F124: 0 | G124: 0 | H124: 0 | I124: 0 | J124: 0 | K124: 0 | L124: 0 | M124: 0
A125: Servitudes | C125: 0 | D125: 0 | E125: 0 | F125: 0 | G125: 0 | H125: 0 | I125: 0 | J125: 0 | K125: 0 | L125: 0 | M125: 0
A126: Licences and Rights | C126: 32200000 | D126: 0 | E126: 0 | F126: 0 | G126: 0 | H126: 0 | I126: 0 | J126: 0 | K126: 32200000 | L126: 10700000 | M126: 5900000
A127: Intangible Assets | C127: 32200000 | D127: 0 | E127: 0 | F127: 0 | G127: 0 | H127: 0 | I127: 0 | J127: 0 | K127: 32200000 | L127: 10700000 | M127: 5900000
A128: Computer Equipment | C128: 5106690.34 | D128: 0 | E128: 0 | F128: 0 | G128: 0 | H128: 0 | I128: 19726000 | J128: 19726000 | K128: 24832690.34 | L128: 4241718 | M128: 3666998
A129: Furniture and Office Equipment | C129: 7196887.61 | D129: 0 | E129: 0 | F129: 0 | G129: 0 | H129: 0 | I129: 0 | J129: 0 | K129: 7196887.61 | L129: 3704889 | M129: 3857392
A130: Machinery and Equipment | C130: 35881095 | D130: 0 | E130: 0 | F130: 0 | G130: 0 | H130: 0 | I130: 47343000 | J130: 47343000 | K130: 83224095 | L130: 7136000 | M130: 4985000
A131: Transport Assets | C131: 14155234 | D131: 0 | E131: 0 | F131: 0 | G131: 0 | H131: 0 | I131: 11835000 | J131: 11835000 | K131: 25990234 | L131: 4500000 | M131: 7500000
A132: Land | C132: 0 | D132: 0 | E132: 0 | F132: 0 | G132: 0 | H132: 0 | I132: 0 | J132: 0 | K132: 0 | L132: 0 | M132: 0
A133: Zoo's, Marine and Non-biological Animals | C133: 0 | D133: 0 | E133: 0 | F133: 0 | G133: 0 | H133: 0 | I133: 0 | J133: 0 | K133: 0 | L133: 0 | M133: 0
A134: TOTAL CAPITAL EXPENDITURE to be adjusted | B134: 4 | C134: =C7+C39+C71 -> 576301627 | D134: =D7+D39+D71 -> 0 | E134: 0 | F134: 0 | G134: 0 | H134: 0 | I134: 78904000 | J134: 78904000 | K134: 655205627 | L134: 471702461 | M134: 445822965
A136: ASSET REGISTER SUMMARY - PPE (WDV) | B136: 5 | C136: =C146+C149+C150+C153+C156+C157+SUM(C160:C166) -> 7603684243 | D136: =D146+D149+D150+D153+D156+D157+SUM(D160:D166) -> 0 | E136: 0 | F136: 0 | G136: 0 | H136: 0 | I136: 0 | J136: 0 | K136: 7603684243 | L136: 11588507629 | M136: 10938054335
A137: =+A8 -> Roads Infrastructure | C137: 2238420646 | D137: 0 | J137: =SUM(E137:I137) -> 0 | K137: =IF(D137=0,C137+J137,D137+J137) -> 2238420646 | L137: 945290044 | M137: 878176157
A138: =+A9 -> Storm water Infrastructure | C138: 87082591.49 | D138: 0 | J138: =SUM(E138:I138) -> 0 | K138: =IF(D138=0,C138+J138,D138+J138) -> 87082591.49 | L138: 0 | M138: 0
A139: Electrical Infrastructure | C139: 1018081787 | D139: 0 | J139: 0 | K139: 1018081787 | L139: 1838118370 | M139: 1840275373
A140: Water Supply Infrastructure | C140: 1223186204 | D140: 0 | J140: 0 | K140: 1223186204 | L140: 1344286805 | M140: 1344286805
A141: Sanitation Infrastructure | C141: 600826029.8 | D141: 0 | J141: 0 | K141: 600826029.8 | L141: 1429832329 | M141: 1124480675
A142: Solid Waste Infrastructure | C142: 85470274.23 | D142: 0 | J142: 0 | K142: 85470274.23 | L142: 0 | M142: 0
A143: Rail Infrastructure | C143: 1254005.07 | D143: 0 | J143: 0 | K143: 1254005.07 | L143: 1659460956 | M143: 1360588299
A144: Coastal Infrastructure | C144: 4746879.111 | D144: 0 | J144: 0 | K144: 4746879.111 | L144: 0 | M144: 0
A145: Information and Communication Infrastructure | C145: 5182977.484 | D145: 0 | J145: 0 | K145: 5182977.484 | L145: 0 | M145: 0
A146: Infrastructure | C146: =SUM(C137:C145) -> 5264251393 | D146: 0 | E146: 0 | F146: 0 | G146: 0 | H146: 0 | I146: 0 | J146: 0 | K146: =IF(D146=0,C146+J146,D146+J146) -> 5264251393 | L146: =SUM(L137:L145) -> 7216988504 | M146: =SUM(M137:M145) -> 6547807309
A149: Community Assets | C149: 79588443.19 | D149: 0 | J149: =SUM(E149:I149) -> 0 | K149: =IF(D149=0,C149+J149,D149+J149) -> 79588443.19 | L149: 611039457 | M149: 613425124
A150: Heritage Assets | C150: 206937599.7 | D150: 0 | J150: =SUM(E150:I150) -> 0 | K150: =IF(D150=0,C150+J150,D150+J150) -> 206937599.7 | L150: 0 | M150: 0
D151: 0 | J151: 0 | K151: 0 | L151: 0 | M151: 0
D152: 0 | J152: 0 | K152: 0 | L152: 0 | M152: 0
A153: Investment properties | C153: 668979166.5 | D153: 0 | J153: 0 | K153: 668979166.5 | L153: 0 | M153: 0
D154: 0 | J154: 0 | K154: 0 | L154: 0 | M154: 0
D155: 0 | J155: 0 | K155: 0 | L155: 0 | M155: 0
A156: Other Assets | C156: 617451810.3 | D156: 0 | J156: 0 | K156: 617451810.3 | L156: 1833118370 | M156: 1840275373
A157: Biological or Cultivated Assets | D157: 0 | J157: 0 | K157: 0 | L157: 1065650 | M157: 1065650
D158: 0 | J158: 0 | K158: 0 | L158: 0 | M158: 0
D159: 0 | J159: 0 | K159: 0 | L159: 0 | M159: 0
A160: Intangible Assets | C160: -1082617.52 | D160: 0 | J160: 0 | K160: -1082617.52 | L160: 46132727 | M160: 46132727
A161: Computer Equipment | C161: -28779613.69 | D161: 0 | J161: 0 | K161: -28779613.69 | L161: 556159044 | M161: 557721431
A162: Furniture and Office Equipment | C162: 17596432.57 | D162: 0 | J162: 0 | K162: 17596432.57 | L162: 617914396 | M162: 620360580
A163: Machinery and Equipment | C163: 568678244.6 | D163: 0 | J163: 0 | K163: 568678244.6 | L163: 420171331 | M163: 421250584
A164: Transport Assets | C164: 210063384.2 | D164: 0 | J164: 0 | K164: 210063384.2 | L164: 285918150 | M164: 290015557
A165: Land | D165: 0 | J165: 0 | K165: 0 | L165: 0 | M165: 0
A166: Zoo's, Marine and Non-biological Animals | D166: 0 | J166: 0 | K166: 0 | L166: 0 | M166: 0
A167: TOTAL ASSET REGISTER SUMMARY - PPE (WDV) | B167: 5 | C167: =C146+C149+C150+C153+C156+C157+SUM(C160:C166) -> 7603684243 | D167: =D146+D149+D150+D153+D156+D157+SUM(D160:D166) -> 0 | E167: 0 | F167: 0 | G167: 0 | H167: 0 | I167: 0 | J167: 0 | K167: 7603684243 | L167: 11588507629 | M167: 10938054335
A169: EXPENDITURE OTHER ITEMS
A170: Depreciation & asset impairment | C170: =SB18d!C169 -> 421872297.6 | D170: =SB18d!D169 -> 0 | E170: =SB18d!E169 -> 0 | F170: =SB18d!F169 -> 0 | G170: =SB18d!G169 -> 0 | H170: =SB18d!H169 -> 0 | I170: =SB18d!I169 -> -310.6399999 | J170: =SB18d!J169 -> -310.6399999 | K170: =SB18d!K169 -> 421871987 | L170: =SB18d!L169 -> 405795701 | M170: =SB18d!M169 -> 313902124
A171: Repairs and Maintenance by asset class | B171: 3 | C171: =C181+C184+C185+C188+C191+C192+SUM(C195:C201) -> 405336559.7 | D171: =D181+D184+D185+D188+D191+D192+SUM(D195:D201) -> 0 | E171: =E181+E184+E185+E188+E191+E192+SUM(E195:E201) -> 0 | F171: =F181+F184+F185+F188+F191+F192+SUM(F195:F201) -> 0 | G171: 0 | H171: 0 | I171: -85065000 | J171: -85065000 | K171: 320271559.7 | L171: =L181+L184+L185+L188+L191+L192+SUM(L195:L201) -> 495660484 | M171: =M181+M184+M185+M188+M191+M192+SUM(M195:M201) -> 538377093
A172: =+A8 -> Roads Infrastructure | C172: =SB18c!C9 -> 0 | D172: =SB18c!D9 -> 0 | E172: =SB18c!E9 -> 0 | F172: =SB18c!F9 -> 0 | G172: =SB18c!G9 -> 0 | H172: =SB18c!H9 -> 0 | I172: =SB18c!I9 -> 0 | J172: =SB18c!J9 -> 0 | K172: =SB18c!K9 -> 0 | L172: =SB18c!L9 -> 65781292 | M172: =SB18c!M9 -> 69677889
A173: =+A9 -> Storm water Infrastructure | C173: =SB18c!C14 -> 0 | D173: =SB18c!D14 -> 0 | E173: =SB18c!E14 -> 0 | F173: =SB18c!F14 -> 0 | G173: =SB18c!G14 -> 0 | H173: =SB18c!H14 -> 0 | I173: =SB18c!I14 -> 0 | J173: =SB18c!J14 -> 0 | K173: =SB18c!K14 -> 0 | L173: =SB18c!L14 -> 0 | M173: =SB18c!M14 -> 0
A174: Electrical Infrastructure | C174: =SB18c!C18 -> 7348650 | D174: =SB18c!D18 -> 0 | E174: =SB18c!E18 -> 0 | F174: =SB18c!F18 -> 0 | G174: =SB18c!G18 -> 0 | H174: =SB18c!H18 -> 0 | I174: =SB18c!I18 -> 0 | J174: =SB18c!J18 -> 0 | K174: =SB18c!K18 -> 7348650 | L174: =SB18c!L18 -> 146681902 | M174: =SB18c!M18 -> 157658108
A175: Water Supply Infrastructure | C175: =SB18c!C28 -> 116809087.8 | D175: =SB18c!D28 -> 0 | E175: =SB18c!E28 -> 0 | F175: =SB18c!F28 -> 0 | G175: =SB18c!G28 -> 0 | H175: =SB18c!H28 -> 0 | I175: =SB18c!I28 -> -51039000 | J175: =SB18c!J28 -> -51039000 | K175: =SB18c!K28 -> 65770087.78 | L175: =SB18c!L28 -> 10951648 | M175: =SB18c!M28 -> 11883493
A176: Sanitation Infrastructure | C176: =SB18c!C39 -> 0 | D176: =SB18c!D39 -> 0 | E176: =SB18c!E39 -> 0 | F176: =SB18c!F39 -> 0 | G176: =SB18c!G39 -> 0 | H176: =SB18c!H39 -> 0 | I176: =SB18c!I39 -> 0 | J176: =SB18c!J39 -> 0 | K176: =SB18c!K39 -> 0 | L176: =SB18c!L39 -> 188273579 | M176: =SB18c!M39 -> 199806677
A177: Solid Waste Infrastructure | C177: =SB18c!C46 -> 0 | D177: =SB18c!D46 -> 0 | E177: =SB18c!E46 -> 0 | F177: =SB18c!F46 -> 0 | G177: =SB18c!G46 -> 0 | H177: =SB18c!H46 -> 0 | I177: =SB18c!I46 -> 0 | J177: =SB18c!J46 -> 0 | K177: =SB18c!K46 -> 0 | L177: =SB18c!L46 -> 405869 | M177: =SB18c!M46 -> 451380
A178: Rail Infrastructure | C178: =SB18c!C54 -> 0 | D178: =SB18c!D54 -> 0 | E178: =SB18c!E54 -> 0 | F178: =SB18c!F54 -> 0 | G178: =SB18c!G54 -> 0 | H178: =SB18c!H54 -> 0 | I178: =SB18c!I54 -> 0 | J178: =SB18c!J54 -> 0 | K178: =SB18c!K54 -> 0 | L178: =SB18c!L54 -> 0 | M178: =SB18c!M54 -> 0
A179: Coastal Infrastructure | C179: =SB18c!C64 -> 0 | D179: =SB18c!D64 -> 0 | E179: =SB18c!E64 -> 0 | F179: =SB18c!F64 -> 0 | G179: =SB18c!G64 -> 0 | H179: =SB18c!H64 -> 0 | I179: =SB18c!I64 -> 0 | J179: =SB18c!J64 -> 0 | K179: =SB18c!K64 -> 0 | L179: =SB18c!L64 -> 0 | M179: =SB18c!M64 -> 0
A180: Information and Communication Infrastructure | C180: =SB18c!C70 -> 0 | D180: =SB18c!D70 -> 0 | E180: =SB18c!E70 -> 0 | F180: =SB18c!F70 -> 0 | G180: =SB18c!G70 -> 0 | H180: =SB18c!H70 -> 0 | I180: =SB18c!I70 -> 0 | J180: =SB18c!J70 -> 0 | K180: =SB18c!K70 -> 0 | L180: =SB18c!L70 -> 0 | M180: =SB18c!M70 -> 0
A181: Infrastructure | C181: =SUM(C172:C180) -> 124157737.8 | D181: =SUM(D172:D180) -> 0 | E181: 0 | F181: 0 | G181: 0 | H181: 0 | I181: -51039000 | J181: -51039000 | K181: 73118737.78 | L181: 412094290 | M181: 439477547
A182: Community Facilities | C182: =SB18c!C77 -> 59000 | D182: =SB18c!D77 -> 0 | E182: =SB18c!E77 -> 0 | F182: =SB18c!F77 -> 0 | G182: =SB18c!G77 -> 0 | H182: =SB18c!H77 -> 0 | I182: =SB18c!I77 -> 0 | J182: =SB18c!J77 -> 0 | K182: =SB18c!K77 -> 59000 | L182: =SB18c!L77 -> 14589610 | M182: =SB18c!M77 -> 17715213
A183: Sport and Recreation Facilities | C183: =SB18c!C100 -> 0 | D183: =SB18c!D100 -> 0 | E183: =SB18c!E100 -> 0 | F183: =SB18c!F100 -> 0 | G183: =SB18c!G100 -> 0 | H183: =SB18c!H100 -> 0 | I183: =SB18c!I100 -> 0 | J183: =SB18c!J100 -> 0 | K183: =SB18c!K100 -> 0 | L183: =SB18c!L100 -> 3090980 | M183: =SB18c!M100 -> 3598321
A184: Community Assets | C184: =SUM(C182:C183) -> 59000 | D184: =SUM(D182:D183) -> 0 | E184: 0 | F184: 0 | G184: 0 | H184: 0 | I184: 0 | J184: 0 | K184: 59000 | L184: 17680590 | M184: 21313534
A185: Heritage Assets | C185: =SB18c!C105 -> 0 | D185: =SB18c!D105 -> 0 | E185: =SB18c!E105 -> 0 | F185: =SB18c!F105 -> 0 | G185: =SB18c!G105 -> 0 | H185: =SB18c!H105 -> 0 | I185: =SB18c!I105 -> 0 | J185: =SB18c!J105 -> 0 | K185: =SB18c!K105 -> 0 | L185: =SB18c!L105 -> 0 | M185: =SB18c!M105 -> 0
A186: Revenue Generating | C186: =SB18c!C113 -> 0 | D186: =SB18c!D113 -> 0 | E186: =SB18c!E113 -> 0 | F186: =SB18c!F113 -> 0 | G186: =SB18c!G113 -> 0 | H186: =SB18c!H113 -> 0 | I186: =SB18c!I113 -> 0 | J186: =SB18c!J113 -> 0 | K186: =SB18c!K113 -> 0 | L186: =SB18c!L113 -> 0 | M186: =SB18c!M113 -> 0
A187: Non-revenue Generating | C187: =SB18c!C116 -> 0 | D187: =SB18c!D116 -> 0 | E187: =SB18c!E116 -> 0 | F187: =SB18c!F116 -> 0 | G187: =SB18c!G116 -> 0 | H187: =SB18c!H116 -> 0 | I187: =SB18c!I116 -> 0 | J187: =SB18c!J116 -> 0 | K187: =SB18c!K116 -> 0 | L187: =SB18c!L116 -> 0 | M187: =SB18c!M116 -> 0
A188: Investment properties | C188: =SUM(C186:C187) -> 0 | D188: =SUM(D186:D187) -> 0 | E188: 0 | F188: 0 | G188: 0 | H188: 0 | I188: 0 | J188: 0 | K188: 0 | L188: 0 | M188: 0
A189: Operational Buildings | C189: =SB18c!C121 -> 126387783.7 | D189: =SB18c!D121 -> 0 | E189: =SB18c!E121 -> 0 | F189: =SB18c!F121 -> 0 | G189: =SB18c!G121 -> 0 | H189: =SB18c!H121 -> 0 | I189: =SB18c!I121 -> 0 | J189: =SB18c!J121 -> 0 | K189: =SB18c!K121 -> 126387783.7 | L189: =SB18c!L121 -> 24221727 | M189: =SB18c!M121 -> 26093623
A190: Housing | C190: =SB18c!C133 -> 0 | D190: =SB18c!D133 -> 0 | E190: =SB18c!E133 -> 0 | F190: =SB18c!F133 -> 0 | G190: =SB18c!G133 -> 0 | H190: =SB18c!H133 -> 0 | I190: =SB18c!I133 -> 0 | J190: =SB18c!J133 -> 0 | K190: =SB18c!K133 -> 0 | L190: =SB18c!L133 -> 0 | M190: =SB18c!M133 -> 0
A191: Other Assets | C191: =SUM(C189:C190) -> 126387783.7 | D191: =SUM(D189:D190) -> 0 | E191: 0 | F191: 0 | G191: 0 | H191: 0 | I191: 0 | J191: 0 | K191: 126387783.7 | L191: 24221727 | M191: 26093623
A192: Biological or Cultivated Assets | C192: =SB18c!C138 -> 0 | D192: =SB18c!D138 -> 0 | E192: =SB18c!E138 -> 0 | F192: =SB18c!F138 -> 0 | G192: =SB18c!G138 -> 0 | H192: =SB18c!H138 -> 0 | I192: =SB18c!I138 -> 0 | J192: =SB18c!J138 -> 0 | K192: =SB18c!K138 -> 0 | L192: =SB18c!L138 -> 0 | M192: =SB18c!M138 -> 0
A193: Servitudes | C193: =SB18c!C142 -> 0 | D193: =SB18c!D142 -> 0 | E193: =SB18c!E142 -> 0 | F193: =SB18c!F142 -> 0 | G193: =SB18c!G142 -> 0 | H193: =SB18c!H142 -> 0 | I193: =SB18c!I142 -> 0 | J193: =SB18c!J142 -> 0 | K193: =SB18c!K142 -> 0 | L193: =SB18c!L142 -> 0 | M193: =SB18c!M142 -> 0
A194: Licences and Rights | C194: =SB18c!C143 -> 0 | D194: =SB18c!D143 -> 0 | E194: =SB18c!E143 -> 0 | F194: =SB18c!F143 -> 0 | G194: =SB18c!G143 -> 0 | H194: =SB18c!H143 -> 0 | I194: =SB18c!I143 -> 0 | J194: =SB18c!J143 -> 0 | K194: =SB18c!K143 -> 0 | L194: =SB18c!L143 -> 1347428 | M194: =SB18c!M143 -> 1426544
A195: Intangible Assets | C195: =SUM(C193:C194) -> 0 | D195: =SUM(D193:D194) -> 0 | E195: 0 | F195: 0 | G195: 0 | H195: 0 | I195: 0 | J195: 0 | K195: 0 | L195: 1347428 | M195: 1426544
A196: Computer Equipment | C196: =SB18c!C151 -> 0 | D196: =SB18c!D151 -> 0 | E196: =SB18c!E151 -> 0 | F196: =SB18c!F151 -> 0 | G196: =SB18c!G151 -> 0 | H196: =SB18c!H151 -> 0 | I196: =SB18c!I151 -> 0 | J196: =SB18c!J151 -> 0 | K196: =SB18c!K151 -> 0 | L196: =SB18c!L151 -> 0 | M196: =SB18c!M151 -> 0
A197: Furniture and Office Equipment | C197: =SB18c!C154 -> 0 | D197: =SB18c!D154 -> 0 | E197: =SB18c!E154 -> 0 | F197: =SB18c!F154 -> 0 | G197: =SB18c!G154 -> 0 | H197: =SB18c!H154 -> 0 | I197: =SB18c!I154 -> 0 | J197: =SB18c!J154 -> 0 | K197: =SB18c!K154 -> 0 | L197: =SB18c!L154 -> 0 | M197: =SB18c!M154 -> 0
A198: Machinery and Equipment | C198: =SB18c!C157 -> 120352350.9 | D198: =SB18c!D157 -> 0 | E198: =SB18c!E157 -> 0 | F198: =SB18c!F157 -> 0 | G198: =SB18c!G157 -> 0 | H198: =SB18c!H157 -> 0 | I198: =SB18c!I157 -> -29773000 | J198: =SB18c!J157 -> -29773000 | K198: =SB18c!K157 -> 90579350.92 | L198: =SB18c!L157 -> 14029049 | M198: =SB18c!M157 -> 20618069
A199: Transport Assets | C199: =SB18c!C160 -> 34379687.34 | D199: =SB18c!D160 -> 0 | E199: =SB18c!E160 -> 0 | F199: =SB18c!F160 -> 0 | G199: =SB18c!G160 -> 0 | H199: =SB18c!H160 -> 0 | I199: =SB18c!I160 -> -4253000 | J199: =SB18c!J160 -> -4253000 | K199: =SB18c!K160 -> 30126687.34 | L199: =SB18c!L160 -> 26287400 | M199: =SB18c!M160 -> 29447776
A200: Land | C200: =SB18c!C163 -> 0 | D200: =SB18c!D163 -> 0 | E200: =SB18c!E163 -> 0 | F200: =SB18c!F163 -> 0 | G200: =SB18c!G163 -> 0 | H200: =SB18c!H163 -> 0 | I200: =SB18c!I163 -> 0 | J200: =SB18c!J163 -> 0 | K200: =SB18c!K163 -> 0 | L200: =SB18c!L163 -> 0 | M200: =SB18c!M163 -> 0
A201: Zoo's, Marine and Non-biological Animals | B201: 6 | C201: =SB18c!C166 -> 0 | D201: =SB18c!D166 -> 0 | E201: =SB18c!E166 -> 0 | F201: =SB18c!F166 -> 0 | G201: =SB18c!G166 -> 0 | H201: =SB18c!H166 -> 0 | I201: =SB18c!I166 -> 0 | J201: =SB18c!J166 -> 0 | K201: =SB18c!K166 -> 0 | L201: =SB18c!L166 -> 0 | M201: =SB18c!M166 -> 0
A202: TOTAL EXPENDITURE OTHER ITEMS to be adjusted | C202: =+C170+C171 -> 827208857.4 | D202: =+D170+D171 -> 0 | E202: 0 | F202: 0 | G202: 0 | H202: 0 | I202: -85065310.64 | J202: -85065310.64 | K202: 742143546.7 | L202: 901456185 | M202: 852279217
A204: Renewal and upgrading of Existing Assets as % of total capex | C204: =IF(ISERROR((C39+C71)/C134),0,((C39+C71)/C134)) -> 0.6474383509 | D204: =IF(ISERROR((D39+D71)/D134),0,((D39+D71)/D134)) -> 0 | K204: =IF(ISERROR((K39+K71)/K134),0,((K39+K71)/K134)) -> 0.5694697354 | L204: =IF(ISERROR((L39+L71)/L134),0,((L39+L71)/L134)) -> 0.9326214942 | M204: =IF(ISERROR((M39+M71)/M134),0,((M39+M71)/M134)) -> 0.9396410883
A205: Renewal and upgrading of Existing Assets as % of deprecn" | C205: =IF(ISERROR((C39+C71)/C170),0,((C39+C71)/C170)) -> 0.8844377246 | D205: =IF(ISERROR((D39+D71)/D170),0,((D39+D71)/D170)) -> 0 | K205: =IF(ISERROR((K39+K71)/K170),0,((K39+K71)/K170)) -> 0.8844383759 | L205: =IF(ISERROR((L39+L71)/L170),0,((L39+L71)/L170)) -> 1.084091953 | M205: =IF(ISERROR((M39+M71)/M170),0,((M39+M71)/M170)) -> 1.334535653
A206: R&M as a % of PPE | C206: =IF(ISERROR(C171/C167),0,(C171/C167)) -> 0.05330791585 | D206: =IF(ISERROR(D171/D167),0,(D171/D167)) -> 0 | K206: =IF(ISERROR(K171/K167),0,(K171/K167)) -> 0.04212057596 | L206: =IF(ISERROR(L171/L167),0,(L171/L167)) -> 0.04277172694 | M206: =IF(ISERROR(M171/M167),0,(M171/M167)) -> 0.0492205539
A207: Renewal and upgrading and R&M as a % of PPE | C207: =IF(ISERROR((C39+C71+C171)/C167),0,((C39+C71+C171)/C167)) -> 0.102378835 | D207: =IF(ISERROR((D39+D71+D171)/D167),0,((D39+D71+D171)/D167)) -> 0 | K207: =IF(ISERROR((K39+K71+K171)/K167),0,((K39+K71+K171)/K167)) -> 0.09119149515 | L207: =IF(ISERROR((L39+L71+L171)/L167),0,((L39+L71+L171)/L167)) -> 0.0807334618 | M207: =IF(ISERROR((M39+M71+M171)/M167),0,((M39+M71+M171)/M167)) -> 0.08751928265
A209: =head27a -> References
... 16 more rows

Sheet B10-SerDel
A1: =muni&" - "&_ADJ10&" - "&Date -> KZN225 Msunduzi - Table B10 Basic service delivery measurement -
A2: =desc -> Description | B2: =head27 -> Ref | C2: =Head2 -> Budget Year 2021/22 | L2: =Head10 -> Budget Year +1 2022/23 | M2: =Head11 -> Budget Year +2 2023/24
C3: =Head6 -> Original Budget | D3: =Head54 -> Prior Adjusted | E3: =Head51 -> Accum. Funds | F3: =Head52 -> Multi-year capital | G3: =Head53 -> Unfore. Unavoid. | H3: =Head55 -> Nat. or Prov. Govt | I3: =Head50 -> Other Adjusts. | J3: =Head56 -> Total Adjusts. | K3: =Head7 -> Adjusted Budget | L3: =Head7 -> Adjusted Budget | M3: =Head7 -> Adjusted Budget
D4: 7 | E4: 8 | F4: 9 | G4: 10 | H4: 11 | I4: 12 | J4: 13 | K4: 14
C5: A | D5: A1 | E5: B | F5: C | G5: D | H5: E | I5: F | J5: G | K5: H
A6: Household service targets | B6: 1
A7: Water:
A8: Piped water inside dwelling | J8: =SUM(E8:I8) -> 0 | K8: =IF(D8=0,C8+J8,D8+J8) -> 0
A9: Piped water inside yard (but not in dwelling) | J9: 0 | K9: 0
A10: Using public tap (at least min.service level) | B10: 2 | J10: 0 | K10: 0
A11: Other water supply (at least min.service level) | J11: 0 | K11: 0
A12: Minimum Service Level and Above sub-total | C12: =SUM(C8:C11) -> 0 | D12: 0 | E12: 0 | F12: 0 | G12: 0 | H12: 0 | I12: 0 | J12: 0 | K12: 0 | L12: 0 | M12: 0
A13: Using public tap (< min.service level) | B13: 3 | J13: 0 | K13: 0
A14: Other water supply (< min.service level) | B14: 3,4 | J14: 0 | K14: 0
A15: No water supply | J15: 0 | K15: 0
A16: Below Minimum Servic Level sub-total | C16: =SUM(C13:C15) -> 0 | D16: 0 | E16: 0 | F16: 0 | G16: 0 | H16: 0 | I16: 0 | J16: 0 | K16: 0 | L16: 0 | M16: 0
A17: Total number of households | B17: 5 | C17: =C12+C16 -> 0 | D17: 0 | E17: 0 | F17: 0 | G17: 0 | H17: 0 | I17: 0 | J17: 0 | K17: 0 | L17: 0 | M17: 0
A18: Sanitation/sewerage:
A19: Flush toilet (connected to sewerage) | J19: =SUM(E19:I19) -> 0 | K19: =IF(D19=0,C19+J19,D19+J19) -> 0
A20: Flush toilet (with septic tank) | J20: 0 | K20: 0
A21: Chemical toilet | J21: 0 | K21: 0
A22: Pit toilet (ventilated) | J22: 0 | K22: 0
A23: Other toilet provisions (> min.service level) | J23: 0 | K23: 0
A24: =$A$12 -> Minimum Service Level and Above sub-total | C24: =SUM(C19:C23) -> 0 | D24: 0 | E24: 0 | F24: 0 | G24: 0 | H24: 0 | I24: 0 | J24: 0 | K24: 0 | L24: 0 | M24: 0
A25: Bucket toilet | J25: 0 | K25: 0
A26: Other toilet provisions (< min.service level) | J26: 0 | K26: 0
A27: No toilet provisions | J27: 0 | K27: 0
A28: =$A$16 -> Below Minimum Servic Level sub-total | C28: =SUM(C25:C27) -> 0 | D28: 0 | E28: 0 | F28: 0 | G28: 0 | H28: 0 | I28: 0 | J28: 0 | K28: 0 | L28: 0 | M28: 0
A29: =$A$17 -> Total number of households | B29: =$B$17 -> 5 | C29: =C24+C28 -> 0 | D29: 0 | E29: 0 | F29: 0 | G29: 0 | H29: 0 | I29: 0 | J29: 0 | K29: 0 | L29: 0 | M29: 0
A30: Energy:
A31: Electricity (at least min. service level) | J31: =SUM(E31:I31) -> 0 | K31: =IF(D31=0,C31+J31,D31+J31) -> 0
A32: Electricity - prepaid (> min.service level) | J32: 0 | K32: 0
A33: =$A$12 -> Minimum Service Level and Above sub-total | C33: =SUM(C31:C32) -> 0 | D33: 0 | E33: 0 | F33: 0 | G33: 0 | H33: 0 | I33: 0 | J33: 0 | K33: 0 | L33: 0 | M33: 0
A34: Electricity (< min.service level) | J34: 0 | K34: 0
A35: Electricity - prepaid (< min. service level) | J35: 0 | K35: 0
A36: Other energy sources | J36: 0 | K36: 0
A37: =$A$16 -> Below Minimum Servic Level sub-total | C37: =SUM(C34:C36) -> 0 | D37: 0 | E37: 0 | F37: 0 | G37: 0 | H37: 0 | I37: 0 | J37: 0 | K37: 0 | L37: 0 | M37: 0
A38: =$A$17 -> Total number of households | B38: =$B$17 -> 5 | C38: =C33+C37 -> 0 | D38: 0 | E38: 0 | F38: 0 | G38: 0 | H38: 0 | I38: 0 | J38: 0 | K38: 0 | L38: 0 | M38: 0
A39: Refuse:
A40: Removed at least once a week (min.service) | J40: =SUM(E40:I40) -> 0 | K40: =IF(D40=0,C40+J40,D40+J40) -> 0
A41: =$A$12 -> Minimum Service Level and Above sub-total | C41: =SUM(C40) -> 0 | D41: 0 | E41: 0 | F41: 0 | G41: 0 | H41: 0 | I41: 0 | J41: =SUM(E41:I41) -> 0 | K41: 0 | L41: =SUM(L40) -> 0 | M41: =SUM(M40) -> 0
A42: Removed less frequently than once a week | J42: 0 | K42: 0
A43: Using communal refuse dump | J43: 0 | K43: 0
A44: Using own refuse dump | J44: 0 | K44: 0
A45: Other rubbish disposal | J45: 0 | K45: 0
A46: No rubbish disposal | J46: 0 | K46: 0
A47: =$A$16 -> Below Minimum Servic Level sub-total | C47: =SUM(C42:C46) -> 0 | D47: 0 | E47: 0 | F47: 0 | G47: 0 | H47: 0 | I47: 0 | J47: 0 | K47: 0 | L47: 0 | M47: 0
A48: =$A$17 -> Total number of households | B48: =$B$17 -> 5 | C48: =C41+C47 -> 0 | D48: 0 | E48: 0 | F48: 0 | G48: 0 | H48: 0 | I48: 0 | J48: =J40+J47 -> 0 | K48: =K40+K47 -> 0 | L48: =L41+L47 -> 0 | M48: =M41+M47 -> 0
A50: Households receiving Free Basic Service | B50: 15
A51: Water (6 kilolitres per household per month) | C51: ='SB5'!E263 -> 0 | D51: ='SB5'!F263 -> 0 | E51: ='SB5'!G263 -> 0 | F51: ='SB5'!H263 -> 0 | G51: ='SB5'!I263 -> 0 | H51: ='SB5'!J263 -> 0 | I51: ='SB5'!K263 -> 0 | J51: =SUM(E51:I51) -> 0 | K51: =IF(D51=0,C51+J51,D51+J51) -> 0 | L51: ='SB5'!N263 -> 0 | M51: ='SB5'!O263 -> 0
A52: Sanitation (free minimum level service) | C52: ='SB5'!E275 -> 0 | D52: ='SB5'!F275 -> 0 | E52: ='SB5'!G275 -> 0 | F52: ='SB5'!H275 -> 0 | G52: ='SB5'!I275 -> 0 | H52: ='SB5'!J275 -> 0 | I52: ='SB5'!K275 -> 0 | J52: =SUM(E52:I52) -> 0 | K52: =IF(D52=0,C52+J52,D52+J52) -> 0 | L52: ='SB5'!N275 -> 0 | M52: ='SB5'!O275 -> 0
A53: Electricity/other energy (50kwh per household per month) | C53: ='SB5'!E251 -> 0 | D53: ='SB5'!F251 -> 0 | E53: ='SB5'!G251 -> 0 | F53: ='SB5'!H251 -> 0 | G53: ='SB5'!I251 -> 0 | H53: ='SB5'!J251 -> 0 | I53: ='SB5'!K251 -> 0 | J53: =SUM(E53:I53) -> 0 | K53: =IF(D53=0,C53+J53,D53+J53) -> 0 | L53: ='SB5'!N251 -> 0 | M53: ='SB5'!O251 -> 0
A54: Refuse (removed at least once a week) | C54: ='SB5'!E287 -> 0 | D54: ='SB5'!F287 -> 0 | E54: ='SB5'!G287 -> 0 | F54: ='SB5'!H287 -> 0 | G54: ='SB5'!I287 -> 0 | H54: ='SB5'!J287 -> 0 | I54: ='SB5'!K287 -> 0 | J54: =SUM(E54:I54) -> 0 | K54: =IF(D54=0,C54+J54,D54+J54) -> 0 | L54: ='SB5'!N287 -> 0 | M54: ='SB5'!O287 -> 0
A56: Cost of Free Basic Services provided (R'000) | B56: 16
A57: Water (6 kilolitres per indigent household per month) | C57: ='SB1'!C21 -> 190902259.7 | D57: ='SB1'!D21 -> 0 | E57: ='SB1'!E21 -> 0 | F57: ='SB1'!F21 -> 0 | G57: ='SB1'!G21 -> 0 | H57: ='SB1'!H21 -> 0 | I57: ='SB1'!I21 -> 0 | J57: =SUM(E57:I57) -> 0 | K57: =IF(D57=0,C57+J57,D57+J57) -> 190902259.7 | L57: ='SB1'!L21 -> 204265418 | M57: ='SB1'!M21 -> 218563997
A58: Sanitation (free sanitation service to indigent households) | C58: ='SB1'!C27 -> 13255972.54 | D58: ='SB1'!D27 -> 0 | E58: ='SB1'!E27 -> 0 | F58: ='SB1'!F27 -> 0 | G58: ='SB1'!G27 -> 0 | H58: ='SB1'!H27 -> 0 | I58: ='SB1'!I27 -> 0 | J58: =SUM(E58:I58) -> 0 | K58: =IF(D58=0,C58+J58,D58+J58) -> 13255972.54 | L58: ='SB1'!L27 -> 14183891 | M58: ='SB1'!M27 -> 15176763
A59: Electricity/other energy (50kwh per indigent household per month) | C59: ='SB1'!C15 -> 3562576.715 | D59: ='SB1'!D15 -> 0 | E59: ='SB1'!E15 -> 0 | F59: ='SB1'!F15 -> 0 | G59: ='SB1'!G15 -> 0 | H59: ='SB1'!H15 -> 0 | I59: ='SB1'!I15 -> 0 | J59: =SUM(E59:I59) -> 0 | K59: =IF(D59=0,C59+J59,D59+J59) -> 3562576.715 | L59: ='SB1'!L15 -> 3990086 | M59: ='SB1'!M15 -> 4389095
A60: Refuse (removed once a week for indigent households) | C60: ='SB1'!C34 -> 6977655.264 | D60: ='SB1'!D34 -> 0 | E60: ='SB1'!E34 -> 0 | F60: ='SB1'!F34 -> 0 | G60: ='SB1'!G34 -> 0 | H60: ='SB1'!H34 -> 0 | I60: ='SB1'!I34 -> 0 | J60: =SUM(E60:I60) -> 0 | K60: =IF(D60=0,C60+J60,D60+J60) -> 6977655.264 | L60: ='SB1'!L34 -> 7391430 | M60: ='SB1'!M34 -> 7837133
A61: Cost of Free Basic Services provided - Informal Formal Settlements (R'000) | D61: ='SB5'!F260+'SB5'!F272+'SB5'!F284+'SB5'!F296 -> 0 | E61: ='SB5'!G260+'SB5'!G272+'SB5'!G284+'SB5'!G296 -> 0 | F61: ='SB5'!H260+'SB5'!H272+'SB5'!H284+'SB5'!H296 -> 0 | G61: ='SB5'!I260+'SB5'!I272+'SB5'!I284+'SB5'!I296 -> 0 | H61: ='SB5'!J260+'SB5'!J272+'SB5'!J284+'SB5'!J296 -> 0 | I61: ='SB5'!K260+'SB5'!K272+'SB5'!K284+'SB5'!K296 -> 0 | J61: =SUM(E61:I61) -> 0 | K61: =IF(D61=0,C61+J61,D61+J61) -> 0 | L61: ='SB5'!N260+'SB5'!N272+'SB5'!N284+'SB5'!N296 -> 229830825 | M61: ='SB5'!O260+'SB5'!O272+'SB5'!O284+'SB5'!O296 -> 245966988
A62: Total cost of FBS provided | C62: =SUM(C57:C61) -> 214698464.2 | D62: =SUM(D57:D61) -> 0 | E62: 0 | F62: 0 | G62: 0 | H62: 0 | I62: 0 | J62: 0 | K62: 214698464.2 | L62: 459661650 | M62: 491933976
A64: Highest level of free service provided
A65: Property rates (R'000 value threshold) | C65: 120000 | J65: =SUM(E65:I65) -> 0 | K65: =IF(D65=0,C65+J65,D65+J65) -> 120000
A66: Water (kilolitres per household per month) | C66: 6 | J66: 0 | K66: 6
A67: Sanitation (kilolitres per household per month) | C67: 0 | J67: 0 | K67: 0
A68: Sanitation (Rand per household per month) | C68: 172.3042847 | J68: 0 | K68: 172.3042847
A69: Electricity (kw per household per month) | C69: 70 | J69: 0 | K69: 70
A70: Refuse (average litres per week) | C70: 200 | J70: 0 | K70: 200
A71: Revenue cost of free services provided (R'000) | B71: 17
A72: Property rates (tariff adjustment) ( impermissable values per section 17 of MPRA) | C72: 15000 | J72: =SUM(E72:I72) -> 0 | K72: =IF(D72=0,C72+J72,D72+J72) -> 15000
A73: Property rates exemptions, reductions and rebates and impermissable values in excess of section 17 of MPRA) | C73: ='SB1'!C9 -> 105662918 | D73: ='SB1'!D9 -> 0 | E73: ='SB1'!E9 -> 0 | F73: ='SB1'!F9 -> 0 | G73: ='SB1'!G9 -> 0 | H73: ='SB1'!H9 -> 0 | I73: ='SB1'!I9 -> 0 | J73: 0 | K73: 105662918 | L73: ='SB1'!L9 -> 1690607 | M73: ='SB1'!M9 -> 4006738
A74: Water (in excess of 6 kilolitres per indigent household per month) | D74: ='SB1'!D20 -> 0 | E74: ='SB1'!E20 -> 0 | F74: ='SB1'!F20 -> 0 | G74: ='SB1'!G20 -> 0 | H74: ='SB1'!H20 -> 0 | J74: 0 | K74: 0 | L74: ='SB1'!L20 -> 204265418 | M74: ='SB1'!M20 -> 218563997
A75: Sanitation (in excess of free sanitation service to indigent households) | D75: ='SB1'!D26 -> 0 | E75: ='SB1'!E26 -> 0 | F75: ='SB1'!F26 -> 0 | G75: ='SB1'!G26 -> 0 | H75: ='SB1'!H26 -> 0 | J75: 0 | K75: 0 | L75: ='SB1'!L26 -> 14183891 | M75: ='SB1'!M26 -> 15176763
A76: Electricity/other energy (in excess of 50 kwh per indigent household per month) | D76: ='SB1'!D14 -> 0 | E76: ='SB1'!E14 -> 0 | F76: ='SB1'!F14 -> 0 | G76: ='SB1'!G14 -> 0 | H76: ='SB1'!H14 -> 0 | J76: 0 | K76: 0 | L76: ='SB1'!L14 -> 3990086 | M76: ='SB1'!M14 -> 4389095
A77: Refuse (in excess of one removal a week for indigent households) | D77: ='SB1'!D33 -> 0 | E77: ='SB1'!E33 -> 0 | F77: ='SB1'!F33 -> 0 | G77: ='SB1'!G33 -> 0 | H77: ='SB1'!H33 -> 0 | J77: 0 | K77: 0 | L77: ='SB1'!L33 -> 7391430 | M77: ='SB1'!M33 -> 7837133
A78: Municipal Housing - rental rebates | J78: 0 | K78: 0
A79: Housing - top structure subsidies | B79: 6 | J79: 0 | K79: 0
A80: Other | J80: 0 | K80: 0
A81: Total revenue cost of subsidised services provided | C81: =SUM(C72:C80) -> 105677918 | D81: 0 | E81: 0 | F81: 0 | G81: 0 | H81: 0 | I81: 0 | J81: 0 | K81: 105677918 | L81: 231521432 | M81: 249973726
A82: =head27a -> References
A83: 1. Include services provided by another entity; e.g. Eskom
A84: 2. Stand distance > 200m from dwelling
A85: 3. Stand distance <= 200m from dwelling
A86: 4. Borehole, spring, rain-water tank etc.
A87: 5. Must agree to total number of households in municipal area
A88: 6. Include value of subsidy provided by municipality above provincial subsidy level
A89: 7. Only complete if a previous adjusted budget has been approved in the same financial year. Reflect most recent adjusted budget.
A90: 8. Additional cash-backed accumulated funds/unspent funds (MFMA section 18(1)(b) and section 28(2)(e)) identified after the Original Budget approved and after annual financial statements audited (note: only where underspending could not reasonably have been foreseen)
A91: 9. Increases of funds approved under MFMA section 31
A92: 10. Adjustments approved in accordance with MFMA section 29
A93: 11. Adjustments to transfers from National or Provincial Government
A94: 12. Adjusts. = 'Other' Adjustments proposed to be approved; including revenue under-collection (MFMA section 28(2)(a)); additional revenue appropriation on existing programmes (section 28(2))(b); projected savings (section 28(2)(d)); error correction (section 28(2)(f))
A95: 13. G = B + C + D + E + F
A96: 14. Adjusted Budget H = (A or A1) + G
A97: 15. Show number of households receiving at least these levels of services completely free
A98: 16. Must reflect the cost to the municipality of providing the Free Basic Service
A99: 17. Reflect the cost to the municipality in terms of 'revenue foregone' of providing free services (note this will not equal 'Revenue Foregone' on SA1)

Sheet SB1
A1: =muni&" - "&ADJB1&" - "&Date -> KZN225 Msunduzi - Supporting Table SB1 Supporting detail to 'Budgeted Financial Performance' -
A2: =desc -> Description | B2: =head27 -> Ref | C2: =Head2 -> Budget Year 2021/22 | L2: =Head10 -> Budget Year +1 2022/23 | M2: =Head11 -> Budget Year +2 2023/24
C3: =Head6 -> Original Budget | D3: =Head54 -> Prior Adjusted | E3: =Head51 -> Accum. Funds | F3: =Head52 -> Multi-year capital | G3: =Head53 -> Unfore. Unavoid. | H3: =Head55 -> Nat. or Prov. Govt | I3: =Head50 -> Other Adjusts. | J3: =Head56 -> Total Adjusts. | K3: =Head7 -> Adjusted Budget | L3: =Head7 -> Adjusted Budget | M3: =Head7 -> Adjusted Budget
D4: 6 | E4: 7 | F4: 8 | G4: 9 | H4: 10 | I4: 11 | J4: 12 | K4: 13
A5: R thousands | C5: A | D5: A1 | E5: B | F5: C | G5: D | H5: E | I5: F | J5: G | K5: H
A6: REVENUE ITEMS
A7: Property rates
A8: Total Property Rates | C8: 1427041493 | D8: 0 | I8: 1 | J8: =SUM(E8:I8) -> 1 | K8: =IF(D8=0,C8+J8,D8+J8) -> 1427041494 | L8: 1402351897 | M8: 1495711012
A9: Less Revenue Foregone (exemptions, reductions and rebates and impermissable values in excess of section 17 of MPRA) | C9: 105662918 | D9: 0 | I9: 0 | J9: =SUM(E9:I9) -> 0 | K9: =IF(D9=0,C9+J9,D9+J9) -> 105662918 | L9: 1690607 | M9: 4006738
A10: Net Property Rates | C10: =C8-C9 -> 1321378575 | D10: =D8-D9 -> 0 | E10: 0 | F10: 0 | G10: 0 | H10: 0 | I10: 1 | J10: 1 | K10: 1321378576 | L10: 1400661290 | M10: 1491704274
A12: Service charges - electricity revenue
A13: Total Service charges - electricity revenue | C13: 2969019605 | D13: 0 | I13: -3562578 | J13: =SUM(E13:I13) -> -3562578 | K13: =IF(D13=0,C13+J13,D13+J13) -> 2965457027 | L13: 3325301952 | M13: 3657832152
A14: Less Revenue Foregone (in excess of 50 kwh per indigent household per month) | C14: 3562577 | D14: 0 | I14: -3562577 | J14: =SUM(E14:I14) -> -3562577 | K14: =IF(D14=0,C14+J14,D14+J14) -> 0 | L14: 3990086 | M14: 4389095
A15: Less Cost of Free Basis Services (50 kwh per indigent household per month) | C15: ='SB5'!E250 -> 3562576.715 | D15: ='SB5'!F250 -> 0 | E15: ='SB5'!G250 -> 0 | F15: ='SB5'!H250 -> 0 | G15: ='SB5'!I250 -> 0 | H15: ='SB5'!J250 -> 0 | I15: ='SB5'!K250 -> 0 | J15: =SUM(E15:I15) -> 0 | K15: =IF(D15=0,C15+J15,D15+J15) -> 3562576.715 | L15: ='SB5'!N250 -> 3990086 | M15: ='SB5'!O250 -> 4389095
A16: Net Service charges - electricity revenue | C16: =C13-C14-C15 -> 2961894451 | D16: =D13-D14-D15 -> 0 | E16: 0 | F16: 0 | G16: 0 | H16: 0 | I16: -1 | J16: -1 | K16: 2961894450 | L16: 3317321780 | M16: 3649053962
A18: Service charges - water revenue
A19: Total Service charges - water revenue | C19: 1155021932 | D19: 0 | I19: -190902260 | J19: =SUM(E19:I19) -> -190902260 | K19: =IF(D19=0,C19+J19,D19+J19) -> 964119671.7 | L19: 1235873467 | M19: 1322384609
A20: Less Revenue Foregone (in excess of 6 kilolitres per indigent household per month) | C20: 190902260 | D20: 0 | I20: -190902260 | J20: =SUM(E20:I20) -> -190902260 | K20: =IF(D20=0,C20+J20,D20+J20) -> 0 | L20: 204265418 | M20: 218563997
A21: Less Cost of Free Basis Services (6 kilolitres per indigent household per month) | C21: ='SB5'!E262 -> 190902259.7 | D21: ='SB5'!F262 -> 0 | E21: ='SB5'!G262 -> 0 | F21: ='SB5'!H262 -> 0 | G21: ='SB5'!I262 -> 0 | H21: ='SB5'!J262 -> 0 | I21: ='SB5'!K262 -> 0 | J21: =SUM(E21:I21) -> 0 | K21: =IF(D21=0,C21+J21,D21+J21) -> 190902259.7 | L21: ='SB5'!N262 -> 204265418 | M21: ='SB5'!O262 -> 218563997
A22: Net Service charges - water revenue | C22: =C19-C20-C21 -> 773217412 | D22: =D19-D20-D21 -> 0 | E22: 0 | F22: 0 | G22: 0 | H22: 0 | I22: 0 | J22: =J19-J20-J21 -> 0 | K22: 773217412 | L22: 827342631 | M22: 885256615
A24: Service charges - sanitation revenue
A25: Total Service charges - sanitation revenue | C25: 186666858.5 | D25: 0 | I25: -13255973 | J25: =SUM(E25:I25) -> -13255973 | K25: =IF(D25=0,C25+J25,D25+J25) -> 173410885.5 | L25: 198019882 | M25: 210235647
A26: Less Revenue Foregone (in excess of free sanitation service to indigent households) | C26: 13255973 | D26: 0 | I26: -13255973 | J26: =SUM(E26:I26) -> -13255973 | K26: =IF(D26=0,C26+J26,D26+J26) -> 0 | L26: 14183891 | M26: 15176763
A27: Less Cost of Free Basis Services (free sanitation service to indigent households) | C27: ='SB5'!E274 -> 13255972.54 | D27: ='SB5'!F274 -> 0 | E27: ='SB5'!G274 -> 0 | F27: ='SB5'!H274 -> 0 | G27: ='SB5'!I274 -> 0 | H27: ='SB5'!J274 -> 0 | I27: ='SB5'!K274 -> 0 | J27: =SUM(E27:I27) -> 0 | K27: =IF(D27=0,C27+J27,D27+J27) -> 13255972.54 | L27: ='SB5'!N274 -> 14183891 | M27: ='SB5'!O274 -> 15176763
A28: Net Service charges - sanitation revenue | C28: =C25-C26-C27 -> 160154913 | D28: =D25-D26-D27 -> 0 | E28: 0 | F28: 0 | G28: 0 | H28: 0 | I28: 0 | J28: 0 | K28: 160154913 | L28: 169652100 | M28: 179882121
C29: .
A30: Service charges - refuse revenue
A31: Total refuse removal revenue | C31: 136512211.3 | D31: 0 | I31: -6977655 | J31: =SUM(E31:I31) -> -6977655 | K31: =IF(D31=0,C31+J31,D31+J31) -> 129534556.3 | L31: 144607385 | M31: 153327210
A32: Total landfill revenue | C32: 0 | D32: 0 | I32: 0 | J32: =SUM(E32:I32) -> 0 | K32: =IF(D32=0,C32+J32,D32+J32) -> 0 | L32: 0 | M32: 0
A33: Less Revenue Foregone (in excess of one removal a week to indigent households) | C33: 6977655 | D33: 0 | I33: -6977655 | J33: =SUM(E33:I33) -> -6977655 | K33: =IF(D33=0,C33+J33,D33+J33) -> 0 | L33: 7391430 | M33: 7837133
A34: Less Cost of Free Basis Services (removed once a week to indigent households) | C34: ='SB5'!E286 -> 6977655.264 | D34: ='SB5'!F286 -> 0 | E34: ='SB5'!G286 -> 0 | F34: ='SB5'!H286 -> 0 | G34: ='SB5'!I286 -> 0 | H34: ='SB5'!J286 -> 0 | I34: ='SB5'!K286 -> 0 | J34: =SUM(E34:I34) -> 0 | K34: =IF(D34=0,C34+J34,D34+J34) -> 6977655.264 | L34: ='SB5'!N286 -> 7391430 | M34: ='SB5'!O286 -> 7837133
A35: Net Service charges - refuse revenue | C35: =SUM(C31:C32)-SUM(C33:C34) -> 122556901 | D35: =SUM(D31:D32)-SUM(D33:D34) -> 0 | E35: 0 | F35: 0 | G35: 0 | H35: 0 | I35: 0 | J35: 0 | K35: 122556901 | L35: 129824525 | M35: 137652944
A37: Other Revenue By Source
A38: Fuel Levy | C38: 0 | D38: 0 | I38: 0 | J38: =SUM(E38:I38) -> 0 | K38: =IF(D38=0,C38+J38,D38+J38) -> 0 | L38: 0 | M38: 0
A39: Other Revenue | C39: 154286955 | D39: 0 | I39: 1 | J39: =SUM(E39:I39) -> 1 | K39: =IF(D39=0,C39+J39,D39+J39) -> 154286956 | L39: 163436172 | M39: 173291373
C40: 0 | D40: 0 | I40: 0 | J40: 0 | K40: 0 | L40: 0 | M40: 0
C41: 0 | D41: 0 | I41: 0 | J41: 0 | K41: 0 | L41: 0 | M41: 0
C42: 0 | D42: 0 | I42: 0 | J42: 0 | K42: 0 | L42: 0 | M42: 0
C43: 0 | D43: 0 | I43: 0 | J43: 0 | K43: 0 | L43: 0 | M43: 0
C44: 0 | D44: 0 | I44: 0 | J44: 0 | K44: 0 | L44: 0 | M44: 0
C45: 0 | D45: 0 | I45: 0 | J45: 0 | K45: 0 | L45: 0 | M45: 0
C46: 0 | D46: 0 | I46: 0 | J46: 0 | K46: 0 | L46: 0 | M46: 0
C47: 0 | D47: 0 | I47: 0 | J47: 0 | K47: 0 | L47: 0 | M47: 0
C48: 0 | D48: 0 | I48: 0 | J48: 0 | K48: 0 | L48: 0 | M48: 0
C49: 0 | D49: 0 | I49: 0 | J49: 0 | K49: 0 | L49: 0 | M49: 0
A50: Total 'Other' Revenue | B50: 1 | C50: =SUM(C38:C39) -> 154286955 | D50: =SUM(D38:D39) -> 0 | E50: 0 | F50: 0 | G50: 0 | H50: 0 | I50: 1 | J50: 1 | K50: 154286956 | L50: 163436172 | M50: 173291373
A52: EXPENDITURE ITEMS
A53: Employee related costs
A54: Basic Salaries and Wages | C54: 1117453444 | D54: 0 | I54: 36819895.34 | J54: =SUM(E54:I54) -> 36819895.34 | K54: =IF(D54=0,C54+J54,D54+J54) -> 1154273339 | L54: 1051215848 | M54: 1111952557
A55: Pension and UIF Contributions | C55: 205269338.7 | D55: 0 | J55: =SUM(E55:I55) -> 0 | K55: =IF(D55=0,C55+J55,D55+J55) -> 205269338.7 | L55: 192804679 | M55: 196591196
A56: Medical Aid Contributions | C56: 102806435.1 | D56: 0 | J56: 0 | K56: 102806435.1 | L56: 98188754 | M56: 100139824
A57: Overtime | C57: 16033131.64 | D57: 0 | J57: 0 | K57: 16033131.64 | L57: 3439546 | M57: 3678588
A58: Performance Bonus | D58: 0 | J58: 0 | K58: 0 | L58: 82906522 | M58: 87808416
A59: Motor Vehicle Allowance | C59: 1784018.1 | D59: 0 | J59: 0 | K59: 1784018.1 | L59: 1708946 | M59: 1717855
A60: Cellphone Allowance | C60: 4910504.8 | D60: 0 | J60: 0 | K60: 4910504.8 | L60: 4744579 | M60: 4747665
A61: Housing Allowances | C61: 4699810.32 | D61: 0 | J61: 0 | K61: 4699810.32 | L61: 4477770 | M61: 4475674
A62: Other benefits and allowances | C62: 70345723.45 | D62: 0 | J62: 0 | K62: 70345723.45 | L62: 157068031 | M62: 164705465
A63: Payments in lieu of leave | D63: 0 | J63: 0 | K63: 0 | L63: 0 | M63: 0
A64: Long service awards | C64: 14787336.84 | D64: 0 | J64: 0 | K64: 14787336.84 | L64: 14229634 | M64: 14507423
A65: Post-retirement benefit obligations | B65: 4 | D65: 0 | J65: 0 | K65: 0 | L65: 0 | M65: 0
A66: sub-total | C66: =SUM(C54:C65) -> 1538089743 | D66: =SUM(D54:D65) -> 0 | E66: 0 | F66: 0 | G66: 0 | H66: 0 | I66: 36819895.34 | J66: 36819895.34 | K66: 1574909638 | L66: 1610784309 | M66: 1690324663
A67: Less: Employees costs capitalised to PPE | D67: 0 | J67: =SUM(E67:I67) -> 0 | K67: =IF(D67=0,C67+J67,D67+J67) -> 0 | L67: -1991073 | M67: -1990140
A68: ="Total "&A53 -> Total Employee related costs | B68: 1 | C68: =C66-C67 -> 1538089743 | D68: =D66-D67 -> 0 | E68: 0 | F68: 0 | G68: 0 | H68: 0 | I68: 36819895.34 | J68: =SUM(J66:J67) -> 36819895.34 | K68: =SUM(K66:K67) -> 1574909638 | L68: =L66-L67 -> 1612775382 | M68: =M66-M67 -> 1692314803
A79: Depreciation & asset impairment
A80: Depreciation of Property, Plant & Equipment | C80: 421872297.6 | D80: 0 | J80: =SUM(E80:I80) -> 0 | K80: =IF(D80=0,C80+J80,D80+J80) -> 421872297.6 | L80: 390748047 | M80: 301301018
A81: Lease amortisation | D81: 0 | I81: -426 | J81: =SUM(E81:I81) -> -426 | K81: =IF(D81=0,C81+J81,D81+J81) -> -426 | L81: 15047654 | M81: 12601106
A82: Capital asset impairment | C82: 0 | D82: 0 | J82: =SUM(E82:I82) -> 0 | K82: =IF(D82=0,C82+J82,D82+J82) -> 0 | L82: 0 | M82: 0
A84: ="Total "&LEFT(A79,35) -> Total Depreciation & asset impairment | B84: 1 | C84: =SUM(C80:C82) -> 421872297.6 | D84: =SUM(D80:D82) -> 0 | E84: 0 | F84: 0 | G84: 0 | H84: 0 | I84: -426 | J84: -426 | K84: 421871871.6 | L84: 405795701 | M84: 313902124
A86: Bulk purchases
A87: Electricity Bulk Purchases | C87: 2185393029 | D87: 0 | J87: =SUM(E87:I87) -> 0 | K87: =IF(D87=0,C87+J87,D87+J87) -> 2185393029 | L87: 2432755559 | M87: 2679542121
A88: Water Bulk Purchases | J88: =SUM(E88:I88) -> 0 | K88: =IF(D88=0,C88+J88,D88+J88) -> 0 | L88: -16924634 | M88: -16806091
A89: Total bulk purchases | B89: 1 | C89: =C87 -> 2185393029 | D89: =D87 -> 0 | E89: 0 | F89: 0 | G89: 0 | H89: 0 | I89: 0 | J89: 0 | K89: 2185393029 | L89: =L87 -> 2432755559 | M89: =M87 -> 2679542121
A91: Transfers and grants
A92: Cash transfers and grants | C92: 45862882.85 | D92: 0 | I92: 0 | J92: =SUM(E92:I92) -> 0 | K92: =IF(D92=0,C92+J92,D92+J92) -> 45862882.85 | L92: 0 | M92: 0
A93: Non-cash transfers and grants | C93: 0 | D93: 0 | I93: 0 | J93: =SUM(E93:I93) -> 0 | K93: =IF(D93=0,C93+J93,D93+J93) -> 0 | L93: 0 | M93: 0
A94: Total transfers and grants | C94: =SUM(C92:C93) -> 45862882.85 | D94: 0 | E94: 0 | F94: 0 | G94: 0 | H94: 0 | I94: 0 | J94: =SUM(J92:J93) -> 0 | K94: =SUM(K92:K93) -> 45862882.85 | L94: =SUM(L92:L93) -> 0 | M94: =SUM(M92:M93) -> 0
A96: Contracted services
